Workbook

Sheet Cover sheet
B1: Contributions Policy 2022 Variation A DC modelling
B3: Additional explanation added 24 July 2023
B4: The Development Contributions Policy 2022 came into effect in January 2022 and includes projects planned for delivery within the 10-Year Budget 2021-2031 across Auckland. You can find the models used for this policy on our website at https://www.aucklandcouncil.govt.nz/plans-projects-policies-reports-bylaws/our-policies/development-contributions-policy/Pages/previous-development-contributions-policy.aspx Development Contributions Policy 2022 Variation A which came into effect in June 2023 added projects planned for delivery beyond 2032 and updated the Development Contributions Policy 2022 for projects planned for delivery in the Drury both within the 10-Year Budget 2021-2031 and beyond 2032. These calculations were completed using four models. Development Contributions Policy 2022 Variation A only impacted DC local prices within Drury local and sub-regional Drury funding area. As the model contains all projects, adjustments to the input factors can result in price adjustments for projects outside of Drury. However, only those prices consulted on as part of the Variation A update, Drury, are incorporated into the final DC policy. Changes to regional prices will be consulted on when we next propose to update the policy. You can find further details on our methodology on our website at https://www.aucklandcouncil.govt.nz/plans-projects-policies-reports-bylaws/our-policies/development-contributions-policy/Pages/development-contributions-policy.aspx The DCP 2022 Variation A prices are calculated by adding the pricing in the following sheets: • LTP Funding Model Drury final - O_DCP_SCH3 sheet • DCP 2022 Variation A project and price model - Schedule_3_DC_prices sheet • An offline adjustment reduces Drury local transport prices to ensure that the share of project costs attributed to the region is not also charged to developers in Drury. This is explained further below. More detailed work completed on projects to be delivered within the 10-year Budget 2021-2031 period meant that beneficiaries for some transport related projects were assessed to be across the Auckland region. To ensure that developers in Drury are not charged twice, an offline adjustment was made to reduce the price calculated for local transport prices in the Drury funding areas by the increased regional Auckland wide price. The DC price set out in Schedule 3 of the Contributions Policy 2022 Variation A reduces the local Transport prices in the Drury funding areas by $14 -$15. The following diagram sets out the models used for the Contributions Policy 2022 Variation A, and how these relate to the previously adopted Development Contributions Policy 2022.
B5: The council’s Development Contributions Policy 2022 was released in December 2021, and Development Contributions Policy 2022 Variation A was released in April 2023.

Sheet Process_overview
A1: Explanation of each sheet in the LTP Funding Model Drury | E1: Colour codes of sheet types
A2: This model uses the data calculated in the LTP CAM Drury final spreadsheet to calculate the DC price for projects planned for delivery within the 10-Year Budget 2021-2031.
A4: Sheet Name | B4: Sheet Type | C4: Description | E4: Category | F4: Sheet Type | G4: Tab Colour | H4: Description
A5: Check_Summary | B5: Others – Others | C5: Summary of validation checks from each individual sheet. A warning message is displayed when there is any validation check fails. | E5: Input | F5: Input – Variables | G5: Red | H5: Contains codes, values, and definitions which are used throughout the model
A6: FundingAreaNames | B6: Input – Variables | C6: Stores details of activities, funding areas, funding area names, funding area types, and DC price calculation types. This data is used in a number of sheets to determine the DC prices and financial information by various categories (regional, sub-regional, or local). | E6: Processing | F6: Processing – Upon Import | G6: Dark Green | H6: Data in this sheet type is generated from one or more of the Light Green tabs. For example, the "Consolidated_growth_HUEs" sheet's data is generated automatically from the data in the "O_AC_DCGM_PTS" tab.
A7: Infrastructure Types | B7: Input – Variables | C7: A table to map Infrastructure Type code, Infrastructure Type name, and explanation of capital expenditure (for schedule 4) | E7: Processing | F7: Processing – Automatic | G7: Blue | H7: Contains intermediary calculations between an input and an output data. The data in these sheet types are generated as a result of goal seek to calculate the DC price to recover the growth capex costs and interest costs by the end of the LTP period. Also, the total of the interest calculation line needs to be within plus or minus 2 of the total of the "Plus: Interest cost" line
A8: M_VAR | B8: Input – Variables | C8: Contains variable values of policy years, interest rates, and funding areas that require a special calculation | E8: Input | F8: Input – Imported | G8: Light Green | H8: Usually contain a large amount of data and is copied into the model
A9: O_AC_DCCAM_TOT | B9: Input – Imported | C9: This data is copied from the O_CWP_TOT sheet of the LTP CAM Drury transport final model. | E9: Output | F9: Output – Internal use | G9: Orange | H9: Contains output data used by people/systems outside the Financial Strategy and Planning department
A10: O_AC_DCCAM_NOW | B10: Input – Imported | C10: This data is copied from the O_NOW_TOT sheet of the LTP CAM Drury transport final model | E10: Output | F10: Output – External use | G10: Yellow | H10: Contains output data used in the DC policy
A11: O_AC_DCCAM_FUT | B11: Input – Imported | C11: This data is copied from the O_FUT_TOT sheet of the LTP CAM Drury transport final model
A12: Consolidated_growth_HUEs | B12: Processing – Upon Import | C12: The data from the O_AC_DCGM_PTS sheet is consolidated into this sheet by calculating the tolas for Residential HUEs and Non-residential HUEs. This data is incorporated into the Growth (HUE) fields in the following sheets • M_OSL • M_STW • M_TRA • M_PTR • M_CI • M_OSD
A13: O_AC_DCGM_PTS | B13: Input – Imported | C13: The total number of HUEs for each funding area is calculated in the Growth Model and copied into this sheet.
A14: M_FUT | B14: Processing – Process | C14: Intermediary sheet that calculates Interest cost on capital expenditure to be recovered beyond the10-Year Budget 2021-2031 for each funding area and activity. The data for each funding area and infrastructure type is copied from the O_AC_DCCAM_FUT sheet into this sheet and interest is added. The "Interest calculation" line is copied to the "Plus: Interest cost" line until the total of the "Interest calculation" line is within plus or minus 2 of total of "Plus: Interest cost" line.
A15: M_PTR | B15: Processing – Process | C15: The following data is updated for public transport projects (there are no public transport projects for Drury, at this stage) • The interest rate by year is from M_VAR • Adjustments from the M_VAR are made • HUE data in Consolidated_growth_HUEs is copied to relevant funding area. • Capital expenditure from the O_AC_DCCAM_NOW sheets are c copied to relevant funding area. • Interest from Bfwd_int is copied to relevant funding area Formula in this sheet are used to calculate the interest. For each funding area, a goal seek is used to calculate the DC price and total revenue to recover the capital expenditure and interest costs over the LTP period (that is, the balance at the end of 2030/31, year 10 is zero.
A16: M_TRA | B16: Processing – Process
A17: M_STW | B17: Processing – Process
A18: M_OSD | B18: Processing – Process
A19: M_OSL | B19: Processing – Process
A20: M_CI | B20: Processing – Process
A21: O_DCP_SCH3 | B21: Output – Internal use | C21: DC price per funding area and activity. The DC prices from the following sheets is used • M_OSL • M_STW • M_TRA • M_PTR • M_CI • M_OSD Data from this sheet is used to compile Poilcy_S3 tab.
A22: O_INC_DC | B22: Output – Internal use | C22: Revenue forecast data for the 10-Year Budget 2021-2031 period calculated in the following sheets are consolidated in this sheet. • M_OSL • M_STW • M_TRA • M_PTR • M_CI • M_OSD
A23: O_BAL_DC | B23: Output – Internal use | C23: Balances for the LTP period, based of the calculations from M_FUT and the following sheets: • M_OSL • M_STW • M_TRA • M_PTR • M_CI • M_OSD
A24: Policy_S3 | B24: Output – External use | C24: Data from the O_DCP_SCH3 sheet is formatted in this sheet. DC price per funding area and activity, grouped into Regional, Sub-regional and Local categories. Data from this sheet is exported into a separate output file. For the Drury projects, these prices are added to the DC prices from the DCP 2022 Variation A project and price model for inclusion in the DC policy.
A25: O_DCP_SCH4 | B25: Output – External use | C25: Summary of capital expenditure and funding sources forms part of the published version in the Contributions Policy
A26: O_DCP_GROWTH | B26: Output – External use | C26: Household Unit Equivalent (HUE) projection per funding area, used in the DC Policy

Sheet Check_Summary
A1: Funding model checks | B1: =IF(COUNTIF(B5:B12,"OK")=8,"OK","Warning, at least one of the summary checks do not agree") -> OK
A3: Summary of the detailed checks outlined below, so you do not need to scroll down the page in the More detailed checks by Infrastructure Type and other factors section to see if there are any errors.
A4: Check type:
A5: Growth figures | B5: =IF(COUNTIF(B19:B25,"OK")=7,"OK","CHECK which activities below") -> OK | C5: Checks that the Growth HUE figures for each of the DC activities (blue tabs) match the growth HUE figures in the O_AC_DCGM_PTS tab.
A6: Historic capex | B6: =IF(COUNTIF(B28:B34,"OK")=7,"OK","CHECK which activities below") -> OK | C6: Checks that the Historic capex/Already built capex figures for each of the DC activities (blue tabs) match the historic capex/Prev capex figures in the O_AC_DCCAM_FUT and O_AC_DCCAM_NOW tabs.
A7: Planned capex | B7: =IF(COUNTIF(B37:B43,"OK")=7,"OK","CHECK which activities below") -> OK | C7: Checks that the Still to be built capex (ACn) figures for each of the DC activities (blue tabs) match the planned capex figures in the O_AC_DCCAM_NOW tab
A8: Future planned capex | B8: =IF(COUNTIF(B46:B52,"OK")=7,"OK","CHECK which activities below") -> OK | C8: Checks that the ACf capital expenditure figures to be recovered beyond the LTP period for each of the DC activities in the M_FUT tab match the capex figures in the O_AC_DCCAM_FUT tab
A9: Closing balance for Infrastructure Type tabs | B9: =IF(COUNTIF(B55:B61,"OK")=7,"OK","CHECK which activities below") -> OK | C9: Checks that the year 10 closing balances for each funding area in each of the blue DC activities tabs is zero
A10: Closing balance for M_FUT | B10: =IF(COUNTIF(B64:B70,"OK")=7,"OK","CHECK which activities below") -> OK | C10: The year 10 closing balances in M_FUT should equal the year 10 closing balances in O_BAL_DC tab
A11: DC revenue | B11: =IF(COUNTIF(B73:B79,"OK")=7,"OK","CHECK which activities below") -> OK | C11: The DC revenue/income in the blue DC activitiy tabs should equal the DC income in the O_BAL_DC tab
A12: DC interest | B12: =IF(COUNTIF(B82:B88,"OK")=7,"OK","CHECK which activities below") -> OK | C12: The interest cost in the blue DC activitiy tabs and M_FUT should equal the sum of the Interest - Now and Interest - Future costs in the O_BAL_DC tab
A14: End of summary. Detailed funding checks occur below this line
A16: Detailed checks by Infrastructure Type and other factors:
A18: Growth figures
A19: CI | B19: =IF(OR(MAX(M_CI!D1451:N1451)>1,MIN(M_CI!D1451:N1451)<-1),"Check HUE figures","OK") -> OK
A20: OSL | B20: =IF(OR(MAX(M_OSL!D1451:N1451)>1,MIN(M_OSL!D1451:N1451)<-1),"Check HUE figures","OK") -> OK
A21: OSD | B21: =IF(OR(MAX('M_OSD '!D1451:N1451)>1,MIN('M_OSD '!D1451:N1451)<-1),"Check HUE figures","OK") -> OK
A22: STW | B22: =IF(OR(MAX('M_STW '!D1715:N1715)>1,MIN('M_STW '!D1715:N1715)<-1),"Check HUE figures","OK") -> OK
A23: TRA | B23: =IF(OR(MAX(M_TRA!D1055:N1055)>1,MIN(M_TRA!D1055:N1055)<-1),"Check HUE figures","OK") -> OK
A24: PTR | B24: =IF(OR(MAX('M_PTR '!D1055:N1055)>1,MIN('M_PTR '!D1055:N1055)<-1),"Check HUE figures","OK") -> OK
A25: ALL | B25: =IF(ABS(+M_CI!N1450+M_OSL!N1450+'M_OSD '!N1450+'M_STW '!N1714+M_TRA!N1054+'M_PTR '!N1054-Consolidated_growth_HUEs!S499-Consolidated_growth_HUEs!S500-Consolidated_growth_HUEs!S501-Consolidated_growth_HUEs!S502-Consolidated_growth_HUEs!S503-Consolidated_growth_HUEs!S504)>2,"CHECK","OK") -> OK
A27: Historic capex figures (includes M_FUT)
A28: CI | B28: =IF(ABS(M_CI!D1436+M_FUT!D2474-O_AC_DCCAM_TOT!G38)>1,"Check historic capex","OK") -> OK
A29: OSL | B29: =IF(ABS(M_OSL!D1436+M_FUT!D2475-O_AC_DCCAM_TOT!G33)>1,"Check historic capex","OK") -> OK
A30: OSD | B30: =IF(ABS('M_OSD '!D1436+M_FUT!D2476-O_AC_DCCAM_TOT!G34)>1,"Check historic capex","OK") -> OK
A31: STW | B31: =IF(ABS('M_STW '!D1700+M_FUT!D2477-O_AC_DCCAM_TOT!G35)>1,"Check historic capex","OK") -> OK
A32: TRA | B32: =IF(ABS(M_TRA!D1040+M_FUT!D2478-O_AC_DCCAM_TOT!G36)>1,"Check historic capex","OK") -> OK
A33: PTR | B33: =IF(ABS('M_PTR '!D1040+M_FUT!D2479-O_AC_DCCAM_TOT!G37)>1,"Check historic capex","OK") -> OK
A34: ALL | B34: =IF(ABS(+O_BAL_DC!G9-O_AC_DCCAM_TOT!G21)>1,"Check historic capex","OK") -> OK
A36: Planned capex figures
A37: CI | B37: =IF(ABS(M_CI!N1438-O_AC_DCCAM_NOW!S38)>1,"Check historic capex","OK") -> OK
A38: OSL | B38: =IF(ABS(M_OSL!N1438-O_AC_DCCAM_NOW!S33)>1,"Check historic capex","OK") -> OK
A39: OSD | B39: =IF(ABS('M_OSD '!N1438-O_AC_DCCAM_NOW!S34)>1,"Check historic capex","OK") -> OK
A40: STW | B40: =IF(ABS('M_STW '!N1702-O_AC_DCCAM_NOW!S35)>1,"Check historic capex","OK") -> OK
A41: TRA | B41: =IF(ABS(M_TRA!N1042-O_AC_DCCAM_NOW!S36)>1,"Check historic capex","OK") -> OK
A42: PTR | B42: =IF(ABS('M_PTR '!N1042-O_AC_DCCAM_NOW!S37)>1,"Check historic capex","OK") -> OK
A43: ALL | B43: =IF(ABS(+M_CI!N1438+M_OSL!N1438+'M_OSD '!N1438+'M_STW '!N1702+M_TRA!N1042+'M_PTR '!N1042-O_AC_DCCAM_NOW!S39)>1,"Check historic capex","OK") -> OK
A45: Future Planned capex figures
A46: CI | B46: =IF(ABS(M_FUT!N2487-O_AC_DCCAM_FUT!S38)>1,"Check future planned capex","OK") -> OK
A47: OSL | B47: =IF(ABS(M_FUT!N2496-O_AC_DCCAM_FUT!S33)>1,"Check future planned capex","OK") -> OK
A48: OSD | B48: =IF(ABS(M_FUT!N2505-O_AC_DCCAM_FUT!S34)>1,"Check future planned capex","OK") -> OK
A49: STW | B49: =IF(ABS(M_FUT!N2514-O_AC_DCCAM_FUT!S35)>1,"Check future planned capex","OK") -> OK
A50: TRA | B50: =IF(ABS(M_FUT!N2523-O_AC_DCCAM_FUT!S36)>1,"Check future planned capex","OK") -> OK
A51: PTR | B51: =IF(ABS(M_FUT!N2532-O_AC_DCCAM_FUT!S37)>1,"Check future planned capex","OK") -> OK
A52: ALL | B52: =IF(ABS(M_FUT!N2541-O_AC_DCCAM_FUT!S39)>1,"Check future planned capex","OK") -> OK
A54: Closing balances for DC Infrastructure Type tabs
A55: CI | B55: =IF(ABS(M_CI!M1441)>1,"Check closing balances","OK") -> OK
A56: OSL | B56: =IF(ABS(M_OSL!M1441)>1,"Check closing balances","OK") -> OK
A57: OSD | B57: =IF(ABS('M_OSD '!M1441)>1,"Check closing balances","OK") -> OK
A58: STW | B58: =IF(ABS('M_STW '!M1705)>1,"Check closing balances","OK") -> OK
A59: TRA | B59: =IF(ABS(M_TRA!M1045)>1,"Check closing balances","OK") -> OK
A60: PTR | B60: =IF(ABS('M_PTR '!M1045)>1,"Check closing balances","OK") -> OK
A61: ALL | B61: =IF(ABS(+M_CI!M1441+M_OSL!M1441+'M_OSD '!M1441+'M_STW '!M1705+M_TRA!M1045+'M_PTR '!M1045)>2,"Check closing balances in blue Infrastructure Type tabs","OK") -> OK
A63: Closing balance
A64: CI | B64: =IF(ABS(M_FUT!M2490-O_BAL_DC!P2518)>2,"Check closing balance as M_FUT closing balance does not equal O_BAL_DC_closing balance","OK") -> OK
A65: OSL | B65: =IF(ABS(M_FUT!M2499-O_BAL_DC!P2529)>2,"Check closing balance as M_FUT closing balance does not equal O_BAL_DC_closing balance","OK") -> OK
A66: OSD | B66: =IF(ABS(M_FUT!M2508-O_BAL_DC!P2540)>2,"Check closing balance as M_FUT closing balance does not equal O_BAL_DC_closing balance","OK") -> OK
A67: STW | B67: =IF(ABS(M_FUT!M2517-O_BAL_DC!P2551)>2,"Check closing balance as M_FUT closing balance does not equal O_BAL_DC_closing balance","OK") -> OK
A68: TRA | B68: =IF(ABS(M_FUT!M2526-O_BAL_DC!P2562)>2,"Check closing balance as M_FUT closing balance does not equal O_BAL_DC_closing balance","OK") -> OK
A69: PTR | B69: =IF(ABS(M_FUT!M2535-O_BAL_DC!P2573)>2,"Check closing balance as M_FUT closing balance does not equal O_BAL_DC_closing balance","OK") -> OK
A70: ALL | B70: =IF(ABS(M_FUT!M2544-O_BAL_DC!P16)>2,"Check closing balance as M_FUT closing balance does not equal O_BAL_DC_closing balance","OK") -> OK
A72: DC revenue
A73: CI | B73: =IF(ABS(M_CI!N1440+O_BAL_DC!Q2516)>1,"DC revenue does not equal O_DC_BAL_revenue","OK") -> OK
A74: OSL | B74: =IF(ABS(M_OSL!N1440+O_BAL_DC!Q2527)>1,"DC revenue does not equal O_DC_BAL_revenue","OK") -> OK
A75: OSD | B75: =IF(ABS('M_OSD '!N1440+O_BAL_DC!Q2538)>1,"DC revenue does not equal O_DC_BAL_revenue","OK") -> OK
A76: STW | B76: =IF(ABS('M_STW '!N1704+O_BAL_DC!Q2549)>1,"DC revenue does not equal O_DC_BAL_revenue","OK") -> OK
A77: TRA | B77: =IF(ABS(M_TRA!N1044+O_BAL_DC!Q2560)>1,"DC revenue does not equal O_DC_BAL_revenue","OK") -> OK
A78: PTR | B78: =IF(ABS('M_PTR '!N1044+O_BAL_DC!Q2571)>1,"DC revenue does not equal O_DC_BAL_revenue","OK") -> OK
A79: ALL | B79: =IF(ABS(+M_CI!N1440+M_OSL!N1440+'M_OSD '!N1440+'M_STW '!N1704+M_TRA!N1044+'M_PTR '!N1044+O_BAL_DC!T14)>1,"Check Infrastructure Type revenue as it does not equal O_DC_BAL total revenue","OK") -> OK
A81: DC interest
A82: CI | B82: =IF(ABS(M_CI!N1439+M_FUT!N2488-O_BAL_DC!Q2514-O_BAL_DC!Q2515)>1,"Check NOW and FUT interest as they do not equal the NOW and FUT interest in O_BAL_DC","OK") -> OK
A83: OSL | B83: =IF(ABS(M_OSL!N1439+M_FUT!N2497-O_BAL_DC!Q2525-O_BAL_DC!Q2526)>1,"Check NOW and FUT interest as they do not equal the NOW and FUT interest in O_BAL_DC","OK") -> OK
A84: OSD | B84: =IF(ABS('M_OSD '!N1439+M_FUT!N2506-O_BAL_DC!Q2536-O_BAL_DC!Q2537)>1,"Check NOW and FUT interest as they do not equal the NOW and FUT interest in O_BAL_DC","OK") -> OK
A85: STW | B85: =IF(ABS('M_STW '!N1703+M_FUT!N2515-O_BAL_DC!Q2547-O_BAL_DC!Q2548)>1,"Check NOW and FUT interest as they do not equal the NOW and FUT interest in O_BAL_DC","OK") -> OK
A86: TRA | B86: =IF(ABS(M_TRA!N1043+M_FUT!N2524-O_BAL_DC!Q2558-O_BAL_DC!Q2559)>1,"Check NOW and FUT interest as they do not equal the NOW and FUT interest in O_BAL_DC","OK") -> OK
A87: PTR | B87: =IF(ABS('M_PTR '!N1043+M_FUT!N2533-O_BAL_DC!Q2569-O_BAL_DC!Q2570)>1,"Check NOW and FUT interest as they do not equal the NOW and FUT interest in O_BAL_DC","OK") -> OK
A88: ALL | B88: =IF(ABS(+M_CI!N1439+M_FUT!N2488+M_OSL!N1439+M_FUT!N2497+'M_OSD '!N1439+M_FUT!N2506+'M_STW '!N1703+M_FUT!N2515+M_TRA!N1043+M_FUT!N2524+'M_PTR '!N1043+M_FUT!N2533-O_BAL_DC!T12-O_BAL_DC!T13)>1,"Check interest calcs as Now and Fut totals do not equal O_BAL_DC interest totals","OK") -> OK

Sheet FundingAreaNames
A2: Infrastructure Type | B2: Funding area | C2: Infrastructure Type and funding area code | D2: Funding are name | E2: Area Type | F2: DC price calculation type | G2: DELETE??? | H2: DELETE??? | I2: DELETE??? | J2: DELETE??? | K2: DELETE??? | L2: Area Type (Unique)
A3: OSL | B3: Area 1 | C3: =A3&" A"&RIGHT(B3,LEN(B3)-5) -> OSL A1 | D3: Auckland wide | E3: Regional | F3: Standard | L3: Regional
A4: OSL | B4: Area 2 | C4: OSL A2 | D4: Not used | F4: Standard | L4: Sub-regional
A5: OSL | B5: Area 3 | C5: OSL A3 | D5: Urban | E5: Sub-regional | F5: Standard | L5: Local
A6: OSL | B6: Area 4 | C6: OSL A4 | D6: Not used | F6: Standard
A7: OSL | B7: Area 5 | C7: OSL A5 | D7: Warkworth | E7: Local | F7: Standard
A8: OSL | B8: Area 6 | C8: OSL A6 | D8: Dairy Flat | E8: Local | F8: Standard
A9: OSL | B9: Area 7 | C9: OSL A7 | D9: Northwest Greenfield | E9: Sub-regional | F9: Standard
A10: OSL | B10: Area 8 | C10: OSL A8 | D10: North Greenfield | E10: Sub-regional | F10: Standard
A11: OSL | B11: Area 9 | C11: OSL A9 | D11: South Greenfield | E11: Sub-regional | F11: Standard
A12: OSL | B12: Area 10 | C12: OSL A10 | D12: Flatbush | E12: Local | F12: Standard
A13: OSL | B13: Area 11 | C13: OSL A11 | D13: Takanini | E13: Local | F13: Standard
A14: OSL | B14: Area 12 | C14: OSL A12 | D14: Drury / Opaheke | E14: Sub-regional | F14: Standard
A15: OSL | B15: Area 13 | C15: OSL A13 | D15: Hingaia | E15: Local | F15: Standard
A16: OSL | B16: Area 14 | C16: OSL A14 | D16: Paerata / Pukekohe | E16: Local | F16: Standard
A17: OSL | B17: Area 15 | C17: OSL A15 | D17: Hibiscus | E17: Local | F17: Standard
A18: OSL | B18: Area 16 | C18: OSL A16 | D18: North Shore | E18: Local | F18: Standard
A19: OSL | B19: Area 17 | C19: OSL A17 | D19: West | E19: Local | F19: Standard
A20: OSL | B20: Area 18 | C20: OSL A18 | D20: Central | E20: Local | F20: Standard
A21: OSL | B21: Area 19 | C21: OSL A19 | D21: South (West) | E21: Local | F21: Standard
A22: OSL | B22: Area 20 | C22: OSL A20 | D22: South (East) | E22: Local | F22: Standard
A23: OSL | B23: Area 21 | C23: OSL A21 | D23: Rural North Upper | E23: Local | F23: Standard
A24: OSL | B24: Area 22 | C24: OSL A22 | D24: Rural North Lower | E24: Local | F24: Standard
A25: OSL | B25: Area 23 | C25: OSL A23 | D25: Rural West | E25: Local | F25: Standard
A26: OSL | B26: Area 24 | C26: OSL A24 | D26: Rural South West | E26: Local | F26: Standard
A27: OSL | B27: Area 25 | C27: OSL A25 | D27: Rural South East | E27: Local | F27: Standard
A28: OSL | B28: Area 26 | C28: OSL A26 | D28: Rural Islands | E28: Local | F28: Standard
A29: OSL | B29: Area 27 | C29: OSL A27 | D29: Tamaki | E29: Local | F29: Standard
A30: OSL | B30: Area 28 | C30: OSL A28 | D30: Drury IPA | F30: Standard
A31: OSL | B31: Area 29 | C31: OSL A29 | D31: Auranga | F31: Standard
A32: OSL | B32: Area 30 | C32: OSL A30 | D32: Drury West 1 IPA | F32: Standard
A33: OSL | B33: Area 31 | C33: OSL A31 | D33: Drury West 2 IPA | F33: Standard
A34: OSL | B34: Area 32 | C34: OSL A32 | D34: Opaheke IPA | F34: Standard
A35: OSL | B35: Area 33 | C35: OSL A33 | D35: Drury East IPA | F35: Standard
A36: OSL | B36: Area 34 | C36: OSL A34 | D36: Drury IPA (Community spaces) | F36: Standard
A37: OSL | B37: Area 35 | C37: OSL A35 | D37: Not used | F37: Standard
A38: OSL | B38: Area 36 | C38: OSL A36 | D38: Not used | F38: Standard
A39: OSL | B39: Area 37 | C39: OSL A37 | D39: Not used | F39: Standard
A40: OSL | B40: Area 38 | C40: OSL A38 | D40: Not used | F40: Standard
A41: OSL | B41: Area 39 | C41: OSL A39 | D41: Not used | F41: Standard
A42: OSL | B42: Area 40 | C42: OSL A40 | D42: Not used | F42: Standard
A43: OSL | B43: Area 41 | C43: OSL A41 | D43: Not used | F43: Standard
A44: OSL | B44: Area 42 | C44: OSL A42 | D44: Not used | F44: Standard
A45: OSL | B45: Area 43 | C45: OSL A43 | D45: Not used | F45: Standard
A46: OSD | B46: Area 1 | C46: OSD A1 | D46: Auckland wide | E46: Regional | F46: Standard
A47: OSD | B47: Area 2 | C47: OSD A2 | D47: Not used | F47: Standard
A48: OSD | B48: Area 3 | C48: OSD A3 | D48: Not used | F48: Standard
A49: OSD | B49: Area 4 | C49: OSD A4 | D49: Not used | F49: Standard
A50: OSD | B50: Area 5 | C50: OSD A5 | D50: Warkworth | E50: Local | F50: Standard
A51: OSD | B51: Area 6 | C51: OSD A6 | D51: Dairy Flat | E51: Local | F51: Standard
A52: OSD | B52: Area 7 | C52: OSD A7 | D52: Northwest | E52: Local | F52: Standard
A53: OSD | B53: Area 8 | C53: OSD A8 | D53: Not used | F53: Standard
A54: OSD | B54: Area 9 | C54: OSD A9 | D54: Not used | F54: Standard
A55: OSD | B55: Area 10 | C55: OSD A10 | D55: Flatbush | E55: Local | F55: Standard
A56: OSD | B56: Area 11 | C56: OSD A11 | D56: Takanini | E56: Local | F56: Standard
A57: OSD | B57: Area 12 | C57: OSD A12 | D57: Drury / Opaheke | E57: Local | F57: Standard
A58: OSD | B58: Area 13 | C58: OSD A13 | D58: Hingaia | E58: Local | F58: Standard
A59: OSD | B59: Area 14 | C59: OSD A14 | D59: Paerata / Pukekohe | E59: Local | F59: Standard
A60: OSD | B60: Area 15 | C60: OSD A15 | D60: Hibiscus | E60: Local | F60: Standard
A61: OSD | B61: Area 16 | C61: OSD A16 | D61: North Shore | E61: Local | F61: Standard
A62: OSD | B62: Area 17 | C62: OSD A17 | D62: West | E62: Local | F62: Standard
A63: OSD | B63: Area 18 | C63: OSD A18 | D63: Central | E63: Local | F63: Standard
A64: OSD | B64: Area 19 | C64: OSD A19 | D64: South (West) | E64: Local | F64: Standard
A65: OSD | B65: Area 20 | C65: OSD A20 | D65: South (East) | E65: Local | F65: Standard
A66: OSD | B66: Area 21 | C66: OSD A21 | D66: Rural North Upper | E66: Local | F66: Standard
A67: OSD | B67: Area 22 | C67: =A67&" A"&RIGHT(B67,LEN(B67)-5) -> OSD A22 | D67: Rural North Lower | E67: Local | F67: Standard
A68: OSD | B68: Area 23 | C68: OSD A23 | D68: Rural West | E68: Local | F68: Standard
A69: OSD | B69: Area 24 | C69: OSD A24 | D69: Rural South West | E69: Local | F69: Standard
A70: OSD | B70: Area 25 | C70: OSD A25 | D70: Rural South East | E70: Local | F70: Standard
A71: OSD | B71: Area 26 | C71: OSD A26 | D71: Rural Islands | E71: Local | F71: Standard
A72: OSD | B72: Area 27 | C72: OSD A27 | D72: Tamaki | E72: Local | F72: Standard
A73: OSD | B73: Area 28 | C73: OSD A28 | D73: Drury IPA | F73: Standard
A74: OSD | B74: Area 29 | C74: OSD A29 | D74: Auranga | F74: Standard
A75: OSD | B75: Area 30 | C75: OSD A30 | D75: Drury West 1 IPA | F75: Standard
A76: OSD | B76: Area 31 | C76: OSD A31 | D76: Drury West 2 IPA | F76: Standard
A77: OSD | B77: Area 32 | C77: OSD A32 | D77: Opaheke IPA | F77: Standard
A78: OSD | B78: Area 33 | C78: OSD A33 | D78: Drury East IPA | F78: Standard
A79: OSD | B79: Area 34 | C79: OSD A34 | D79: Drury IPA (Community spaces) | F79: Standard
A80: OSD | B80: Area 35 | C80: OSD A35 | D80: Not used | F80: Standard
A81: OSD | B81: Area 36 | C81: OSD A36 | D81: Not used | F81: Standard
A82: OSD | B82: Area 37 | C82: OSD A37 | D82: Not used | F82: Standard
A83: OSD | B83: Area 38 | C83: OSD A38 | D83: Not used | F83: Standard
A84: OSD | B84: Area 39 | C84: OSD A39 | D84: Not used | F84: Standard
A85: OSD | B85: Area 40 | C85: OSD A40 | D85: Not used | F85: Standard
A86: OSD | B86: Area 41 | C86: OSD A41 | D86: Not used | F86: Standard
A87: OSD | B87: Area 42 | C87: OSD A42 | D87: Not used | F87: Standard
A88: OSD | B88: Area 43 | C88: OSD A43 | D88: Not used | F88: Standard
A89: STW | B89: Area 1 | C89: =A89&" A"&RIGHT(B89,LEN(B89)-5) -> STW A1 | D89: Ararimu | E89: Local | F89: Standard
A90: STW | B90: Area 2 | C90: =A90&" A"&RIGHT(B90,LEN(B90)-5) -> STW A2 | D90: City Centre GPA | E90: Local | F90: Standard
A91: STW | B91: Area 3 | C91: STW A3 | D91: East Coast Bays | E91: Local | F91: Standard
A92: STW | B92: Area 4 | C92: STW A4 | D92: Flatbush GPA | E92: Local | F92: Standard
A93: STW | B93: Area 5 | C93: STW A5 | D93: Metro Manukau GPA | E93: Local | F93: Standard
A94: STW | B94: Area 6 | C94: STW A6 | D94: Manurewa Papakura GPA | E94: Local | F94: Standard
A95: STW | B95: Area 7 | C95: STW A7 | D95: Greater Takapuna GPA | E95: Local | F95: Standard
A96: STW | B96: Area 8 | C96: STW A8 | D96: Greater Tamaki GPA | E96: Local | F96: Standard
A97: STW | B97: Area 9 | C97: STW A9 | D97: Helensville | E97: Local | F97: Standard
A98: STW | B98: Area 10 | C98: STW A10 | D98: Hibiscus Coast | E98: Local | F98: Standard
A99: STW | B99: Area 11 | C99: STW A11 | D99: Inner West Triangle GPA | E99: Local | F99: Standard
A100: STW | B100: Area 12 | C100: STW A12 | D100: Kumeu / Huapai | E100: Local | F100: Standard
A101: STW | B101: Area 13 | C101: STW A13 | D101: Mahurangi | E101: Local | F101: Standard
A102: STW | B102: Area 14 | C102: STW A14 | D102: Manukau Central | E102: Local | F102: Standard
A103: STW | B103: Area 15 | C103: STW A15 | D103: Manukau North | E103: Local | F103: Standard
A104: STW | B104: Area 16 | C104: STW A16 | D104: Manukau South | E104: Local | F104: Standard
A105: STW | B105: Area 17 | C105: STW A17 | D105: Manukau West | E105: Local | F105: Standard
A106: STW | B106: Area 18 | C106: STW A18 | D106: NORSGA GPA | E106: Local | F106: Standard
A107: STW | B107: Area 19 | C107: STW A19 | D107: Otahuhu GPA | E107: Local | F107: Standard
A108: STW | B108: Area 20 | C108: STW A20 | D108: Other Auckland | E108: Local | F108: Standard
A109: STW | B109: Area 21 | C109: STW A21 | D109: Pukekohe GPA | E109: Local | F109: Standard
A110: STW | B110: Area 22 | C110: STW A22 | D110: Tamaki East | E110: Local | F110: Standard
A111: STW | B111: Area 23 | C111: STW A23 | D111: Tamaki West 1 | E111: Local | F111: Standard
A112: STW | B112: Area 24 | C112: STW A24 | D112: Wairoa | E112: Local | F112: Standard
A113: STW | B113: Area 25 | C113: STW A25 | D113: Waitakere Ranges | E113: Local | F113: Standard
A114: STW | B114: Area 26 | C114: STW A26 | D114: Waitemata Central 1 | E114: Local | F114: Standard
A115: STW | B115: Area 27 | C115: STW A27 | D115: Waitemata North | E115: Local | F115: Standard
A116: STW | B116: Area 28 | C116: =A116&" A"&RIGHT(B116,LEN(B116)-5) -> STW A28 | D116: Area 28 | E116: Local | F116: Standard
A117: STW | B117: Area 29 | C117: STW A29 | D117: Waitemata West | E117: Local | F117: Standard
A118: STW | B118: Area 30 | C118: STW A30 | D118: Waiuku | E118: Local | F118: Standard
A119: STW | B119: Area 31 | C119: STW A31 | D119: Warkworth | E119: Local | F119: Standard
A120: STW | B120: Area 32 | C120: STW A32 | D120: Urban Auckland Non GPA | E120: Sub-regional | F120: Standard
A121: STW | B121: Area 33 | C121: STW A33 | D121: Urban Auckland | E121: Sub-regional | F121: Standard
A122: STW | B122: Area 34 | C122: STW A34 | D122: Waitemata Central 2 | E122: Local | F122: Standard
A123: STW | B123: Area 35 | C123: STW A35 | D123: Tamaki West 2 | E123: Local | F123: Standard
A124: STW | B124: Area 36 | C124: STW A36 | D124: Tamaki West 3 | E124: Local | F124: Standard
A125: STW | B125: Area 37 | C125: STW A37 | D125: Whenuapai / Redhills | E125: Local | F125: Standard | G125: Special_HIF_int_adj
A126: STW | B126: Area 38 | C126: STW A38 | D126: Dairy Flat / Wainui / Silverdale | E126: Local | F126: Standard
A127: STW | B127: Area 39 | C127: STW A39 | D127: Drury West | E127: Local | F127: Standard
A128: STW | B128: Area 40 | C128: STW A40 | D128: Opaheke Drury | E128: Local | F128: Standard
A129: STW | B129: Area 41 | C129: STW A41 | D129: Hauraki Gulf Islands | E129: Local | F129: Standard
A130: STW | B130: Area 42 | C130: STW A42 | D130: Omaha / Matakana | E130: Local | F130: Standard
A131: STW | B131: Area 43 | C131: STW A43 | D131: Oakley | E131: Local | F131: Standard
A132: STW | B132: Area 44 | C132: STW A44 | D132: Not used | E132: Local | F132: Standard
A133: STW | B133: Area 45 | C133: STW A45 | D133: Not used | F133: Standard
A134: STW | B134: Area 46 | C134: STW A46 | D134: Not used | F134: Standard
A135: STW | B135: Area 47 | C135: STW A47 | D135: Not used | F135: Standard
A136: STW | B136: Area 48 | C136: STW A48 | D136: Not used | F136: Standard
A137: STW | B137: Area 49 | C137: STW A49 | D137: Not used | F137: Standard
A138: STW | B138: Area 50 | C138: STW A50 | D138: Not used | F138: Standard
A139: TRA | B139: Area 1 | C139: =A139&" A"&RIGHT(B139,LEN(B139)-5) -> TRA A1 | D139: Auckland wide | E139: Regional | F139: Standard
A140: TRA | B140: Area 2 | C140: TRA A2 | D140: North | E140: Sub-regional | F140: Standard
A141: TRA | B141: Area 3 | C141: TRA A3 | D141: Central | E141: Sub-regional | F141: Standard
A142: TRA | B142: Area 4 | C142: TRA A4 | D142: West | E142: Sub-regional | F142: Standard
A143: TRA | B143: Area 5 | C143: TRA A5 | D143: South | E143: Sub-regional | F143: Standard
A144: TRA | B144: Area 6 | C144: TRA A6 | D144: Drury South | E144: Local | F144: Standard
A145: TRA | B145: Area 7 | C145: TRA A7 | D145: Hauraki Gulf Islands | E145: Sub-regional | F145: Standard
A146: TRA | B146: Area 8 | C146: TRA A8 | D146: Not used | F146: Standard
A147: TRA | B147: Area 9 | C147: TRA A9 | D147: NorthWest (HIF) | E147: Local | F147: Special_HIF_int_adj
A148: TRA | B148: Area 10 | C148: TRA A10 | D148: Dairy Flat / Wainui / Silverdale | E148: Local | F148: Special_Milldale
A149: TRA | B149: Area 11 | C149: TRA A11 | D149: Tamaki AHP | E149: Local | F149: Standard
A150: TRA | B150: Area 12 | C150: TRA A12 | D150: Albany | E150: Local | F150: Standard
A151: TRA | B151: Area 13 | C151: TRA A13 | D151: Rural North | E151: Local | F151: Standard
A152: TRA | B152: Area 14 | C152: TRA A14 | D152: Rural West | E152: Local | F152: Standard
A153: TRA | B153: Area 15 | C153: TRA A15 | D153: Rural South | E153: Local | F153: Standard
A154: TRA | B154: Area 16 | C154: TRA A16 | D154: NorthWest | E154: Local | F154: Special_HIF
A155: TRA | B155: Area 17 | C155: TRA A17 | D155: Mt Roskill AHP | E155: Local | F155: Standard
A156: TRA | B156: Area 18 | C156: TRA A18 | D156: Mangere AHP | E156: Local | F156: Standard
A157: TRA | B157: Area 19 | C157: TRA A19 | D157: Southern Growth Area | E157: Local | F157: Standard
A158: TRA | B158: Area 20 | C158: TRA A20 | D158: Drury / Opaheke | E158: Local | F158: Standard
A159: TRA | B159: Area 21 | C159: TRA A21 | D159: Northwest - Redhills | E159: Local | F159: Standard
A160: TRA | B160: Area 22 | C160: TRA A22 | D160: Northwest - Whenuapai | F160: Standard
A161: TRA | B161: Area 23 | C161: TRA A23 | D161: Drury East IPA | F161: Standard
A162: TRA | B162: Area 24 | C162: TRA A24 | D162: Drury West 1 IPA | F162: Standard
A163: TRA | B163: Area 25 | C163: TRA A25 | D163: Drury West 2 IPA | F163: Standard
A164: TRA | B164: Area 26 | C164: TRA A26 | D164: Opaheke IPA | F164: Standard
A165: TRA | B165: Area 27 | C165: TRA A27 | D165: Southern Growth Area 3 | F165: Standard
A166: TRA | B166: Area 28 | C166: TRA A28 | D166: Southern Growth Area 1 | F166: Standard
A167: TRA | B167: Area 29 | C167: TRA A29 | D167: Southern Growth Area 2 | F167: Standard
A168: TRA | B168: Area 30 | C168: TRA A30 | D168: Not used | F168: Standard
A169: TRA | B169: Area 31 | C169: TRA A31 | D169: Not used | F169: Standard
A170: TRA | B170: Area 32 | C170: TRA A32 | D170: Not used | F170: Standard
A171: PTR | B171: Area 1 | C171: PTR A1 | D171: Auckland wide | E171: Regional | F171: Standard
A172: PTR | B172: Area 2 | C172: PTR A2 | D172: North | E172: Sub-regional | F172: Standard
A173: PTR | B173: Area 3 | C173: PTR A3 | D173: Central | E173: Sub-regional | F173: Standard
A174: PTR | B174: Area 4 | C174: PTR A4 | D174: West | E174: Sub-regional | F174: Standard
A175: PTR | B175: Area 5 | C175: PTR A5 | D175: South | E175: Sub-regional | F175: Standard
A176: PTR | B176: Area 6 | C176: PTR A6 | D176: Drury South | E176: Local | F176: Standard
A177: PTR | B177: Area 7 | C177: PTR A7 | D177: Hauraki Gulf Islands | E177: Sub-regional | F177: Standard
A178: PTR | B178: Area 8 | C178: PTR A8 | D178: Not used | F178: Standard
A179: PTR | B179: Area 9 | C179: PTR A9 | D179: NorthWest | E179: Local | F179: Standard
A180: PTR | B180: Area 10 | C180: PTR A10 | D180: Dairy Flat / Wainui / Silverdale | E180: Local | F180: Standard
A181: PTR | B181: Area 11 | C181: PTR A11 | D181: Tamaki AHP | E181: Local | F181: Standard
A182: PTR | B182: Area 12 | C182: PTR A12 | D182: Albany | E182: Local | F182: Standard
A183: PTR | B183: Area 13 | C183: PTR A13 | D183: Not used | E183: Local | F183: Standard
A184: PTR | B184: Area 14 | C184: PTR A14 | D184: Not used | E184: Local | F184: Standard
A185: PTR | B185: Area 15 | C185: PTR A15 | D185: Not used | E185: Local | F185: Standard
A186: PTR | B186: Area 16 | C186: PTR A16 | D186: Not used | E186: Local | F186: Standard
A187: PTR | B187: Area 17 | C187: PTR A17 | D187: Mt Roskill AHP | E187: Local | F187: Standard
A188: PTR | B188: Area 18 | C188: PTR A18 | D188: Mangere AHP | E188: Local | F188: Standard
A189: PTR | B189: Area 19 | C189: PTR A19 | D189: Southern Growth Area | E189: Local | F189: Standard
A190: PTR | B190: Area 20 | C190: PTR A20 | D190: Drury / Opaheke | E190: Local | F190: Standard
A191: PTR | B191: Area 21 | C191: PTR A21 | D191: Northwest - Redhills | E191: Local | F191: Standard
A192: PTR | B192: Area 22 | C192: PTR A22 | D192: Northwest - Whenuapai | F192: Standard
A193: PTR | B193: Area 23 | C193: PTR A23 | D193: Drury East IPA | F193: Standard
A194: PTR | B194: Area 24 | C194: PTR A24 | D194: Drury West 1 IPA | F194: Standard
A195: PTR | B195: Area 25 | C195: =A195&" A"&RIGHT(B195,LEN(B195)-5) -> PTR A25 | D195: Drury West 2 IPA | F195: Standard
A196: PTR | B196: Area 26 | C196: PTR A26 | D196: Opaheke IPA | F196: Standard
A197: PTR | B197: Area 27 | C197: PTR A27 | D197: Southern Growth Area 3 | F197: Standard
A198: PTR | B198: Area 28 | C198: PTR A28 | D198: Southern Growth Area 1 | F198: Standard
A199: PTR | B199: Area 29 | C199: PTR A29 | D199: Southern Growth Area 2 | F199: Standard
A200: PTR | B200: Area 30 | C200: PTR A30 | D200: Not used | F200: Standard
A201: PTR | B201: Area 31 | C201: PTR A31 | D201: Not used | F201: Standard
... 44 more rows

Sheet Infrastructure_types
A1: Infrastructure Type Code | B1: Infrastructure Type Name | C1: Explanation of capital expenditure | D1: Short Infrastructure Type Name
A2: CI | B2: Community Infrastructure | C2: Used to provide new or expanded community centre and hall facilities, playgrounds and public toilets | D2: Community Infrastructure
A3: OSL | B3: Open space acquisition | C3: Used to acquire land for local and regional open space purposes | D3: Reserve Acquisition
A4: OSD | B4: Open space development | C4: Used to provide capacity within local sports facilities and other park infrastructure | D4: Reserve Development
A5: STW | B5: Stormwater | C5: Used to provide capacity within the stormwater network and ensure flood protection measures are sufficient | D5: Stormwater
A6: TRA | B6: Transport | C6: Used to provide capacity within the transport and public transport network | D6: Transport
A7: PTR | B7: Public transport | C7: Used to provide capacity within the public transport network | D7: Transport

Sheet M_VAR
B3: Lookup
C4: Variables | E4: Interest rates updated | F4: 2023-04-13
C6: Ref | D6: Item | E6: Details
C8: 1 | D8: Interest rate | F8: 1 | G8: 2 | H8: 3 | I8: 4 | J8: 5 | K8: 6 | L8: 7 | M8: 8 | N8: 9 | O8: 10
F9: 2021/22 | G9: 2022/23 | H9: 2023/24 | I9: 2024/25 | J9: 2025/26 | K9: 2026/27 | L9: 2027/28 | M9: 2028/29 | N9: 2029/30 | O9: 2030/31
E10: New debt borrowing | F10: 0.0416 | G10: 0.0412 | H10: 0.0409 | I10: 0.0404 | J10: 0.04 | K10: 0.0398 | L10: 0.0392 | M10: 0.038 | N10: 0.0364 | O10: 0.035
C12: 2 | D12: Interest calculation point | E12: 0.4 | F12: Approximates February as transaction date:
F13: 40% of 365 days equals: 146 days (early Feb working back from June)
C15: 3 | D15: First year policy transition factor | E15: Adjustment to payments volume due to changing the payment timings. Some of the first year payments have already been assessed under the previous policy | F15: 1 | G15: 1 | H15: =+G15 -> 1 | I15: =+H15 -> 1 | J15: 1 | K15: 1 | L15: 1 | M15: 1 | N15: 1 | O15: 1
B17: Special_Milldale | C17: 4 | D17: Milldale developer agreement | E17: The Milldale funding area needs to tacke into account Fulto will pay directly to CIP. | F17: 0.4 | G17: =+F17 -> 0.4 | H17: =+G17 -> 0.4 | I17: =+H17 -> 0.4 | J17: 0.4 | K17: 0.4 | L17: 0.4 | M17: 0.4 | N17: 0.4 | O17: 0.4
B19: Special_Drury_South | C19: 5 | D19: Drury South/Ararimu developer agreement | E19: The price for Druy South as been set in a previous agreement | F19: Price | G19: 24400 | H19: 0 | I19: Has funding area or calculation basis changed | J19: No | K19: If yes, has the calculation code been updated | L19: No | R19: No
D20: Milldale agreement (from above) | I20: Has funding area or calculation basis changed | J20: No | K20: If yes, has the calculation code been updated | L20: Yes
C22: 6 | D22: Policy year | E22: Used in the main heading of the O_DCP_GROWTH sheet, for example "Development Contribution Policy 2019 - Expected Household Unit Equivalent" | F22: 2021

Sheet O_AC_DCCAM_TOT
D1: Lookup used:
D2: O_CWP_NOW
D3: O_CWP_FUT
E6: LTP capital expenditure projects - cost allocation model output: Total project cost
G9: Prev | H9: Planned
E10: Infrastructure Type | F10: FundArea | G10: To date | H10: 2021/22 | I10: 2022/23 | J10: 2023/24 | K10: 2024/25 | L10: 2025/26 | M10: 2026/27 | N10: 2027/28 | O10: 2028/29 | P10: 2029/30 | Q10: 2030/31 | R10: Total
A11: OSL CWP A28 | B11: OSL CWP LTP | C11: OSL | D11: OSL A28 | E11: Open Space Land Acquisition | F11: Drury IPA (civic park) | G11: 0 | H11: 1239743.004 | I11: 6521934.027 | J11: 8401788.111 | K11: 9030296.682 | L11: 13647978.92 | M11: 14784336.54 | N11: 12191039.59 | O11: 15592356.63 | P11: 19773861.4 | Q11: 21167941.16 | R11: =SUM(G11:Q11) -> 122351276.1
A12: TRA CWP A1 | B12: TRA CWP LTP | C12: TRA | D12: TRA A1 | E12: Transport | F12: Auckland wide | G12: 0 | H12: 0 | I12: 0 | J12: 0 | K12: 0 | L12: 0 | M12: 0 | N12: 0 | O12: 5960.103202 | P12: 71790.22664 | Q12: 308208.0222 | R12: =SUM(G12:Q12) -> 385958.352
A13: TRA CWP A23 | B13: TRA CWP LTP | C13: TRA | D13: TRA A23 | E13: Transport | F13: Drury East IPA | G13: 0 | H13: 0 | I13: 440455.4357 | J13: 146773.9185 | K13: 0 | L13: 0 | M13: 1575033.025 | N13: 270287.9783 | O13: 9292666.695 | P13: 6995226.399 | Q13: 44844747.2 | R13: 63565190.65
A14: TRA CWP A24 | B14: TRA CWP LTP | C14: TRA | D14: TRA A24 | E14: Transport | F14: Drury West 1 IPA | G14: 0 | H14: 0 | I14: 15616.49307 | J14: 0 | K14: 596405.5302 | L14: 565220.2848 | M14: 5658142.307 | N14: 0 | O14: 390995.4658 | P14: 1899035.618 | Q14: 16082475.28 | R14: 25207890.98
A15: TRA CWP A25 | B15: TRA CWP LTP | C15: TRA | D15: TRA A25 | E15: Transport | F15: Drury West 2 IPA | G15: 0 | H15: 0 | I15: 15954.87245 | J15: 0 | K15: 67703.16568 | L15: 64163.05795 | M15: 642766.4163 | N15: 0 | O15: 269737.5446 | P15: 440401.1934 | Q15: 6339642.66 | R15: 7840368.911
A16: TRA CWP A26 | B16: TRA CWP LTP | C16: TRA | D16: TRA A26 | E16: Transport | F16: Opaheke IPA | G16: 0 | H16: 0 | I16: 90311.12956 | J16: 590.5413942 | K16: 0 | L16: 0 | M16: 72009.06558 | N16: 17813.55127 | O16: 1515152.062 | P16: 1594871.904 | Q16: 6688593.72 | R16: 9979341.974
A17: TRA CWP A27 | B17: TRA CWP LTP | C17: TRA | D17: TRA A27 | E17: Transport | F17: Southern Growth Area 3 | G17: 0 | H17: 0 | I17: 0 | J17: 0 | K17: 0 | L17: 0 | M17: 0 | N17: 0 | O17: 0 | P17: 6557.635191 | Q17: 65180.67913 | R17: 71738.31433
A18: TRA CWP A28 | B18: TRA CWP LTP | C18: TRA | D18: TRA A28 | E18: Transport | F18: Southern Growth Area 2 | G18: 0 | H18: 0 | I18: 20814.14283 | J18: 0 | K18: 0 | L18: 0 | M18: 677.4559534 | N18: 0 | O18: 421771.3396 | P18: 208292.1553 | Q18: 2695026.716 | R18: 3346581.81
A19: TRA CWP A29 | B19: TRA CWP LTP | C19: TRA | D19: TRA A29 | E19: Transport | F19: Southern Growth Area 1 | G19: 0 | H19: 0 | I19: 12393.32592 | J19: 1436.837912 | K19: 0 | L19: 0 | M19: 16455.05311 | N19: 2851.963049 | O19: 193104.5048 | P19: 199800.5217 | Q19: 690848.1284 | R19: 1116890.335
E21: Subtotal | G21: 0 | H21: =SUM(H11:H19) -> 1239743.004 | I21: 7117479.426 | J21: 8550589.409 | K21: 9694405.378 | L21: 14277362.26 | M21: 22749419.87 | N21: 12481993.08 | O21: 27681744.34 | P21: 31189837.05 | Q21: 98882663.57 | R21: 233865237.4
A25: Check | B25: OK
A26: Sum Across | B26: =SUM(G21:Q21) -> 233865237.4
A27: Sum Down | B27: =SUM(R11:R19) -> 233865237.4
E30: Summary of TOTAL capex costs (the sum of the FUTURE and NOW capex costs) to be recovered from developers
E32: Infrastructure Type | G32: Historic | H32: Plan | R32: Total capex | S32: Total planned
E33: OSL | G33: =SUMIF($C$11:$C$19, $E33,G$11:G$19) -> 0 | H33: =SUMIF($C$11:$C$19, $E33,H$11:H$19) -> 1239743.004 | I33: 6521934.027 | J33: 8401788.111 | K33: 9030296.682 | L33: 13647978.92 | M33: 14784336.54 | N33: 12191039.59 | O33: 15592356.63 | P33: 19773861.4 | Q33: 21167941.16 | R33: =SUM(G33:Q33) -> 122351276.1 | S33: =R33-G33 -> 122351276.1
E34: OSD | G34: 0 | H34: 0 | I34: 0 | J34: 0 | K34: 0 | L34: 0 | M34: 0 | N34: 0 | O34: 0 | P34: 0 | Q34: 0 | R34: 0 | S34: 0
E35: STW | G35: 0 | H35: 0 | I35: 0 | J35: 0 | K35: 0 | L35: 0 | M35: 0 | N35: 0 | O35: 0 | P35: 0 | Q35: 0 | R35: 0 | S35: 0
E36: TRA | G36: 0 | H36: 0 | I36: 595545.3995 | J36: 148801.2978 | K36: 664108.6958 | L36: 629383.3428 | M36: 7965083.323 | N36: 290953.4926 | O36: 12089387.71 | P36: 11415975.65 | Q36: 77714722.41 | R36: 111513961.3 | S36: 111513961.3
E37: PTR | G37: 0 | H37: 0 | I37: 0 | J37: 0 | K37: 0 | L37: 0 | M37: 0 | N37: 0 | O37: 0 | P37: 0 | Q37: 0 | R37: 0 | S37: 0
E38: CI | G38: 0 | H38: 0 | I38: 0 | J38: 0 | K38: 0 | L38: 0 | M38: 0 | N38: 0 | O38: 0 | P38: 0 | Q38: 0 | R38: 0 | S38: 0
E39: Totals | G39: =SUM(G33:G38) -> 0 | H39: 1239743.004 | I39: 7117479.426 | J39: 8550589.409 | K39: 9694405.378 | L39: 14277362.26 | M39: 22749419.87 | N39: 12481993.08 | O39: 27681744.34 | P39: 31189837.05 | Q39: 98882663.57 | R39: 233865237.4 | S39: 233865237.4
E40: Check should be zero | G40: =+G39-G21 -> 0 | H40: =+H39-H21 -> 0 | I40: 0 | J40: 0 | K40: 0 | L40: 0 | M40: 0 | N40: 0 | O40: 0 | P40: 0 | Q40: 0 | R40: 0

Sheet O_AC_DCCAM_NOW
E6: LTP capital expenditure projects - cost allocation model output: 10 year capacity consumption
G9: Prev | H9: Planned
E10: Infrastructure Type | F10: FundArea | G10: To date | H10: 2021/22 | I10: 2022/23 | J10: 2023/24 | K10: 2024/25 | L10: 2025/26 | M10: 2026/27 | N10: 2027/28 | O10: 2028/29 | P10: 2029/30 | Q10: 2030/31 | R10: Total
A11: OSL CWP A28 | B11: OSL CWP LTP | C11: OSL | D11: OSL A28 | E11: Open Space Land Acquisition | F11: Drury IPA (civic park) | G11: 0 | H11: 178247.0141 | I11: 937706.6559 | J11: 1207987.171 | K11: 1298352.493 | L11: 1962270.795 | M11: 2125653.33 | N11: 1752795.86 | O11: 2241828.349 | P11: 2843034.193 | Q11: 3043471.344 | R11: =SUM(G11:Q11) -> 17591347.2
A12: TRA CWP A1 | B12: TRA CWP LTP | C12: TRA | D12: TRA A1 | E12: Transport | F12: Auckland wide | G12: 0 | H12: 0 | I12: 0 | J12: 0 | K12: 0 | L12: 0 | M12: 0 | N12: 0 | O12: 1792.066022 | P12: 21585.67083 | Q12: 92671.06715 | R12: =SUM(G12:Q12) -> 116048.804
A13: TRA CWP A23 | B13: TRA CWP LTP | C13: TRA | D13: TRA A23 | E13: Transport | F13: Drury East IPA | G13: 0 | H13: 0 | I13: 34647.89526 | J13: 11545.79315 | K13: 0 | L13: 0 | M13: 123898.072 | N13: 21261.8776 | O13: 730996.4103 | P13: 550271.0422 | Q13: 3527657.916 | R13: 5000279.006
A14: TRA CWP A24 | B14: TRA CWP LTP | C14: TRA | D14: TRA A24 | E14: Transport | F14: Drury West 1 IPA | G14: 0 | H14: 0 | I14: 4968.546408 | J14: 0 | K14: 189752.497 | L14: 179830.5934 | M14: 1800195.633 | N14: 0 | O14: 124399.1918 | P14: 604197.5338 | Q14: 5116803.397 | R14: 8020147.393
A15: TRA CWP A25 | B15: TRA CWP LTP | C15: TRA | D15: TRA A25 | E15: Transport | F15: Drury West 2 IPA | G15: 0 | H15: 0 | I15: 50.20412979 | J15: 0 | K15: 213.0370223 | L15: 201.8976021 | M15: 2022.550083 | N15: 0 | O15: 848.7650868 | P15: 1385.780974 | Q15: 19948.52945 | R15: 24670.76435
A16: TRA CWP A26 | B16: TRA CWP LTP | C16: TRA | D16: TRA A26 | E16: Transport | F16: Opaheke IPA | G16: 0 | H16: 0 | I16: 10698.68927 | J16: 69.95836401 | K16: 0 | L16: 0 | M16: 8530.539047 | N16: 2110.278664 | O16: 179492.1753 | P16: 188936.17 | Q16: 792362.8705 | R16: 1182200.681
A17: TRA CWP A27 | B17: TRA CWP LTP | C17: TRA | D17: TRA A27 | E17: Transport | F17: Southern Growth Area 3 | G17: 0 | H17: 0 | I17: 0 | J17: 0 | K17: 0 | L17: 0 | M17: 0 | N17: 0 | O17: 0 | P17: 3290.306094 | Q17: 32704.53137 | R17: 35994.83746
A18: TRA CWP A28 | B18: TRA CWP LTP | C18: TRA | D18: TRA A28 | E18: Transport | F18: Southern Growth Area 2 | G18: 0 | H18: 0 | I18: 7246.63496 | J18: 0 | K18: 0 | L18: 0 | M18: 235.8625111 | N18: 0 | O18: 146843.5649 | P18: 72518.82659 | Q18: 938298.2991 | R18: 1165143.188
A19: TRA CWP A29 | B19: TRA CWP LTP | C19: TRA | D19: TRA A29 | E19: Transport | F19: Southern Growth Area 1 | G19: 0 | H19: 0 | I19: 5031.76766 | J19: 583.3651584 | K19: 0 | L19: 0 | M19: 6680.854246 | N19: 1157.914795 | O19: 78401.63398 | P19: 81120.2586 | Q19: 280488.6512 | R19: 453464.4456
E21: Subtotal | G21: 0 | H21: =SUM(H11:H19) -> 178247.0141 | I21: 1000350.394 | J21: 1220186.287 | K21: 1488318.027 | L21: 2142303.286 | M21: 4067216.841 | N21: 1777325.931 | O21: 3504602.156 | P21: 4366339.782 | Q21: 13844406.61 | R21: 33589296.32
A25: Check | B25: OK
A26: Sum Across | B26: =SUM(G21:Q21) -> 33589296.32
A27: Sum Down | B27: =SUM(R11:R19) -> 33589296.32
E30: Summary of NOW capex costs to be recovered from developers over the LTP period
E32: Infrastructure Type | G32: Historic | H32: Plan | R32: Total capex | S32: Total planned
E33: OSL | G33: =SUMIF($C$11:$C$19, $E33,G$11:G$19) -> 0 | H33: =SUMIF($C$11:$C$19, $E33,H$11:H$19) -> 178247.0141 | I33: 937706.6559 | J33: 1207987.171 | K33: 1298352.493 | L33: 1962270.795 | M33: 2125653.33 | N33: 1752795.86 | O33: 2241828.349 | P33: 2843034.193 | Q33: 3043471.344 | R33: =SUM(G33:Q33) -> 17591347.2 | S33: =R33-G33 -> 17591347.2
E34: OSD | G34: =SUMIF($C$11:$C$19, $E34,G$11:G$19) -> 0 | H34: 0 | I34: 0 | J34: 0 | K34: 0 | L34: 0 | M34: 0 | N34: 0 | O34: 0 | P34: 0 | Q34: 0 | R34: 0 | S34: 0
E35: STW | G35: 0 | H35: 0 | I35: 0 | J35: 0 | K35: 0 | L35: 0 | M35: 0 | N35: 0 | O35: 0 | P35: 0 | Q35: 0 | R35: 0 | S35: 0
E36: TRA | G36: 0 | H36: 0 | I36: 62643.73769 | J36: 12199.11668 | K36: 189965.534 | L36: 180032.491 | M36: 1941563.511 | N36: 24530.07106 | O36: 1262773.807 | P36: 1523305.589 | Q36: 10800935.26 | R36: 15997949.12 | S36: 15997949.12
E37: PTR | G37: 0 | H37: 0 | I37: 0 | J37: 0 | K37: 0 | L37: 0 | M37: 0 | N37: 0 | O37: 0 | P37: 0 | Q37: 0 | R37: 0 | S37: 0
E38: CI | G38: 0 | H38: 0 | I38: 0 | J38: 0 | K38: 0 | L38: 0 | M38: 0 | N38: 0 | O38: 0 | P38: 0 | Q38: 0 | R38: 0 | S38: 0
E39: Totals | G39: =SUM(G33:G38) -> 0 | H39: 178247.0141 | I39: 1000350.394 | J39: 1220186.287 | K39: 1488318.027 | L39: 2142303.286 | M39: 4067216.841 | N39: 1777325.931 | O39: 3504602.156 | P39: 4366339.782 | Q39: 13844406.61 | R39: 33589296.32 | S39: 33589296.32
E40: Check should be zero | G40: =+G39-G21 -> 0 | H40: =+H39-H21 -> 0 | I40: 0 | J40: 0 | K40: 0 | L40: 0 | M40: 0 | N40: 0 | O40: 0 | P40: 0 | Q40: 0 | R40: 0

Sheet O_AC_DCCAM_FUT
E6: LTP capital expenditure projects - cost allocation model output: beyond 10 year capacity consumption
G9: Prev | H9: Planned
E10: Infrastructure Type | F10: FundArea | G10: To date | H10: 2021/22 | I10: 2022/23 | J10: 2023/24 | K10: 2024/25 | L10: 2025/26 | M10: 2026/27 | N10: 2027/28 | O10: 2028/29 | P10: 2029/30 | Q10: 2030/31 | R10: Total
A11: OSL A28 FUT | B11: OSL CWP LTP | C11: OSL | D11: OSL A28 | E11: Open Space Land Acquisition | G11: 0 | H11: 1061495.99 | I11: 5584227.371 | J11: 7193800.941 | K11: 7731944.189 | L11: 11685708.12 | M11: 12658683.21 | N11: 10438243.73 | O11: 13350528.28 | P11: 16930827.2 | Q11: 18124469.82 | R11: =SUM(G11:Q11) -> 104759928.9
A12: TRA A1 FUT | B12: TRA CWP LTP | C12: TRA | D12: TRA A1 | E12: Transport | F12: Auckland wide | G12: 0 | H12: 0 | I12: 0 | J12: 0 | K12: 0 | L12: 0 | M12: 0 | N12: 0 | O12: 4168.037181 | P12: 50204.55581 | Q12: 215536.955 | R12: =SUM(G12:Q12) -> 269909.548
A13: TRA A23 FUT | B13: TRA CWP LTP | C13: TRA | D13: TRA A23 | E13: Transport | G13: 0 | H13: 0 | I13: 405807.5404 | J13: 135228.1253 | K13: 0 | L13: 0 | M13: 1451134.953 | N13: 249026.1007 | O13: 8561670.285 | P13: 6444955.357 | Q13: 41317089.29 | R13: 58564911.65
A14: TRA A24 FUT | B14: TRA CWP LTP | C14: TRA | D14: TRA A24 | E14: Transport | G14: 0 | H14: 0 | I14: 10647.94666 | J14: 0 | K14: 406653.0332 | L14: 385389.6914 | M14: 3857946.674 | N14: 0 | O14: 266596.274 | P14: 1294838.085 | Q14: 10965671.89 | R14: 17187743.59
A15: TRA A25 FUT | B15: TRA CWP LTP | C15: TRA | D15: TRA A25 | E15: Transport | G15: 0 | H15: 0 | I15: 15904.66832 | J15: 0 | K15: 67490.12866 | L15: 63961.16034 | M15: 640743.8663 | N15: 0 | O15: 268888.7795 | P15: 439015.4124 | Q15: 6319694.131 | R15: 7815698.146
A16: TRA A26 FUT | B16: TRA CWP LTP | C16: TRA | D16: TRA A26 | E16: Transport | G16: 0 | H16: 0 | I16: 79612.44029 | J16: 520.5830302 | K16: 0 | L16: 0 | M16: 63478.52653 | N16: 15703.27261 | O16: 1335659.886 | P16: 1405935.734 | Q16: 5896230.85 | R16: 8797141.293
A17: TRA A27 FUT | B17: TRA CWP LTP | C17: TRA | D17: TRA A27 | E17: Transport | G17: 0 | H17: 0 | I17: 0 | J17: 0 | K17: 0 | L17: 0 | M17: 0 | N17: 0 | O17: 0 | P17: 3267.329097 | Q17: 32476.14777 | R17: 35743.47686
A18: TRA A28 FUT | B18: TRA CWP LTP | C18: TRA | D18: TRA A28 | E18: Transport | G18: 0 | H18: 0 | I18: 13567.50787 | J18: 0 | K18: 0 | L18: 0 | M18: 441.5934423 | N18: 0 | O18: 274927.7747 | P18: 135773.3287 | Q18: 1756728.417 | R18: 2181438.622
A19: TRA A29 FUT | B19: TRA CWP LTP | C19: TRA | D19: TRA A29 | E19: Transport | G19: 0 | H19: 0 | I19: 7361.558258 | J19: 853.4727533 | K19: 0 | L19: 0 | M19: 9774.198864 | N19: 1694.048254 | O19: 114702.8709 | P19: 118680.2631 | Q19: 410359.4772 | R19: 663425.8892
E21: Subtotal | G21: 0 | H21: =SUM(H11:H19) -> 1061495.99 | I21: 6117129.033 | J21: 7330403.122 | K21: 8206087.351 | L21: 12135058.97 | M21: 18682203.03 | N21: 10704667.15 | O21: 24177142.19 | P21: 26823497.27 | Q21: 85038256.97 | R21: 200275941.1
A25: Check | B25: OK
A26: Sum Across | B26: =SUM(G21:Q21) -> 200275941.1
A27: Sum Down | B27: =SUM(R11:R19) -> 200275941.1
E30: Summary of FUTURE capex costs to be recovered from developers
E32: Infrastructure Type | G32: Historic | H32: Plan | R32: Total capex | S32: Total planned
E33: OSL | G33: =SUMIF($C$11:$C$19, $E33,G$11:G$19) -> 0 | H33: =SUMIF($C$11:$C$19, $E33,H$11:H$19) -> 1061495.99 | I33: 5584227.371 | J33: 7193800.941 | K33: 7731944.189 | L33: 11685708.12 | M33: 12658683.21 | N33: 10438243.73 | O33: 13350528.28 | P33: 16930827.2 | Q33: 18124469.82 | R33: =SUM(G33:Q33) -> 104759928.9 | S33: =R33-G33 -> 104759928.9
E34: OSD | G34: =SUMIF($C$11:$C$19, $E34,G$11:G$19) -> 0 | H34: 0 | I34: 0 | J34: 0 | K34: 0 | L34: 0 | M34: 0 | N34: 0 | O34: 0 | P34: 0 | Q34: 0 | R34: 0 | S34: 0
E35: STW | G35: 0 | H35: 0 | I35: 0 | J35: 0 | K35: 0 | L35: 0 | M35: 0 | N35: 0 | O35: 0 | P35: 0 | Q35: 0 | R35: 0 | S35: 0
E36: TRA | G36: 0 | H36: 0 | I36: 532901.6618 | J36: 136602.1811 | K36: 474143.1618 | L36: 449350.8518 | M36: 6023519.812 | N36: 266423.4215 | O36: 10826613.91 | P36: 9892670.065 | Q36: 66913787.15 | R36: 95516012.21 | S36: 95516012.21
E37: PTR | G37: 0 | H37: 0 | I37: 0 | J37: 0 | K37: 0 | L37: 0 | M37: 0 | N37: 0 | O37: 0 | P37: 0 | Q37: 0 | R37: 0 | S37: 0
E38: CI | G38: 0 | H38: 0 | I38: 0 | J38: 0 | K38: 0 | L38: 0 | M38: 0 | N38: 0 | O38: 0 | P38: 0 | Q38: 0 | R38: 0 | S38: 0
E39: Totals | G39: =SUM(G33:G38) -> 0 | H39: 1061495.99 | I39: 6117129.033 | J39: 7330403.122 | K39: 8206087.351 | L39: 12135058.97 | M39: 18682203.03 | N39: 10704667.15 | O39: 24177142.19 | P39: 26823497.27 | Q39: 85038256.97 | R39: 200275941.1 | S39: 200275941.1
E40: Check should be zero | G40: =+G39-G21 -> 0 | H40: =+H39-H21 -> 0 | I40: 0 | J40: 0 | K40: 0 | L40: 0 | M40: 0 | N40: 0 | O40: 0 | P40: 0 | Q40: 0 | R40: 0

Sheet Consolidated_growth_HUEs
E1: Used for Payment timing TOTAL - HUE
H2: Lookup ref: | I2: 5 | J2: =+I2+1 -> 6 | K2: =+J2+1 -> 7 | L2: 8 | M2: 9 | N2: 10 | O2: 11 | P2: 12 | Q2: 13 | R2: 14
F4: Payment timing summary
I6: Payment timing TOTAL - HUE
A7: Infrastructure Type code | B7: Area code | C7: HUE type code | E7: Act / FA code | F7: Infrastructure Type | G7: Type | H7: Funding Area | I7: Year 1 | J7: Year 2 | K7: Year 3 | L7: Year 4 | M7: Year 5 | N7: Year 6 | O7: Year 7 | P7: Year 8 | Q7: Year 9 | R7: Year 10
A8: CI | B8: A1 | C8: NRES | D8: N | E8: CI NRES A1 | F8: Community Infrastructure | G8: Non-residential HUEs | H8: Area 1 | I8: =SUMIFS(O_AC_DCGM_PTS!H8:H6541, O_AC_DCGM_PTS!A8:A6541, A8, O_AC_DCGM_PTS!B8:B6541,C8, O_AC_DCGM_PTS!C8:C6541, B8) -> 0 | J8: =SUMIFS(O_AC_DCGM_PTS!I8:I6541, O_AC_DCGM_PTS!A8:A6541, A8, O_AC_DCGM_PTS!B8:B6541,C8, O_AC_DCGM_PTS!C8:C6541, B8) -> 0 | K8: =SUMIFS(O_AC_DCGM_PTS!J8:J6541, O_AC_DCGM_PTS!A8:A6541, A8, O_AC_DCGM_PTS!B8:B6541,C8, O_AC_DCGM_PTS!C8:C6541, B8) -> 0 | L8: =SUMIFS(O_AC_DCGM_PTS!K8:K6541, O_AC_DCGM_PTS!A8:A6541, A8, O_AC_DCGM_PTS!B8:B6541,C8, O_AC_DCGM_PTS!C8:C6541, B8) -> 0 | M8: =SUMIFS(O_AC_DCGM_PTS!L8:L6541, O_AC_DCGM_PTS!A8:A6541, A8, O_AC_DCGM_PTS!B8:B6541,C8, O_AC_DCGM_PTS!C8:C6541, B8) -> 0 | N8: =SUMIFS(O_AC_DCGM_PTS!M8:M6541, O_AC_DCGM_PTS!A8:A6541, A8, O_AC_DCGM_PTS!B8:B6541,C8, O_AC_DCGM_PTS!C8:C6541, B8) -> 0 | O8: =SUMIFS(O_AC_DCGM_PTS!N8:N6541, O_AC_DCGM_PTS!A8:A6541, A8, O_AC_DCGM_PTS!B8:B6541,C8, O_AC_DCGM_PTS!C8:C6541, B8) -> 0 | P8: =SUMIFS(O_AC_DCGM_PTS!O8:O6541, O_AC_DCGM_PTS!A8:A6541, A8, O_AC_DCGM_PTS!B8:B6541,C8, O_AC_DCGM_PTS!C8:C6541, B8) -> 0 | Q8: =SUMIFS(O_AC_DCGM_PTS!P8:P6541, O_AC_DCGM_PTS!A8:A6541, A8, O_AC_DCGM_PTS!B8:B6541,C8, O_AC_DCGM_PTS!C8:C6541, B8) -> 0 | R8: =SUMIFS(O_AC_DCGM_PTS!Q8:Q6541, O_AC_DCGM_PTS!A8:A6541, A8, O_AC_DCGM_PTS!B8:B6541,C8, O_AC_DCGM_PTS!C8:C6541, B8) -> 0
A9: CI | B9: A1 | C9: RES | D9: R | E9: CI RES A1 | F9: Community Infrastructure | G9: Residential HUEs | H9: Area 1 | I9: =SUMIFS(O_AC_DCGM_PTS!H8:H6541, O_AC_DCGM_PTS!A8:A6541, A9, O_AC_DCGM_PTS!B8:B6541,C9, O_AC_DCGM_PTS!C8:C6541, B9) -> 7223 | J9: =SUMIFS(O_AC_DCGM_PTS!I8:I6541, O_AC_DCGM_PTS!A8:A6541, A9, O_AC_DCGM_PTS!B8:B6541,C9, O_AC_DCGM_PTS!C8:C6541, B9) -> 7179 | K9: =SUMIFS(O_AC_DCGM_PTS!J8:J6541, O_AC_DCGM_PTS!A8:A6541, A9, O_AC_DCGM_PTS!B8:B6541,C9, O_AC_DCGM_PTS!C8:C6541, B9) -> 7231 | L9: =SUMIFS(O_AC_DCGM_PTS!K8:K6541, O_AC_DCGM_PTS!A8:A6541, A9, O_AC_DCGM_PTS!B8:B6541,C9, O_AC_DCGM_PTS!C8:C6541, B9) -> 7411 | M9: =SUMIFS(O_AC_DCGM_PTS!L8:L6541, O_AC_DCGM_PTS!A8:A6541, A9, O_AC_DCGM_PTS!B8:B6541,C9, O_AC_DCGM_PTS!C8:C6541, B9) -> 8080 | N9: =SUMIFS(O_AC_DCGM_PTS!M8:M6541, O_AC_DCGM_PTS!A8:A6541, A9, O_AC_DCGM_PTS!B8:B6541,C9, O_AC_DCGM_PTS!C8:C6541, B9) -> 8606 | O9: =SUMIFS(O_AC_DCGM_PTS!N8:N6541, O_AC_DCGM_PTS!A8:A6541, A9, O_AC_DCGM_PTS!B8:B6541,C9, O_AC_DCGM_PTS!C8:C6541, B9) -> 8666 | P9: =SUMIFS(O_AC_DCGM_PTS!O8:O6541, O_AC_DCGM_PTS!A8:A6541, A9, O_AC_DCGM_PTS!B8:B6541,C9, O_AC_DCGM_PTS!C8:C6541, B9) -> 8062 | Q9: =SUMIFS(O_AC_DCGM_PTS!P8:P6541, O_AC_DCGM_PTS!A8:A6541, A9, O_AC_DCGM_PTS!B8:B6541,C9, O_AC_DCGM_PTS!C8:C6541, B9) -> 7861 | R9: =SUMIFS(O_AC_DCGM_PTS!Q8:Q6541, O_AC_DCGM_PTS!A8:A6541, A9, O_AC_DCGM_PTS!B8:B6541,C9, O_AC_DCGM_PTS!C8:C6541, B9) -> 7131
A10: CI | B10: A2 | C10: NRES | D10: N | E10: CI NRES A2 | F10: Community Infrastructure | G10: Non-residential HUEs | H10: Area 2 | I10: =SUMIFS(O_AC_DCGM_PTS!H8:H6541, O_AC_DCGM_PTS!A8:A6541, A10, O_AC_DCGM_PTS!B8:B6541,C10, O_AC_DCGM_PTS!C8:C6541, B10) -> 0 | J10: =SUMIFS(O_AC_DCGM_PTS!I8:I6541, O_AC_DCGM_PTS!A8:A6541, A10, O_AC_DCGM_PTS!B8:B6541,C10, O_AC_DCGM_PTS!C8:C6541, B10) -> 0 | K10: =SUMIFS(O_AC_DCGM_PTS!J8:J6541, O_AC_DCGM_PTS!A8:A6541, A10, O_AC_DCGM_PTS!B8:B6541,C10, O_AC_DCGM_PTS!C8:C6541, B10) -> 0 | L10: =SUMIFS(O_AC_DCGM_PTS!K8:K6541, O_AC_DCGM_PTS!A8:A6541, A10, O_AC_DCGM_PTS!B8:B6541,C10, O_AC_DCGM_PTS!C8:C6541, B10) -> 0 | M10: =SUMIFS(O_AC_DCGM_PTS!L8:L6541, O_AC_DCGM_PTS!A8:A6541, A10, O_AC_DCGM_PTS!B8:B6541,C10, O_AC_DCGM_PTS!C8:C6541, B10) -> 0 | N10: =SUMIFS(O_AC_DCGM_PTS!M8:M6541, O_AC_DCGM_PTS!A8:A6541, A10, O_AC_DCGM_PTS!B8:B6541,C10, O_AC_DCGM_PTS!C8:C6541, B10) -> 0 | O10: =SUMIFS(O_AC_DCGM_PTS!N8:N6541, O_AC_DCGM_PTS!A8:A6541, A10, O_AC_DCGM_PTS!B8:B6541,C10, O_AC_DCGM_PTS!C8:C6541, B10) -> 0 | P10: =SUMIFS(O_AC_DCGM_PTS!O8:O6541, O_AC_DCGM_PTS!A8:A6541, A10, O_AC_DCGM_PTS!B8:B6541,C10, O_AC_DCGM_PTS!C8:C6541, B10) -> 0 | Q10: =SUMIFS(O_AC_DCGM_PTS!P8:P6541, O_AC_DCGM_PTS!A8:A6541, A10, O_AC_DCGM_PTS!B8:B6541,C10, O_AC_DCGM_PTS!C8:C6541, B10) -> 0 | R10: =SUMIFS(O_AC_DCGM_PTS!Q8:Q6541, O_AC_DCGM_PTS!A8:A6541, A10, O_AC_DCGM_PTS!B8:B6541,C10, O_AC_DCGM_PTS!C8:C6541, B10) -> 0
A11: CI | B11: A2 | C11: RES | D11: R | E11: CI RES A2 | F11: Community Infrastructure | G11: Residential HUEs | H11: Area 2 | I11: =SUMIFS(O_AC_DCGM_PTS!H8:H6541, O_AC_DCGM_PTS!A8:A6541, A11, O_AC_DCGM_PTS!B8:B6541,C11, O_AC_DCGM_PTS!C8:C6541, B11) -> 0 | J11: =SUMIFS(O_AC_DCGM_PTS!I8:I6541, O_AC_DCGM_PTS!A8:A6541, A11, O_AC_DCGM_PTS!B8:B6541,C11, O_AC_DCGM_PTS!C8:C6541, B11) -> 0 | K11: =SUMIFS(O_AC_DCGM_PTS!J8:J6541, O_AC_DCGM_PTS!A8:A6541, A11, O_AC_DCGM_PTS!B8:B6541,C11, O_AC_DCGM_PTS!C8:C6541, B11) -> 0 | L11: =SUMIFS(O_AC_DCGM_PTS!K8:K6541, O_AC_DCGM_PTS!A8:A6541, A11, O_AC_DCGM_PTS!B8:B6541,C11, O_AC_DCGM_PTS!C8:C6541, B11) -> 0 | M11: =SUMIFS(O_AC_DCGM_PTS!L8:L6541, O_AC_DCGM_PTS!A8:A6541, A11, O_AC_DCGM_PTS!B8:B6541,C11, O_AC_DCGM_PTS!C8:C6541, B11) -> 0 | N11: =SUMIFS(O_AC_DCGM_PTS!M8:M6541, O_AC_DCGM_PTS!A8:A6541, A11, O_AC_DCGM_PTS!B8:B6541,C11, O_AC_DCGM_PTS!C8:C6541, B11) -> 0 | O11: =SUMIFS(O_AC_DCGM_PTS!N8:N6541, O_AC_DCGM_PTS!A8:A6541, A11, O_AC_DCGM_PTS!B8:B6541,C11, O_AC_DCGM_PTS!C8:C6541, B11) -> 0 | P11: =SUMIFS(O_AC_DCGM_PTS!O8:O6541, O_AC_DCGM_PTS!A8:A6541, A11, O_AC_DCGM_PTS!B8:B6541,C11, O_AC_DCGM_PTS!C8:C6541, B11) -> 0 | Q11: =SUMIFS(O_AC_DCGM_PTS!P8:P6541, O_AC_DCGM_PTS!A8:A6541, A11, O_AC_DCGM_PTS!B8:B6541,C11, O_AC_DCGM_PTS!C8:C6541, B11) -> 0 | R11: =SUMIFS(O_AC_DCGM_PTS!Q8:Q6541, O_AC_DCGM_PTS!A8:A6541, A11, O_AC_DCGM_PTS!B8:B6541,C11, O_AC_DCGM_PTS!C8:C6541, B11) -> 0
A12: CI | B12: A3 | C12: NRES | D12: N | E12: CI NRES A3 | F12: Community Infrastructure | G12: Non-residential HUEs | H12: Area 3 | I12: =SUMIFS(O_AC_DCGM_PTS!H8:H6541, O_AC_DCGM_PTS!A8:A6541, A12, O_AC_DCGM_PTS!B8:B6541,C12, O_AC_DCGM_PTS!C8:C6541, B12) -> 0 | J12: =SUMIFS(O_AC_DCGM_PTS!I8:I6541, O_AC_DCGM_PTS!A8:A6541, A12, O_AC_DCGM_PTS!B8:B6541,C12, O_AC_DCGM_PTS!C8:C6541, B12) -> 0 | K12: =SUMIFS(O_AC_DCGM_PTS!J8:J6541, O_AC_DCGM_PTS!A8:A6541, A12, O_AC_DCGM_PTS!B8:B6541,C12, O_AC_DCGM_PTS!C8:C6541, B12) -> 0 | L12: =SUMIFS(O_AC_DCGM_PTS!K8:K6541, O_AC_DCGM_PTS!A8:A6541, A12, O_AC_DCGM_PTS!B8:B6541,C12, O_AC_DCGM_PTS!C8:C6541, B12) -> 0 | M12: =SUMIFS(O_AC_DCGM_PTS!L8:L6541, O_AC_DCGM_PTS!A8:A6541, A12, O_AC_DCGM_PTS!B8:B6541,C12, O_AC_DCGM_PTS!C8:C6541, B12) -> 0 | N12: =SUMIFS(O_AC_DCGM_PTS!M8:M6541, O_AC_DCGM_PTS!A8:A6541, A12, O_AC_DCGM_PTS!B8:B6541,C12, O_AC_DCGM_PTS!C8:C6541, B12) -> 0 | O12: =SUMIFS(O_AC_DCGM_PTS!N8:N6541, O_AC_DCGM_PTS!A8:A6541, A12, O_AC_DCGM_PTS!B8:B6541,C12, O_AC_DCGM_PTS!C8:C6541, B12) -> 0 | P12: =SUMIFS(O_AC_DCGM_PTS!O8:O6541, O_AC_DCGM_PTS!A8:A6541, A12, O_AC_DCGM_PTS!B8:B6541,C12, O_AC_DCGM_PTS!C8:C6541, B12) -> 0 | Q12: =SUMIFS(O_AC_DCGM_PTS!P8:P6541, O_AC_DCGM_PTS!A8:A6541, A12, O_AC_DCGM_PTS!B8:B6541,C12, O_AC_DCGM_PTS!C8:C6541, B12) -> 0 | R12: =SUMIFS(O_AC_DCGM_PTS!Q8:Q6541, O_AC_DCGM_PTS!A8:A6541, A12, O_AC_DCGM_PTS!B8:B6541,C12, O_AC_DCGM_PTS!C8:C6541, B12) -> 0
A13: CI | B13: A3 | C13: RES | D13: R | E13: CI RES A3 | F13: Community Infrastructure | G13: Residential HUEs | H13: Area 3 | I13: =SUMIFS(O_AC_DCGM_PTS!H8:H6541, O_AC_DCGM_PTS!A8:A6541, A13, O_AC_DCGM_PTS!B8:B6541,C13, O_AC_DCGM_PTS!C8:C6541, B13) -> 4183 | J13: =SUMIFS(O_AC_DCGM_PTS!I8:I6541, O_AC_DCGM_PTS!A8:A6541, A13, O_AC_DCGM_PTS!B8:B6541,C13, O_AC_DCGM_PTS!C8:C6541, B13) -> 4137 | K13: =SUMIFS(O_AC_DCGM_PTS!J8:J6541, O_AC_DCGM_PTS!A8:A6541, A13, O_AC_DCGM_PTS!B8:B6541,C13, O_AC_DCGM_PTS!C8:C6541, B13) -> 4154 | L13: =SUMIFS(O_AC_DCGM_PTS!K8:K6541, O_AC_DCGM_PTS!A8:A6541, A13, O_AC_DCGM_PTS!B8:B6541,C13, O_AC_DCGM_PTS!C8:C6541, B13) -> 4246 | M13: =SUMIFS(O_AC_DCGM_PTS!L8:L6541, O_AC_DCGM_PTS!A8:A6541, A13, O_AC_DCGM_PTS!B8:B6541,C13, O_AC_DCGM_PTS!C8:C6541, B13) -> 4588 | N13: =SUMIFS(O_AC_DCGM_PTS!M8:M6541, O_AC_DCGM_PTS!A8:A6541, A13, O_AC_DCGM_PTS!B8:B6541,C13, O_AC_DCGM_PTS!C8:C6541, B13) -> 4823 | O13: =SUMIFS(O_AC_DCGM_PTS!N8:N6541, O_AC_DCGM_PTS!A8:A6541, A13, O_AC_DCGM_PTS!B8:B6541,C13, O_AC_DCGM_PTS!C8:C6541, B13) -> 4830 | P13: =SUMIFS(O_AC_DCGM_PTS!O8:O6541, O_AC_DCGM_PTS!A8:A6541, A13, O_AC_DCGM_PTS!B8:B6541,C13, O_AC_DCGM_PTS!C8:C6541, B13) -> 4488 | Q13: =SUMIFS(O_AC_DCGM_PTS!P8:P6541, O_AC_DCGM_PTS!A8:A6541, A13, O_AC_DCGM_PTS!B8:B6541,C13, O_AC_DCGM_PTS!C8:C6541, B13) -> 4376 | R13: =SUMIFS(O_AC_DCGM_PTS!Q8:Q6541, O_AC_DCGM_PTS!A8:A6541, A13, O_AC_DCGM_PTS!B8:B6541,C13, O_AC_DCGM_PTS!C8:C6541, B13) -> 3883
A14: CI | B14: A4 | C14: NRES | D14: N | E14: CI NRES A4 | F14: Community Infrastructure | G14: Non-residential HUEs | H14: Area 4 | I14: =SUMIFS(O_AC_DCGM_PTS!H8:H6541, O_AC_DCGM_PTS!A8:A6541, A14, O_AC_DCGM_PTS!B8:B6541,C14, O_AC_DCGM_PTS!C8:C6541, B14) -> 0 | J14: =SUMIFS(O_AC_DCGM_PTS!I8:I6541, O_AC_DCGM_PTS!A8:A6541, A14, O_AC_DCGM_PTS!B8:B6541,C14, O_AC_DCGM_PTS!C8:C6541, B14) -> 0 | K14: =SUMIFS(O_AC_DCGM_PTS!J8:J6541, O_AC_DCGM_PTS!A8:A6541, A14, O_AC_DCGM_PTS!B8:B6541,C14, O_AC_DCGM_PTS!C8:C6541, B14) -> 0 | L14: =SUMIFS(O_AC_DCGM_PTS!K8:K6541, O_AC_DCGM_PTS!A8:A6541, A14, O_AC_DCGM_PTS!B8:B6541,C14, O_AC_DCGM_PTS!C8:C6541, B14) -> 0 | M14: =SUMIFS(O_AC_DCGM_PTS!L8:L6541, O_AC_DCGM_PTS!A8:A6541, A14, O_AC_DCGM_PTS!B8:B6541,C14, O_AC_DCGM_PTS!C8:C6541, B14) -> 0 | N14: =SUMIFS(O_AC_DCGM_PTS!M8:M6541, O_AC_DCGM_PTS!A8:A6541, A14, O_AC_DCGM_PTS!B8:B6541,C14, O_AC_DCGM_PTS!C8:C6541, B14) -> 0 | O14: =SUMIFS(O_AC_DCGM_PTS!N8:N6541, O_AC_DCGM_PTS!A8:A6541, A14, O_AC_DCGM_PTS!B8:B6541,C14, O_AC_DCGM_PTS!C8:C6541, B14) -> 0 | P14: =SUMIFS(O_AC_DCGM_PTS!O8:O6541, O_AC_DCGM_PTS!A8:A6541, A14, O_AC_DCGM_PTS!B8:B6541,C14, O_AC_DCGM_PTS!C8:C6541, B14) -> 0 | Q14: =SUMIFS(O_AC_DCGM_PTS!P8:P6541, O_AC_DCGM_PTS!A8:A6541, A14, O_AC_DCGM_PTS!B8:B6541,C14, O_AC_DCGM_PTS!C8:C6541, B14) -> 0 | R14: =SUMIFS(O_AC_DCGM_PTS!Q8:Q6541, O_AC_DCGM_PTS!A8:A6541, A14, O_AC_DCGM_PTS!B8:B6541,C14, O_AC_DCGM_PTS!C8:C6541, B14) -> 0
A15: CI | B15: A4 | C15: RES | D15: R | E15: CI RES A4 | F15: Community Infrastructure | G15: Residential HUEs | H15: Area 4 | I15: =SUMIFS(O_AC_DCGM_PTS!H8:H6541, O_AC_DCGM_PTS!A8:A6541, A15, O_AC_DCGM_PTS!B8:B6541,C15, O_AC_DCGM_PTS!C8:C6541, B15) -> 0 | J15: =SUMIFS(O_AC_DCGM_PTS!I8:I6541, O_AC_DCGM_PTS!A8:A6541, A15, O_AC_DCGM_PTS!B8:B6541,C15, O_AC_DCGM_PTS!C8:C6541, B15) -> 0 | K15: =SUMIFS(O_AC_DCGM_PTS!J8:J6541, O_AC_DCGM_PTS!A8:A6541, A15, O_AC_DCGM_PTS!B8:B6541,C15, O_AC_DCGM_PTS!C8:C6541, B15) -> 0 | L15: =SUMIFS(O_AC_DCGM_PTS!K8:K6541, O_AC_DCGM_PTS!A8:A6541, A15, O_AC_DCGM_PTS!B8:B6541,C15, O_AC_DCGM_PTS!C8:C6541, B15) -> 0 | M15: =SUMIFS(O_AC_DCGM_PTS!L8:L6541, O_AC_DCGM_PTS!A8:A6541, A15, O_AC_DCGM_PTS!B8:B6541,C15, O_AC_DCGM_PTS!C8:C6541, B15) -> 0 | N15: =SUMIFS(O_AC_DCGM_PTS!M8:M6541, O_AC_DCGM_PTS!A8:A6541, A15, O_AC_DCGM_PTS!B8:B6541,C15, O_AC_DCGM_PTS!C8:C6541, B15) -> 0 | O15: =SUMIFS(O_AC_DCGM_PTS!N8:N6541, O_AC_DCGM_PTS!A8:A6541, A15, O_AC_DCGM_PTS!B8:B6541,C15, O_AC_DCGM_PTS!C8:C6541, B15) -> 0 | P15: =SUMIFS(O_AC_DCGM_PTS!O8:O6541, O_AC_DCGM_PTS!A8:A6541, A15, O_AC_DCGM_PTS!B8:B6541,C15, O_AC_DCGM_PTS!C8:C6541, B15) -> 0 | Q15: =SUMIFS(O_AC_DCGM_PTS!P8:P6541, O_AC_DCGM_PTS!A8:A6541, A15, O_AC_DCGM_PTS!B8:B6541,C15, O_AC_DCGM_PTS!C8:C6541, B15) -> 0 | R15: =SUMIFS(O_AC_DCGM_PTS!Q8:Q6541, O_AC_DCGM_PTS!A8:A6541, A15, O_AC_DCGM_PTS!B8:B6541,C15, O_AC_DCGM_PTS!C8:C6541, B15) -> 0
A16: CI | B16: A5 | C16: NRES | D16: N | E16: CI NRES A5 | F16: Community Infrastructure | G16: Non-residential HUEs | H16: Area 5 | I16: =SUMIFS(O_AC_DCGM_PTS!H8:H6541, O_AC_DCGM_PTS!A8:A6541, A16, O_AC_DCGM_PTS!B8:B6541,C16, O_AC_DCGM_PTS!C8:C6541, B16) -> 0 | J16: =SUMIFS(O_AC_DCGM_PTS!I8:I6541, O_AC_DCGM_PTS!A8:A6541, A16, O_AC_DCGM_PTS!B8:B6541,C16, O_AC_DCGM_PTS!C8:C6541, B16) -> 0 | K16: =SUMIFS(O_AC_DCGM_PTS!J8:J6541, O_AC_DCGM_PTS!A8:A6541, A16, O_AC_DCGM_PTS!B8:B6541,C16, O_AC_DCGM_PTS!C8:C6541, B16) -> 0 | L16: =SUMIFS(O_AC_DCGM_PTS!K8:K6541, O_AC_DCGM_PTS!A8:A6541, A16, O_AC_DCGM_PTS!B8:B6541,C16, O_AC_DCGM_PTS!C8:C6541, B16) -> 0 | M16: =SUMIFS(O_AC_DCGM_PTS!L8:L6541, O_AC_DCGM_PTS!A8:A6541, A16, O_AC_DCGM_PTS!B8:B6541,C16, O_AC_DCGM_PTS!C8:C6541, B16) -> 0 | N16: =SUMIFS(O_AC_DCGM_PTS!M8:M6541, O_AC_DCGM_PTS!A8:A6541, A16, O_AC_DCGM_PTS!B8:B6541,C16, O_AC_DCGM_PTS!C8:C6541, B16) -> 0 | O16: =SUMIFS(O_AC_DCGM_PTS!N8:N6541, O_AC_DCGM_PTS!A8:A6541, A16, O_AC_DCGM_PTS!B8:B6541,C16, O_AC_DCGM_PTS!C8:C6541, B16) -> 0 | P16: =SUMIFS(O_AC_DCGM_PTS!O8:O6541, O_AC_DCGM_PTS!A8:A6541, A16, O_AC_DCGM_PTS!B8:B6541,C16, O_AC_DCGM_PTS!C8:C6541, B16) -> 0 | Q16: =SUMIFS(O_AC_DCGM_PTS!P8:P6541, O_AC_DCGM_PTS!A8:A6541, A16, O_AC_DCGM_PTS!B8:B6541,C16, O_AC_DCGM_PTS!C8:C6541, B16) -> 0 | R16: =SUMIFS(O_AC_DCGM_PTS!Q8:Q6541, O_AC_DCGM_PTS!A8:A6541, A16, O_AC_DCGM_PTS!B8:B6541,C16, O_AC_DCGM_PTS!C8:C6541, B16) -> 0
A17: CI | B17: A5 | C17: RES | D17: R | E17: CI RES A5 | F17: Community Infrastructure | G17: Residential HUEs | H17: Area 5 | I17: =SUMIFS(O_AC_DCGM_PTS!H8:H6541, O_AC_DCGM_PTS!A8:A6541, A17, O_AC_DCGM_PTS!B8:B6541,C17, O_AC_DCGM_PTS!C8:C6541, B17) -> 135 | J17: =SUMIFS(O_AC_DCGM_PTS!I8:I6541, O_AC_DCGM_PTS!A8:A6541, A17, O_AC_DCGM_PTS!B8:B6541,C17, O_AC_DCGM_PTS!C8:C6541, B17) -> 134 | K17: =SUMIFS(O_AC_DCGM_PTS!J8:J6541, O_AC_DCGM_PTS!A8:A6541, A17, O_AC_DCGM_PTS!B8:B6541,C17, O_AC_DCGM_PTS!C8:C6541, B17) -> 134 | L17: =SUMIFS(O_AC_DCGM_PTS!K8:K6541, O_AC_DCGM_PTS!A8:A6541, A17, O_AC_DCGM_PTS!B8:B6541,C17, O_AC_DCGM_PTS!C8:C6541, B17) -> 136 | M17: =SUMIFS(O_AC_DCGM_PTS!L8:L6541, O_AC_DCGM_PTS!A8:A6541, A17, O_AC_DCGM_PTS!B8:B6541,C17, O_AC_DCGM_PTS!C8:C6541, B17) -> 151 | N17: =SUMIFS(O_AC_DCGM_PTS!M8:M6541, O_AC_DCGM_PTS!A8:A6541, A17, O_AC_DCGM_PTS!B8:B6541,C17, O_AC_DCGM_PTS!C8:C6541, B17) -> 162 | O17: =SUMIFS(O_AC_DCGM_PTS!N8:N6541, O_AC_DCGM_PTS!A8:A6541, A17, O_AC_DCGM_PTS!B8:B6541,C17, O_AC_DCGM_PTS!C8:C6541, B17) -> 162 | P17: =SUMIFS(O_AC_DCGM_PTS!O8:O6541, O_AC_DCGM_PTS!A8:A6541, A17, O_AC_DCGM_PTS!B8:B6541,C17, O_AC_DCGM_PTS!C8:C6541, B17) -> 151 | Q17: =SUMIFS(O_AC_DCGM_PTS!P8:P6541, O_AC_DCGM_PTS!A8:A6541, A17, O_AC_DCGM_PTS!B8:B6541,C17, O_AC_DCGM_PTS!C8:C6541, B17) -> 145 | R17: =SUMIFS(O_AC_DCGM_PTS!Q8:Q6541, O_AC_DCGM_PTS!A8:A6541, A17, O_AC_DCGM_PTS!B8:B6541,C17, O_AC_DCGM_PTS!C8:C6541, B17) -> 153
A18: CI | B18: A6 | C18: NRES | D18: N | E18: CI NRES A6 | F18: Community Infrastructure | G18: Non-residential HUEs | H18: Area 6 | I18: =SUMIFS(O_AC_DCGM_PTS!H8:H6541, O_AC_DCGM_PTS!A8:A6541, A18, O_AC_DCGM_PTS!B8:B6541,C18, O_AC_DCGM_PTS!C8:C6541, B18) -> 0 | J18: =SUMIFS(O_AC_DCGM_PTS!I8:I6541, O_AC_DCGM_PTS!A8:A6541, A18, O_AC_DCGM_PTS!B8:B6541,C18, O_AC_DCGM_PTS!C8:C6541, B18) -> 0 | K18: =SUMIFS(O_AC_DCGM_PTS!J8:J6541, O_AC_DCGM_PTS!A8:A6541, A18, O_AC_DCGM_PTS!B8:B6541,C18, O_AC_DCGM_PTS!C8:C6541, B18) -> 0 | L18: =SUMIFS(O_AC_DCGM_PTS!K8:K6541, O_AC_DCGM_PTS!A8:A6541, A18, O_AC_DCGM_PTS!B8:B6541,C18, O_AC_DCGM_PTS!C8:C6541, B18) -> 0 | M18: =SUMIFS(O_AC_DCGM_PTS!L8:L6541, O_AC_DCGM_PTS!A8:A6541, A18, O_AC_DCGM_PTS!B8:B6541,C18, O_AC_DCGM_PTS!C8:C6541, B18) -> 0 | N18: =SUMIFS(O_AC_DCGM_PTS!M8:M6541, O_AC_DCGM_PTS!A8:A6541, A18, O_AC_DCGM_PTS!B8:B6541,C18, O_AC_DCGM_PTS!C8:C6541, B18) -> 0 | O18: =SUMIFS(O_AC_DCGM_PTS!N8:N6541, O_AC_DCGM_PTS!A8:A6541, A18, O_AC_DCGM_PTS!B8:B6541,C18, O_AC_DCGM_PTS!C8:C6541, B18) -> 0 | P18: =SUMIFS(O_AC_DCGM_PTS!O8:O6541, O_AC_DCGM_PTS!A8:A6541, A18, O_AC_DCGM_PTS!B8:B6541,C18, O_AC_DCGM_PTS!C8:C6541, B18) -> 0 | Q18: =SUMIFS(O_AC_DCGM_PTS!P8:P6541, O_AC_DCGM_PTS!A8:A6541, A18, O_AC_DCGM_PTS!B8:B6541,C18, O_AC_DCGM_PTS!C8:C6541, B18) -> 0 | R18: =SUMIFS(O_AC_DCGM_PTS!Q8:Q6541, O_AC_DCGM_PTS!A8:A6541, A18, O_AC_DCGM_PTS!B8:B6541,C18, O_AC_DCGM_PTS!C8:C6541, B18) -> 0
A19: CI | B19: A6 | C19: RES | D19: R | E19: CI RES A6 | F19: Community Infrastructure | G19: Residential HUEs | H19: Area 6 | I19: =SUMIFS(O_AC_DCGM_PTS!H8:H6541, O_AC_DCGM_PTS!A8:A6541, A19, O_AC_DCGM_PTS!B8:B6541,C19, O_AC_DCGM_PTS!C8:C6541, B19) -> 204 | J19: =SUMIFS(O_AC_DCGM_PTS!I8:I6541, O_AC_DCGM_PTS!A8:A6541, A19, O_AC_DCGM_PTS!B8:B6541,C19, O_AC_DCGM_PTS!C8:C6541, B19) -> 202 | K19: =SUMIFS(O_AC_DCGM_PTS!J8:J6541, O_AC_DCGM_PTS!A8:A6541, A19, O_AC_DCGM_PTS!B8:B6541,C19, O_AC_DCGM_PTS!C8:C6541, B19) -> 202 | L19: =SUMIFS(O_AC_DCGM_PTS!K8:K6541, O_AC_DCGM_PTS!A8:A6541, A19, O_AC_DCGM_PTS!B8:B6541,C19, O_AC_DCGM_PTS!C8:C6541, B19) -> 207 | M19: =SUMIFS(O_AC_DCGM_PTS!L8:L6541, O_AC_DCGM_PTS!A8:A6541, A19, O_AC_DCGM_PTS!B8:B6541,C19, O_AC_DCGM_PTS!C8:C6541, B19) -> 207 | N19: =SUMIFS(O_AC_DCGM_PTS!M8:M6541, O_AC_DCGM_PTS!A8:A6541, A19, O_AC_DCGM_PTS!B8:B6541,C19, O_AC_DCGM_PTS!C8:C6541, B19) -> 199 | O19: =SUMIFS(O_AC_DCGM_PTS!N8:N6541, O_AC_DCGM_PTS!A8:A6541, A19, O_AC_DCGM_PTS!B8:B6541,C19, O_AC_DCGM_PTS!C8:C6541, B19) -> 199 | P19: =SUMIFS(O_AC_DCGM_PTS!O8:O6541, O_AC_DCGM_PTS!A8:A6541, A19, O_AC_DCGM_PTS!B8:B6541,C19, O_AC_DCGM_PTS!C8:C6541, B19) -> 187 | Q19: =SUMIFS(O_AC_DCGM_PTS!P8:P6541, O_AC_DCGM_PTS!A8:A6541, A19, O_AC_DCGM_PTS!B8:B6541,C19, O_AC_DCGM_PTS!C8:C6541, B19) -> 182 | R19: =SUMIFS(O_AC_DCGM_PTS!Q8:Q6541, O_AC_DCGM_PTS!A8:A6541, A19, O_AC_DCGM_PTS!B8:B6541,C19, O_AC_DCGM_PTS!C8:C6541, B19) -> 254
A20: CI | B20: A7 | C20: NRES | D20: N | E20: CI NRES A7 | F20: Community Infrastructure | G20: Non-residential HUEs | H20: Area 7 | I20: =SUMIFS(O_AC_DCGM_PTS!H8:H6541, O_AC_DCGM_PTS!A8:A6541, A20, O_AC_DCGM_PTS!B8:B6541,C20, O_AC_DCGM_PTS!C8:C6541, B20) -> 0 | J20: =SUMIFS(O_AC_DCGM_PTS!I8:I6541, O_AC_DCGM_PTS!A8:A6541, A20, O_AC_DCGM_PTS!B8:B6541,C20, O_AC_DCGM_PTS!C8:C6541, B20) -> 0 | K20: =SUMIFS(O_AC_DCGM_PTS!J8:J6541, O_AC_DCGM_PTS!A8:A6541, A20, O_AC_DCGM_PTS!B8:B6541,C20, O_AC_DCGM_PTS!C8:C6541, B20) -> 0 | L20: =SUMIFS(O_AC_DCGM_PTS!K8:K6541, O_AC_DCGM_PTS!A8:A6541, A20, O_AC_DCGM_PTS!B8:B6541,C20, O_AC_DCGM_PTS!C8:C6541, B20) -> 0 | M20: =SUMIFS(O_AC_DCGM_PTS!L8:L6541, O_AC_DCGM_PTS!A8:A6541, A20, O_AC_DCGM_PTS!B8:B6541,C20, O_AC_DCGM_PTS!C8:C6541, B20) -> 0 | N20: =SUMIFS(O_AC_DCGM_PTS!M8:M6541, O_AC_DCGM_PTS!A8:A6541, A20, O_AC_DCGM_PTS!B8:B6541,C20, O_AC_DCGM_PTS!C8:C6541, B20) -> 0 | O20: =SUMIFS(O_AC_DCGM_PTS!N8:N6541, O_AC_DCGM_PTS!A8:A6541, A20, O_AC_DCGM_PTS!B8:B6541,C20, O_AC_DCGM_PTS!C8:C6541, B20) -> 0 | P20: =SUMIFS(O_AC_DCGM_PTS!O8:O6541, O_AC_DCGM_PTS!A8:A6541, A20, O_AC_DCGM_PTS!B8:B6541,C20, O_AC_DCGM_PTS!C8:C6541, B20) -> 0 | Q20: =SUMIFS(O_AC_DCGM_PTS!P8:P6541, O_AC_DCGM_PTS!A8:A6541, A20, O_AC_DCGM_PTS!B8:B6541,C20, O_AC_DCGM_PTS!C8:C6541, B20) -> 0 | R20: =SUMIFS(O_AC_DCGM_PTS!Q8:Q6541, O_AC_DCGM_PTS!A8:A6541, A20, O_AC_DCGM_PTS!B8:B6541,C20, O_AC_DCGM_PTS!C8:C6541, B20) -> 0
A21: CI | B21: A7 | C21: RES | D21: R | E21: CI RES A7 | F21: Community Infrastructure | G21: Residential HUEs | H21: Area 7 | I21: =SUMIFS(O_AC_DCGM_PTS!H8:H6541, O_AC_DCGM_PTS!A8:A6541, A21, O_AC_DCGM_PTS!B8:B6541,C21, O_AC_DCGM_PTS!C8:C6541, B21) -> 963 | J21: =SUMIFS(O_AC_DCGM_PTS!I8:I6541, O_AC_DCGM_PTS!A8:A6541, A21, O_AC_DCGM_PTS!B8:B6541,C21, O_AC_DCGM_PTS!C8:C6541, B21) -> 951 | K21: =SUMIFS(O_AC_DCGM_PTS!J8:J6541, O_AC_DCGM_PTS!A8:A6541, A21, O_AC_DCGM_PTS!B8:B6541,C21, O_AC_DCGM_PTS!C8:C6541, B21) -> 956 | L21: =SUMIFS(O_AC_DCGM_PTS!K8:K6541, O_AC_DCGM_PTS!A8:A6541, A21, O_AC_DCGM_PTS!B8:B6541,C21, O_AC_DCGM_PTS!C8:C6541, B21) -> 977 | M21: =SUMIFS(O_AC_DCGM_PTS!L8:L6541, O_AC_DCGM_PTS!A8:A6541, A21, O_AC_DCGM_PTS!B8:B6541,C21, O_AC_DCGM_PTS!C8:C6541, B21) -> 1059 | N21: =SUMIFS(O_AC_DCGM_PTS!M8:M6541, O_AC_DCGM_PTS!A8:A6541, A21, O_AC_DCGM_PTS!B8:B6541,C21, O_AC_DCGM_PTS!C8:C6541, B21) -> 1118 | O21: =SUMIFS(O_AC_DCGM_PTS!N8:N6541, O_AC_DCGM_PTS!A8:A6541, A21, O_AC_DCGM_PTS!B8:B6541,C21, O_AC_DCGM_PTS!C8:C6541, B21) -> 1119 | P21: =SUMIFS(O_AC_DCGM_PTS!O8:O6541, O_AC_DCGM_PTS!A8:A6541, A21, O_AC_DCGM_PTS!B8:B6541,C21, O_AC_DCGM_PTS!C8:C6541, B21) -> 1040 | Q21: =SUMIFS(O_AC_DCGM_PTS!P8:P6541, O_AC_DCGM_PTS!A8:A6541, A21, O_AC_DCGM_PTS!B8:B6541,C21, O_AC_DCGM_PTS!C8:C6541, B21) -> 1014 | R21: =SUMIFS(O_AC_DCGM_PTS!Q8:Q6541, O_AC_DCGM_PTS!A8:A6541, A21, O_AC_DCGM_PTS!B8:B6541,C21, O_AC_DCGM_PTS!C8:C6541, B21) -> 980
A22: CI | B22: A8 | C22: NRES | D22: N | E22: CI NRES A8 | F22: Community Infrastructure | G22: Non-residential HUEs | H22: Area 8 | I22: =SUMIFS(O_AC_DCGM_PTS!H8:H6541, O_AC_DCGM_PTS!A8:A6541, A22, O_AC_DCGM_PTS!B8:B6541,C22, O_AC_DCGM_PTS!C8:C6541, B22) -> 0 | J22: =SUMIFS(O_AC_DCGM_PTS!I8:I6541, O_AC_DCGM_PTS!A8:A6541, A22, O_AC_DCGM_PTS!B8:B6541,C22, O_AC_DCGM_PTS!C8:C6541, B22) -> 0 | K22: =SUMIFS(O_AC_DCGM_PTS!J8:J6541, O_AC_DCGM_PTS!A8:A6541, A22, O_AC_DCGM_PTS!B8:B6541,C22, O_AC_DCGM_PTS!C8:C6541, B22) -> 0 | L22: =SUMIFS(O_AC_DCGM_PTS!K8:K6541, O_AC_DCGM_PTS!A8:A6541, A22, O_AC_DCGM_PTS!B8:B6541,C22, O_AC_DCGM_PTS!C8:C6541, B22) -> 0 | M22: =SUMIFS(O_AC_DCGM_PTS!L8:L6541, O_AC_DCGM_PTS!A8:A6541, A22, O_AC_DCGM_PTS!B8:B6541,C22, O_AC_DCGM_PTS!C8:C6541, B22) -> 0 | N22: =SUMIFS(O_AC_DCGM_PTS!M8:M6541, O_AC_DCGM_PTS!A8:A6541, A22, O_AC_DCGM_PTS!B8:B6541,C22, O_AC_DCGM_PTS!C8:C6541, B22) -> 0 | O22: =SUMIFS(O_AC_DCGM_PTS!N8:N6541, O_AC_DCGM_PTS!A8:A6541, A22, O_AC_DCGM_PTS!B8:B6541,C22, O_AC_DCGM_PTS!C8:C6541, B22) -> 0 | P22: =SUMIFS(O_AC_DCGM_PTS!O8:O6541, O_AC_DCGM_PTS!A8:A6541, A22, O_AC_DCGM_PTS!B8:B6541,C22, O_AC_DCGM_PTS!C8:C6541, B22) -> 0 | Q22: =SUMIFS(O_AC_DCGM_PTS!P8:P6541, O_AC_DCGM_PTS!A8:A6541, A22, O_AC_DCGM_PTS!B8:B6541,C22, O_AC_DCGM_PTS!C8:C6541, B22) -> 0 | R22: =SUMIFS(O_AC_DCGM_PTS!Q8:Q6541, O_AC_DCGM_PTS!A8:A6541, A22, O_AC_DCGM_PTS!B8:B6541,C22, O_AC_DCGM_PTS!C8:C6541, B22) -> 0
A23: CI | B23: A8 | C23: RES | D23: R | E23: CI RES A8 | F23: Community Infrastructure | G23: Residential HUEs | H23: Area 8 | I23: =SUMIFS(O_AC_DCGM_PTS!H8:H6541, O_AC_DCGM_PTS!A8:A6541, A23, O_AC_DCGM_PTS!B8:B6541,C23, O_AC_DCGM_PTS!C8:C6541, B23) -> 533 | J23: =SUMIFS(O_AC_DCGM_PTS!I8:I6541, O_AC_DCGM_PTS!A8:A6541, A23, O_AC_DCGM_PTS!B8:B6541,C23, O_AC_DCGM_PTS!C8:C6541, B23) -> 527 | K23: =SUMIFS(O_AC_DCGM_PTS!J8:J6541, O_AC_DCGM_PTS!A8:A6541, A23, O_AC_DCGM_PTS!B8:B6541,C23, O_AC_DCGM_PTS!C8:C6541, B23) -> 527 | L23: =SUMIFS(O_AC_DCGM_PTS!K8:K6541, O_AC_DCGM_PTS!A8:A6541, A23, O_AC_DCGM_PTS!B8:B6541,C23, O_AC_DCGM_PTS!C8:C6541, B23) -> 537 | M23: =SUMIFS(O_AC_DCGM_PTS!L8:L6541, O_AC_DCGM_PTS!A8:A6541, A23, O_AC_DCGM_PTS!B8:B6541,C23, O_AC_DCGM_PTS!C8:C6541, B23) -> 567 | N23: =SUMIFS(O_AC_DCGM_PTS!M8:M6541, O_AC_DCGM_PTS!A8:A6541, A23, O_AC_DCGM_PTS!B8:B6541,C23, O_AC_DCGM_PTS!C8:C6541, B23) -> 582 | O23: =SUMIFS(O_AC_DCGM_PTS!N8:N6541, O_AC_DCGM_PTS!A8:A6541, A23, O_AC_DCGM_PTS!B8:B6541,C23, O_AC_DCGM_PTS!C8:C6541, B23) -> 583 | P23: =SUMIFS(O_AC_DCGM_PTS!O8:O6541, O_AC_DCGM_PTS!A8:A6541, A23, O_AC_DCGM_PTS!B8:B6541,C23, O_AC_DCGM_PTS!C8:C6541, B23) -> 543 | Q23: =SUMIFS(O_AC_DCGM_PTS!P8:P6541, O_AC_DCGM_PTS!A8:A6541, A23, O_AC_DCGM_PTS!B8:B6541,C23, O_AC_DCGM_PTS!C8:C6541, B23) -> 529 | R23: =SUMIFS(O_AC_DCGM_PTS!Q8:Q6541, O_AC_DCGM_PTS!A8:A6541, A23, O_AC_DCGM_PTS!B8:B6541,C23, O_AC_DCGM_PTS!C8:C6541, B23) -> 585
A24: CI | B24: A9 | C24: NRES | D24: N | E24: CI NRES A9 | F24: Community Infrastructure | G24: Non-residential HUEs | H24: Area 9 | I24: =SUMIFS(O_AC_DCGM_PTS!H8:H6541, O_AC_DCGM_PTS!A8:A6541, A24, O_AC_DCGM_PTS!B8:B6541,C24, O_AC_DCGM_PTS!C8:C6541, B24) -> 0 | J24: =SUMIFS(O_AC_DCGM_PTS!I8:I6541, O_AC_DCGM_PTS!A8:A6541, A24, O_AC_DCGM_PTS!B8:B6541,C24, O_AC_DCGM_PTS!C8:C6541, B24) -> 0 | K24: =SUMIFS(O_AC_DCGM_PTS!J8:J6541, O_AC_DCGM_PTS!A8:A6541, A24, O_AC_DCGM_PTS!B8:B6541,C24, O_AC_DCGM_PTS!C8:C6541, B24) -> 0 | L24: =SUMIFS(O_AC_DCGM_PTS!K8:K6541, O_AC_DCGM_PTS!A8:A6541, A24, O_AC_DCGM_PTS!B8:B6541,C24, O_AC_DCGM_PTS!C8:C6541, B24) -> 0 | M24: =SUMIFS(O_AC_DCGM_PTS!L8:L6541, O_AC_DCGM_PTS!A8:A6541, A24, O_AC_DCGM_PTS!B8:B6541,C24, O_AC_DCGM_PTS!C8:C6541, B24) -> 0 | N24: =SUMIFS(O_AC_DCGM_PTS!M8:M6541, O_AC_DCGM_PTS!A8:A6541, A24, O_AC_DCGM_PTS!B8:B6541,C24, O_AC_DCGM_PTS!C8:C6541, B24) -> 0 | O24: =SUMIFS(O_AC_DCGM_PTS!N8:N6541, O_AC_DCGM_PTS!A8:A6541, A24, O_AC_DCGM_PTS!B8:B6541,C24, O_AC_DCGM_PTS!C8:C6541, B24) -> 0 | P24: =SUMIFS(O_AC_DCGM_PTS!O8:O6541, O_AC_DCGM_PTS!A8:A6541, A24, O_AC_DCGM_PTS!B8:B6541,C24, O_AC_DCGM_PTS!C8:C6541, B24) -> 0 | Q24: =SUMIFS(O_AC_DCGM_PTS!P8:P6541, O_AC_DCGM_PTS!A8:A6541, A24, O_AC_DCGM_PTS!B8:B6541,C24, O_AC_DCGM_PTS!C8:C6541, B24) -> 0 | R24: =SUMIFS(O_AC_DCGM_PTS!Q8:Q6541, O_AC_DCGM_PTS!A8:A6541, A24, O_AC_DCGM_PTS!B8:B6541,C24, O_AC_DCGM_PTS!C8:C6541, B24) -> 0
A25: CI | B25: A9 | C25: RES | D25: R | E25: CI RES A9 | F25: Community Infrastructure | G25: Residential HUEs | H25: Area 9 | I25: =SUMIFS(O_AC_DCGM_PTS!H8:H6541, O_AC_DCGM_PTS!A8:A6541, A25, O_AC_DCGM_PTS!B8:B6541,C25, O_AC_DCGM_PTS!C8:C6541, B25) -> 1088 | J25: =SUMIFS(O_AC_DCGM_PTS!I8:I6541, O_AC_DCGM_PTS!A8:A6541, A25, O_AC_DCGM_PTS!B8:B6541,C25, O_AC_DCGM_PTS!C8:C6541, B25) -> 1076 | K25: =SUMIFS(O_AC_DCGM_PTS!J8:J6541, O_AC_DCGM_PTS!A8:A6541, A25, O_AC_DCGM_PTS!B8:B6541,C25, O_AC_DCGM_PTS!C8:C6541, B25) -> 1081 | L25: =SUMIFS(O_AC_DCGM_PTS!K8:K6541, O_AC_DCGM_PTS!A8:A6541, A25, O_AC_DCGM_PTS!B8:B6541,C25, O_AC_DCGM_PTS!C8:C6541, B25) -> 1104 | M25: =SUMIFS(O_AC_DCGM_PTS!L8:L6541, O_AC_DCGM_PTS!A8:A6541, A25, O_AC_DCGM_PTS!B8:B6541,C25, O_AC_DCGM_PTS!C8:C6541, B25) -> 1242 | N25: =SUMIFS(O_AC_DCGM_PTS!M8:M6541, O_AC_DCGM_PTS!A8:A6541, A25, O_AC_DCGM_PTS!B8:B6541,C25, O_AC_DCGM_PTS!C8:C6541, B25) -> 1357 | O25: =SUMIFS(O_AC_DCGM_PTS!N8:N6541, O_AC_DCGM_PTS!A8:A6541, A25, O_AC_DCGM_PTS!B8:B6541,C25, O_AC_DCGM_PTS!C8:C6541, B25) -> 1360 | P25: =SUMIFS(O_AC_DCGM_PTS!O8:O6541, O_AC_DCGM_PTS!A8:A6541, A25, O_AC_DCGM_PTS!B8:B6541,C25, O_AC_DCGM_PTS!C8:C6541, B25) -> 1262 | Q25: =SUMIFS(O_AC_DCGM_PTS!P8:P6541, O_AC_DCGM_PTS!A8:A6541, A25, O_AC_DCGM_PTS!B8:B6541,C25, O_AC_DCGM_PTS!C8:C6541, B25) -> 1231 | R25: =SUMIFS(O_AC_DCGM_PTS!Q8:Q6541, O_AC_DCGM_PTS!A8:A6541, A25, O_AC_DCGM_PTS!B8:B6541,C25, O_AC_DCGM_PTS!C8:C6541, B25) -> 948
A26: CI | B26: A10 | C26: NRES | D26: N | E26: CI NRES A10 | F26: Community Infrastructure | G26: Non-residential HUEs | H26: Area 10 | I26: =SUMIFS(O_AC_DCGM_PTS!H8:H6541, O_AC_DCGM_PTS!A8:A6541, A26, O_AC_DCGM_PTS!B8:B6541,C26, O_AC_DCGM_PTS!C8:C6541, B26) -> 0 | J26: =SUMIFS(O_AC_DCGM_PTS!I8:I6541, O_AC_DCGM_PTS!A8:A6541, A26, O_AC_DCGM_PTS!B8:B6541,C26, O_AC_DCGM_PTS!C8:C6541, B26) -> 0 | K26: =SUMIFS(O_AC_DCGM_PTS!J8:J6541, O_AC_DCGM_PTS!A8:A6541, A26, O_AC_DCGM_PTS!B8:B6541,C26, O_AC_DCGM_PTS!C8:C6541, B26) -> 0 | L26: =SUMIFS(O_AC_DCGM_PTS!K8:K6541, O_AC_DCGM_PTS!A8:A6541, A26, O_AC_DCGM_PTS!B8:B6541,C26, O_AC_DCGM_PTS!C8:C6541, B26) -> 0 | M26: =SUMIFS(O_AC_DCGM_PTS!L8:L6541, O_AC_DCGM_PTS!A8:A6541, A26, O_AC_DCGM_PTS!B8:B6541,C26, O_AC_DCGM_PTS!C8:C6541, B26) -> 0 | N26: =SUMIFS(O_AC_DCGM_PTS!M8:M6541, O_AC_DCGM_PTS!A8:A6541, A26, O_AC_DCGM_PTS!B8:B6541,C26, O_AC_DCGM_PTS!C8:C6541, B26) -> 0 | O26: =SUMIFS(O_AC_DCGM_PTS!N8:N6541, O_AC_DCGM_PTS!A8:A6541, A26, O_AC_DCGM_PTS!B8:B6541,C26, O_AC_DCGM_PTS!C8:C6541, B26) -> 0 | P26: =SUMIFS(O_AC_DCGM_PTS!O8:O6541, O_AC_DCGM_PTS!A8:A6541, A26, O_AC_DCGM_PTS!B8:B6541,C26, O_AC_DCGM_PTS!C8:C6541, B26) -> 0 | Q26: =SUMIFS(O_AC_DCGM_PTS!P8:P6541, O_AC_DCGM_PTS!A8:A6541, A26, O_AC_DCGM_PTS!B8:B6541,C26, O_AC_DCGM_PTS!C8:C6541, B26) -> 0 | R26: =SUMIFS(O_AC_DCGM_PTS!Q8:Q6541, O_AC_DCGM_PTS!A8:A6541, A26, O_AC_DCGM_PTS!B8:B6541,C26, O_AC_DCGM_PTS!C8:C6541, B26) -> 0
A27: CI | B27: A10 | C27: RES | D27: R | E27: CI RES A10 | F27: Community Infrastructure | G27: Residential HUEs | H27: Area 10 | I27: =SUMIFS(O_AC_DCGM_PTS!H8:H6541, O_AC_DCGM_PTS!A8:A6541, A27, O_AC_DCGM_PTS!B8:B6541,C27, O_AC_DCGM_PTS!C8:C6541, B27) -> 210 | J27: =SUMIFS(O_AC_DCGM_PTS!I8:I6541, O_AC_DCGM_PTS!A8:A6541, A27, O_AC_DCGM_PTS!B8:B6541,C27, O_AC_DCGM_PTS!C8:C6541, B27) -> 208 | K27: =SUMIFS(O_AC_DCGM_PTS!J8:J6541, O_AC_DCGM_PTS!A8:A6541, A27, O_AC_DCGM_PTS!B8:B6541,C27, O_AC_DCGM_PTS!C8:C6541, B27) -> 209 | L27: =SUMIFS(O_AC_DCGM_PTS!K8:K6541, O_AC_DCGM_PTS!A8:A6541, A27, O_AC_DCGM_PTS!B8:B6541,C27, O_AC_DCGM_PTS!C8:C6541, B27) -> 214 | M27: =SUMIFS(O_AC_DCGM_PTS!L8:L6541, O_AC_DCGM_PTS!A8:A6541, A27, O_AC_DCGM_PTS!B8:B6541,C27, O_AC_DCGM_PTS!C8:C6541, B27) -> 222 | N27: =SUMIFS(O_AC_DCGM_PTS!M8:M6541, O_AC_DCGM_PTS!A8:A6541, A27, O_AC_DCGM_PTS!B8:B6541,C27, O_AC_DCGM_PTS!C8:C6541, B27) -> 222 | O27: =SUMIFS(O_AC_DCGM_PTS!N8:N6541, O_AC_DCGM_PTS!A8:A6541, A27, O_AC_DCGM_PTS!B8:B6541,C27, O_AC_DCGM_PTS!C8:C6541, B27) -> 222 | P27: =SUMIFS(O_AC_DCGM_PTS!O8:O6541, O_AC_DCGM_PTS!A8:A6541, A27, O_AC_DCGM_PTS!B8:B6541,C27, O_AC_DCGM_PTS!C8:C6541, B27) -> 206 | Q27: =SUMIFS(O_AC_DCGM_PTS!P8:P6541, O_AC_DCGM_PTS!A8:A6541, A27, O_AC_DCGM_PTS!B8:B6541,C27, O_AC_DCGM_PTS!C8:C6541, B27) -> 201 | R27: =SUMIFS(O_AC_DCGM_PTS!Q8:Q6541, O_AC_DCGM_PTS!A8:A6541, A27, O_AC_DCGM_PTS!B8:B6541,C27, O_AC_DCGM_PTS!C8:C6541, B27) -> 183
A28: CI | B28: A11 | C28: NRES | D28: N | E28: CI NRES A11 | F28: Community Infrastructure | G28: Non-residential HUEs | H28: Area 11 | I28: =SUMIFS(O_AC_DCGM_PTS!H8:H6541, O_AC_DCGM_PTS!A8:A6541, A28, O_AC_DCGM_PTS!B8:B6541,C28, O_AC_DCGM_PTS!C8:C6541, B28) -> 0 | J28: =SUMIFS(O_AC_DCGM_PTS!I8:I6541, O_AC_DCGM_PTS!A8:A6541, A28, O_AC_DCGM_PTS!B8:B6541,C28, O_AC_DCGM_PTS!C8:C6541, B28) -> 0 | K28: =SUMIFS(O_AC_DCGM_PTS!J8:J6541, O_AC_DCGM_PTS!A8:A6541, A28, O_AC_DCGM_PTS!B8:B6541,C28, O_AC_DCGM_PTS!C8:C6541, B28) -> 0 | L28: =SUMIFS(O_AC_DCGM_PTS!K8:K6541, O_AC_DCGM_PTS!A8:A6541, A28, O_AC_DCGM_PTS!B8:B6541,C28, O_AC_DCGM_PTS!C8:C6541, B28) -> 0 | M28: =SUMIFS(O_AC_DCGM_PTS!L8:L6541, O_AC_DCGM_PTS!A8:A6541, A28, O_AC_DCGM_PTS!B8:B6541,C28, O_AC_DCGM_PTS!C8:C6541, B28) -> 0 | N28: =SUMIFS(O_AC_DCGM_PTS!M8:M6541, O_AC_DCGM_PTS!A8:A6541, A28, O_AC_DCGM_PTS!B8:B6541,C28, O_AC_DCGM_PTS!C8:C6541, B28) -> 0 | O28: =SUMIFS(O_AC_DCGM_PTS!N8:N6541, O_AC_DCGM_PTS!A8:A6541, A28, O_AC_DCGM_PTS!B8:B6541,C28, O_AC_DCGM_PTS!C8:C6541, B28) -> 0 | P28: =SUMIFS(O_AC_DCGM_PTS!O8:O6541, O_AC_DCGM_PTS!A8:A6541, A28, O_AC_DCGM_PTS!B8:B6541,C28, O_AC_DCGM_PTS!C8:C6541, B28) -> 0 | Q28: =SUMIFS(O_AC_DCGM_PTS!P8:P6541, O_AC_DCGM_PTS!A8:A6541, A28, O_AC_DCGM_PTS!B8:B6541,C28, O_AC_DCGM_PTS!C8:C6541, B28) -> 0 | R28: =SUMIFS(O_AC_DCGM_PTS!Q8:Q6541, O_AC_DCGM_PTS!A8:A6541, A28, O_AC_DCGM_PTS!B8:B6541,C28, O_AC_DCGM_PTS!C8:C6541, B28) -> 0
A29: CI | B29: A11 | C29: RES | D29: R | E29: CI RES A11 | F29: Community Infrastructure | G29: Residential HUEs | H29: Area 11 | I29: =SUMIFS(O_AC_DCGM_PTS!H8:H6541, O_AC_DCGM_PTS!A8:A6541, A29, O_AC_DCGM_PTS!B8:B6541,C29, O_AC_DCGM_PTS!C8:C6541, B29) -> 70 | J29: =SUMIFS(O_AC_DCGM_PTS!I8:I6541, O_AC_DCGM_PTS!A8:A6541, A29, O_AC_DCGM_PTS!B8:B6541,C29, O_AC_DCGM_PTS!C8:C6541, B29) -> 69 | K29: =SUMIFS(O_AC_DCGM_PTS!J8:J6541, O_AC_DCGM_PTS!A8:A6541, A29, O_AC_DCGM_PTS!B8:B6541,C29, O_AC_DCGM_PTS!C8:C6541, B29) -> 69 | L29: =SUMIFS(O_AC_DCGM_PTS!K8:K6541, O_AC_DCGM_PTS!A8:A6541, A29, O_AC_DCGM_PTS!B8:B6541,C29, O_AC_DCGM_PTS!C8:C6541, B29) -> 70 | M29: =SUMIFS(O_AC_DCGM_PTS!L8:L6541, O_AC_DCGM_PTS!A8:A6541, A29, O_AC_DCGM_PTS!B8:B6541,C29, O_AC_DCGM_PTS!C8:C6541, B29) -> 72 | N29: =SUMIFS(O_AC_DCGM_PTS!M8:M6541, O_AC_DCGM_PTS!A8:A6541, A29, O_AC_DCGM_PTS!B8:B6541,C29, O_AC_DCGM_PTS!C8:C6541, B29) -> 74 | O29: =SUMIFS(O_AC_DCGM_PTS!N8:N6541, O_AC_DCGM_PTS!A8:A6541, A29, O_AC_DCGM_PTS!B8:B6541,C29, O_AC_DCGM_PTS!C8:C6541, B29) -> 75 | P29: =SUMIFS(O_AC_DCGM_PTS!O8:O6541, O_AC_DCGM_PTS!A8:A6541, A29, O_AC_DCGM_PTS!B8:B6541,C29, O_AC_DCGM_PTS!C8:C6541, B29) -> 71 | Q29: =SUMIFS(O_AC_DCGM_PTS!P8:P6541, O_AC_DCGM_PTS!A8:A6541, A29, O_AC_DCGM_PTS!B8:B6541,C29, O_AC_DCGM_PTS!C8:C6541, B29) -> 69 | R29: =SUMIFS(O_AC_DCGM_PTS!Q8:Q6541, O_AC_DCGM_PTS!A8:A6541, A29, O_AC_DCGM_PTS!B8:B6541,C29, O_AC_DCGM_PTS!C8:C6541, B29) -> 69
A30: CI | B30: A12 | C30: NRES | D30: N | E30: CI NRES A12 | F30: Community Infrastructure | G30: Non-residential HUEs | H30: Area 12 | I30: =SUMIFS(O_AC_DCGM_PTS!H8:H6541, O_AC_DCGM_PTS!A8:A6541, A30, O_AC_DCGM_PTS!B8:B6541,C30, O_AC_DCGM_PTS!C8:C6541, B30) -> 0 | J30: =SUMIFS(O_AC_DCGM_PTS!I8:I6541, O_AC_DCGM_PTS!A8:A6541, A30, O_AC_DCGM_PTS!B8:B6541,C30, O_AC_DCGM_PTS!C8:C6541, B30) -> 0 | K30: =SUMIFS(O_AC_DCGM_PTS!J8:J6541, O_AC_DCGM_PTS!A8:A6541, A30, O_AC_DCGM_PTS!B8:B6541,C30, O_AC_DCGM_PTS!C8:C6541, B30) -> 0 | L30: =SUMIFS(O_AC_DCGM_PTS!K8:K6541, O_AC_DCGM_PTS!A8:A6541, A30, O_AC_DCGM_PTS!B8:B6541,C30, O_AC_DCGM_PTS!C8:C6541, B30) -> 0 | M30: =SUMIFS(O_AC_DCGM_PTS!L8:L6541, O_AC_DCGM_PTS!A8:A6541, A30, O_AC_DCGM_PTS!B8:B6541,C30, O_AC_DCGM_PTS!C8:C6541, B30) -> 0 | N30: =SUMIFS(O_AC_DCGM_PTS!M8:M6541, O_AC_DCGM_PTS!A8:A6541, A30, O_AC_DCGM_PTS!B8:B6541,C30, O_AC_DCGM_PTS!C8:C6541, B30) -> 0 | O30: =SUMIFS(O_AC_DCGM_PTS!N8:N6541, O_AC_DCGM_PTS!A8:A6541, A30, O_AC_DCGM_PTS!B8:B6541,C30, O_AC_DCGM_PTS!C8:C6541, B30) -> 0 | P30: =SUMIFS(O_AC_DCGM_PTS!O8:O6541, O_AC_DCGM_PTS!A8:A6541, A30, O_AC_DCGM_PTS!B8:B6541,C30, O_AC_DCGM_PTS!C8:C6541, B30) -> 0 | Q30: =SUMIFS(O_AC_DCGM_PTS!P8:P6541, O_AC_DCGM_PTS!A8:A6541, A30, O_AC_DCGM_PTS!B8:B6541,C30, O_AC_DCGM_PTS!C8:C6541, B30) -> 0 | R30: =SUMIFS(O_AC_DCGM_PTS!Q8:Q6541, O_AC_DCGM_PTS!A8:A6541, A30, O_AC_DCGM_PTS!B8:B6541,C30, O_AC_DCGM_PTS!C8:C6541, B30) -> 0
A31: CI | B31: A12 | C31: RES | D31: R | E31: CI RES A12 | F31: Community Infrastructure | G31: Residential HUEs | H31: Area 12 | I31: =SUMIFS(O_AC_DCGM_PTS!H8:H6541, O_AC_DCGM_PTS!A8:A6541, A31, O_AC_DCGM_PTS!B8:B6541,C31, O_AC_DCGM_PTS!C8:C6541, B31) -> 121 | J31: =SUMIFS(O_AC_DCGM_PTS!I8:I6541, O_AC_DCGM_PTS!A8:A6541, A31, O_AC_DCGM_PTS!B8:B6541,C31, O_AC_DCGM_PTS!C8:C6541, B31) -> 155 | K31: =SUMIFS(O_AC_DCGM_PTS!J8:J6541, O_AC_DCGM_PTS!A8:A6541, A31, O_AC_DCGM_PTS!B8:B6541,C31, O_AC_DCGM_PTS!C8:C6541, B31) -> 185 | L31: =SUMIFS(O_AC_DCGM_PTS!K8:K6541, O_AC_DCGM_PTS!A8:A6541, A31, O_AC_DCGM_PTS!B8:B6541,C31, O_AC_DCGM_PTS!C8:C6541, B31) -> 205 | M31: =SUMIFS(O_AC_DCGM_PTS!L8:L6541, O_AC_DCGM_PTS!A8:A6541, A31, O_AC_DCGM_PTS!B8:B6541,C31, O_AC_DCGM_PTS!C8:C6541, B31) -> 237 | N31: =SUMIFS(O_AC_DCGM_PTS!M8:M6541, O_AC_DCGM_PTS!A8:A6541, A31, O_AC_DCGM_PTS!B8:B6541,C31, O_AC_DCGM_PTS!C8:C6541, B31) -> 313 | O31: =SUMIFS(O_AC_DCGM_PTS!N8:N6541, O_AC_DCGM_PTS!A8:A6541, A31, O_AC_DCGM_PTS!B8:B6541,C31, O_AC_DCGM_PTS!C8:C6541, B31) -> 361 | P31: =SUMIFS(O_AC_DCGM_PTS!O8:O6541, O_AC_DCGM_PTS!A8:A6541, A31, O_AC_DCGM_PTS!B8:B6541,C31, O_AC_DCGM_PTS!C8:C6541, B31) -> 345 | Q31: =SUMIFS(O_AC_DCGM_PTS!P8:P6541, O_AC_DCGM_PTS!A8:A6541, A31, O_AC_DCGM_PTS!B8:B6541,C31, O_AC_DCGM_PTS!C8:C6541, B31) -> 335 | R31: =SUMIFS(O_AC_DCGM_PTS!Q8:Q6541, O_AC_DCGM_PTS!A8:A6541, A31, O_AC_DCGM_PTS!B8:B6541,C31, O_AC_DCGM_PTS!C8:C6541, B31) -> 398
A32: CI | B32: A13 | C32: NRES | D32: N | E32: CI NRES A13 | F32: Community Infrastructure | G32: Non-residential HUEs | H32: Area 13 | I32: =SUMIFS(O_AC_DCGM_PTS!H8:H6541, O_AC_DCGM_PTS!A8:A6541, A32, O_AC_DCGM_PTS!B8:B6541,C32, O_AC_DCGM_PTS!C8:C6541, B32) -> 0 | J32: =SUMIFS(O_AC_DCGM_PTS!I8:I6541, O_AC_DCGM_PTS!A8:A6541, A32, O_AC_DCGM_PTS!B8:B6541,C32, O_AC_DCGM_PTS!C8:C6541, B32) -> 0 | K32: =SUMIFS(O_AC_DCGM_PTS!J8:J6541, O_AC_DCGM_PTS!A8:A6541, A32, O_AC_DCGM_PTS!B8:B6541,C32, O_AC_DCGM_PTS!C8:C6541, B32) -> 0 | L32: =SUMIFS(O_AC_DCGM_PTS!K8:K6541, O_AC_DCGM_PTS!A8:A6541, A32, O_AC_DCGM_PTS!B8:B6541,C32, O_AC_DCGM_PTS!C8:C6541, B32) -> 0 | M32: =SUMIFS(O_AC_DCGM_PTS!L8:L6541, O_AC_DCGM_PTS!A8:A6541, A32, O_AC_DCGM_PTS!B8:B6541,C32, O_AC_DCGM_PTS!C8:C6541, B32) -> 0 | N32: =SUMIFS(O_AC_DCGM_PTS!M8:M6541, O_AC_DCGM_PTS!A8:A6541, A32, O_AC_DCGM_PTS!B8:B6541,C32, O_AC_DCGM_PTS!C8:C6541, B32) -> 0 | O32: =SUMIFS(O_AC_DCGM_PTS!N8:N6541, O_AC_DCGM_PTS!A8:A6541, A32, O_AC_DCGM_PTS!B8:B6541,C32, O_AC_DCGM_PTS!C8:C6541, B32) -> 0 | P32: =SUMIFS(O_AC_DCGM_PTS!O8:O6541, O_AC_DCGM_PTS!A8:A6541, A32, O_AC_DCGM_PTS!B8:B6541,C32, O_AC_DCGM_PTS!C8:C6541, B32) -> 0 | Q32: =SUMIFS(O_AC_DCGM_PTS!P8:P6541, O_AC_DCGM_PTS!A8:A6541, A32, O_AC_DCGM_PTS!B8:B6541,C32, O_AC_DCGM_PTS!C8:C6541, B32) -> 0 | R32: =SUMIFS(O_AC_DCGM_PTS!Q8:Q6541, O_AC_DCGM_PTS!A8:A6541, A32, O_AC_DCGM_PTS!B8:B6541,C32, O_AC_DCGM_PTS!C8:C6541, B32) -> 0
A33: CI | B33: A13 | C33: RES | D33: R | E33: CI RES A13 | F33: Community Infrastructure | G33: Residential HUEs | H33: Area 13 | I33: =SUMIFS(O_AC_DCGM_PTS!H8:H6541, O_AC_DCGM_PTS!A8:A6541, A33, O_AC_DCGM_PTS!B8:B6541,C33, O_AC_DCGM_PTS!C8:C6541, B33) -> 260 | J33: =SUMIFS(O_AC_DCGM_PTS!I8:I6541, O_AC_DCGM_PTS!A8:A6541, A33, O_AC_DCGM_PTS!B8:B6541,C33, O_AC_DCGM_PTS!C8:C6541, B33) -> 254 | K33: =SUMIFS(O_AC_DCGM_PTS!J8:J6541, O_AC_DCGM_PTS!A8:A6541, A33, O_AC_DCGM_PTS!B8:B6541,C33, O_AC_DCGM_PTS!C8:C6541, B33) -> 254 | L33: =SUMIFS(O_AC_DCGM_PTS!K8:K6541, O_AC_DCGM_PTS!A8:A6541, A33, O_AC_DCGM_PTS!B8:B6541,C33, O_AC_DCGM_PTS!C8:C6541, B33) -> 261 | M33: =SUMIFS(O_AC_DCGM_PTS!L8:L6541, O_AC_DCGM_PTS!A8:A6541, A33, O_AC_DCGM_PTS!B8:B6541,C33, O_AC_DCGM_PTS!C8:C6541, B33) -> 280 | N33: =SUMIFS(O_AC_DCGM_PTS!M8:M6541, O_AC_DCGM_PTS!A8:A6541, A33, O_AC_DCGM_PTS!B8:B6541,C33, O_AC_DCGM_PTS!C8:C6541, B33) -> 294 | O33: =SUMIFS(O_AC_DCGM_PTS!N8:N6541, O_AC_DCGM_PTS!A8:A6541, A33, O_AC_DCGM_PTS!B8:B6541,C33, O_AC_DCGM_PTS!C8:C6541, B33) -> 294 | P33: =SUMIFS(O_AC_DCGM_PTS!O8:O6541, O_AC_DCGM_PTS!A8:A6541, A33, O_AC_DCGM_PTS!B8:B6541,C33, O_AC_DCGM_PTS!C8:C6541, B33) -> 272 | Q33: =SUMIFS(O_AC_DCGM_PTS!P8:P6541, O_AC_DCGM_PTS!A8:A6541, A33, O_AC_DCGM_PTS!B8:B6541,C33, O_AC_DCGM_PTS!C8:C6541, B33) -> 266 | R33: =SUMIFS(O_AC_DCGM_PTS!Q8:Q6541, O_AC_DCGM_PTS!A8:A6541, A33, O_AC_DCGM_PTS!B8:B6541,C33, O_AC_DCGM_PTS!C8:C6541, B33) -> 143
A34: CI | B34: A14 | C34: NRES | D34: N | E34: CI NRES A14 | F34: Community Infrastructure | G34: Non-residential HUEs | H34: Area 14 | I34: =SUMIFS(O_AC_DCGM_PTS!H8:H6541, O_AC_DCGM_PTS!A8:A6541, A34, O_AC_DCGM_PTS!B8:B6541,C34, O_AC_DCGM_PTS!C8:C6541, B34) -> 0 | J34: =SUMIFS(O_AC_DCGM_PTS!I8:I6541, O_AC_DCGM_PTS!A8:A6541, A34, O_AC_DCGM_PTS!B8:B6541,C34, O_AC_DCGM_PTS!C8:C6541, B34) -> 0 | K34: =SUMIFS(O_AC_DCGM_PTS!J8:J6541, O_AC_DCGM_PTS!A8:A6541, A34, O_AC_DCGM_PTS!B8:B6541,C34, O_AC_DCGM_PTS!C8:C6541, B34) -> 0 | L34: =SUMIFS(O_AC_DCGM_PTS!K8:K6541, O_AC_DCGM_PTS!A8:A6541, A34, O_AC_DCGM_PTS!B8:B6541,C34, O_AC_DCGM_PTS!C8:C6541, B34) -> 0 | M34: =SUMIFS(O_AC_DCGM_PTS!L8:L6541, O_AC_DCGM_PTS!A8:A6541, A34, O_AC_DCGM_PTS!B8:B6541,C34, O_AC_DCGM_PTS!C8:C6541, B34) -> 0 | N34: =SUMIFS(O_AC_DCGM_PTS!M8:M6541, O_AC_DCGM_PTS!A8:A6541, A34, O_AC_DCGM_PTS!B8:B6541,C34, O_AC_DCGM_PTS!C8:C6541, B34) -> 0 | O34: =SUMIFS(O_AC_DCGM_PTS!N8:N6541, O_AC_DCGM_PTS!A8:A6541, A34, O_AC_DCGM_PTS!B8:B6541,C34, O_AC_DCGM_PTS!C8:C6541, B34) -> 0 | P34: =SUMIFS(O_AC_DCGM_PTS!O8:O6541, O_AC_DCGM_PTS!A8:A6541, A34, O_AC_DCGM_PTS!B8:B6541,C34, O_AC_DCGM_PTS!C8:C6541, B34) -> 0 | Q34: =SUMIFS(O_AC_DCGM_PTS!P8:P6541, O_AC_DCGM_PTS!A8:A6541, A34, O_AC_DCGM_PTS!B8:B6541,C34, O_AC_DCGM_PTS!C8:C6541, B34) -> 0 | R34: =SUMIFS(O_AC_DCGM_PTS!Q8:Q6541, O_AC_DCGM_PTS!A8:A6541, A34, O_AC_DCGM_PTS!B8:B6541,C34, O_AC_DCGM_PTS!C8:C6541, B34) -> 0
A35: CI | B35: A14 | C35: RES | D35: R | E35: CI RES A14 | F35: Community Infrastructure | G35: Residential HUEs | H35: Area 14 | I35: =SUMIFS(O_AC_DCGM_PTS!H8:H6541, O_AC_DCGM_PTS!A8:A6541, A35, O_AC_DCGM_PTS!B8:B6541,C35, O_AC_DCGM_PTS!C8:C6541, B35) -> 414 | J35: =SUMIFS(O_AC_DCGM_PTS!I8:I6541, O_AC_DCGM_PTS!A8:A6541, A35, O_AC_DCGM_PTS!B8:B6541,C35, O_AC_DCGM_PTS!C8:C6541, B35) -> 411 | K35: =SUMIFS(O_AC_DCGM_PTS!J8:J6541, O_AC_DCGM_PTS!A8:A6541, A35, O_AC_DCGM_PTS!B8:B6541,C35, O_AC_DCGM_PTS!C8:C6541, B35) -> 413 | L35: =SUMIFS(O_AC_DCGM_PTS!K8:K6541, O_AC_DCGM_PTS!A8:A6541, A35, O_AC_DCGM_PTS!B8:B6541,C35, O_AC_DCGM_PTS!C8:C6541, B35) -> 422 | M35: =SUMIFS(O_AC_DCGM_PTS!L8:L6541, O_AC_DCGM_PTS!A8:A6541, A35, O_AC_DCGM_PTS!B8:B6541,C35, O_AC_DCGM_PTS!C8:C6541, B35) -> 511 | N35: =SUMIFS(O_AC_DCGM_PTS!M8:M6541, O_AC_DCGM_PTS!A8:A6541, A35, O_AC_DCGM_PTS!B8:B6541,C35, O_AC_DCGM_PTS!C8:C6541, B35) -> 589 | O35: =SUMIFS(O_AC_DCGM_PTS!N8:N6541, O_AC_DCGM_PTS!A8:A6541, A35, O_AC_DCGM_PTS!B8:B6541,C35, O_AC_DCGM_PTS!C8:C6541, B35) -> 590 | P35: =SUMIFS(O_AC_DCGM_PTS!O8:O6541, O_AC_DCGM_PTS!A8:A6541, A35, O_AC_DCGM_PTS!B8:B6541,C35, O_AC_DCGM_PTS!C8:C6541, B35) -> 548 | Q35: =SUMIFS(O_AC_DCGM_PTS!P8:P6541, O_AC_DCGM_PTS!A8:A6541, A35, O_AC_DCGM_PTS!B8:B6541,C35, O_AC_DCGM_PTS!C8:C6541, B35) -> 534 | R35: =SUMIFS(O_AC_DCGM_PTS!Q8:Q6541, O_AC_DCGM_PTS!A8:A6541, A35, O_AC_DCGM_PTS!B8:B6541,C35, O_AC_DCGM_PTS!C8:C6541, B35) -> 423
A36: CI | B36: A15 | C36: NRES | D36: N | E36: CI NRES A15 | F36: Community Infrastructure | G36: Non-residential HUEs | H36: Area 15 | I36: =SUMIFS(O_AC_DCGM_PTS!H8:H6541, O_AC_DCGM_PTS!A8:A6541, A36, O_AC_DCGM_PTS!B8:B6541,C36, O_AC_DCGM_PTS!C8:C6541, B36) -> 0 | J36: =SUMIFS(O_AC_DCGM_PTS!I8:I6541, O_AC_DCGM_PTS!A8:A6541, A36, O_AC_DCGM_PTS!B8:B6541,C36, O_AC_DCGM_PTS!C8:C6541, B36) -> 0 | K36: =SUMIFS(O_AC_DCGM_PTS!J8:J6541, O_AC_DCGM_PTS!A8:A6541, A36, O_AC_DCGM_PTS!B8:B6541,C36, O_AC_DCGM_PTS!C8:C6541, B36) -> 0 | L36: =SUMIFS(O_AC_DCGM_PTS!K8:K6541, O_AC_DCGM_PTS!A8:A6541, A36, O_AC_DCGM_PTS!B8:B6541,C36, O_AC_DCGM_PTS!C8:C6541, B36) -> 0 | M36: =SUMIFS(O_AC_DCGM_PTS!L8:L6541, O_AC_DCGM_PTS!A8:A6541, A36, O_AC_DCGM_PTS!B8:B6541,C36, O_AC_DCGM_PTS!C8:C6541, B36) -> 0 | N36: =SUMIFS(O_AC_DCGM_PTS!M8:M6541, O_AC_DCGM_PTS!A8:A6541, A36, O_AC_DCGM_PTS!B8:B6541,C36, O_AC_DCGM_PTS!C8:C6541, B36) -> 0 | O36: =SUMIFS(O_AC_DCGM_PTS!N8:N6541, O_AC_DCGM_PTS!A8:A6541, A36, O_AC_DCGM_PTS!B8:B6541,C36, O_AC_DCGM_PTS!C8:C6541, B36) -> 0 | P36: =SUMIFS(O_AC_DCGM_PTS!O8:O6541, O_AC_DCGM_PTS!A8:A6541, A36, O_AC_DCGM_PTS!B8:B6541,C36, O_AC_DCGM_PTS!C8:C6541, B36) -> 0 | Q36: =SUMIFS(O_AC_DCGM_PTS!P8:P6541, O_AC_DCGM_PTS!A8:A6541, A36, O_AC_DCGM_PTS!B8:B6541,C36, O_AC_DCGM_PTS!C8:C6541, B36) -> 0 | R36: =SUMIFS(O_AC_DCGM_PTS!Q8:Q6541, O_AC_DCGM_PTS!A8:A6541, A36, O_AC_DCGM_PTS!B8:B6541,C36, O_AC_DCGM_PTS!C8:C6541, B36) -> 0
A37: CI | B37: A15 | C37: RES | D37: R | E37: CI RES A15 | F37: Community Infrastructure | G37: Residential HUEs | H37: Area 15 | I37: =SUMIFS(O_AC_DCGM_PTS!H8:H6541, O_AC_DCGM_PTS!A8:A6541, A37, O_AC_DCGM_PTS!B8:B6541,C37, O_AC_DCGM_PTS!C8:C6541, B37) -> 200 | J37: =SUMIFS(O_AC_DCGM_PTS!I8:I6541, O_AC_DCGM_PTS!A8:A6541, A37, O_AC_DCGM_PTS!B8:B6541,C37, O_AC_DCGM_PTS!C8:C6541, B37) -> 197 | K37: =SUMIFS(O_AC_DCGM_PTS!J8:J6541, O_AC_DCGM_PTS!A8:A6541, A37, O_AC_DCGM_PTS!B8:B6541,C37, O_AC_DCGM_PTS!C8:C6541, B37) -> 197 | L37: =SUMIFS(O_AC_DCGM_PTS!K8:K6541, O_AC_DCGM_PTS!A8:A6541, A37, O_AC_DCGM_PTS!B8:B6541,C37, O_AC_DCGM_PTS!C8:C6541, B37) -> 203 | M37: =SUMIFS(O_AC_DCGM_PTS!L8:L6541, O_AC_DCGM_PTS!A8:A6541, A37, O_AC_DCGM_PTS!B8:B6541,C37, O_AC_DCGM_PTS!C8:C6541, B37) -> 219 | N37: =SUMIFS(O_AC_DCGM_PTS!M8:M6541, O_AC_DCGM_PTS!A8:A6541, A37, O_AC_DCGM_PTS!B8:B6541,C37, O_AC_DCGM_PTS!C8:C6541, B37) -> 229 | O37: =SUMIFS(O_AC_DCGM_PTS!N8:N6541, O_AC_DCGM_PTS!A8:A6541, A37, O_AC_DCGM_PTS!B8:B6541,C37, O_AC_DCGM_PTS!C8:C6541, B37) -> 229 | P37: =SUMIFS(O_AC_DCGM_PTS!O8:O6541, O_AC_DCGM_PTS!A8:A6541, A37, O_AC_DCGM_PTS!B8:B6541,C37, O_AC_DCGM_PTS!C8:C6541, B37) -> 212 | Q37: =SUMIFS(O_AC_DCGM_PTS!P8:P6541, O_AC_DCGM_PTS!A8:A6541, A37, O_AC_DCGM_PTS!B8:B6541,C37, O_AC_DCGM_PTS!C8:C6541, B37) -> 209 | R37: =SUMIFS(O_AC_DCGM_PTS!Q8:Q6541, O_AC_DCGM_PTS!A8:A6541, A37, O_AC_DCGM_PTS!B8:B6541,C37, O_AC_DCGM_PTS!C8:C6541, B37) -> 185
A38: CI | B38: A16 | C38: NRES | D38: N | E38: CI NRES A16 | F38: Community Infrastructure | G38: Non-residential HUEs | H38: Area 16 | I38: =SUMIFS(O_AC_DCGM_PTS!H8:H6541, O_AC_DCGM_PTS!A8:A6541, A38, O_AC_DCGM_PTS!B8:B6541,C38, O_AC_DCGM_PTS!C8:C6541, B38) -> 0 | J38: =SUMIFS(O_AC_DCGM_PTS!I8:I6541, O_AC_DCGM_PTS!A8:A6541, A38, O_AC_DCGM_PTS!B8:B6541,C38, O_AC_DCGM_PTS!C8:C6541, B38) -> 0 | K38: =SUMIFS(O_AC_DCGM_PTS!J8:J6541, O_AC_DCGM_PTS!A8:A6541, A38, O_AC_DCGM_PTS!B8:B6541,C38, O_AC_DCGM_PTS!C8:C6541, B38) -> 0 | L38: =SUMIFS(O_AC_DCGM_PTS!K8:K6541, O_AC_DCGM_PTS!A8:A6541, A38, O_AC_DCGM_PTS!B8:B6541,C38, O_AC_DCGM_PTS!C8:C6541, B38) -> 0 | M38: =SUMIFS(O_AC_DCGM_PTS!L8:L6541, O_AC_DCGM_PTS!A8:A6541, A38, O_AC_DCGM_PTS!B8:B6541,C38, O_AC_DCGM_PTS!C8:C6541, B38) -> 0 | N38: =SUMIFS(O_AC_DCGM_PTS!M8:M6541, O_AC_DCGM_PTS!A8:A6541, A38, O_AC_DCGM_PTS!B8:B6541,C38, O_AC_DCGM_PTS!C8:C6541, B38) -> 0 | O38: =SUMIFS(O_AC_DCGM_PTS!N8:N6541, O_AC_DCGM_PTS!A8:A6541, A38, O_AC_DCGM_PTS!B8:B6541,C38, O_AC_DCGM_PTS!C8:C6541, B38) -> 0 | P38: =SUMIFS(O_AC_DCGM_PTS!O8:O6541, O_AC_DCGM_PTS!A8:A6541, A38, O_AC_DCGM_PTS!B8:B6541,C38, O_AC_DCGM_PTS!C8:C6541, B38) -> 0 | Q38: =SUMIFS(O_AC_DCGM_PTS!P8:P6541, O_AC_DCGM_PTS!A8:A6541, A38, O_AC_DCGM_PTS!B8:B6541,C38, O_AC_DCGM_PTS!C8:C6541, B38) -> 0 | R38: =SUMIFS(O_AC_DCGM_PTS!Q8:Q6541, O_AC_DCGM_PTS!A8:A6541, A38, O_AC_DCGM_PTS!B8:B6541,C38, O_AC_DCGM_PTS!C8:C6541, B38) -> 0
A39: CI | B39: A16 | C39: RES | D39: R | E39: CI RES A16 | F39: Community Infrastructure | G39: Residential HUEs | H39: Area 16 | I39: =SUMIFS(O_AC_DCGM_PTS!H8:H6541, O_AC_DCGM_PTS!A8:A6541, A39, O_AC_DCGM_PTS!B8:B6541,C39, O_AC_DCGM_PTS!C8:C6541, B39) -> 549 | J39: =SUMIFS(O_AC_DCGM_PTS!I8:I6541, O_AC_DCGM_PTS!A8:A6541, A39, O_AC_DCGM_PTS!B8:B6541,C39, O_AC_DCGM_PTS!C8:C6541, B39) -> 543 | K39: =SUMIFS(O_AC_DCGM_PTS!J8:J6541, O_AC_DCGM_PTS!A8:A6541, A39, O_AC_DCGM_PTS!B8:B6541,C39, O_AC_DCGM_PTS!C8:C6541, B39) -> 548 | L39: =SUMIFS(O_AC_DCGM_PTS!K8:K6541, O_AC_DCGM_PTS!A8:A6541, A39, O_AC_DCGM_PTS!B8:B6541,C39, O_AC_DCGM_PTS!C8:C6541, B39) -> 559 | M39: =SUMIFS(O_AC_DCGM_PTS!L8:L6541, O_AC_DCGM_PTS!A8:A6541, A39, O_AC_DCGM_PTS!B8:B6541,C39, O_AC_DCGM_PTS!C8:C6541, B39) -> 615 | N39: =SUMIFS(O_AC_DCGM_PTS!M8:M6541, O_AC_DCGM_PTS!A8:A6541, A39, O_AC_DCGM_PTS!B8:B6541,C39, O_AC_DCGM_PTS!C8:C6541, B39) -> 658 | O39: =SUMIFS(O_AC_DCGM_PTS!N8:N6541, O_AC_DCGM_PTS!A8:A6541, A39, O_AC_DCGM_PTS!B8:B6541,C39, O_AC_DCGM_PTS!C8:C6541, B39) -> 659 | P39: =SUMIFS(O_AC_DCGM_PTS!O8:O6541, O_AC_DCGM_PTS!A8:A6541, A39, O_AC_DCGM_PTS!B8:B6541,C39, O_AC_DCGM_PTS!C8:C6541, B39) -> 614 | Q39: =SUMIFS(O_AC_DCGM_PTS!P8:P6541, O_AC_DCGM_PTS!A8:A6541, A39, O_AC_DCGM_PTS!B8:B6541,C39, O_AC_DCGM_PTS!C8:C6541, B39) -> 601 | R39: =SUMIFS(O_AC_DCGM_PTS!Q8:Q6541, O_AC_DCGM_PTS!A8:A6541, A39, O_AC_DCGM_PTS!B8:B6541,C39, O_AC_DCGM_PTS!C8:C6541, B39) -> 519
A40: CI | B40: A17 | C40: NRES | D40: N | E40: CI NRES A17 | F40: Community Infrastructure | G40: Non-residential HUEs | H40: Area 17 | I40: =SUMIFS(O_AC_DCGM_PTS!H8:H6541, O_AC_DCGM_PTS!A8:A6541, A40, O_AC_DCGM_PTS!B8:B6541,C40, O_AC_DCGM_PTS!C8:C6541, B40) -> 0 | J40: =SUMIFS(O_AC_DCGM_PTS!I8:I6541, O_AC_DCGM_PTS!A8:A6541, A40, O_AC_DCGM_PTS!B8:B6541,C40, O_AC_DCGM_PTS!C8:C6541, B40) -> 0 | K40: =SUMIFS(O_AC_DCGM_PTS!J8:J6541, O_AC_DCGM_PTS!A8:A6541, A40, O_AC_DCGM_PTS!B8:B6541,C40, O_AC_DCGM_PTS!C8:C6541, B40) -> 0 | L40: =SUMIFS(O_AC_DCGM_PTS!K8:K6541, O_AC_DCGM_PTS!A8:A6541, A40, O_AC_DCGM_PTS!B8:B6541,C40, O_AC_DCGM_PTS!C8:C6541, B40) -> 0 | M40: =SUMIFS(O_AC_DCGM_PTS!L8:L6541, O_AC_DCGM_PTS!A8:A6541, A40, O_AC_DCGM_PTS!B8:B6541,C40, O_AC_DCGM_PTS!C8:C6541, B40) -> 0 | N40: =SUMIFS(O_AC_DCGM_PTS!M8:M6541, O_AC_DCGM_PTS!A8:A6541, A40, O_AC_DCGM_PTS!B8:B6541,C40, O_AC_DCGM_PTS!C8:C6541, B40) -> 0 | O40: =SUMIFS(O_AC_DCGM_PTS!N8:N6541, O_AC_DCGM_PTS!A8:A6541, A40, O_AC_DCGM_PTS!B8:B6541,C40, O_AC_DCGM_PTS!C8:C6541, B40) -> 0 | P40: =SUMIFS(O_AC_DCGM_PTS!O8:O6541, O_AC_DCGM_PTS!A8:A6541, A40, O_AC_DCGM_PTS!B8:B6541,C40, O_AC_DCGM_PTS!C8:C6541, B40) -> 0 | Q40: =SUMIFS(O_AC_DCGM_PTS!P8:P6541, O_AC_DCGM_PTS!A8:A6541, A40, O_AC_DCGM_PTS!B8:B6541,C40, O_AC_DCGM_PTS!C8:C6541, B40) -> 0 | R40: =SUMIFS(O_AC_DCGM_PTS!Q8:Q6541, O_AC_DCGM_PTS!A8:A6541, A40, O_AC_DCGM_PTS!B8:B6541,C40, O_AC_DCGM_PTS!C8:C6541, B40) -> 0
A41: CI | B41: A17 | C41: RES | D41: R | E41: CI RES A17 | F41: Community Infrastructure | G41: Residential HUEs | H41: Area 17 | I41: =SUMIFS(O_AC_DCGM_PTS!H8:H6541, O_AC_DCGM_PTS!A8:A6541, A41, O_AC_DCGM_PTS!B8:B6541,C41, O_AC_DCGM_PTS!C8:C6541, B41) -> 710 | J41: =SUMIFS(O_AC_DCGM_PTS!I8:I6541, O_AC_DCGM_PTS!A8:A6541, A41, O_AC_DCGM_PTS!B8:B6541,C41, O_AC_DCGM_PTS!C8:C6541, B41) -> 702 | K41: =SUMIFS(O_AC_DCGM_PTS!J8:J6541, O_AC_DCGM_PTS!A8:A6541, A41, O_AC_DCGM_PTS!B8:B6541,C41, O_AC_DCGM_PTS!C8:C6541, B41) -> 703 | L41: =SUMIFS(O_AC_DCGM_PTS!K8:K6541, O_AC_DCGM_PTS!A8:A6541, A41, O_AC_DCGM_PTS!B8:B6541,C41, O_AC_DCGM_PTS!C8:C6541, B41) -> 720 | M41: =SUMIFS(O_AC_DCGM_PTS!L8:L6541, O_AC_DCGM_PTS!A8:A6541, A41, O_AC_DCGM_PTS!B8:B6541,C41, O_AC_DCGM_PTS!C8:C6541, B41) -> 719 | N41: =SUMIFS(O_AC_DCGM_PTS!M8:M6541, O_AC_DCGM_PTS!A8:A6541, A41, O_AC_DCGM_PTS!B8:B6541,C41, O_AC_DCGM_PTS!C8:C6541, B41) -> 696 | O41: =SUMIFS(O_AC_DCGM_PTS!N8:N6541, O_AC_DCGM_PTS!A8:A6541, A41, O_AC_DCGM_PTS!B8:B6541,C41, O_AC_DCGM_PTS!C8:C6541, B41) -> 697 | P41: =SUMIFS(O_AC_DCGM_PTS!O8:O6541, O_AC_DCGM_PTS!A8:A6541, A41, O_AC_DCGM_PTS!B8:B6541,C41, O_AC_DCGM_PTS!C8:C6541, B41) -> 647 | Q41: =SUMIFS(O_AC_DCGM_PTS!P8:P6541, O_AC_DCGM_PTS!A8:A6541, A41, O_AC_DCGM_PTS!B8:B6541,C41, O_AC_DCGM_PTS!C8:C6541, B41) -> 630 | R41: =SUMIFS(O_AC_DCGM_PTS!Q8:Q6541, O_AC_DCGM_PTS!A8:A6541, A41, O_AC_DCGM_PTS!B8:B6541,C41, O_AC_DCGM_PTS!C8:C6541, B41) -> 533
A42: CI | B42: A18 | C42: NRES | D42: N | E42: CI NRES A18 | F42: Community Infrastructure | G42: Non-residential HUEs | H42: Area 18 | I42: =SUMIFS(O_AC_DCGM_PTS!H8:H6541, O_AC_DCGM_PTS!A8:A6541, A42, O_AC_DCGM_PTS!B8:B6541,C42, O_AC_DCGM_PTS!C8:C6541, B42) -> 0 | J42: =SUMIFS(O_AC_DCGM_PTS!I8:I6541, O_AC_DCGM_PTS!A8:A6541, A42, O_AC_DCGM_PTS!B8:B6541,C42, O_AC_DCGM_PTS!C8:C6541, B42) -> 0 | K42: =SUMIFS(O_AC_DCGM_PTS!J8:J6541, O_AC_DCGM_PTS!A8:A6541, A42, O_AC_DCGM_PTS!B8:B6541,C42, O_AC_DCGM_PTS!C8:C6541, B42) -> 0 | L42: =SUMIFS(O_AC_DCGM_PTS!K8:K6541, O_AC_DCGM_PTS!A8:A6541, A42, O_AC_DCGM_PTS!B8:B6541,C42, O_AC_DCGM_PTS!C8:C6541, B42) -> 0 | M42: =SUMIFS(O_AC_DCGM_PTS!L8:L6541, O_AC_DCGM_PTS!A8:A6541, A42, O_AC_DCGM_PTS!B8:B6541,C42, O_AC_DCGM_PTS!C8:C6541, B42) -> 0 | N42: =SUMIFS(O_AC_DCGM_PTS!M8:M6541, O_AC_DCGM_PTS!A8:A6541, A42, O_AC_DCGM_PTS!B8:B6541,C42, O_AC_DCGM_PTS!C8:C6541, B42) -> 0 | O42: =SUMIFS(O_AC_DCGM_PTS!N8:N6541, O_AC_DCGM_PTS!A8:A6541, A42, O_AC_DCGM_PTS!B8:B6541,C42, O_AC_DCGM_PTS!C8:C6541, B42) -> 0 | P42: =SUMIFS(O_AC_DCGM_PTS!O8:O6541, O_AC_DCGM_PTS!A8:A6541, A42, O_AC_DCGM_PTS!B8:B6541,C42, O_AC_DCGM_PTS!C8:C6541, B42) -> 0 | Q42: =SUMIFS(O_AC_DCGM_PTS!P8:P6541, O_AC_DCGM_PTS!A8:A6541, A42, O_AC_DCGM_PTS!B8:B6541,C42, O_AC_DCGM_PTS!C8:C6541, B42) -> 0 | R42: =SUMIFS(O_AC_DCGM_PTS!Q8:Q6541, O_AC_DCGM_PTS!A8:A6541, A42, O_AC_DCGM_PTS!B8:B6541,C42, O_AC_DCGM_PTS!C8:C6541, B42) -> 0
A43: CI | B43: A18 | C43: RES | D43: R | E43: CI RES A18 | F43: Community Infrastructure | G43: Residential HUEs | H43: Area 18 | I43: =SUMIFS(O_AC_DCGM_PTS!H8:H6541, O_AC_DCGM_PTS!A8:A6541, A43, O_AC_DCGM_PTS!B8:B6541,C43, O_AC_DCGM_PTS!C8:C6541, B43) -> 1793 | J43: =SUMIFS(O_AC_DCGM_PTS!I8:I6541, O_AC_DCGM_PTS!A8:A6541, A43, O_AC_DCGM_PTS!B8:B6541,C43, O_AC_DCGM_PTS!C8:C6541, B43) -> 1773 | K43: =SUMIFS(O_AC_DCGM_PTS!J8:J6541, O_AC_DCGM_PTS!A8:A6541, A43, O_AC_DCGM_PTS!B8:B6541,C43, O_AC_DCGM_PTS!C8:C6541, B43) -> 1778 | L43: =SUMIFS(O_AC_DCGM_PTS!K8:K6541, O_AC_DCGM_PTS!A8:A6541, A43, O_AC_DCGM_PTS!B8:B6541,C43, O_AC_DCGM_PTS!C8:C6541, B43) -> 1817 | M43: =SUMIFS(O_AC_DCGM_PTS!L8:L6541, O_AC_DCGM_PTS!A8:A6541, A43, O_AC_DCGM_PTS!B8:B6541,C43, O_AC_DCGM_PTS!C8:C6541, B43) -> 1970 | N43: =SUMIFS(O_AC_DCGM_PTS!M8:M6541, O_AC_DCGM_PTS!A8:A6541, A43, O_AC_DCGM_PTS!B8:B6541,C43, O_AC_DCGM_PTS!C8:C6541, B43) -> 2078 | O43: =SUMIFS(O_AC_DCGM_PTS!N8:N6541, O_AC_DCGM_PTS!A8:A6541, A43, O_AC_DCGM_PTS!B8:B6541,C43, O_AC_DCGM_PTS!C8:C6541, B43) -> 2081 | P43: =SUMIFS(O_AC_DCGM_PTS!O8:O6541, O_AC_DCGM_PTS!A8:A6541, A43, O_AC_DCGM_PTS!B8:B6541,C43, O_AC_DCGM_PTS!C8:C6541, B43) -> 1934 | Q43: =SUMIFS(O_AC_DCGM_PTS!P8:P6541, O_AC_DCGM_PTS!A8:A6541, A43, O_AC_DCGM_PTS!B8:B6541,C43, O_AC_DCGM_PTS!C8:C6541, B43) -> 1886 | R43: =SUMIFS(O_AC_DCGM_PTS!Q8:Q6541, O_AC_DCGM_PTS!A8:A6541, A43, O_AC_DCGM_PTS!B8:B6541,C43, O_AC_DCGM_PTS!C8:C6541, B43) -> 1730
A44: CI | B44: A19 | C44: NRES | D44: N | E44: CI NRES A19 | F44: Community Infrastructure | G44: Non-residential HUEs | H44: Area 19 | I44: =SUMIFS(O_AC_DCGM_PTS!H8:H6541, O_AC_DCGM_PTS!A8:A6541, A44, O_AC_DCGM_PTS!B8:B6541,C44, O_AC_DCGM_PTS!C8:C6541, B44) -> 0 | J44: =SUMIFS(O_AC_DCGM_PTS!I8:I6541, O_AC_DCGM_PTS!A8:A6541, A44, O_AC_DCGM_PTS!B8:B6541,C44, O_AC_DCGM_PTS!C8:C6541, B44) -> 0 | K44: =SUMIFS(O_AC_DCGM_PTS!J8:J6541, O_AC_DCGM_PTS!A8:A6541, A44, O_AC_DCGM_PTS!B8:B6541,C44, O_AC_DCGM_PTS!C8:C6541, B44) -> 0 | L44: =SUMIFS(O_AC_DCGM_PTS!K8:K6541, O_AC_DCGM_PTS!A8:A6541, A44, O_AC_DCGM_PTS!B8:B6541,C44, O_AC_DCGM_PTS!C8:C6541, B44) -> 0 | M44: =SUMIFS(O_AC_DCGM_PTS!L8:L6541, O_AC_DCGM_PTS!A8:A6541, A44, O_AC_DCGM_PTS!B8:B6541,C44, O_AC_DCGM_PTS!C8:C6541, B44) -> 0 | N44: =SUMIFS(O_AC_DCGM_PTS!M8:M6541, O_AC_DCGM_PTS!A8:A6541, A44, O_AC_DCGM_PTS!B8:B6541,C44, O_AC_DCGM_PTS!C8:C6541, B44) -> 0 | O44: =SUMIFS(O_AC_DCGM_PTS!N8:N6541, O_AC_DCGM_PTS!A8:A6541, A44, O_AC_DCGM_PTS!B8:B6541,C44, O_AC_DCGM_PTS!C8:C6541, B44) -> 0 | P44: =SUMIFS(O_AC_DCGM_PTS!O8:O6541, O_AC_DCGM_PTS!A8:A6541, A44, O_AC_DCGM_PTS!B8:B6541,C44, O_AC_DCGM_PTS!C8:C6541, B44) -> 0 | Q44: =SUMIFS(O_AC_DCGM_PTS!P8:P6541, O_AC_DCGM_PTS!A8:A6541, A44, O_AC_DCGM_PTS!B8:B6541,C44, O_AC_DCGM_PTS!C8:C6541, B44) -> 0 | R44: =SUMIFS(O_AC_DCGM_PTS!Q8:Q6541, O_AC_DCGM_PTS!A8:A6541, A44, O_AC_DCGM_PTS!B8:B6541,C44, O_AC_DCGM_PTS!C8:C6541, B44) -> 0
A45: CI | B45: A19 | C45: RES | D45: R | E45: CI RES A19 | F45: Community Infrastructure | G45: Residential HUEs | H45: Area 19 | I45: =SUMIFS(O_AC_DCGM_PTS!H8:H6541, O_AC_DCGM_PTS!A8:A6541, A45, O_AC_DCGM_PTS!B8:B6541,C45, O_AC_DCGM_PTS!C8:C6541, B45) -> 766 | J45: =SUMIFS(O_AC_DCGM_PTS!I8:I6541, O_AC_DCGM_PTS!A8:A6541, A45, O_AC_DCGM_PTS!B8:B6541,C45, O_AC_DCGM_PTS!C8:C6541, B45) -> 755 | K45: =SUMIFS(O_AC_DCGM_PTS!J8:J6541, O_AC_DCGM_PTS!A8:A6541, A45, O_AC_DCGM_PTS!B8:B6541,C45, O_AC_DCGM_PTS!C8:C6541, B45) -> 757 | L45: =SUMIFS(O_AC_DCGM_PTS!K8:K6541, O_AC_DCGM_PTS!A8:A6541, A45, O_AC_DCGM_PTS!B8:B6541,C45, O_AC_DCGM_PTS!C8:C6541, B45) -> 776 | M45: =SUMIFS(O_AC_DCGM_PTS!L8:L6541, O_AC_DCGM_PTS!A8:A6541, A45, O_AC_DCGM_PTS!B8:B6541,C45, O_AC_DCGM_PTS!C8:C6541, B45) -> 862 | N45: =SUMIFS(O_AC_DCGM_PTS!M8:M6541, O_AC_DCGM_PTS!A8:A6541, A45, O_AC_DCGM_PTS!B8:B6541,C45, O_AC_DCGM_PTS!C8:C6541, B45) -> 924 | O45: =SUMIFS(O_AC_DCGM_PTS!N8:N6541, O_AC_DCGM_PTS!A8:A6541, A45, O_AC_DCGM_PTS!B8:B6541,C45, O_AC_DCGM_PTS!C8:C6541, B45) -> 925 | P45: =SUMIFS(O_AC_DCGM_PTS!O8:O6541, O_AC_DCGM_PTS!A8:A6541, A45, O_AC_DCGM_PTS!B8:B6541,C45, O_AC_DCGM_PTS!C8:C6541, B45) -> 861 | Q45: =SUMIFS(O_AC_DCGM_PTS!P8:P6541, O_AC_DCGM_PTS!A8:A6541, A45, O_AC_DCGM_PTS!B8:B6541,C45, O_AC_DCGM_PTS!C8:C6541, B45) -> 838 | R45: =SUMIFS(O_AC_DCGM_PTS!Q8:Q6541, O_AC_DCGM_PTS!A8:A6541, A45, O_AC_DCGM_PTS!B8:B6541,C45, O_AC_DCGM_PTS!C8:C6541, B45) -> 715
A46: CI | B46: A20 | C46: NRES | D46: N | E46: CI NRES A20 | F46: Community Infrastructure | G46: Non-residential HUEs | H46: Area 20 | I46: =SUMIFS(O_AC_DCGM_PTS!H8:H6541, O_AC_DCGM_PTS!A8:A6541, A46, O_AC_DCGM_PTS!B8:B6541,C46, O_AC_DCGM_PTS!C8:C6541, B46) -> 0 | J46: =SUMIFS(O_AC_DCGM_PTS!I8:I6541, O_AC_DCGM_PTS!A8:A6541, A46, O_AC_DCGM_PTS!B8:B6541,C46, O_AC_DCGM_PTS!C8:C6541, B46) -> 0 | K46: =SUMIFS(O_AC_DCGM_PTS!J8:J6541, O_AC_DCGM_PTS!A8:A6541, A46, O_AC_DCGM_PTS!B8:B6541,C46, O_AC_DCGM_PTS!C8:C6541, B46) -> 0 | L46: =SUMIFS(O_AC_DCGM_PTS!K8:K6541, O_AC_DCGM_PTS!A8:A6541, A46, O_AC_DCGM_PTS!B8:B6541,C46, O_AC_DCGM_PTS!C8:C6541, B46) -> 0 | M46: =SUMIFS(O_AC_DCGM_PTS!L8:L6541, O_AC_DCGM_PTS!A8:A6541, A46, O_AC_DCGM_PTS!B8:B6541,C46, O_AC_DCGM_PTS!C8:C6541, B46) -> 0 | N46: =SUMIFS(O_AC_DCGM_PTS!M8:M6541, O_AC_DCGM_PTS!A8:A6541, A46, O_AC_DCGM_PTS!B8:B6541,C46, O_AC_DCGM_PTS!C8:C6541, B46) -> 0 | O46: =SUMIFS(O_AC_DCGM_PTS!N8:N6541, O_AC_DCGM_PTS!A8:A6541, A46, O_AC_DCGM_PTS!B8:B6541,C46, O_AC_DCGM_PTS!C8:C6541, B46) -> 0 | P46: =SUMIFS(O_AC_DCGM_PTS!O8:O6541, O_AC_DCGM_PTS!A8:A6541, A46, O_AC_DCGM_PTS!B8:B6541,C46, O_AC_DCGM_PTS!C8:C6541, B46) -> 0 | Q46: =SUMIFS(O_AC_DCGM_PTS!P8:P6541, O_AC_DCGM_PTS!A8:A6541, A46, O_AC_DCGM_PTS!B8:B6541,C46, O_AC_DCGM_PTS!C8:C6541, B46) -> 0 | R46: =SUMIFS(O_AC_DCGM_PTS!Q8:Q6541, O_AC_DCGM_PTS!A8:A6541, A46, O_AC_DCGM_PTS!B8:B6541,C46, O_AC_DCGM_PTS!C8:C6541, B46) -> 0
A47: CI | B47: A20 | C47: RES | D47: R | E47: CI RES A20 | F47: Community Infrastructure | G47: Residential HUEs | H47: Area 20 | I47: =SUMIFS(O_AC_DCGM_PTS!H8:H6541, O_AC_DCGM_PTS!A8:A6541, A47, O_AC_DCGM_PTS!B8:B6541,C47, O_AC_DCGM_PTS!C8:C6541, B47) -> 239 | J47: =SUMIFS(O_AC_DCGM_PTS!I8:I6541, O_AC_DCGM_PTS!A8:A6541, A47, O_AC_DCGM_PTS!B8:B6541,C47, O_AC_DCGM_PTS!C8:C6541, B47) -> 236 | K47: =SUMIFS(O_AC_DCGM_PTS!J8:J6541, O_AC_DCGM_PTS!A8:A6541, A47, O_AC_DCGM_PTS!B8:B6541,C47, O_AC_DCGM_PTS!C8:C6541, B47) -> 238 | L47: =SUMIFS(O_AC_DCGM_PTS!K8:K6541, O_AC_DCGM_PTS!A8:A6541, A47, O_AC_DCGM_PTS!B8:B6541,C47, O_AC_DCGM_PTS!C8:C6541, B47) -> 243 | M47: =SUMIFS(O_AC_DCGM_PTS!L8:L6541, O_AC_DCGM_PTS!A8:A6541, A47, O_AC_DCGM_PTS!B8:B6541,C47, O_AC_DCGM_PTS!C8:C6541, B47) -> 286 | N47: =SUMIFS(O_AC_DCGM_PTS!M8:M6541, O_AC_DCGM_PTS!A8:A6541, A47, O_AC_DCGM_PTS!B8:B6541,C47, O_AC_DCGM_PTS!C8:C6541, B47) -> 323 | O47: =SUMIFS(O_AC_DCGM_PTS!N8:N6541, O_AC_DCGM_PTS!A8:A6541, A47, O_AC_DCGM_PTS!B8:B6541,C47, O_AC_DCGM_PTS!C8:C6541, B47) -> 323 | P47: =SUMIFS(O_AC_DCGM_PTS!O8:O6541, O_AC_DCGM_PTS!A8:A6541, A47, O_AC_DCGM_PTS!B8:B6541,C47, O_AC_DCGM_PTS!C8:C6541, B47) -> 300 | Q47: =SUMIFS(O_AC_DCGM_PTS!P8:P6541, O_AC_DCGM_PTS!A8:A6541, A47, O_AC_DCGM_PTS!B8:B6541,C47, O_AC_DCGM_PTS!C8:C6541, B47) -> 292 | R47: =SUMIFS(O_AC_DCGM_PTS!Q8:Q6541, O_AC_DCGM_PTS!A8:A6541, A47, O_AC_DCGM_PTS!B8:B6541,C47, O_AC_DCGM_PTS!C8:C6541, B47) -> 245
A48: CI | B48: A21 | C48: NRES | D48: N | E48: CI NRES A21 | F48: Community Infrastructure | G48: Non-residential HUEs | H48: Area 21 | I48: =SUMIFS(O_AC_DCGM_PTS!H8:H6541, O_AC_DCGM_PTS!A8:A6541, A48, O_AC_DCGM_PTS!B8:B6541,C48, O_AC_DCGM_PTS!C8:C6541, B48) -> 0 | J48: =SUMIFS(O_AC_DCGM_PTS!I8:I6541, O_AC_DCGM_PTS!A8:A6541, A48, O_AC_DCGM_PTS!B8:B6541,C48, O_AC_DCGM_PTS!C8:C6541, B48) -> 0 | K48: =SUMIFS(O_AC_DCGM_PTS!J8:J6541, O_AC_DCGM_PTS!A8:A6541, A48, O_AC_DCGM_PTS!B8:B6541,C48, O_AC_DCGM_PTS!C8:C6541, B48) -> 0 | L48: =SUMIFS(O_AC_DCGM_PTS!K8:K6541, O_AC_DCGM_PTS!A8:A6541, A48, O_AC_DCGM_PTS!B8:B6541,C48, O_AC_DCGM_PTS!C8:C6541, B48) -> 0 | M48: =SUMIFS(O_AC_DCGM_PTS!L8:L6541, O_AC_DCGM_PTS!A8:A6541, A48, O_AC_DCGM_PTS!B8:B6541,C48, O_AC_DCGM_PTS!C8:C6541, B48) -> 0 | N48: =SUMIFS(O_AC_DCGM_PTS!M8:M6541, O_AC_DCGM_PTS!A8:A6541, A48, O_AC_DCGM_PTS!B8:B6541,C48, O_AC_DCGM_PTS!C8:C6541, B48) -> 0 | O48: =SUMIFS(O_AC_DCGM_PTS!N8:N6541, O_AC_DCGM_PTS!A8:A6541, A48, O_AC_DCGM_PTS!B8:B6541,C48, O_AC_DCGM_PTS!C8:C6541, B48) -> 0 | P48: =SUMIFS(O_AC_DCGM_PTS!O8:O6541, O_AC_DCGM_PTS!A8:A6541, A48, O_AC_DCGM_PTS!B8:B6541,C48, O_AC_DCGM_PTS!C8:C6541, B48) -> 0 | Q48: =SUMIFS(O_AC_DCGM_PTS!P8:P6541, O_AC_DCGM_PTS!A8:A6541, A48, O_AC_DCGM_PTS!B8:B6541,C48, O_AC_DCGM_PTS!C8:C6541, B48) -> 0 | R48: =SUMIFS(O_AC_DCGM_PTS!Q8:Q6541, O_AC_DCGM_PTS!A8:A6541, A48, O_AC_DCGM_PTS!B8:B6541,C48, O_AC_DCGM_PTS!C8:C6541, B48) -> 0
A49: CI | B49: A21 | C49: RES | D49: R | E49: CI RES A21 | F49: Community Infrastructure | G49: Residential HUEs | H49: Area 21 | I49: =SUMIFS(O_AC_DCGM_PTS!H8:H6541, O_AC_DCGM_PTS!A8:A6541, A49, O_AC_DCGM_PTS!B8:B6541,C49, O_AC_DCGM_PTS!C8:C6541, B49) -> 51 | J49: =SUMIFS(O_AC_DCGM_PTS!I8:I6541, O_AC_DCGM_PTS!A8:A6541, A49, O_AC_DCGM_PTS!B8:B6541,C49, O_AC_DCGM_PTS!C8:C6541, B49) -> 51 | K49: =SUMIFS(O_AC_DCGM_PTS!J8:J6541, O_AC_DCGM_PTS!A8:A6541, A49, O_AC_DCGM_PTS!B8:B6541,C49, O_AC_DCGM_PTS!C8:C6541, B49) -> 51 | L49: =SUMIFS(O_AC_DCGM_PTS!K8:K6541, O_AC_DCGM_PTS!A8:A6541, A49, O_AC_DCGM_PTS!B8:B6541,C49, O_AC_DCGM_PTS!C8:C6541, B49) -> 52 | M49: =SUMIFS(O_AC_DCGM_PTS!L8:L6541, O_AC_DCGM_PTS!A8:A6541, A49, O_AC_DCGM_PTS!B8:B6541,C49, O_AC_DCGM_PTS!C8:C6541, B49) -> 67 | N49: =SUMIFS(O_AC_DCGM_PTS!M8:M6541, O_AC_DCGM_PTS!A8:A6541, A49, O_AC_DCGM_PTS!B8:B6541,C49, O_AC_DCGM_PTS!C8:C6541, B49) -> 81 | O49: =SUMIFS(O_AC_DCGM_PTS!N8:N6541, O_AC_DCGM_PTS!A8:A6541, A49, O_AC_DCGM_PTS!B8:B6541,C49, O_AC_DCGM_PTS!C8:C6541, B49) -> 81 | P49: =SUMIFS(O_AC_DCGM_PTS!O8:O6541, O_AC_DCGM_PTS!A8:A6541, A49, O_AC_DCGM_PTS!B8:B6541,C49, O_AC_DCGM_PTS!C8:C6541, B49) -> 76 | Q49: =SUMIFS(O_AC_DCGM_PTS!P8:P6541, O_AC_DCGM_PTS!A8:A6541, A49, O_AC_DCGM_PTS!B8:B6541,C49, O_AC_DCGM_PTS!C8:C6541, B49) -> 75 | R49: =SUMIFS(O_AC_DCGM_PTS!Q8:Q6541, O_AC_DCGM_PTS!A8:A6541, A49, O_AC_DCGM_PTS!B8:B6541,C49, O_AC_DCGM_PTS!C8:C6541, B49) -> 66
A50: CI | B50: A22 | C50: NRES | D50: N | E50: CI NRES A22 | F50: Community Infrastructure | G50: Non-residential HUEs | H50: Area 22 | I50: =SUMIFS(O_AC_DCGM_PTS!H8:H6541, O_AC_DCGM_PTS!A8:A6541, A50, O_AC_DCGM_PTS!B8:B6541,C50, O_AC_DCGM_PTS!C8:C6541, B50) -> 0 | J50: =SUMIFS(O_AC_DCGM_PTS!I8:I6541, O_AC_DCGM_PTS!A8:A6541, A50, O_AC_DCGM_PTS!B8:B6541,C50, O_AC_DCGM_PTS!C8:C6541, B50) -> 0 | K50: =SUMIFS(O_AC_DCGM_PTS!J8:J6541, O_AC_DCGM_PTS!A8:A6541, A50, O_AC_DCGM_PTS!B8:B6541,C50, O_AC_DCGM_PTS!C8:C6541, B50) -> 0 | L50: =SUMIFS(O_AC_DCGM_PTS!K8:K6541, O_AC_DCGM_PTS!A8:A6541, A50, O_AC_DCGM_PTS!B8:B6541,C50, O_AC_DCGM_PTS!C8:C6541, B50) -> 0 | M50: =SUMIFS(O_AC_DCGM_PTS!L8:L6541, O_AC_DCGM_PTS!A8:A6541, A50, O_AC_DCGM_PTS!B8:B6541,C50, O_AC_DCGM_PTS!C8:C6541, B50) -> 0 | N50: =SUMIFS(O_AC_DCGM_PTS!M8:M6541, O_AC_DCGM_PTS!A8:A6541, A50, O_AC_DCGM_PTS!B8:B6541,C50, O_AC_DCGM_PTS!C8:C6541, B50) -> 0 | O50: =SUMIFS(O_AC_DCGM_PTS!N8:N6541, O_AC_DCGM_PTS!A8:A6541, A50, O_AC_DCGM_PTS!B8:B6541,C50, O_AC_DCGM_PTS!C8:C6541, B50) -> 0 | P50: =SUMIFS(O_AC_DCGM_PTS!O8:O6541, O_AC_DCGM_PTS!A8:A6541, A50, O_AC_DCGM_PTS!B8:B6541,C50, O_AC_DCGM_PTS!C8:C6541, B50) -> 0 | Q50: =SUMIFS(O_AC_DCGM_PTS!P8:P6541, O_AC_DCGM_PTS!A8:A6541, A50, O_AC_DCGM_PTS!B8:B6541,C50, O_AC_DCGM_PTS!C8:C6541, B50) -> 0 | R50: =SUMIFS(O_AC_DCGM_PTS!Q8:Q6541, O_AC_DCGM_PTS!A8:A6541, A50, O_AC_DCGM_PTS!B8:B6541,C50, O_AC_DCGM_PTS!C8:C6541, B50) -> 0
A51: CI | B51: A22 | C51: RES | D51: R | E51: CI RES A22 | F51: Community Infrastructure | G51: Residential HUEs | H51: Area 22 | I51: =SUMIFS(O_AC_DCGM_PTS!H8:H6541, O_AC_DCGM_PTS!A8:A6541, A51, O_AC_DCGM_PTS!B8:B6541,C51, O_AC_DCGM_PTS!C8:C6541, B51) -> 12 | J51: =SUMIFS(O_AC_DCGM_PTS!I8:I6541, O_AC_DCGM_PTS!A8:A6541, A51, O_AC_DCGM_PTS!B8:B6541,C51, O_AC_DCGM_PTS!C8:C6541, B51) -> 12 | K51: =SUMIFS(O_AC_DCGM_PTS!J8:J6541, O_AC_DCGM_PTS!A8:A6541, A51, O_AC_DCGM_PTS!B8:B6541,C51, O_AC_DCGM_PTS!C8:C6541, B51) -> 12 | L51: =SUMIFS(O_AC_DCGM_PTS!K8:K6541, O_AC_DCGM_PTS!A8:A6541, A51, O_AC_DCGM_PTS!B8:B6541,C51, O_AC_DCGM_PTS!C8:C6541, B51) -> 12 | M51: =SUMIFS(O_AC_DCGM_PTS!L8:L6541, O_AC_DCGM_PTS!A8:A6541, A51, O_AC_DCGM_PTS!B8:B6541,C51, O_AC_DCGM_PTS!C8:C6541, B51) -> 13 | N51: =SUMIFS(O_AC_DCGM_PTS!M8:M6541, O_AC_DCGM_PTS!A8:A6541, A51, O_AC_DCGM_PTS!B8:B6541,C51, O_AC_DCGM_PTS!C8:C6541, B51) -> 14 | O51: =SUMIFS(O_AC_DCGM_PTS!N8:N6541, O_AC_DCGM_PTS!A8:A6541, A51, O_AC_DCGM_PTS!B8:B6541,C51, O_AC_DCGM_PTS!C8:C6541, B51) -> 14 | P51: =SUMIFS(O_AC_DCGM_PTS!O8:O6541, O_AC_DCGM_PTS!A8:A6541, A51, O_AC_DCGM_PTS!B8:B6541,C51, O_AC_DCGM_PTS!C8:C6541, B51) -> 14 | Q51: =SUMIFS(O_AC_DCGM_PTS!P8:P6541, O_AC_DCGM_PTS!A8:A6541, A51, O_AC_DCGM_PTS!B8:B6541,C51, O_AC_DCGM_PTS!C8:C6541, B51) -> 14 | R51: =SUMIFS(O_AC_DCGM_PTS!Q8:Q6541, O_AC_DCGM_PTS!A8:A6541, A51, O_AC_DCGM_PTS!B8:B6541,C51, O_AC_DCGM_PTS!C8:C6541, B51) -> 31
A52: CI | B52: A23 | C52: NRES | D52: N | E52: CI NRES A23 | F52: Community Infrastructure | G52: Non-residential HUEs | H52: Area 23 | I52: =SUMIFS(O_AC_DCGM_PTS!H8:H6541, O_AC_DCGM_PTS!A8:A6541, A52, O_AC_DCGM_PTS!B8:B6541,C52, O_AC_DCGM_PTS!C8:C6541, B52) -> 0 | J52: =SUMIFS(O_AC_DCGM_PTS!I8:I6541, O_AC_DCGM_PTS!A8:A6541, A52, O_AC_DCGM_PTS!B8:B6541,C52, O_AC_DCGM_PTS!C8:C6541, B52) -> 0 | K52: =SUMIFS(O_AC_DCGM_PTS!J8:J6541, O_AC_DCGM_PTS!A8:A6541, A52, O_AC_DCGM_PTS!B8:B6541,C52, O_AC_DCGM_PTS!C8:C6541, B52) -> 0 | L52: =SUMIFS(O_AC_DCGM_PTS!K8:K6541, O_AC_DCGM_PTS!A8:A6541, A52, O_AC_DCGM_PTS!B8:B6541,C52, O_AC_DCGM_PTS!C8:C6541, B52) -> 0 | M52: =SUMIFS(O_AC_DCGM_PTS!L8:L6541, O_AC_DCGM_PTS!A8:A6541, A52, O_AC_DCGM_PTS!B8:B6541,C52, O_AC_DCGM_PTS!C8:C6541, B52) -> 0 | N52: =SUMIFS(O_AC_DCGM_PTS!M8:M6541, O_AC_DCGM_PTS!A8:A6541, A52, O_AC_DCGM_PTS!B8:B6541,C52, O_AC_DCGM_PTS!C8:C6541, B52) -> 0 | O52: =SUMIFS(O_AC_DCGM_PTS!N8:N6541, O_AC_DCGM_PTS!A8:A6541, A52, O_AC_DCGM_PTS!B8:B6541,C52, O_AC_DCGM_PTS!C8:C6541, B52) -> 0 | P52: =SUMIFS(O_AC_DCGM_PTS!O8:O6541, O_AC_DCGM_PTS!A8:A6541, A52, O_AC_DCGM_PTS!B8:B6541,C52, O_AC_DCGM_PTS!C8:C6541, B52) -> 0 | Q52: =SUMIFS(O_AC_DCGM_PTS!P8:P6541, O_AC_DCGM_PTS!A8:A6541, A52, O_AC_DCGM_PTS!B8:B6541,C52, O_AC_DCGM_PTS!C8:C6541, B52) -> 0 | R52: =SUMIFS(O_AC_DCGM_PTS!Q8:Q6541, O_AC_DCGM_PTS!A8:A6541, A52, O_AC_DCGM_PTS!B8:B6541,C52, O_AC_DCGM_PTS!C8:C6541, B52) -> 0
A53: CI | B53: A23 | C53: RES | D53: R | E53: CI RES A23 | F53: Community Infrastructure | G53: Residential HUEs | H53: Area 23 | I53: =SUMIFS(O_AC_DCGM_PTS!H8:H6541, O_AC_DCGM_PTS!A8:A6541, A53, O_AC_DCGM_PTS!B8:B6541,C53, O_AC_DCGM_PTS!C8:C6541, B53) -> 78 | J53: =SUMIFS(O_AC_DCGM_PTS!I8:I6541, O_AC_DCGM_PTS!A8:A6541, A53, O_AC_DCGM_PTS!B8:B6541,C53, O_AC_DCGM_PTS!C8:C6541, B53) -> 78 | K53: =SUMIFS(O_AC_DCGM_PTS!J8:J6541, O_AC_DCGM_PTS!A8:A6541, A53, O_AC_DCGM_PTS!B8:B6541,C53, O_AC_DCGM_PTS!C8:C6541, B53) -> 79 | L53: =SUMIFS(O_AC_DCGM_PTS!K8:K6541, O_AC_DCGM_PTS!A8:A6541, A53, O_AC_DCGM_PTS!B8:B6541,C53, O_AC_DCGM_PTS!C8:C6541, B53) -> 80 | M53: =SUMIFS(O_AC_DCGM_PTS!L8:L6541, O_AC_DCGM_PTS!A8:A6541, A53, O_AC_DCGM_PTS!B8:B6541,C53, O_AC_DCGM_PTS!C8:C6541, B53) -> 93 | N53: =SUMIFS(O_AC_DCGM_PTS!M8:M6541, O_AC_DCGM_PTS!A8:A6541, A53, O_AC_DCGM_PTS!B8:B6541,C53, O_AC_DCGM_PTS!C8:C6541, B53) -> 107 | O53: =SUMIFS(O_AC_DCGM_PTS!N8:N6541, O_AC_DCGM_PTS!A8:A6541, A53, O_AC_DCGM_PTS!B8:B6541,C53, O_AC_DCGM_PTS!C8:C6541, B53) -> 107 | P53: =SUMIFS(O_AC_DCGM_PTS!O8:O6541, O_AC_DCGM_PTS!A8:A6541, A53, O_AC_DCGM_PTS!B8:B6541,C53, O_AC_DCGM_PTS!C8:C6541, B53) -> 100 | Q53: =SUMIFS(O_AC_DCGM_PTS!P8:P6541, O_AC_DCGM_PTS!A8:A6541, A53, O_AC_DCGM_PTS!B8:B6541,C53, O_AC_DCGM_PTS!C8:C6541, B53) -> 99 | R53: =SUMIFS(O_AC_DCGM_PTS!Q8:Q6541, O_AC_DCGM_PTS!A8:A6541, A53, O_AC_DCGM_PTS!B8:B6541,C53, O_AC_DCGM_PTS!C8:C6541, B53) -> 82
A54: CI | B54: A24 | C54: NRES | D54: N | E54: CI NRES A24 | F54: Community Infrastructure | G54: Non-residential HUEs | H54: Area 24 | I54: =SUMIFS(O_AC_DCGM_PTS!H8:H6541, O_AC_DCGM_PTS!A8:A6541, A54, O_AC_DCGM_PTS!B8:B6541,C54, O_AC_DCGM_PTS!C8:C6541, B54) -> 0 | J54: =SUMIFS(O_AC_DCGM_PTS!I8:I6541, O_AC_DCGM_PTS!A8:A6541, A54, O_AC_DCGM_PTS!B8:B6541,C54, O_AC_DCGM_PTS!C8:C6541, B54) -> 0 | K54: =SUMIFS(O_AC_DCGM_PTS!J8:J6541, O_AC_DCGM_PTS!A8:A6541, A54, O_AC_DCGM_PTS!B8:B6541,C54, O_AC_DCGM_PTS!C8:C6541, B54) -> 0 | L54: =SUMIFS(O_AC_DCGM_PTS!K8:K6541, O_AC_DCGM_PTS!A8:A6541, A54, O_AC_DCGM_PTS!B8:B6541,C54, O_AC_DCGM_PTS!C8:C6541, B54) -> 0 | M54: =SUMIFS(O_AC_DCGM_PTS!L8:L6541, O_AC_DCGM_PTS!A8:A6541, A54, O_AC_DCGM_PTS!B8:B6541,C54, O_AC_DCGM_PTS!C8:C6541, B54) -> 0 | N54: =SUMIFS(O_AC_DCGM_PTS!M8:M6541, O_AC_DCGM_PTS!A8:A6541, A54, O_AC_DCGM_PTS!B8:B6541,C54, O_AC_DCGM_PTS!C8:C6541, B54) -> 0 | O54: =SUMIFS(O_AC_DCGM_PTS!N8:N6541, O_AC_DCGM_PTS!A8:A6541, A54, O_AC_DCGM_PTS!B8:B6541,C54, O_AC_DCGM_PTS!C8:C6541, B54) -> 0 | P54: =SUMIFS(O_AC_DCGM_PTS!O8:O6541, O_AC_DCGM_PTS!A8:A6541, A54, O_AC_DCGM_PTS!B8:B6541,C54, O_AC_DCGM_PTS!C8:C6541, B54) -> 0 | Q54: =SUMIFS(O_AC_DCGM_PTS!P8:P6541, O_AC_DCGM_PTS!A8:A6541, A54, O_AC_DCGM_PTS!B8:B6541,C54, O_AC_DCGM_PTS!C8:C6541, B54) -> 0 | R54: =SUMIFS(O_AC_DCGM_PTS!Q8:Q6541, O_AC_DCGM_PTS!A8:A6541, A54, O_AC_DCGM_PTS!B8:B6541,C54, O_AC_DCGM_PTS!C8:C6541, B54) -> 0
A55: CI | B55: A24 | C55: RES | D55: R | E55: CI RES A24 | F55: Community Infrastructure | G55: Residential HUEs | H55: Area 24 | I55: =SUMIFS(O_AC_DCGM_PTS!H8:H6541, O_AC_DCGM_PTS!A8:A6541, A55, O_AC_DCGM_PTS!B8:B6541,C55, O_AC_DCGM_PTS!C8:C6541, B55) -> 121 | J55: =SUMIFS(O_AC_DCGM_PTS!I8:I6541, O_AC_DCGM_PTS!A8:A6541, A55, O_AC_DCGM_PTS!B8:B6541,C55, O_AC_DCGM_PTS!C8:C6541, B55) -> 120 | K55: =SUMIFS(O_AC_DCGM_PTS!J8:J6541, O_AC_DCGM_PTS!A8:A6541, A55, O_AC_DCGM_PTS!B8:B6541,C55, O_AC_DCGM_PTS!C8:C6541, B55) -> 121 | L55: =SUMIFS(O_AC_DCGM_PTS!K8:K6541, O_AC_DCGM_PTS!A8:A6541, A55, O_AC_DCGM_PTS!B8:B6541,C55, O_AC_DCGM_PTS!C8:C6541, B55) -> 124 | M55: =SUMIFS(O_AC_DCGM_PTS!L8:L6541, O_AC_DCGM_PTS!A8:A6541, A55, O_AC_DCGM_PTS!B8:B6541,C55, O_AC_DCGM_PTS!C8:C6541, B55) -> 156 | N55: =SUMIFS(O_AC_DCGM_PTS!M8:M6541, O_AC_DCGM_PTS!A8:A6541, A55, O_AC_DCGM_PTS!B8:B6541,C55, O_AC_DCGM_PTS!C8:C6541, B55) -> 186 | O55: =SUMIFS(O_AC_DCGM_PTS!N8:N6541, O_AC_DCGM_PTS!A8:A6541, A55, O_AC_DCGM_PTS!B8:B6541,C55, O_AC_DCGM_PTS!C8:C6541, B55) -> 186 | P55: =SUMIFS(O_AC_DCGM_PTS!O8:O6541, O_AC_DCGM_PTS!A8:A6541, A55, O_AC_DCGM_PTS!B8:B6541,C55, O_AC_DCGM_PTS!C8:C6541, B55) -> 172 | Q55: =SUMIFS(O_AC_DCGM_PTS!P8:P6541, O_AC_DCGM_PTS!A8:A6541, A55, O_AC_DCGM_PTS!B8:B6541,C55, O_AC_DCGM_PTS!C8:C6541, B55) -> 167 | R55: =SUMIFS(O_AC_DCGM_PTS!Q8:Q6541, O_AC_DCGM_PTS!A8:A6541, A55, O_AC_DCGM_PTS!B8:B6541,C55, O_AC_DCGM_PTS!C8:C6541, B55) -> 155
A56: CI | B56: A25 | C56: NRES | D56: N | E56: CI NRES A25 | F56: Community Infrastructure | G56: Non-residential HUEs | H56: Area 25 | I56: =SUMIFS(O_AC_DCGM_PTS!H8:H6541, O_AC_DCGM_PTS!A8:A6541, A56, O_AC_DCGM_PTS!B8:B6541,C56, O_AC_DCGM_PTS!C8:C6541, B56) -> 0 | J56: =SUMIFS(O_AC_DCGM_PTS!I8:I6541, O_AC_DCGM_PTS!A8:A6541, A56, O_AC_DCGM_PTS!B8:B6541,C56, O_AC_DCGM_PTS!C8:C6541, B56) -> 0 | K56: =SUMIFS(O_AC_DCGM_PTS!J8:J6541, O_AC_DCGM_PTS!A8:A6541, A56, O_AC_DCGM_PTS!B8:B6541,C56, O_AC_DCGM_PTS!C8:C6541, B56) -> 0 | L56: =SUMIFS(O_AC_DCGM_PTS!K8:K6541, O_AC_DCGM_PTS!A8:A6541, A56, O_AC_DCGM_PTS!B8:B6541,C56, O_AC_DCGM_PTS!C8:C6541, B56) -> 0 | M56: =SUMIFS(O_AC_DCGM_PTS!L8:L6541, O_AC_DCGM_PTS!A8:A6541, A56, O_AC_DCGM_PTS!B8:B6541,C56, O_AC_DCGM_PTS!C8:C6541, B56) -> 0 | N56: =SUMIFS(O_AC_DCGM_PTS!M8:M6541, O_AC_DCGM_PTS!A8:A6541, A56, O_AC_DCGM_PTS!B8:B6541,C56, O_AC_DCGM_PTS!C8:C6541, B56) -> 0 | O56: =SUMIFS(O_AC_DCGM_PTS!N8:N6541, O_AC_DCGM_PTS!A8:A6541, A56, O_AC_DCGM_PTS!B8:B6541,C56, O_AC_DCGM_PTS!C8:C6541, B56) -> 0 | P56: =SUMIFS(O_AC_DCGM_PTS!O8:O6541, O_AC_DCGM_PTS!A8:A6541, A56, O_AC_DCGM_PTS!B8:B6541,C56, O_AC_DCGM_PTS!C8:C6541, B56) -> 0 | Q56: =SUMIFS(O_AC_DCGM_PTS!P8:P6541, O_AC_DCGM_PTS!A8:A6541, A56, O_AC_DCGM_PTS!B8:B6541,C56, O_AC_DCGM_PTS!C8:C6541, B56) -> 0 | R56: =SUMIFS(O_AC_DCGM_PTS!Q8:Q6541, O_AC_DCGM_PTS!A8:A6541, A56, O_AC_DCGM_PTS!B8:B6541,C56, O_AC_DCGM_PTS!C8:C6541, B56) -> 0
A57: CI | B57: A25 | C57: RES | D57: R | E57: CI RES A25 | F57: Community Infrastructure | G57: Residential HUEs | H57: Area 25 | I57: =SUMIFS(O_AC_DCGM_PTS!H8:H6541, O_AC_DCGM_PTS!A8:A6541, A57, O_AC_DCGM_PTS!B8:B6541,C57, O_AC_DCGM_PTS!C8:C6541, B57) -> 147 | J57: =SUMIFS(O_AC_DCGM_PTS!I8:I6541, O_AC_DCGM_PTS!A8:A6541, A57, O_AC_DCGM_PTS!B8:B6541,C57, O_AC_DCGM_PTS!C8:C6541, B57) -> 145 | K57: =SUMIFS(O_AC_DCGM_PTS!J8:J6541, O_AC_DCGM_PTS!A8:A6541, A57, O_AC_DCGM_PTS!B8:B6541,C57, O_AC_DCGM_PTS!C8:C6541, B57) -> 145 | L57: =SUMIFS(O_AC_DCGM_PTS!K8:K6541, O_AC_DCGM_PTS!A8:A6541, A57, O_AC_DCGM_PTS!B8:B6541,C57, O_AC_DCGM_PTS!C8:C6541, B57) -> 151 | M57: =SUMIFS(O_AC_DCGM_PTS!L8:L6541, O_AC_DCGM_PTS!A8:A6541, A57, O_AC_DCGM_PTS!B8:B6541,C57, O_AC_DCGM_PTS!C8:C6541, B57) -> 133 | N57: =SUMIFS(O_AC_DCGM_PTS!M8:M6541, O_AC_DCGM_PTS!A8:A6541, A57, O_AC_DCGM_PTS!B8:B6541,C57, O_AC_DCGM_PTS!C8:C6541, B57) -> 108 | O57: =SUMIFS(O_AC_DCGM_PTS!N8:N6541, O_AC_DCGM_PTS!A8:A6541, A57, O_AC_DCGM_PTS!B8:B6541,C57, O_AC_DCGM_PTS!C8:C6541, B57) -> 108 | P57: =SUMIFS(O_AC_DCGM_PTS!O8:O6541, O_AC_DCGM_PTS!A8:A6541, A57, O_AC_DCGM_PTS!B8:B6541,C57, O_AC_DCGM_PTS!C8:C6541, B57) -> 101 | Q57: =SUMIFS(O_AC_DCGM_PTS!P8:P6541, O_AC_DCGM_PTS!A8:A6541, A57, O_AC_DCGM_PTS!B8:B6541,C57, O_AC_DCGM_PTS!C8:C6541, B57) -> 99 | R57: =SUMIFS(O_AC_DCGM_PTS!Q8:Q6541, O_AC_DCGM_PTS!A8:A6541, A57, O_AC_DCGM_PTS!B8:B6541,C57, O_AC_DCGM_PTS!C8:C6541, B57) -> 84
A58: CI | B58: A26 | C58: NRES | D58: N | E58: CI NRES A26 | F58: Community Infrastructure | G58: Non-residential HUEs | H58: Area 26 | I58: =SUMIFS(O_AC_DCGM_PTS!H8:H6541, O_AC_DCGM_PTS!A8:A6541, A58, O_AC_DCGM_PTS!B8:B6541,C58, O_AC_DCGM_PTS!C8:C6541, B58) -> 0 | J58: =SUMIFS(O_AC_DCGM_PTS!I8:I6541, O_AC_DCGM_PTS!A8:A6541, A58, O_AC_DCGM_PTS!B8:B6541,C58, O_AC_DCGM_PTS!C8:C6541, B58) -> 0 | K58: =SUMIFS(O_AC_DCGM_PTS!J8:J6541, O_AC_DCGM_PTS!A8:A6541, A58, O_AC_DCGM_PTS!B8:B6541,C58, O_AC_DCGM_PTS!C8:C6541, B58) -> 0 | L58: =SUMIFS(O_AC_DCGM_PTS!K8:K6541, O_AC_DCGM_PTS!A8:A6541, A58, O_AC_DCGM_PTS!B8:B6541,C58, O_AC_DCGM_PTS!C8:C6541, B58) -> 0 | M58: =SUMIFS(O_AC_DCGM_PTS!L8:L6541, O_AC_DCGM_PTS!A8:A6541, A58, O_AC_DCGM_PTS!B8:B6541,C58, O_AC_DCGM_PTS!C8:C6541, B58) -> 0 | N58: =SUMIFS(O_AC_DCGM_PTS!M8:M6541, O_AC_DCGM_PTS!A8:A6541, A58, O_AC_DCGM_PTS!B8:B6541,C58, O_AC_DCGM_PTS!C8:C6541, B58) -> 0 | O58: =SUMIFS(O_AC_DCGM_PTS!N8:N6541, O_AC_DCGM_PTS!A8:A6541, A58, O_AC_DCGM_PTS!B8:B6541,C58, O_AC_DCGM_PTS!C8:C6541, B58) -> 0 | P58: =SUMIFS(O_AC_DCGM_PTS!O8:O6541, O_AC_DCGM_PTS!A8:A6541, A58, O_AC_DCGM_PTS!B8:B6541,C58, O_AC_DCGM_PTS!C8:C6541, B58) -> 0 | Q58: =SUMIFS(O_AC_DCGM_PTS!P8:P6541, O_AC_DCGM_PTS!A8:A6541, A58, O_AC_DCGM_PTS!B8:B6541,C58, O_AC_DCGM_PTS!C8:C6541, B58) -> 0 | R58: =SUMIFS(O_AC_DCGM_PTS!Q8:Q6541, O_AC_DCGM_PTS!A8:A6541, A58, O_AC_DCGM_PTS!B8:B6541,C58, O_AC_DCGM_PTS!C8:C6541, B58) -> 0
A59: CI | B59: A26 | C59: RES | D59: R | E59: CI RES A26 | F59: Community Infrastructure | G59: Residential HUEs | H59: Area 26 | I59: =SUMIFS(O_AC_DCGM_PTS!H8:H6541, O_AC_DCGM_PTS!A8:A6541, A59, O_AC_DCGM_PTS!B8:B6541,C59, O_AC_DCGM_PTS!C8:C6541, B59) -> 22 | J59: =SUMIFS(O_AC_DCGM_PTS!I8:I6541, O_AC_DCGM_PTS!A8:A6541, A59, O_AC_DCGM_PTS!B8:B6541,C59, O_AC_DCGM_PTS!C8:C6541, B59) -> 22 | K59: =SUMIFS(O_AC_DCGM_PTS!J8:J6541, O_AC_DCGM_PTS!A8:A6541, A59, O_AC_DCGM_PTS!B8:B6541,C59, O_AC_DCGM_PTS!C8:C6541, B59) -> 22 | L59: =SUMIFS(O_AC_DCGM_PTS!K8:K6541, O_AC_DCGM_PTS!A8:A6541, A59, O_AC_DCGM_PTS!B8:B6541,C59, O_AC_DCGM_PTS!C8:C6541, B59) -> 22 | M59: =SUMIFS(O_AC_DCGM_PTS!L8:L6541, O_AC_DCGM_PTS!A8:A6541, A59, O_AC_DCGM_PTS!B8:B6541,C59, O_AC_DCGM_PTS!C8:C6541, B59) -> 30 | N59: =SUMIFS(O_AC_DCGM_PTS!M8:M6541, O_AC_DCGM_PTS!A8:A6541, A59, O_AC_DCGM_PTS!B8:B6541,C59, O_AC_DCGM_PTS!C8:C6541, B59) -> 39 | O59: =SUMIFS(O_AC_DCGM_PTS!N8:N6541, O_AC_DCGM_PTS!A8:A6541, A59, O_AC_DCGM_PTS!B8:B6541,C59, O_AC_DCGM_PTS!C8:C6541, B59) -> 39 | P59: =SUMIFS(O_AC_DCGM_PTS!O8:O6541, O_AC_DCGM_PTS!A8:A6541, A59, O_AC_DCGM_PTS!B8:B6541,C59, O_AC_DCGM_PTS!C8:C6541, B59) -> 36 | Q59: =SUMIFS(O_AC_DCGM_PTS!P8:P6541, O_AC_DCGM_PTS!A8:A6541, A59, O_AC_DCGM_PTS!B8:B6541,C59, O_AC_DCGM_PTS!C8:C6541, B59) -> 35 | R59: =SUMIFS(O_AC_DCGM_PTS!Q8:Q6541, O_AC_DCGM_PTS!A8:A6541, A59, O_AC_DCGM_PTS!B8:B6541,C59, O_AC_DCGM_PTS!C8:C6541, B59) -> 24
A60: CI | B60: A27 | C60: NRES | D60: N | E60: CI NRES A27 | F60: Community Infrastructure | G60: Non-residential HUEs | H60: Area 27 | I60: =SUMIFS(O_AC_DCGM_PTS!H8:H6541, O_AC_DCGM_PTS!A8:A6541, A60, O_AC_DCGM_PTS!B8:B6541,C60, O_AC_DCGM_PTS!C8:C6541, B60) -> 0 | J60: =SUMIFS(O_AC_DCGM_PTS!I8:I6541, O_AC_DCGM_PTS!A8:A6541, A60, O_AC_DCGM_PTS!B8:B6541,C60, O_AC_DCGM_PTS!C8:C6541, B60) -> 0 | K60: =SUMIFS(O_AC_DCGM_PTS!J8:J6541, O_AC_DCGM_PTS!A8:A6541, A60, O_AC_DCGM_PTS!B8:B6541,C60, O_AC_DCGM_PTS!C8:C6541, B60) -> 0 | L60: =SUMIFS(O_AC_DCGM_PTS!K8:K6541, O_AC_DCGM_PTS!A8:A6541, A60, O_AC_DCGM_PTS!B8:B6541,C60, O_AC_DCGM_PTS!C8:C6541, B60) -> 0 | M60: =SUMIFS(O_AC_DCGM_PTS!L8:L6541, O_AC_DCGM_PTS!A8:A6541, A60, O_AC_DCGM_PTS!B8:B6541,C60, O_AC_DCGM_PTS!C8:C6541, B60) -> 0 | N60: =SUMIFS(O_AC_DCGM_PTS!M8:M6541, O_AC_DCGM_PTS!A8:A6541, A60, O_AC_DCGM_PTS!B8:B6541,C60, O_AC_DCGM_PTS!C8:C6541, B60) -> 0 | O60: =SUMIFS(O_AC_DCGM_PTS!N8:N6541, O_AC_DCGM_PTS!A8:A6541, A60, O_AC_DCGM_PTS!B8:B6541,C60, O_AC_DCGM_PTS!C8:C6541, B60) -> 0 | P60: =SUMIFS(O_AC_DCGM_PTS!O8:O6541, O_AC_DCGM_PTS!A8:A6541, A60, O_AC_DCGM_PTS!B8:B6541,C60, O_AC_DCGM_PTS!C8:C6541, B60) -> 0 | Q60: =SUMIFS(O_AC_DCGM_PTS!P8:P6541, O_AC_DCGM_PTS!A8:A6541, A60, O_AC_DCGM_PTS!B8:B6541,C60, O_AC_DCGM_PTS!C8:C6541, B60) -> 0 | R60: =SUMIFS(O_AC_DCGM_PTS!Q8:Q6541, O_AC_DCGM_PTS!A8:A6541, A60, O_AC_DCGM_PTS!B8:B6541,C60, O_AC_DCGM_PTS!C8:C6541, B60) -> 0
A61: CI | B61: A27 | C61: RES | D61: R | E61: CI RES A27 | F61: Community Infrastructure | G61: Residential HUEs | H61: Area 27 | I61: =SUMIFS(O_AC_DCGM_PTS!H8:H6541, O_AC_DCGM_PTS!A8:A6541, A61, O_AC_DCGM_PTS!B8:B6541,C61, O_AC_DCGM_PTS!C8:C6541, B61) -> 234 | J61: =SUMIFS(O_AC_DCGM_PTS!I8:I6541, O_AC_DCGM_PTS!A8:A6541, A61, O_AC_DCGM_PTS!B8:B6541,C61, O_AC_DCGM_PTS!C8:C6541, B61) -> 230 | K61: =SUMIFS(O_AC_DCGM_PTS!J8:J6541, O_AC_DCGM_PTS!A8:A6541, A61, O_AC_DCGM_PTS!B8:B6541,C61, O_AC_DCGM_PTS!C8:C6541, B61) -> 231 | L61: =SUMIFS(O_AC_DCGM_PTS!K8:K6541, O_AC_DCGM_PTS!A8:A6541, A61, O_AC_DCGM_PTS!B8:B6541,C61, O_AC_DCGM_PTS!C8:C6541, B61) -> 238 | M61: =SUMIFS(O_AC_DCGM_PTS!L8:L6541, O_AC_DCGM_PTS!A8:A6541, A61, O_AC_DCGM_PTS!B8:B6541,C61, O_AC_DCGM_PTS!C8:C6541, B61) -> 256 | N61: =SUMIFS(O_AC_DCGM_PTS!M8:M6541, O_AC_DCGM_PTS!A8:A6541, A61, O_AC_DCGM_PTS!B8:B6541,C61, O_AC_DCGM_PTS!C8:C6541, B61) -> 269 | O61: =SUMIFS(O_AC_DCGM_PTS!N8:N6541, O_AC_DCGM_PTS!A8:A6541, A61, O_AC_DCGM_PTS!B8:B6541,C61, O_AC_DCGM_PTS!C8:C6541, B61) -> 269 | P61: =SUMIFS(O_AC_DCGM_PTS!O8:O6541, O_AC_DCGM_PTS!A8:A6541, A61, O_AC_DCGM_PTS!B8:B6541,C61, O_AC_DCGM_PTS!C8:C6541, B61) -> 248 | Q61: =SUMIFS(O_AC_DCGM_PTS!P8:P6541, O_AC_DCGM_PTS!A8:A6541, A61, O_AC_DCGM_PTS!B8:B6541,C61, O_AC_DCGM_PTS!C8:C6541, B61) -> 243 | R61: =SUMIFS(O_AC_DCGM_PTS!Q8:Q6541, O_AC_DCGM_PTS!A8:A6541, A61, O_AC_DCGM_PTS!B8:B6541,C61, O_AC_DCGM_PTS!C8:C6541, B61) -> 235
A62: CI | B62: A28 | C62: NRES | D62: N | E62: CI NRES A28 | F62: Community Infrastructure | G62: Non-residential HUEs | H62: Area 28 | I62: =SUMIFS(O_AC_DCGM_PTS!H8:H6541, O_AC_DCGM_PTS!A8:A6541, A62, O_AC_DCGM_PTS!B8:B6541,C62, O_AC_DCGM_PTS!C8:C6541, B62) -> 0 | J62: =SUMIFS(O_AC_DCGM_PTS!I8:I6541, O_AC_DCGM_PTS!A8:A6541, A62, O_AC_DCGM_PTS!B8:B6541,C62, O_AC_DCGM_PTS!C8:C6541, B62) -> 0 | K62: =SUMIFS(O_AC_DCGM_PTS!J8:J6541, O_AC_DCGM_PTS!A8:A6541, A62, O_AC_DCGM_PTS!B8:B6541,C62, O_AC_DCGM_PTS!C8:C6541, B62) -> 0 | L62: =SUMIFS(O_AC_DCGM_PTS!K8:K6541, O_AC_DCGM_PTS!A8:A6541, A62, O_AC_DCGM_PTS!B8:B6541,C62, O_AC_DCGM_PTS!C8:C6541, B62) -> 0 | M62: =SUMIFS(O_AC_DCGM_PTS!L8:L6541, O_AC_DCGM_PTS!A8:A6541, A62, O_AC_DCGM_PTS!B8:B6541,C62, O_AC_DCGM_PTS!C8:C6541, B62) -> 0 | N62: =SUMIFS(O_AC_DCGM_PTS!M8:M6541, O_AC_DCGM_PTS!A8:A6541, A62, O_AC_DCGM_PTS!B8:B6541,C62, O_AC_DCGM_PTS!C8:C6541, B62) -> 0 | O62: =SUMIFS(O_AC_DCGM_PTS!N8:N6541, O_AC_DCGM_PTS!A8:A6541, A62, O_AC_DCGM_PTS!B8:B6541,C62, O_AC_DCGM_PTS!C8:C6541, B62) -> 0 | P62: =SUMIFS(O_AC_DCGM_PTS!O8:O6541, O_AC_DCGM_PTS!A8:A6541, A62, O_AC_DCGM_PTS!B8:B6541,C62, O_AC_DCGM_PTS!C8:C6541, B62) -> 0 | Q62: =SUMIFS(O_AC_DCGM_PTS!P8:P6541, O_AC_DCGM_PTS!A8:A6541, A62, O_AC_DCGM_PTS!B8:B6541,C62, O_AC_DCGM_PTS!C8:C6541, B62) -> 0 | R62: =SUMIFS(O_AC_DCGM_PTS!Q8:Q6541, O_AC_DCGM_PTS!A8:A6541, A62, O_AC_DCGM_PTS!B8:B6541,C62, O_AC_DCGM_PTS!C8:C6541, B62) -> 0
A63: CI | B63: A28 | C63: RES | D63: R | E63: CI RES A28 | F63: Community Infrastructure | G63: Residential HUEs | H63: Area 28 | I63: =SUMIFS(O_AC_DCGM_PTS!H8:H6541, O_AC_DCGM_PTS!A8:A6541, A63, O_AC_DCGM_PTS!B8:B6541,C63, O_AC_DCGM_PTS!C8:C6541, B63) -> 136 | J63: =SUMIFS(O_AC_DCGM_PTS!I8:I6541, O_AC_DCGM_PTS!A8:A6541, A63, O_AC_DCGM_PTS!B8:B6541,C63, O_AC_DCGM_PTS!C8:C6541, B63) -> 170 | K63: =SUMIFS(O_AC_DCGM_PTS!J8:J6541, O_AC_DCGM_PTS!A8:A6541, A63, O_AC_DCGM_PTS!B8:B6541,C63, O_AC_DCGM_PTS!C8:C6541, B63) -> 199 | L63: =SUMIFS(O_AC_DCGM_PTS!K8:K6541, O_AC_DCGM_PTS!A8:A6541, A63, O_AC_DCGM_PTS!B8:B6541,C63, O_AC_DCGM_PTS!C8:C6541, B63) -> 219 | M63: =SUMIFS(O_AC_DCGM_PTS!L8:L6541, O_AC_DCGM_PTS!A8:A6541, A63, O_AC_DCGM_PTS!B8:B6541,C63, O_AC_DCGM_PTS!C8:C6541, B63) -> 246 | N63: =SUMIFS(O_AC_DCGM_PTS!M8:M6541, O_AC_DCGM_PTS!A8:A6541, A63, O_AC_DCGM_PTS!B8:B6541,C63, O_AC_DCGM_PTS!C8:C6541, B63) -> 314 | O63: =SUMIFS(O_AC_DCGM_PTS!N8:N6541, O_AC_DCGM_PTS!A8:A6541, A63, O_AC_DCGM_PTS!B8:B6541,C63, O_AC_DCGM_PTS!C8:C6541, B63) -> 361 | P63: =SUMIFS(O_AC_DCGM_PTS!O8:O6541, O_AC_DCGM_PTS!A8:A6541, A63, O_AC_DCGM_PTS!B8:B6541,C63, O_AC_DCGM_PTS!C8:C6541, B63) -> 345 | Q63: =SUMIFS(O_AC_DCGM_PTS!P8:P6541, O_AC_DCGM_PTS!A8:A6541, A63, O_AC_DCGM_PTS!B8:B6541,C63, O_AC_DCGM_PTS!C8:C6541, B63) -> 335 | R63: =SUMIFS(O_AC_DCGM_PTS!Q8:Q6541, O_AC_DCGM_PTS!A8:A6541, A63, O_AC_DCGM_PTS!B8:B6541,C63, O_AC_DCGM_PTS!C8:C6541, B63) -> 398
A64: CI | B64: A29 | C64: NRES | D64: N | E64: CI NRES A29 | F64: Community Infrastructure | G64: Non-residential HUEs | H64: Area 29 | I64: =SUMIFS(O_AC_DCGM_PTS!H8:H6541, O_AC_DCGM_PTS!A8:A6541, A64, O_AC_DCGM_PTS!B8:B6541,C64, O_AC_DCGM_PTS!C8:C6541, B64) -> 0 | J64: =SUMIFS(O_AC_DCGM_PTS!I8:I6541, O_AC_DCGM_PTS!A8:A6541, A64, O_AC_DCGM_PTS!B8:B6541,C64, O_AC_DCGM_PTS!C8:C6541, B64) -> 0 | K64: =SUMIFS(O_AC_DCGM_PTS!J8:J6541, O_AC_DCGM_PTS!A8:A6541, A64, O_AC_DCGM_PTS!B8:B6541,C64, O_AC_DCGM_PTS!C8:C6541, B64) -> 0 | L64: =SUMIFS(O_AC_DCGM_PTS!K8:K6541, O_AC_DCGM_PTS!A8:A6541, A64, O_AC_DCGM_PTS!B8:B6541,C64, O_AC_DCGM_PTS!C8:C6541, B64) -> 0 | M64: =SUMIFS(O_AC_DCGM_PTS!L8:L6541, O_AC_DCGM_PTS!A8:A6541, A64, O_AC_DCGM_PTS!B8:B6541,C64, O_AC_DCGM_PTS!C8:C6541, B64) -> 0 | N64: =SUMIFS(O_AC_DCGM_PTS!M8:M6541, O_AC_DCGM_PTS!A8:A6541, A64, O_AC_DCGM_PTS!B8:B6541,C64, O_AC_DCGM_PTS!C8:C6541, B64) -> 0 | O64: =SUMIFS(O_AC_DCGM_PTS!N8:N6541, O_AC_DCGM_PTS!A8:A6541, A64, O_AC_DCGM_PTS!B8:B6541,C64, O_AC_DCGM_PTS!C8:C6541, B64) -> 0 | P64: =SUMIFS(O_AC_DCGM_PTS!O8:O6541, O_AC_DCGM_PTS!A8:A6541, A64, O_AC_DCGM_PTS!B8:B6541,C64, O_AC_DCGM_PTS!C8:C6541, B64) -> 0 | Q64: =SUMIFS(O_AC_DCGM_PTS!P8:P6541, O_AC_DCGM_PTS!A8:A6541, A64, O_AC_DCGM_PTS!B8:B6541,C64, O_AC_DCGM_PTS!C8:C6541, B64) -> 0 | R64: =SUMIFS(O_AC_DCGM_PTS!Q8:Q6541, O_AC_DCGM_PTS!A8:A6541, A64, O_AC_DCGM_PTS!B8:B6541,C64, O_AC_DCGM_PTS!C8:C6541, B64) -> 0
A65: CI | B65: A29 | C65: RES | D65: R | E65: CI RES A29 | F65: Community Infrastructure | G65: Residential HUEs | H65: Area 29 | I65: =SUMIFS(O_AC_DCGM_PTS!H8:H6541, O_AC_DCGM_PTS!A8:A6541, A65, O_AC_DCGM_PTS!B8:B6541,C65, O_AC_DCGM_PTS!C8:C6541, B65) -> 68 | J65: =SUMIFS(O_AC_DCGM_PTS!I8:I6541, O_AC_DCGM_PTS!A8:A6541, A65, O_AC_DCGM_PTS!B8:B6541,C65, O_AC_DCGM_PTS!C8:C6541, B65) -> 96 | K65: =SUMIFS(O_AC_DCGM_PTS!J8:J6541, O_AC_DCGM_PTS!A8:A6541, A65, O_AC_DCGM_PTS!B8:B6541,C65, O_AC_DCGM_PTS!C8:C6541, B65) -> 119 | L65: =SUMIFS(O_AC_DCGM_PTS!K8:K6541, O_AC_DCGM_PTS!A8:A6541, A65, O_AC_DCGM_PTS!B8:B6541,C65, O_AC_DCGM_PTS!C8:C6541, B65) -> 128 | M65: =SUMIFS(O_AC_DCGM_PTS!L8:L6541, O_AC_DCGM_PTS!A8:A6541, A65, O_AC_DCGM_PTS!B8:B6541,C65, O_AC_DCGM_PTS!C8:C6541, B65) -> 134 | N65: =SUMIFS(O_AC_DCGM_PTS!M8:M6541, O_AC_DCGM_PTS!A8:A6541, A65, O_AC_DCGM_PTS!B8:B6541,C65, O_AC_DCGM_PTS!C8:C6541, B65) -> 134 | O65: =SUMIFS(O_AC_DCGM_PTS!N8:N6541, O_AC_DCGM_PTS!A8:A6541, A65, O_AC_DCGM_PTS!B8:B6541,C65, O_AC_DCGM_PTS!C8:C6541, B65) -> 120 | P65: =SUMIFS(O_AC_DCGM_PTS!O8:O6541, O_AC_DCGM_PTS!A8:A6541, A65, O_AC_DCGM_PTS!B8:B6541,C65, O_AC_DCGM_PTS!C8:C6541, B65) -> 101 | Q65: =SUMIFS(O_AC_DCGM_PTS!P8:P6541, O_AC_DCGM_PTS!A8:A6541, A65, O_AC_DCGM_PTS!B8:B6541,C65, O_AC_DCGM_PTS!C8:C6541, B65) -> 86 | R65: =SUMIFS(O_AC_DCGM_PTS!Q8:Q6541, O_AC_DCGM_PTS!A8:A6541, A65, O_AC_DCGM_PTS!B8:B6541,C65, O_AC_DCGM_PTS!C8:C6541, B65) -> 92
A66: CI | B66: A30 | C66: NRES | D66: N | E66: CI NRES A30 | F66: Community Infrastructure | G66: Non-residential HUEs | H66: Area 30 | I66: =SUMIFS(O_AC_DCGM_PTS!H8:H6541, O_AC_DCGM_PTS!A8:A6541, A66, O_AC_DCGM_PTS!B8:B6541,C66, O_AC_DCGM_PTS!C8:C6541, B66) -> 0 | J66: =SUMIFS(O_AC_DCGM_PTS!I8:I6541, O_AC_DCGM_PTS!A8:A6541, A66, O_AC_DCGM_PTS!B8:B6541,C66, O_AC_DCGM_PTS!C8:C6541, B66) -> 0 | K66: =SUMIFS(O_AC_DCGM_PTS!J8:J6541, O_AC_DCGM_PTS!A8:A6541, A66, O_AC_DCGM_PTS!B8:B6541,C66, O_AC_DCGM_PTS!C8:C6541, B66) -> 0 | L66: =SUMIFS(O_AC_DCGM_PTS!K8:K6541, O_AC_DCGM_PTS!A8:A6541, A66, O_AC_DCGM_PTS!B8:B6541,C66, O_AC_DCGM_PTS!C8:C6541, B66) -> 0 | M66: =SUMIFS(O_AC_DCGM_PTS!L8:L6541, O_AC_DCGM_PTS!A8:A6541, A66, O_AC_DCGM_PTS!B8:B6541,C66, O_AC_DCGM_PTS!C8:C6541, B66) -> 0 | N66: =SUMIFS(O_AC_DCGM_PTS!M8:M6541, O_AC_DCGM_PTS!A8:A6541, A66, O_AC_DCGM_PTS!B8:B6541,C66, O_AC_DCGM_PTS!C8:C6541, B66) -> 0 | O66: =SUMIFS(O_AC_DCGM_PTS!N8:N6541, O_AC_DCGM_PTS!A8:A6541, A66, O_AC_DCGM_PTS!B8:B6541,C66, O_AC_DCGM_PTS!C8:C6541, B66) -> 0 | P66: =SUMIFS(O_AC_DCGM_PTS!O8:O6541, O_AC_DCGM_PTS!A8:A6541, A66, O_AC_DCGM_PTS!B8:B6541,C66, O_AC_DCGM_PTS!C8:C6541, B66) -> 0 | Q66: =SUMIFS(O_AC_DCGM_PTS!P8:P6541, O_AC_DCGM_PTS!A8:A6541, A66, O_AC_DCGM_PTS!B8:B6541,C66, O_AC_DCGM_PTS!C8:C6541, B66) -> 0 | R66: =SUMIFS(O_AC_DCGM_PTS!Q8:Q6541, O_AC_DCGM_PTS!A8:A6541, A66, O_AC_DCGM_PTS!B8:B6541,C66, O_AC_DCGM_PTS!C8:C6541, B66) -> 0
A67: CI | B67: A30 | C67: RES | D67: R | E67: CI RES A30 | F67: Community Infrastructure | G67: Residential HUEs | H67: Area 30 | I67: =SUMIFS(O_AC_DCGM_PTS!H8:H6541, O_AC_DCGM_PTS!A8:A6541, A67, O_AC_DCGM_PTS!B8:B6541,C67, O_AC_DCGM_PTS!C8:C6541, B67) -> 20 | J67: =SUMIFS(O_AC_DCGM_PTS!I8:I6541, O_AC_DCGM_PTS!A8:A6541, A67, O_AC_DCGM_PTS!B8:B6541,C67, O_AC_DCGM_PTS!C8:C6541, B67) -> 27 | K67: =SUMIFS(O_AC_DCGM_PTS!J8:J6541, O_AC_DCGM_PTS!A8:A6541, A67, O_AC_DCGM_PTS!B8:B6541,C67, O_AC_DCGM_PTS!C8:C6541, B67) -> 34 | L67: =SUMIFS(O_AC_DCGM_PTS!K8:K6541, O_AC_DCGM_PTS!A8:A6541, A67, O_AC_DCGM_PTS!B8:B6541,C67, O_AC_DCGM_PTS!C8:C6541, B67) -> 37 | M67: =SUMIFS(O_AC_DCGM_PTS!L8:L6541, O_AC_DCGM_PTS!A8:A6541, A67, O_AC_DCGM_PTS!B8:B6541,C67, O_AC_DCGM_PTS!C8:C6541, B67) -> 39 | N67: =SUMIFS(O_AC_DCGM_PTS!M8:M6541, O_AC_DCGM_PTS!A8:A6541, A67, O_AC_DCGM_PTS!B8:B6541,C67, O_AC_DCGM_PTS!C8:C6541, B67) -> 97 | O67: =SUMIFS(O_AC_DCGM_PTS!N8:N6541, O_AC_DCGM_PTS!A8:A6541, A67, O_AC_DCGM_PTS!B8:B6541,C67, O_AC_DCGM_PTS!C8:C6541, B67) -> 154 | P67: =SUMIFS(O_AC_DCGM_PTS!O8:O6541, O_AC_DCGM_PTS!A8:A6541, A67, O_AC_DCGM_PTS!B8:B6541,C67, O_AC_DCGM_PTS!C8:C6541, B67) -> 149 | Q67: =SUMIFS(O_AC_DCGM_PTS!P8:P6541, O_AC_DCGM_PTS!A8:A6541, A67, O_AC_DCGM_PTS!B8:B6541,C67, O_AC_DCGM_PTS!C8:C6541, B67) -> 137 | R67: =SUMIFS(O_AC_DCGM_PTS!Q8:Q6541, O_AC_DCGM_PTS!A8:A6541, A67, O_AC_DCGM_PTS!B8:B6541,C67, O_AC_DCGM_PTS!C8:C6541, B67) -> 137
A68: CI | B68: A31 | C68: NRES | D68: N | E68: CI NRES A31 | F68: Community Infrastructure | G68: Non-residential HUEs | H68: Area 31 | I68: =SUMIFS(O_AC_DCGM_PTS!H8:H6541, O_AC_DCGM_PTS!A8:A6541, A68, O_AC_DCGM_PTS!B8:B6541,C68, O_AC_DCGM_PTS!C8:C6541, B68) -> 0 | J68: =SUMIFS(O_AC_DCGM_PTS!I8:I6541, O_AC_DCGM_PTS!A8:A6541, A68, O_AC_DCGM_PTS!B8:B6541,C68, O_AC_DCGM_PTS!C8:C6541, B68) -> 0 | K68: =SUMIFS(O_AC_DCGM_PTS!J8:J6541, O_AC_DCGM_PTS!A8:A6541, A68, O_AC_DCGM_PTS!B8:B6541,C68, O_AC_DCGM_PTS!C8:C6541, B68) -> 0 | L68: =SUMIFS(O_AC_DCGM_PTS!K8:K6541, O_AC_DCGM_PTS!A8:A6541, A68, O_AC_DCGM_PTS!B8:B6541,C68, O_AC_DCGM_PTS!C8:C6541, B68) -> 0 | M68: =SUMIFS(O_AC_DCGM_PTS!L8:L6541, O_AC_DCGM_PTS!A8:A6541, A68, O_AC_DCGM_PTS!B8:B6541,C68, O_AC_DCGM_PTS!C8:C6541, B68) -> 0 | N68: =SUMIFS(O_AC_DCGM_PTS!M8:M6541, O_AC_DCGM_PTS!A8:A6541, A68, O_AC_DCGM_PTS!B8:B6541,C68, O_AC_DCGM_PTS!C8:C6541, B68) -> 0 | O68: =SUMIFS(O_AC_DCGM_PTS!N8:N6541, O_AC_DCGM_PTS!A8:A6541, A68, O_AC_DCGM_PTS!B8:B6541,C68, O_AC_DCGM_PTS!C8:C6541, B68) -> 0 | P68: =SUMIFS(O_AC_DCGM_PTS!O8:O6541, O_AC_DCGM_PTS!A8:A6541, A68, O_AC_DCGM_PTS!B8:B6541,C68, O_AC_DCGM_PTS!C8:C6541, B68) -> 0 | Q68: =SUMIFS(O_AC_DCGM_PTS!P8:P6541, O_AC_DCGM_PTS!A8:A6541, A68, O_AC_DCGM_PTS!B8:B6541,C68, O_AC_DCGM_PTS!C8:C6541, B68) -> 0 | R68: =SUMIFS(O_AC_DCGM_PTS!Q8:Q6541, O_AC_DCGM_PTS!A8:A6541, A68, O_AC_DCGM_PTS!B8:B6541,C68, O_AC_DCGM_PTS!C8:C6541, B68) -> 0
A69: CI | B69: A31 | C69: RES | D69: R | E69: CI RES A31 | F69: Community Infrastructure | G69: Residential HUEs | H69: Area 31 | I69: =SUMIFS(O_AC_DCGM_PTS!H8:H6541, O_AC_DCGM_PTS!A8:A6541, A69, O_AC_DCGM_PTS!B8:B6541,C69, O_AC_DCGM_PTS!C8:C6541, B69) -> 0 | J69: =SUMIFS(O_AC_DCGM_PTS!I8:I6541, O_AC_DCGM_PTS!A8:A6541, A69, O_AC_DCGM_PTS!B8:B6541,C69, O_AC_DCGM_PTS!C8:C6541, B69) -> 0 | K69: =SUMIFS(O_AC_DCGM_PTS!J8:J6541, O_AC_DCGM_PTS!A8:A6541, A69, O_AC_DCGM_PTS!B8:B6541,C69, O_AC_DCGM_PTS!C8:C6541, B69) -> 0 | L69: =SUMIFS(O_AC_DCGM_PTS!K8:K6541, O_AC_DCGM_PTS!A8:A6541, A69, O_AC_DCGM_PTS!B8:B6541,C69, O_AC_DCGM_PTS!C8:C6541, B69) -> 0 | M69: =SUMIFS(O_AC_DCGM_PTS!L8:L6541, O_AC_DCGM_PTS!A8:A6541, A69, O_AC_DCGM_PTS!B8:B6541,C69, O_AC_DCGM_PTS!C8:C6541, B69) -> 0 | N69: =SUMIFS(O_AC_DCGM_PTS!M8:M6541, O_AC_DCGM_PTS!A8:A6541, A69, O_AC_DCGM_PTS!B8:B6541,C69, O_AC_DCGM_PTS!C8:C6541, B69) -> 0 | O69: =SUMIFS(O_AC_DCGM_PTS!N8:N6541, O_AC_DCGM_PTS!A8:A6541, A69, O_AC_DCGM_PTS!B8:B6541,C69, O_AC_DCGM_PTS!C8:C6541, B69) -> 0 | P69: =SUMIFS(O_AC_DCGM_PTS!O8:O6541, O_AC_DCGM_PTS!A8:A6541, A69, O_AC_DCGM_PTS!B8:B6541,C69, O_AC_DCGM_PTS!C8:C6541, B69) -> 0 | Q69: =SUMIFS(O_AC_DCGM_PTS!P8:P6541, O_AC_DCGM_PTS!A8:A6541, A69, O_AC_DCGM_PTS!B8:B6541,C69, O_AC_DCGM_PTS!C8:C6541, B69) -> 0 | R69: =SUMIFS(O_AC_DCGM_PTS!Q8:Q6541, O_AC_DCGM_PTS!A8:A6541, A69, O_AC_DCGM_PTS!B8:B6541,C69, O_AC_DCGM_PTS!C8:C6541, B69) -> 15
A70: CI | B70: A32 | C70: NRES | D70: N | E70: CI NRES A32 | F70: Community Infrastructure | G70: Non-residential HUEs | H70: Area 32 | I70: =SUMIFS(O_AC_DCGM_PTS!H8:H6541, O_AC_DCGM_PTS!A8:A6541, A70, O_AC_DCGM_PTS!B8:B6541,C70, O_AC_DCGM_PTS!C8:C6541, B70) -> 0 | J70: =SUMIFS(O_AC_DCGM_PTS!I8:I6541, O_AC_DCGM_PTS!A8:A6541, A70, O_AC_DCGM_PTS!B8:B6541,C70, O_AC_DCGM_PTS!C8:C6541, B70) -> 0 | K70: =SUMIFS(O_AC_DCGM_PTS!J8:J6541, O_AC_DCGM_PTS!A8:A6541, A70, O_AC_DCGM_PTS!B8:B6541,C70, O_AC_DCGM_PTS!C8:C6541, B70) -> 0 | L70: =SUMIFS(O_AC_DCGM_PTS!K8:K6541, O_AC_DCGM_PTS!A8:A6541, A70, O_AC_DCGM_PTS!B8:B6541,C70, O_AC_DCGM_PTS!C8:C6541, B70) -> 0 | M70: =SUMIFS(O_AC_DCGM_PTS!L8:L6541, O_AC_DCGM_PTS!A8:A6541, A70, O_AC_DCGM_PTS!B8:B6541,C70, O_AC_DCGM_PTS!C8:C6541, B70) -> 0 | N70: =SUMIFS(O_AC_DCGM_PTS!M8:M6541, O_AC_DCGM_PTS!A8:A6541, A70, O_AC_DCGM_PTS!B8:B6541,C70, O_AC_DCGM_PTS!C8:C6541, B70) -> 0 | O70: =SUMIFS(O_AC_DCGM_PTS!N8:N6541, O_AC_DCGM_PTS!A8:A6541, A70, O_AC_DCGM_PTS!B8:B6541,C70, O_AC_DCGM_PTS!C8:C6541, B70) -> 0 | P70: =SUMIFS(O_AC_DCGM_PTS!O8:O6541, O_AC_DCGM_PTS!A8:A6541, A70, O_AC_DCGM_PTS!B8:B6541,C70, O_AC_DCGM_PTS!C8:C6541, B70) -> 0 | Q70: =SUMIFS(O_AC_DCGM_PTS!P8:P6541, O_AC_DCGM_PTS!A8:A6541, A70, O_AC_DCGM_PTS!B8:B6541,C70, O_AC_DCGM_PTS!C8:C6541, B70) -> 0 | R70: =SUMIFS(O_AC_DCGM_PTS!Q8:Q6541, O_AC_DCGM_PTS!A8:A6541, A70, O_AC_DCGM_PTS!B8:B6541,C70, O_AC_DCGM_PTS!C8:C6541, B70) -> 0
A71: CI | B71: A32 | C71: RES | D71: R | E71: CI RES A32 | F71: Community Infrastructure | G71: Residential HUEs | H71: Area 32 | I71: =SUMIFS(O_AC_DCGM_PTS!H8:H6541, O_AC_DCGM_PTS!A8:A6541, A71, O_AC_DCGM_PTS!B8:B6541,C71, O_AC_DCGM_PTS!C8:C6541, B71) -> 34 | J71: =SUMIFS(O_AC_DCGM_PTS!I8:I6541, O_AC_DCGM_PTS!A8:A6541, A71, O_AC_DCGM_PTS!B8:B6541,C71, O_AC_DCGM_PTS!C8:C6541, B71) -> 33 | K71: =SUMIFS(O_AC_DCGM_PTS!J8:J6541, O_AC_DCGM_PTS!A8:A6541, A71, O_AC_DCGM_PTS!B8:B6541,C71, O_AC_DCGM_PTS!C8:C6541, B71) -> 34 | L71: =SUMIFS(O_AC_DCGM_PTS!K8:K6541, O_AC_DCGM_PTS!A8:A6541, A71, O_AC_DCGM_PTS!B8:B6541,C71, O_AC_DCGM_PTS!C8:C6541, B71) -> 30 | M71: =SUMIFS(O_AC_DCGM_PTS!L8:L6541, O_AC_DCGM_PTS!A8:A6541, A71, O_AC_DCGM_PTS!B8:B6541,C71, O_AC_DCGM_PTS!C8:C6541, B71) -> 33 | N71: =SUMIFS(O_AC_DCGM_PTS!M8:M6541, O_AC_DCGM_PTS!A8:A6541, A71, O_AC_DCGM_PTS!B8:B6541,C71, O_AC_DCGM_PTS!C8:C6541, B71) -> 39 | O71: =SUMIFS(O_AC_DCGM_PTS!N8:N6541, O_AC_DCGM_PTS!A8:A6541, A71, O_AC_DCGM_PTS!B8:B6541,C71, O_AC_DCGM_PTS!C8:C6541, B71) -> 40 | P71: =SUMIFS(O_AC_DCGM_PTS!O8:O6541, O_AC_DCGM_PTS!A8:A6541, A71, O_AC_DCGM_PTS!B8:B6541,C71, O_AC_DCGM_PTS!C8:C6541, B71) -> 40 | Q71: =SUMIFS(O_AC_DCGM_PTS!P8:P6541, O_AC_DCGM_PTS!A8:A6541, A71, O_AC_DCGM_PTS!B8:B6541,C71, O_AC_DCGM_PTS!C8:C6541, B71) -> 49 | R71: =SUMIFS(O_AC_DCGM_PTS!Q8:Q6541, O_AC_DCGM_PTS!A8:A6541, A71, O_AC_DCGM_PTS!B8:B6541,C71, O_AC_DCGM_PTS!C8:C6541, B71) -> 57
A72: CI | B72: A33 | C72: NRES | D72: N | E72: CI NRES A33 | F72: Community Infrastructure | G72: Non-residential HUEs | H72: Area 33 | I72: =SUMIFS(O_AC_DCGM_PTS!H8:H6541, O_AC_DCGM_PTS!A8:A6541, A72, O_AC_DCGM_PTS!B8:B6541,C72, O_AC_DCGM_PTS!C8:C6541, B72) -> 0 | J72: =SUMIFS(O_AC_DCGM_PTS!I8:I6541, O_AC_DCGM_PTS!A8:A6541, A72, O_AC_DCGM_PTS!B8:B6541,C72, O_AC_DCGM_PTS!C8:C6541, B72) -> 0 | K72: =SUMIFS(O_AC_DCGM_PTS!J8:J6541, O_AC_DCGM_PTS!A8:A6541, A72, O_AC_DCGM_PTS!B8:B6541,C72, O_AC_DCGM_PTS!C8:C6541, B72) -> 0 | L72: =SUMIFS(O_AC_DCGM_PTS!K8:K6541, O_AC_DCGM_PTS!A8:A6541, A72, O_AC_DCGM_PTS!B8:B6541,C72, O_AC_DCGM_PTS!C8:C6541, B72) -> 0 | M72: =SUMIFS(O_AC_DCGM_PTS!L8:L6541, O_AC_DCGM_PTS!A8:A6541, A72, O_AC_DCGM_PTS!B8:B6541,C72, O_AC_DCGM_PTS!C8:C6541, B72) -> 0 | N72: =SUMIFS(O_AC_DCGM_PTS!M8:M6541, O_AC_DCGM_PTS!A8:A6541, A72, O_AC_DCGM_PTS!B8:B6541,C72, O_AC_DCGM_PTS!C8:C6541, B72) -> 0 | O72: =SUMIFS(O_AC_DCGM_PTS!N8:N6541, O_AC_DCGM_PTS!A8:A6541, A72, O_AC_DCGM_PTS!B8:B6541,C72, O_AC_DCGM_PTS!C8:C6541, B72) -> 0 | P72: =SUMIFS(O_AC_DCGM_PTS!O8:O6541, O_AC_DCGM_PTS!A8:A6541, A72, O_AC_DCGM_PTS!B8:B6541,C72, O_AC_DCGM_PTS!C8:C6541, B72) -> 0 | Q72: =SUMIFS(O_AC_DCGM_PTS!P8:P6541, O_AC_DCGM_PTS!A8:A6541, A72, O_AC_DCGM_PTS!B8:B6541,C72, O_AC_DCGM_PTS!C8:C6541, B72) -> 0 | R72: =SUMIFS(O_AC_DCGM_PTS!Q8:Q6541, O_AC_DCGM_PTS!A8:A6541, A72, O_AC_DCGM_PTS!B8:B6541,C72, O_AC_DCGM_PTS!C8:C6541, B72) -> 0
A73: CI | B73: A33 | C73: RES | D73: R | E73: CI RES A33 | F73: Community Infrastructure | G73: Residential HUEs | H73: Area 33 | I73: =SUMIFS(O_AC_DCGM_PTS!H8:H6541, O_AC_DCGM_PTS!A8:A6541, A73, O_AC_DCGM_PTS!B8:B6541,C73, O_AC_DCGM_PTS!C8:C6541, B73) -> 24 | J73: =SUMIFS(O_AC_DCGM_PTS!I8:I6541, O_AC_DCGM_PTS!A8:A6541, A73, O_AC_DCGM_PTS!B8:B6541,C73, O_AC_DCGM_PTS!C8:C6541, B73) -> 24 | K73: =SUMIFS(O_AC_DCGM_PTS!J8:J6541, O_AC_DCGM_PTS!A8:A6541, A73, O_AC_DCGM_PTS!B8:B6541,C73, O_AC_DCGM_PTS!C8:C6541, B73) -> 24 | L73: =SUMIFS(O_AC_DCGM_PTS!K8:K6541, O_AC_DCGM_PTS!A8:A6541, A73, O_AC_DCGM_PTS!B8:B6541,C73, O_AC_DCGM_PTS!C8:C6541, B73) -> 36 | M73: =SUMIFS(O_AC_DCGM_PTS!L8:L6541, O_AC_DCGM_PTS!A8:A6541, A73, O_AC_DCGM_PTS!B8:B6541,C73, O_AC_DCGM_PTS!C8:C6541, B73) -> 54 | N73: =SUMIFS(O_AC_DCGM_PTS!M8:M6541, O_AC_DCGM_PTS!A8:A6541, A73, O_AC_DCGM_PTS!B8:B6541,C73, O_AC_DCGM_PTS!C8:C6541, B73) -> 60 | O73: =SUMIFS(O_AC_DCGM_PTS!N8:N6541, O_AC_DCGM_PTS!A8:A6541, A73, O_AC_DCGM_PTS!B8:B6541,C73, O_AC_DCGM_PTS!C8:C6541, B73) -> 60 | P73: =SUMIFS(O_AC_DCGM_PTS!O8:O6541, O_AC_DCGM_PTS!A8:A6541, A73, O_AC_DCGM_PTS!B8:B6541,C73, O_AC_DCGM_PTS!C8:C6541, B73) -> 63 | Q73: =SUMIFS(O_AC_DCGM_PTS!P8:P6541, O_AC_DCGM_PTS!A8:A6541, A73, O_AC_DCGM_PTS!B8:B6541,C73, O_AC_DCGM_PTS!C8:C6541, B73) -> 72 | R73: =SUMIFS(O_AC_DCGM_PTS!Q8:Q6541, O_AC_DCGM_PTS!A8:A6541, A73, O_AC_DCGM_PTS!B8:B6541,C73, O_AC_DCGM_PTS!C8:C6541, B73) -> 111
A74: CI | B74: A34 | C74: NRES | D74: N | E74: CI NRES A34 | F74: Community Infrastructure | G74: Non-residential HUEs | H74: Area 34 | I74: =SUMIFS(O_AC_DCGM_PTS!H8:H6541, O_AC_DCGM_PTS!A8:A6541, A74, O_AC_DCGM_PTS!B8:B6541,C74, O_AC_DCGM_PTS!C8:C6541, B74) -> 0 | J74: =SUMIFS(O_AC_DCGM_PTS!I8:I6541, O_AC_DCGM_PTS!A8:A6541, A74, O_AC_DCGM_PTS!B8:B6541,C74, O_AC_DCGM_PTS!C8:C6541, B74) -> 0 | K74: =SUMIFS(O_AC_DCGM_PTS!J8:J6541, O_AC_DCGM_PTS!A8:A6541, A74, O_AC_DCGM_PTS!B8:B6541,C74, O_AC_DCGM_PTS!C8:C6541, B74) -> 0 | L74: =SUMIFS(O_AC_DCGM_PTS!K8:K6541, O_AC_DCGM_PTS!A8:A6541, A74, O_AC_DCGM_PTS!B8:B6541,C74, O_AC_DCGM_PTS!C8:C6541, B74) -> 0 | M74: =SUMIFS(O_AC_DCGM_PTS!L8:L6541, O_AC_DCGM_PTS!A8:A6541, A74, O_AC_DCGM_PTS!B8:B6541,C74, O_AC_DCGM_PTS!C8:C6541, B74) -> 0 | N74: =SUMIFS(O_AC_DCGM_PTS!M8:M6541, O_AC_DCGM_PTS!A8:A6541, A74, O_AC_DCGM_PTS!B8:B6541,C74, O_AC_DCGM_PTS!C8:C6541, B74) -> 0 | O74: =SUMIFS(O_AC_DCGM_PTS!N8:N6541, O_AC_DCGM_PTS!A8:A6541, A74, O_AC_DCGM_PTS!B8:B6541,C74, O_AC_DCGM_PTS!C8:C6541, B74) -> 0 | P74: =SUMIFS(O_AC_DCGM_PTS!O8:O6541, O_AC_DCGM_PTS!A8:A6541, A74, O_AC_DCGM_PTS!B8:B6541,C74, O_AC_DCGM_PTS!C8:C6541, B74) -> 0 | Q74: =SUMIFS(O_AC_DCGM_PTS!P8:P6541, O_AC_DCGM_PTS!A8:A6541, A74, O_AC_DCGM_PTS!B8:B6541,C74, O_AC_DCGM_PTS!C8:C6541, B74) -> 0 | R74: =SUMIFS(O_AC_DCGM_PTS!Q8:Q6541, O_AC_DCGM_PTS!A8:A6541, A74, O_AC_DCGM_PTS!B8:B6541,C74, O_AC_DCGM_PTS!C8:C6541, B74) -> 0
A75: CI | B75: A34 | C75: RES | D75: R | E75: CI RES A34 | F75: Community Infrastructure | G75: Residential HUEs | H75: Area 34 | I75: =SUMIFS(O_AC_DCGM_PTS!H8:H6541, O_AC_DCGM_PTS!A8:A6541, A75, O_AC_DCGM_PTS!B8:B6541,C75, O_AC_DCGM_PTS!C8:C6541, B75) -> 127 | J75: =SUMIFS(O_AC_DCGM_PTS!I8:I6541, O_AC_DCGM_PTS!A8:A6541, A75, O_AC_DCGM_PTS!B8:B6541,C75, O_AC_DCGM_PTS!C8:C6541, B75) -> 160 | K75: =SUMIFS(O_AC_DCGM_PTS!J8:J6541, O_AC_DCGM_PTS!A8:A6541, A75, O_AC_DCGM_PTS!B8:B6541,C75, O_AC_DCGM_PTS!C8:C6541, B75) -> 189 | L75: =SUMIFS(O_AC_DCGM_PTS!K8:K6541, O_AC_DCGM_PTS!A8:A6541, A75, O_AC_DCGM_PTS!B8:B6541,C75, O_AC_DCGM_PTS!C8:C6541, B75) -> 211 | M75: =SUMIFS(O_AC_DCGM_PTS!L8:L6541, O_AC_DCGM_PTS!A8:A6541, A75, O_AC_DCGM_PTS!B8:B6541,C75, O_AC_DCGM_PTS!C8:C6541, B75) -> 234 | N75: =SUMIFS(O_AC_DCGM_PTS!M8:M6541, O_AC_DCGM_PTS!A8:A6541, A75, O_AC_DCGM_PTS!B8:B6541,C75, O_AC_DCGM_PTS!C8:C6541, B75) -> 301 | O75: =SUMIFS(O_AC_DCGM_PTS!N8:N6541, O_AC_DCGM_PTS!A8:A6541, A75, O_AC_DCGM_PTS!B8:B6541,C75, O_AC_DCGM_PTS!C8:C6541, B75) -> 350 | P75: =SUMIFS(O_AC_DCGM_PTS!O8:O6541, O_AC_DCGM_PTS!A8:A6541, A75, O_AC_DCGM_PTS!B8:B6541,C75, O_AC_DCGM_PTS!C8:C6541, B75) -> 334 | Q75: =SUMIFS(O_AC_DCGM_PTS!P8:P6541, O_AC_DCGM_PTS!A8:A6541, A75, O_AC_DCGM_PTS!B8:B6541,C75, O_AC_DCGM_PTS!C8:C6541, B75) -> 320 | R75: =SUMIFS(O_AC_DCGM_PTS!Q8:Q6541, O_AC_DCGM_PTS!A8:A6541, A75, O_AC_DCGM_PTS!B8:B6541,C75, O_AC_DCGM_PTS!C8:C6541, B75) -> 378
A76: CI | B76: A35 | C76: NRES | D76: N | E76: CI NRES A35 | F76: Community Infrastructure | G76: Non-residential HUEs | H76: Area 35 | I76: =SUMIFS(O_AC_DCGM_PTS!H8:H6541, O_AC_DCGM_PTS!A8:A6541, A76, O_AC_DCGM_PTS!B8:B6541,C76, O_AC_DCGM_PTS!C8:C6541, B76) -> 0 | J76: =SUMIFS(O_AC_DCGM_PTS!I8:I6541, O_AC_DCGM_PTS!A8:A6541, A76, O_AC_DCGM_PTS!B8:B6541,C76, O_AC_DCGM_PTS!C8:C6541, B76) -> 0 | K76: =SUMIFS(O_AC_DCGM_PTS!J8:J6541, O_AC_DCGM_PTS!A8:A6541, A76, O_AC_DCGM_PTS!B8:B6541,C76, O_AC_DCGM_PTS!C8:C6541, B76) -> 0 | L76: =SUMIFS(O_AC_DCGM_PTS!K8:K6541, O_AC_DCGM_PTS!A8:A6541, A76, O_AC_DCGM_PTS!B8:B6541,C76, O_AC_DCGM_PTS!C8:C6541, B76) -> 0 | M76: =SUMIFS(O_AC_DCGM_PTS!L8:L6541, O_AC_DCGM_PTS!A8:A6541, A76, O_AC_DCGM_PTS!B8:B6541,C76, O_AC_DCGM_PTS!C8:C6541, B76) -> 0 | N76: =SUMIFS(O_AC_DCGM_PTS!M8:M6541, O_AC_DCGM_PTS!A8:A6541, A76, O_AC_DCGM_PTS!B8:B6541,C76, O_AC_DCGM_PTS!C8:C6541, B76) -> 0 | O76: =SUMIFS(O_AC_DCGM_PTS!N8:N6541, O_AC_DCGM_PTS!A8:A6541, A76, O_AC_DCGM_PTS!B8:B6541,C76, O_AC_DCGM_PTS!C8:C6541, B76) -> 0 | P76: =SUMIFS(O_AC_DCGM_PTS!O8:O6541, O_AC_DCGM_PTS!A8:A6541, A76, O_AC_DCGM_PTS!B8:B6541,C76, O_AC_DCGM_PTS!C8:C6541, B76) -> 0 | Q76: =SUMIFS(O_AC_DCGM_PTS!P8:P6541, O_AC_DCGM_PTS!A8:A6541, A76, O_AC_DCGM_PTS!B8:B6541,C76, O_AC_DCGM_PTS!C8:C6541, B76) -> 0 | R76: =SUMIFS(O_AC_DCGM_PTS!Q8:Q6541, O_AC_DCGM_PTS!A8:A6541, A76, O_AC_DCGM_PTS!B8:B6541,C76, O_AC_DCGM_PTS!C8:C6541, B76) -> 0
A77: CI | B77: A35 | C77: RES | D77: R | E77: CI RES A35 | F77: Community Infrastructure | G77: Residential HUEs | H77: Area 35 | I77: =SUMIFS(O_AC_DCGM_PTS!H8:H6541, O_AC_DCGM_PTS!A8:A6541, A77, O_AC_DCGM_PTS!B8:B6541,C77, O_AC_DCGM_PTS!C8:C6541, B77) -> 0 | J77: =SUMIFS(O_AC_DCGM_PTS!I8:I6541, O_AC_DCGM_PTS!A8:A6541, A77, O_AC_DCGM_PTS!B8:B6541,C77, O_AC_DCGM_PTS!C8:C6541, B77) -> 0 | K77: =SUMIFS(O_AC_DCGM_PTS!J8:J6541, O_AC_DCGM_PTS!A8:A6541, A77, O_AC_DCGM_PTS!B8:B6541,C77, O_AC_DCGM_PTS!C8:C6541, B77) -> 0 | L77: =SUMIFS(O_AC_DCGM_PTS!K8:K6541, O_AC_DCGM_PTS!A8:A6541, A77, O_AC_DCGM_PTS!B8:B6541,C77, O_AC_DCGM_PTS!C8:C6541, B77) -> 0 | M77: =SUMIFS(O_AC_DCGM_PTS!L8:L6541, O_AC_DCGM_PTS!A8:A6541, A77, O_AC_DCGM_PTS!B8:B6541,C77, O_AC_DCGM_PTS!C8:C6541, B77) -> 0 | N77: =SUMIFS(O_AC_DCGM_PTS!M8:M6541, O_AC_DCGM_PTS!A8:A6541, A77, O_AC_DCGM_PTS!B8:B6541,C77, O_AC_DCGM_PTS!C8:C6541, B77) -> 0 | O77: =SUMIFS(O_AC_DCGM_PTS!N8:N6541, O_AC_DCGM_PTS!A8:A6541, A77, O_AC_DCGM_PTS!B8:B6541,C77, O_AC_DCGM_PTS!C8:C6541, B77) -> 0 | P77: =SUMIFS(O_AC_DCGM_PTS!O8:O6541, O_AC_DCGM_PTS!A8:A6541, A77, O_AC_DCGM_PTS!B8:B6541,C77, O_AC_DCGM_PTS!C8:C6541, B77) -> 0 | Q77: =SUMIFS(O_AC_DCGM_PTS!P8:P6541, O_AC_DCGM_PTS!A8:A6541, A77, O_AC_DCGM_PTS!B8:B6541,C77, O_AC_DCGM_PTS!C8:C6541, B77) -> 0 | R77: =SUMIFS(O_AC_DCGM_PTS!Q8:Q6541, O_AC_DCGM_PTS!A8:A6541, A77, O_AC_DCGM_PTS!B8:B6541,C77, O_AC_DCGM_PTS!C8:C6541, B77) -> 0
A78: CI | B78: A36 | C78: NRES | D78: N | E78: CI NRES A36 | F78: Community Infrastructure | G78: Non-residential HUEs | H78: Area 36 | I78: =SUMIFS(O_AC_DCGM_PTS!H8:H6541, O_AC_DCGM_PTS!A8:A6541, A78, O_AC_DCGM_PTS!B8:B6541,C78, O_AC_DCGM_PTS!C8:C6541, B78) -> 0 | J78: =SUMIFS(O_AC_DCGM_PTS!I8:I6541, O_AC_DCGM_PTS!A8:A6541, A78, O_AC_DCGM_PTS!B8:B6541,C78, O_AC_DCGM_PTS!C8:C6541, B78) -> 0 | K78: =SUMIFS(O_AC_DCGM_PTS!J8:J6541, O_AC_DCGM_PTS!A8:A6541, A78, O_AC_DCGM_PTS!B8:B6541,C78, O_AC_DCGM_PTS!C8:C6541, B78) -> 0 | L78: =SUMIFS(O_AC_DCGM_PTS!K8:K6541, O_AC_DCGM_PTS!A8:A6541, A78, O_AC_DCGM_PTS!B8:B6541,C78, O_AC_DCGM_PTS!C8:C6541, B78) -> 0 | M78: =SUMIFS(O_AC_DCGM_PTS!L8:L6541, O_AC_DCGM_PTS!A8:A6541, A78, O_AC_DCGM_PTS!B8:B6541,C78, O_AC_DCGM_PTS!C8:C6541, B78) -> 0 | N78: =SUMIFS(O_AC_DCGM_PTS!M8:M6541, O_AC_DCGM_PTS!A8:A6541, A78, O_AC_DCGM_PTS!B8:B6541,C78, O_AC_DCGM_PTS!C8:C6541, B78) -> 0 | O78: =SUMIFS(O_AC_DCGM_PTS!N8:N6541, O_AC_DCGM_PTS!A8:A6541, A78, O_AC_DCGM_PTS!B8:B6541,C78, O_AC_DCGM_PTS!C8:C6541, B78) -> 0 | P78: =SUMIFS(O_AC_DCGM_PTS!O8:O6541, O_AC_DCGM_PTS!A8:A6541, A78, O_AC_DCGM_PTS!B8:B6541,C78, O_AC_DCGM_PTS!C8:C6541, B78) -> 0 | Q78: =SUMIFS(O_AC_DCGM_PTS!P8:P6541, O_AC_DCGM_PTS!A8:A6541, A78, O_AC_DCGM_PTS!B8:B6541,C78, O_AC_DCGM_PTS!C8:C6541, B78) -> 0 | R78: =SUMIFS(O_AC_DCGM_PTS!Q8:Q6541, O_AC_DCGM_PTS!A8:A6541, A78, O_AC_DCGM_PTS!B8:B6541,C78, O_AC_DCGM_PTS!C8:C6541, B78) -> 0
A79: CI | B79: A36 | C79: RES | D79: R | E79: CI RES A36 | F79: Community Infrastructure | G79: Residential HUEs | H79: Area 36 | I79: =SUMIFS(O_AC_DCGM_PTS!H8:H6541, O_AC_DCGM_PTS!A8:A6541, A79, O_AC_DCGM_PTS!B8:B6541,C79, O_AC_DCGM_PTS!C8:C6541, B79) -> 0 | J79: =SUMIFS(O_AC_DCGM_PTS!I8:I6541, O_AC_DCGM_PTS!A8:A6541, A79, O_AC_DCGM_PTS!B8:B6541,C79, O_AC_DCGM_PTS!C8:C6541, B79) -> 0 | K79: =SUMIFS(O_AC_DCGM_PTS!J8:J6541, O_AC_DCGM_PTS!A8:A6541, A79, O_AC_DCGM_PTS!B8:B6541,C79, O_AC_DCGM_PTS!C8:C6541, B79) -> 0 | L79: =SUMIFS(O_AC_DCGM_PTS!K8:K6541, O_AC_DCGM_PTS!A8:A6541, A79, O_AC_DCGM_PTS!B8:B6541,C79, O_AC_DCGM_PTS!C8:C6541, B79) -> 0 | M79: =SUMIFS(O_AC_DCGM_PTS!L8:L6541, O_AC_DCGM_PTS!A8:A6541, A79, O_AC_DCGM_PTS!B8:B6541,C79, O_AC_DCGM_PTS!C8:C6541, B79) -> 0 | N79: =SUMIFS(O_AC_DCGM_PTS!M8:M6541, O_AC_DCGM_PTS!A8:A6541, A79, O_AC_DCGM_PTS!B8:B6541,C79, O_AC_DCGM_PTS!C8:C6541, B79) -> 0 | O79: =SUMIFS(O_AC_DCGM_PTS!N8:N6541, O_AC_DCGM_PTS!A8:A6541, A79, O_AC_DCGM_PTS!B8:B6541,C79, O_AC_DCGM_PTS!C8:C6541, B79) -> 0 | P79: =SUMIFS(O_AC_DCGM_PTS!O8:O6541, O_AC_DCGM_PTS!A8:A6541, A79, O_AC_DCGM_PTS!B8:B6541,C79, O_AC_DCGM_PTS!C8:C6541, B79) -> 0 | Q79: =SUMIFS(O_AC_DCGM_PTS!P8:P6541, O_AC_DCGM_PTS!A8:A6541, A79, O_AC_DCGM_PTS!B8:B6541,C79, O_AC_DCGM_PTS!C8:C6541, B79) -> 0 | R79: =SUMIFS(O_AC_DCGM_PTS!Q8:Q6541, O_AC_DCGM_PTS!A8:A6541, A79, O_AC_DCGM_PTS!B8:B6541,C79, O_AC_DCGM_PTS!C8:C6541, B79) -> 0
A80: CI | B80: A37 | C80: NRES | D80: N | E80: CI NRES A37 | F80: Community Infrastructure | G80: Non-residential HUEs | H80: Area 37 | I80: =SUMIFS(O_AC_DCGM_PTS!H8:H6541, O_AC_DCGM_PTS!A8:A6541, A80, O_AC_DCGM_PTS!B8:B6541,C80, O_AC_DCGM_PTS!C8:C6541, B80) -> 0 | J80: =SUMIFS(O_AC_DCGM_PTS!I8:I6541, O_AC_DCGM_PTS!A8:A6541, A80, O_AC_DCGM_PTS!B8:B6541,C80, O_AC_DCGM_PTS!C8:C6541, B80) -> 0 | K80: =SUMIFS(O_AC_DCGM_PTS!J8:J6541, O_AC_DCGM_PTS!A8:A6541, A80, O_AC_DCGM_PTS!B8:B6541,C80, O_AC_DCGM_PTS!C8:C6541, B80) -> 0 | L80: =SUMIFS(O_AC_DCGM_PTS!K8:K6541, O_AC_DCGM_PTS!A8:A6541, A80, O_AC_DCGM_PTS!B8:B6541,C80, O_AC_DCGM_PTS!C8:C6541, B80) -> 0 | M80: =SUMIFS(O_AC_DCGM_PTS!L8:L6541, O_AC_DCGM_PTS!A8:A6541, A80, O_AC_DCGM_PTS!B8:B6541,C80, O_AC_DCGM_PTS!C8:C6541, B80) -> 0 | N80: =SUMIFS(O_AC_DCGM_PTS!M8:M6541, O_AC_DCGM_PTS!A8:A6541, A80, O_AC_DCGM_PTS!B8:B6541,C80, O_AC_DCGM_PTS!C8:C6541, B80) -> 0 | O80: =SUMIFS(O_AC_DCGM_PTS!N8:N6541, O_AC_DCGM_PTS!A8:A6541, A80, O_AC_DCGM_PTS!B8:B6541,C80, O_AC_DCGM_PTS!C8:C6541, B80) -> 0 | P80: =SUMIFS(O_AC_DCGM_PTS!O8:O6541, O_AC_DCGM_PTS!A8:A6541, A80, O_AC_DCGM_PTS!B8:B6541,C80, O_AC_DCGM_PTS!C8:C6541, B80) -> 0 | Q80: =SUMIFS(O_AC_DCGM_PTS!P8:P6541, O_AC_DCGM_PTS!A8:A6541, A80, O_AC_DCGM_PTS!B8:B6541,C80, O_AC_DCGM_PTS!C8:C6541, B80) -> 0 | R80: =SUMIFS(O_AC_DCGM_PTS!Q8:Q6541, O_AC_DCGM_PTS!A8:A6541, A80, O_AC_DCGM_PTS!B8:B6541,C80, O_AC_DCGM_PTS!C8:C6541, B80) -> 0
A81: CI | B81: A37 | C81: RES | D81: R | E81: CI RES A37 | F81: Community Infrastructure | G81: Residential HUEs | H81: Area 37 | I81: =SUMIFS(O_AC_DCGM_PTS!H8:H6541, O_AC_DCGM_PTS!A8:A6541, A81, O_AC_DCGM_PTS!B8:B6541,C81, O_AC_DCGM_PTS!C8:C6541, B81) -> 0 | J81: =SUMIFS(O_AC_DCGM_PTS!I8:I6541, O_AC_DCGM_PTS!A8:A6541, A81, O_AC_DCGM_PTS!B8:B6541,C81, O_AC_DCGM_PTS!C8:C6541, B81) -> 0 | K81: =SUMIFS(O_AC_DCGM_PTS!J8:J6541, O_AC_DCGM_PTS!A8:A6541, A81, O_AC_DCGM_PTS!B8:B6541,C81, O_AC_DCGM_PTS!C8:C6541, B81) -> 0 | L81: =SUMIFS(O_AC_DCGM_PTS!K8:K6541, O_AC_DCGM_PTS!A8:A6541, A81, O_AC_DCGM_PTS!B8:B6541,C81, O_AC_DCGM_PTS!C8:C6541, B81) -> 0 | M81: =SUMIFS(O_AC_DCGM_PTS!L8:L6541, O_AC_DCGM_PTS!A8:A6541, A81, O_AC_DCGM_PTS!B8:B6541,C81, O_AC_DCGM_PTS!C8:C6541, B81) -> 0 | N81: =SUMIFS(O_AC_DCGM_PTS!M8:M6541, O_AC_DCGM_PTS!A8:A6541, A81, O_AC_DCGM_PTS!B8:B6541,C81, O_AC_DCGM_PTS!C8:C6541, B81) -> 0 | O81: =SUMIFS(O_AC_DCGM_PTS!N8:N6541, O_AC_DCGM_PTS!A8:A6541, A81, O_AC_DCGM_PTS!B8:B6541,C81, O_AC_DCGM_PTS!C8:C6541, B81) -> 0 | P81: =SUMIFS(O_AC_DCGM_PTS!O8:O6541, O_AC_DCGM_PTS!A8:A6541, A81, O_AC_DCGM_PTS!B8:B6541,C81, O_AC_DCGM_PTS!C8:C6541, B81) -> 0 | Q81: =SUMIFS(O_AC_DCGM_PTS!P8:P6541, O_AC_DCGM_PTS!A8:A6541, A81, O_AC_DCGM_PTS!B8:B6541,C81, O_AC_DCGM_PTS!C8:C6541, B81) -> 0 | R81: =SUMIFS(O_AC_DCGM_PTS!Q8:Q6541, O_AC_DCGM_PTS!A8:A6541, A81, O_AC_DCGM_PTS!B8:B6541,C81, O_AC_DCGM_PTS!C8:C6541, B81) -> 0
A82: CI | B82: A38 | C82: NRES | D82: N | E82: CI NRES A38 | F82: Community Infrastructure | G82: Non-residential HUEs | H82: Area 38 | I82: =SUMIFS(O_AC_DCGM_PTS!H8:H6541, O_AC_DCGM_PTS!A8:A6541, A82, O_AC_DCGM_PTS!B8:B6541,C82, O_AC_DCGM_PTS!C8:C6541, B82) -> 0 | J82: =SUMIFS(O_AC_DCGM_PTS!I8:I6541, O_AC_DCGM_PTS!A8:A6541, A82, O_AC_DCGM_PTS!B8:B6541,C82, O_AC_DCGM_PTS!C8:C6541, B82) -> 0 | K82: =SUMIFS(O_AC_DCGM_PTS!J8:J6541, O_AC_DCGM_PTS!A8:A6541, A82, O_AC_DCGM_PTS!B8:B6541,C82, O_AC_DCGM_PTS!C8:C6541, B82) -> 0 | L82: =SUMIFS(O_AC_DCGM_PTS!K8:K6541, O_AC_DCGM_PTS!A8:A6541, A82, O_AC_DCGM_PTS!B8:B6541,C82, O_AC_DCGM_PTS!C8:C6541, B82) -> 0 | M82: =SUMIFS(O_AC_DCGM_PTS!L8:L6541, O_AC_DCGM_PTS!A8:A6541, A82, O_AC_DCGM_PTS!B8:B6541,C82, O_AC_DCGM_PTS!C8:C6541, B82) -> 0 | N82: =SUMIFS(O_AC_DCGM_PTS!M8:M6541, O_AC_DCGM_PTS!A8:A6541, A82, O_AC_DCGM_PTS!B8:B6541,C82, O_AC_DCGM_PTS!C8:C6541, B82) -> 0 | O82: =SUMIFS(O_AC_DCGM_PTS!N8:N6541, O_AC_DCGM_PTS!A8:A6541, A82, O_AC_DCGM_PTS!B8:B6541,C82, O_AC_DCGM_PTS!C8:C6541, B82) -> 0 | P82: =SUMIFS(O_AC_DCGM_PTS!O8:O6541, O_AC_DCGM_PTS!A8:A6541, A82, O_AC_DCGM_PTS!B8:B6541,C82, O_AC_DCGM_PTS!C8:C6541, B82) -> 0 | Q82: =SUMIFS(O_AC_DCGM_PTS!P8:P6541, O_AC_DCGM_PTS!A8:A6541, A82, O_AC_DCGM_PTS!B8:B6541,C82, O_AC_DCGM_PTS!C8:C6541, B82) -> 0 | R82: =SUMIFS(O_AC_DCGM_PTS!Q8:Q6541, O_AC_DCGM_PTS!A8:A6541, A82, O_AC_DCGM_PTS!B8:B6541,C82, O_AC_DCGM_PTS!C8:C6541, B82) -> 0
A83: CI | B83: A38 | C83: RES | D83: R | E83: CI RES A38 | F83: Community Infrastructure | G83: Residential HUEs | H83: Area 38 | I83: =SUMIFS(O_AC_DCGM_PTS!H8:H6541, O_AC_DCGM_PTS!A8:A6541, A83, O_AC_DCGM_PTS!B8:B6541,C83, O_AC_DCGM_PTS!C8:C6541, B83) -> 0 | J83: =SUMIFS(O_AC_DCGM_PTS!I8:I6541, O_AC_DCGM_PTS!A8:A6541, A83, O_AC_DCGM_PTS!B8:B6541,C83, O_AC_DCGM_PTS!C8:C6541, B83) -> 0 | K83: =SUMIFS(O_AC_DCGM_PTS!J8:J6541, O_AC_DCGM_PTS!A8:A6541, A83, O_AC_DCGM_PTS!B8:B6541,C83, O_AC_DCGM_PTS!C8:C6541, B83) -> 0 | L83: =SUMIFS(O_AC_DCGM_PTS!K8:K6541, O_AC_DCGM_PTS!A8:A6541, A83, O_AC_DCGM_PTS!B8:B6541,C83, O_AC_DCGM_PTS!C8:C6541, B83) -> 0 | M83: =SUMIFS(O_AC_DCGM_PTS!L8:L6541, O_AC_DCGM_PTS!A8:A6541, A83, O_AC_DCGM_PTS!B8:B6541,C83, O_AC_DCGM_PTS!C8:C6541, B83) -> 0 | N83: =SUMIFS(O_AC_DCGM_PTS!M8:M6541, O_AC_DCGM_PTS!A8:A6541, A83, O_AC_DCGM_PTS!B8:B6541,C83, O_AC_DCGM_PTS!C8:C6541, B83) -> 0 | O83: =SUMIFS(O_AC_DCGM_PTS!N8:N6541, O_AC_DCGM_PTS!A8:A6541, A83, O_AC_DCGM_PTS!B8:B6541,C83, O_AC_DCGM_PTS!C8:C6541, B83) -> 0 | P83: =SUMIFS(O_AC_DCGM_PTS!O8:O6541, O_AC_DCGM_PTS!A8:A6541, A83, O_AC_DCGM_PTS!B8:B6541,C83, O_AC_DCGM_PTS!C8:C6541, B83) -> 0 | Q83: =SUMIFS(O_AC_DCGM_PTS!P8:P6541, O_AC_DCGM_PTS!A8:A6541, A83, O_AC_DCGM_PTS!B8:B6541,C83, O_AC_DCGM_PTS!C8:C6541, B83) -> 0 | R83: =SUMIFS(O_AC_DCGM_PTS!Q8:Q6541, O_AC_DCGM_PTS!A8:A6541, A83, O_AC_DCGM_PTS!B8:B6541,C83, O_AC_DCGM_PTS!C8:C6541, B83) -> 0
A84: CI | B84: A39 | C84: NRES | D84: N | E84: CI NRES A39 | F84: Community Infrastructure | G84: Non-residential HUEs | H84: Area 39 | I84: =SUMIFS(O_AC_DCGM_PTS!H8:H6541, O_AC_DCGM_PTS!A8:A6541, A84, O_AC_DCGM_PTS!B8:B6541,C84, O_AC_DCGM_PTS!C8:C6541, B84) -> 0 | J84: =SUMIFS(O_AC_DCGM_PTS!I8:I6541, O_AC_DCGM_PTS!A8:A6541, A84, O_AC_DCGM_PTS!B8:B6541,C84, O_AC_DCGM_PTS!C8:C6541, B84) -> 0 | K84: =SUMIFS(O_AC_DCGM_PTS!J8:J6541, O_AC_DCGM_PTS!A8:A6541, A84, O_AC_DCGM_PTS!B8:B6541,C84, O_AC_DCGM_PTS!C8:C6541, B84) -> 0 | L84: =SUMIFS(O_AC_DCGM_PTS!K8:K6541, O_AC_DCGM_PTS!A8:A6541, A84, O_AC_DCGM_PTS!B8:B6541,C84, O_AC_DCGM_PTS!C8:C6541, B84) -> 0 | M84: =SUMIFS(O_AC_DCGM_PTS!L8:L6541, O_AC_DCGM_PTS!A8:A6541, A84, O_AC_DCGM_PTS!B8:B6541,C84, O_AC_DCGM_PTS!C8:C6541, B84) -> 0 | N84: =SUMIFS(O_AC_DCGM_PTS!M8:M6541, O_AC_DCGM_PTS!A8:A6541, A84, O_AC_DCGM_PTS!B8:B6541,C84, O_AC_DCGM_PTS!C8:C6541, B84) -> 0 | O84: =SUMIFS(O_AC_DCGM_PTS!N8:N6541, O_AC_DCGM_PTS!A8:A6541, A84, O_AC_DCGM_PTS!B8:B6541,C84, O_AC_DCGM_PTS!C8:C6541, B84) -> 0 | P84: =SUMIFS(O_AC_DCGM_PTS!O8:O6541, O_AC_DCGM_PTS!A8:A6541, A84, O_AC_DCGM_PTS!B8:B6541,C84, O_AC_DCGM_PTS!C8:C6541, B84) -> 0 | Q84: =SUMIFS(O_AC_DCGM_PTS!P8:P6541, O_AC_DCGM_PTS!A8:A6541, A84, O_AC_DCGM_PTS!B8:B6541,C84, O_AC_DCGM_PTS!C8:C6541, B84) -> 0 | R84: =SUMIFS(O_AC_DCGM_PTS!Q8:Q6541, O_AC_DCGM_PTS!A8:A6541, A84, O_AC_DCGM_PTS!B8:B6541,C84, O_AC_DCGM_PTS!C8:C6541, B84) -> 0
A85: CI | B85: A39 | C85: RES | D85: R | E85: CI RES A39 | F85: Community Infrastructure | G85: Residential HUEs | H85: Area 39 | I85: =SUMIFS(O_AC_DCGM_PTS!H8:H6541, O_AC_DCGM_PTS!A8:A6541, A85, O_AC_DCGM_PTS!B8:B6541,C85, O_AC_DCGM_PTS!C8:C6541, B85) -> 0 | J85: =SUMIFS(O_AC_DCGM_PTS!I8:I6541, O_AC_DCGM_PTS!A8:A6541, A85, O_AC_DCGM_PTS!B8:B6541,C85, O_AC_DCGM_PTS!C8:C6541, B85) -> 0 | K85: =SUMIFS(O_AC_DCGM_PTS!J8:J6541, O_AC_DCGM_PTS!A8:A6541, A85, O_AC_DCGM_PTS!B8:B6541,C85, O_AC_DCGM_PTS!C8:C6541, B85) -> 0 | L85: =SUMIFS(O_AC_DCGM_PTS!K8:K6541, O_AC_DCGM_PTS!A8:A6541, A85, O_AC_DCGM_PTS!B8:B6541,C85, O_AC_DCGM_PTS!C8:C6541, B85) -> 0 | M85: =SUMIFS(O_AC_DCGM_PTS!L8:L6541, O_AC_DCGM_PTS!A8:A6541, A85, O_AC_DCGM_PTS!B8:B6541,C85, O_AC_DCGM_PTS!C8:C6541, B85) -> 0 | N85: =SUMIFS(O_AC_DCGM_PTS!M8:M6541, O_AC_DCGM_PTS!A8:A6541, A85, O_AC_DCGM_PTS!B8:B6541,C85, O_AC_DCGM_PTS!C8:C6541, B85) -> 0 | O85: =SUMIFS(O_AC_DCGM_PTS!N8:N6541, O_AC_DCGM_PTS!A8:A6541, A85, O_AC_DCGM_PTS!B8:B6541,C85, O_AC_DCGM_PTS!C8:C6541, B85) -> 0 | P85: =SUMIFS(O_AC_DCGM_PTS!O8:O6541, O_AC_DCGM_PTS!A8:A6541, A85, O_AC_DCGM_PTS!B8:B6541,C85, O_AC_DCGM_PTS!C8:C6541, B85) -> 0 | Q85: =SUMIFS(O_AC_DCGM_PTS!P8:P6541, O_AC_DCGM_PTS!A8:A6541, A85, O_AC_DCGM_PTS!B8:B6541,C85, O_AC_DCGM_PTS!C8:C6541, B85) -> 0 | R85: =SUMIFS(O_AC_DCGM_PTS!Q8:Q6541, O_AC_DCGM_PTS!A8:A6541, A85, O_AC_DCGM_PTS!B8:B6541,C85, O_AC_DCGM_PTS!C8:C6541, B85) -> 0
A86: CI | B86: A40 | C86: NRES | D86: N | E86: CI NRES A40 | F86: Community Infrastructure | G86: Non-residential HUEs | H86: Area 40 | I86: =SUMIFS(O_AC_DCGM_PTS!H8:H6541, O_AC_DCGM_PTS!A8:A6541, A86, O_AC_DCGM_PTS!B8:B6541,C86, O_AC_DCGM_PTS!C8:C6541, B86) -> 0 | J86: =SUMIFS(O_AC_DCGM_PTS!I8:I6541, O_AC_DCGM_PTS!A8:A6541, A86, O_AC_DCGM_PTS!B8:B6541,C86, O_AC_DCGM_PTS!C8:C6541, B86) -> 0 | K86: =SUMIFS(O_AC_DCGM_PTS!J8:J6541, O_AC_DCGM_PTS!A8:A6541, A86, O_AC_DCGM_PTS!B8:B6541,C86, O_AC_DCGM_PTS!C8:C6541, B86) -> 0 | L86: =SUMIFS(O_AC_DCGM_PTS!K8:K6541, O_AC_DCGM_PTS!A8:A6541, A86, O_AC_DCGM_PTS!B8:B6541,C86, O_AC_DCGM_PTS!C8:C6541, B86) -> 0 | M86: =SUMIFS(O_AC_DCGM_PTS!L8:L6541, O_AC_DCGM_PTS!A8:A6541, A86, O_AC_DCGM_PTS!B8:B6541,C86, O_AC_DCGM_PTS!C8:C6541, B86) -> 0 | N86: =SUMIFS(O_AC_DCGM_PTS!M8:M6541, O_AC_DCGM_PTS!A8:A6541, A86, O_AC_DCGM_PTS!B8:B6541,C86, O_AC_DCGM_PTS!C8:C6541, B86) -> 0 | O86: =SUMIFS(O_AC_DCGM_PTS!N8:N6541, O_AC_DCGM_PTS!A8:A6541, A86, O_AC_DCGM_PTS!B8:B6541,C86, O_AC_DCGM_PTS!C8:C6541, B86) -> 0 | P86: =SUMIFS(O_AC_DCGM_PTS!O8:O6541, O_AC_DCGM_PTS!A8:A6541, A86, O_AC_DCGM_PTS!B8:B6541,C86, O_AC_DCGM_PTS!C8:C6541, B86) -> 0 | Q86: =SUMIFS(O_AC_DCGM_PTS!P8:P6541, O_AC_DCGM_PTS!A8:A6541, A86, O_AC_DCGM_PTS!B8:B6541,C86, O_AC_DCGM_PTS!C8:C6541, B86) -> 0 | R86: =SUMIFS(O_AC_DCGM_PTS!Q8:Q6541, O_AC_DCGM_PTS!A8:A6541, A86, O_AC_DCGM_PTS!B8:B6541,C86, O_AC_DCGM_PTS!C8:C6541, B86) -> 0
A87: CI | B87: A40 | C87: RES | D87: R | E87: CI RES A40 | F87: Community Infrastructure | G87: Residential HUEs | H87: Area 40 | I87: =SUMIFS(O_AC_DCGM_PTS!H8:H6541, O_AC_DCGM_PTS!A8:A6541, A87, O_AC_DCGM_PTS!B8:B6541,C87, O_AC_DCGM_PTS!C8:C6541, B87) -> 0 | J87: =SUMIFS(O_AC_DCGM_PTS!I8:I6541, O_AC_DCGM_PTS!A8:A6541, A87, O_AC_DCGM_PTS!B8:B6541,C87, O_AC_DCGM_PTS!C8:C6541, B87) -> 0 | K87: =SUMIFS(O_AC_DCGM_PTS!J8:J6541, O_AC_DCGM_PTS!A8:A6541, A87, O_AC_DCGM_PTS!B8:B6541,C87, O_AC_DCGM_PTS!C8:C6541, B87) -> 0 | L87: =SUMIFS(O_AC_DCGM_PTS!K8:K6541, O_AC_DCGM_PTS!A8:A6541, A87, O_AC_DCGM_PTS!B8:B6541,C87, O_AC_DCGM_PTS!C8:C6541, B87) -> 0 | M87: =SUMIFS(O_AC_DCGM_PTS!L8:L6541, O_AC_DCGM_PTS!A8:A6541, A87, O_AC_DCGM_PTS!B8:B6541,C87, O_AC_DCGM_PTS!C8:C6541, B87) -> 0 | N87: =SUMIFS(O_AC_DCGM_PTS!M8:M6541, O_AC_DCGM_PTS!A8:A6541, A87, O_AC_DCGM_PTS!B8:B6541,C87, O_AC_DCGM_PTS!C8:C6541, B87) -> 0 | O87: =SUMIFS(O_AC_DCGM_PTS!N8:N6541, O_AC_DCGM_PTS!A8:A6541, A87, O_AC_DCGM_PTS!B8:B6541,C87, O_AC_DCGM_PTS!C8:C6541, B87) -> 0 | P87: =SUMIFS(O_AC_DCGM_PTS!O8:O6541, O_AC_DCGM_PTS!A8:A6541, A87, O_AC_DCGM_PTS!B8:B6541,C87, O_AC_DCGM_PTS!C8:C6541, B87) -> 0 | Q87: =SUMIFS(O_AC_DCGM_PTS!P8:P6541, O_AC_DCGM_PTS!A8:A6541, A87, O_AC_DCGM_PTS!B8:B6541,C87, O_AC_DCGM_PTS!C8:C6541, B87) -> 0 | R87: =SUMIFS(O_AC_DCGM_PTS!Q8:Q6541, O_AC_DCGM_PTS!A8:A6541, A87, O_AC_DCGM_PTS!B8:B6541,C87, O_AC_DCGM_PTS!C8:C6541, B87) -> 0
A88: CI | B88: A41 | C88: NRES | D88: N | E88: CI NRES A41 | F88: Community Infrastructure | G88: Non-residential HUEs | H88: Area 41 | I88: =SUMIFS(O_AC_DCGM_PTS!H8:H6541, O_AC_DCGM_PTS!A8:A6541, A88, O_AC_DCGM_PTS!B8:B6541,C88, O_AC_DCGM_PTS!C8:C6541, B88) -> 0 | J88: =SUMIFS(O_AC_DCGM_PTS!I8:I6541, O_AC_DCGM_PTS!A8:A6541, A88, O_AC_DCGM_PTS!B8:B6541,C88, O_AC_DCGM_PTS!C8:C6541, B88) -> 0 | K88: =SUMIFS(O_AC_DCGM_PTS!J8:J6541, O_AC_DCGM_PTS!A8:A6541, A88, O_AC_DCGM_PTS!B8:B6541,C88, O_AC_DCGM_PTS!C8:C6541, B88) -> 0 | L88: =SUMIFS(O_AC_DCGM_PTS!K8:K6541, O_AC_DCGM_PTS!A8:A6541, A88, O_AC_DCGM_PTS!B8:B6541,C88, O_AC_DCGM_PTS!C8:C6541, B88) -> 0 | M88: =SUMIFS(O_AC_DCGM_PTS!L8:L6541, O_AC_DCGM_PTS!A8:A6541, A88, O_AC_DCGM_PTS!B8:B6541,C88, O_AC_DCGM_PTS!C8:C6541, B88) -> 0 | N88: =SUMIFS(O_AC_DCGM_PTS!M8:M6541, O_AC_DCGM_PTS!A8:A6541, A88, O_AC_DCGM_PTS!B8:B6541,C88, O_AC_DCGM_PTS!C8:C6541, B88) -> 0 | O88: =SUMIFS(O_AC_DCGM_PTS!N8:N6541, O_AC_DCGM_PTS!A8:A6541, A88, O_AC_DCGM_PTS!B8:B6541,C88, O_AC_DCGM_PTS!C8:C6541, B88) -> 0 | P88: =SUMIFS(O_AC_DCGM_PTS!O8:O6541, O_AC_DCGM_PTS!A8:A6541, A88, O_AC_DCGM_PTS!B8:B6541,C88, O_AC_DCGM_PTS!C8:C6541, B88) -> 0 | Q88: =SUMIFS(O_AC_DCGM_PTS!P8:P6541, O_AC_DCGM_PTS!A8:A6541, A88, O_AC_DCGM_PTS!B8:B6541,C88, O_AC_DCGM_PTS!C8:C6541, B88) -> 0 | R88: =SUMIFS(O_AC_DCGM_PTS!Q8:Q6541, O_AC_DCGM_PTS!A8:A6541, A88, O_AC_DCGM_PTS!B8:B6541,C88, O_AC_DCGM_PTS!C8:C6541, B88) -> 0
A89: CI | B89: A41 | C89: RES | D89: R | E89: CI RES A41 | F89: Community Infrastructure | G89: Residential HUEs | H89: Area 41 | I89: =SUMIFS(O_AC_DCGM_PTS!H8:H6541, O_AC_DCGM_PTS!A8:A6541, A89, O_AC_DCGM_PTS!B8:B6541,C89, O_AC_DCGM_PTS!C8:C6541, B89) -> 0 | J89: =SUMIFS(O_AC_DCGM_PTS!I8:I6541, O_AC_DCGM_PTS!A8:A6541, A89, O_AC_DCGM_PTS!B8:B6541,C89, O_AC_DCGM_PTS!C8:C6541, B89) -> 0 | K89: =SUMIFS(O_AC_DCGM_PTS!J8:J6541, O_AC_DCGM_PTS!A8:A6541, A89, O_AC_DCGM_PTS!B8:B6541,C89, O_AC_DCGM_PTS!C8:C6541, B89) -> 0 | L89: =SUMIFS(O_AC_DCGM_PTS!K8:K6541, O_AC_DCGM_PTS!A8:A6541, A89, O_AC_DCGM_PTS!B8:B6541,C89, O_AC_DCGM_PTS!C8:C6541, B89) -> 0 | M89: =SUMIFS(O_AC_DCGM_PTS!L8:L6541, O_AC_DCGM_PTS!A8:A6541, A89, O_AC_DCGM_PTS!B8:B6541,C89, O_AC_DCGM_PTS!C8:C6541, B89) -> 0 | N89: =SUMIFS(O_AC_DCGM_PTS!M8:M6541, O_AC_DCGM_PTS!A8:A6541, A89, O_AC_DCGM_PTS!B8:B6541,C89, O_AC_DCGM_PTS!C8:C6541, B89) -> 0 | O89: =SUMIFS(O_AC_DCGM_PTS!N8:N6541, O_AC_DCGM_PTS!A8:A6541, A89, O_AC_DCGM_PTS!B8:B6541,C89, O_AC_DCGM_PTS!C8:C6541, B89) -> 0 | P89: =SUMIFS(O_AC_DCGM_PTS!O8:O6541, O_AC_DCGM_PTS!A8:A6541, A89, O_AC_DCGM_PTS!B8:B6541,C89, O_AC_DCGM_PTS!C8:C6541, B89) -> 0 | Q89: =SUMIFS(O_AC_DCGM_PTS!P8:P6541, O_AC_DCGM_PTS!A8:A6541, A89, O_AC_DCGM_PTS!B8:B6541,C89, O_AC_DCGM_PTS!C8:C6541, B89) -> 0 | R89: =SUMIFS(O_AC_DCGM_PTS!Q8:Q6541, O_AC_DCGM_PTS!A8:A6541, A89, O_AC_DCGM_PTS!B8:B6541,C89, O_AC_DCGM_PTS!C8:C6541, B89) -> 0
A90: CI | B90: A42 | C90: NRES | D90: N | E90: CI NRES A42 | F90: Community Infrastructure | G90: Non-residential HUEs | H90: Area 42 | I90: =SUMIFS(O_AC_DCGM_PTS!H8:H6541, O_AC_DCGM_PTS!A8:A6541, A90, O_AC_DCGM_PTS!B8:B6541,C90, O_AC_DCGM_PTS!C8:C6541, B90) -> 0 | J90: =SUMIFS(O_AC_DCGM_PTS!I8:I6541, O_AC_DCGM_PTS!A8:A6541, A90, O_AC_DCGM_PTS!B8:B6541,C90, O_AC_DCGM_PTS!C8:C6541, B90) -> 0 | K90: =SUMIFS(O_AC_DCGM_PTS!J8:J6541, O_AC_DCGM_PTS!A8:A6541, A90, O_AC_DCGM_PTS!B8:B6541,C90, O_AC_DCGM_PTS!C8:C6541, B90) -> 0 | L90: =SUMIFS(O_AC_DCGM_PTS!K8:K6541, O_AC_DCGM_PTS!A8:A6541, A90, O_AC_DCGM_PTS!B8:B6541,C90, O_AC_DCGM_PTS!C8:C6541, B90) -> 0 | M90: =SUMIFS(O_AC_DCGM_PTS!L8:L6541, O_AC_DCGM_PTS!A8:A6541, A90, O_AC_DCGM_PTS!B8:B6541,C90, O_AC_DCGM_PTS!C8:C6541, B90) -> 0 | N90: =SUMIFS(O_AC_DCGM_PTS!M8:M6541, O_AC_DCGM_PTS!A8:A6541, A90, O_AC_DCGM_PTS!B8:B6541,C90, O_AC_DCGM_PTS!C8:C6541, B90) -> 0 | O90: =SUMIFS(O_AC_DCGM_PTS!N8:N6541, O_AC_DCGM_PTS!A8:A6541, A90, O_AC_DCGM_PTS!B8:B6541,C90, O_AC_DCGM_PTS!C8:C6541, B90) -> 0 | P90: =SUMIFS(O_AC_DCGM_PTS!O8:O6541, O_AC_DCGM_PTS!A8:A6541, A90, O_AC_DCGM_PTS!B8:B6541,C90, O_AC_DCGM_PTS!C8:C6541, B90) -> 0 | Q90: =SUMIFS(O_AC_DCGM_PTS!P8:P6541, O_AC_DCGM_PTS!A8:A6541, A90, O_AC_DCGM_PTS!B8:B6541,C90, O_AC_DCGM_PTS!C8:C6541, B90) -> 0 | R90: =SUMIFS(O_AC_DCGM_PTS!Q8:Q6541, O_AC_DCGM_PTS!A8:A6541, A90, O_AC_DCGM_PTS!B8:B6541,C90, O_AC_DCGM_PTS!C8:C6541, B90) -> 0
A91: CI | B91: A42 | C91: RES | D91: R | E91: CI RES A42 | F91: Community Infrastructure | G91: Residential HUEs | H91: Area 42 | I91: =SUMIFS(O_AC_DCGM_PTS!H8:H6541, O_AC_DCGM_PTS!A8:A6541, A91, O_AC_DCGM_PTS!B8:B6541,C91, O_AC_DCGM_PTS!C8:C6541, B91) -> 0 | J91: =SUMIFS(O_AC_DCGM_PTS!I8:I6541, O_AC_DCGM_PTS!A8:A6541, A91, O_AC_DCGM_PTS!B8:B6541,C91, O_AC_DCGM_PTS!C8:C6541, B91) -> 0 | K91: =SUMIFS(O_AC_DCGM_PTS!J8:J6541, O_AC_DCGM_PTS!A8:A6541, A91, O_AC_DCGM_PTS!B8:B6541,C91, O_AC_DCGM_PTS!C8:C6541, B91) -> 0 | L91: =SUMIFS(O_AC_DCGM_PTS!K8:K6541, O_AC_DCGM_PTS!A8:A6541, A91, O_AC_DCGM_PTS!B8:B6541,C91, O_AC_DCGM_PTS!C8:C6541, B91) -> 0 | M91: =SUMIFS(O_AC_DCGM_PTS!L8:L6541, O_AC_DCGM_PTS!A8:A6541, A91, O_AC_DCGM_PTS!B8:B6541,C91, O_AC_DCGM_PTS!C8:C6541, B91) -> 0 | N91: =SUMIFS(O_AC_DCGM_PTS!M8:M6541, O_AC_DCGM_PTS!A8:A6541, A91, O_AC_DCGM_PTS!B8:B6541,C91, O_AC_DCGM_PTS!C8:C6541, B91) -> 0 | O91: =SUMIFS(O_AC_DCGM_PTS!N8:N6541, O_AC_DCGM_PTS!A8:A6541, A91, O_AC_DCGM_PTS!B8:B6541,C91, O_AC_DCGM_PTS!C8:C6541, B91) -> 0 | P91: =SUMIFS(O_AC_DCGM_PTS!O8:O6541, O_AC_DCGM_PTS!A8:A6541, A91, O_AC_DCGM_PTS!B8:B6541,C91, O_AC_DCGM_PTS!C8:C6541, B91) -> 0 | Q91: =SUMIFS(O_AC_DCGM_PTS!P8:P6541, O_AC_DCGM_PTS!A8:A6541, A91, O_AC_DCGM_PTS!B8:B6541,C91, O_AC_DCGM_PTS!C8:C6541, B91) -> 0 | R91: =SUMIFS(O_AC_DCGM_PTS!Q8:Q6541, O_AC_DCGM_PTS!A8:A6541, A91, O_AC_DCGM_PTS!B8:B6541,C91, O_AC_DCGM_PTS!C8:C6541, B91) -> 0
A92: CI | B92: A43 | C92: NRES | D92: N | E92: CI NRES A43 | F92: Community Infrastructure | G92: Non-residential HUEs | H92: Area 43 | I92: =SUMIFS(O_AC_DCGM_PTS!H8:H6541, O_AC_DCGM_PTS!A8:A6541, A92, O_AC_DCGM_PTS!B8:B6541,C92, O_AC_DCGM_PTS!C8:C6541, B92) -> 0 | J92: =SUMIFS(O_AC_DCGM_PTS!I8:I6541, O_AC_DCGM_PTS!A8:A6541, A92, O_AC_DCGM_PTS!B8:B6541,C92, O_AC_DCGM_PTS!C8:C6541, B92) -> 0 | K92: =SUMIFS(O_AC_DCGM_PTS!J8:J6541, O_AC_DCGM_PTS!A8:A6541, A92, O_AC_DCGM_PTS!B8:B6541,C92, O_AC_DCGM_PTS!C8:C6541, B92) -> 0 | L92: =SUMIFS(O_AC_DCGM_PTS!K8:K6541, O_AC_DCGM_PTS!A8:A6541, A92, O_AC_DCGM_PTS!B8:B6541,C92, O_AC_DCGM_PTS!C8:C6541, B92) -> 0 | M92: =SUMIFS(O_AC_DCGM_PTS!L8:L6541, O_AC_DCGM_PTS!A8:A6541, A92, O_AC_DCGM_PTS!B8:B6541,C92, O_AC_DCGM_PTS!C8:C6541, B92) -> 0 | N92: =SUMIFS(O_AC_DCGM_PTS!M8:M6541, O_AC_DCGM_PTS!A8:A6541, A92, O_AC_DCGM_PTS!B8:B6541,C92, O_AC_DCGM_PTS!C8:C6541, B92) -> 0 | O92: =SUMIFS(O_AC_DCGM_PTS!N8:N6541, O_AC_DCGM_PTS!A8:A6541, A92, O_AC_DCGM_PTS!B8:B6541,C92, O_AC_DCGM_PTS!C8:C6541, B92) -> 0 | P92: =SUMIFS(O_AC_DCGM_PTS!O8:O6541, O_AC_DCGM_PTS!A8:A6541, A92, O_AC_DCGM_PTS!B8:B6541,C92, O_AC_DCGM_PTS!C8:C6541, B92) -> 0 | Q92: =SUMIFS(O_AC_DCGM_PTS!P8:P6541, O_AC_DCGM_PTS!A8:A6541, A92, O_AC_DCGM_PTS!B8:B6541,C92, O_AC_DCGM_PTS!C8:C6541, B92) -> 0 | R92: =SUMIFS(O_AC_DCGM_PTS!Q8:Q6541, O_AC_DCGM_PTS!A8:A6541, A92, O_AC_DCGM_PTS!B8:B6541,C92, O_AC_DCGM_PTS!C8:C6541, B92) -> 0
A93: CI | B93: A43 | C93: RES | D93: R | E93: CI RES A43 | F93: Community Infrastructure | G93: Residential HUEs | H93: Area 43 | I93: =SUMIFS(O_AC_DCGM_PTS!H8:H6541, O_AC_DCGM_PTS!A8:A6541, A93, O_AC_DCGM_PTS!B8:B6541,C93, O_AC_DCGM_PTS!C8:C6541, B93) -> 0 | J93: =SUMIFS(O_AC_DCGM_PTS!I8:I6541, O_AC_DCGM_PTS!A8:A6541, A93, O_AC_DCGM_PTS!B8:B6541,C93, O_AC_DCGM_PTS!C8:C6541, B93) -> 0 | K93: =SUMIFS(O_AC_DCGM_PTS!J8:J6541, O_AC_DCGM_PTS!A8:A6541, A93, O_AC_DCGM_PTS!B8:B6541,C93, O_AC_DCGM_PTS!C8:C6541, B93) -> 0 | L93: =SUMIFS(O_AC_DCGM_PTS!K8:K6541, O_AC_DCGM_PTS!A8:A6541, A93, O_AC_DCGM_PTS!B8:B6541,C93, O_AC_DCGM_PTS!C8:C6541, B93) -> 0 | M93: =SUMIFS(O_AC_DCGM_PTS!L8:L6541, O_AC_DCGM_PTS!A8:A6541, A93, O_AC_DCGM_PTS!B8:B6541,C93, O_AC_DCGM_PTS!C8:C6541, B93) -> 0 | N93: =SUMIFS(O_AC_DCGM_PTS!M8:M6541, O_AC_DCGM_PTS!A8:A6541, A93, O_AC_DCGM_PTS!B8:B6541,C93, O_AC_DCGM_PTS!C8:C6541, B93) -> 0 | O93: =SUMIFS(O_AC_DCGM_PTS!N8:N6541, O_AC_DCGM_PTS!A8:A6541, A93, O_AC_DCGM_PTS!B8:B6541,C93, O_AC_DCGM_PTS!C8:C6541, B93) -> 0 | P93: =SUMIFS(O_AC_DCGM_PTS!O8:O6541, O_AC_DCGM_PTS!A8:A6541, A93, O_AC_DCGM_PTS!B8:B6541,C93, O_AC_DCGM_PTS!C8:C6541, B93) -> 0 | Q93: =SUMIFS(O_AC_DCGM_PTS!P8:P6541, O_AC_DCGM_PTS!A8:A6541, A93, O_AC_DCGM_PTS!B8:B6541,C93, O_AC_DCGM_PTS!C8:C6541, B93) -> 0 | R93: =SUMIFS(O_AC_DCGM_PTS!Q8:Q6541, O_AC_DCGM_PTS!A8:A6541, A93, O_AC_DCGM_PTS!B8:B6541,C93, O_AC_DCGM_PTS!C8:C6541, B93) -> 0
A94: OSL | B94: A1 | C94: NRES | D94: N | E94: OSL NRES A1 | F94: Open space acquisition | G94: Non-residential HUEs | H94: Area 1 | I94: =SUMIFS(O_AC_DCGM_PTS!H8:H6541, O_AC_DCGM_PTS!A8:A6541, A94, O_AC_DCGM_PTS!B8:B6541,C94, O_AC_DCGM_PTS!C8:C6541, B94) -> 0 | J94: =SUMIFS(O_AC_DCGM_PTS!I8:I6541, O_AC_DCGM_PTS!A8:A6541, A94, O_AC_DCGM_PTS!B8:B6541,C94, O_AC_DCGM_PTS!C8:C6541, B94) -> 0 | K94: =SUMIFS(O_AC_DCGM_PTS!J8:J6541, O_AC_DCGM_PTS!A8:A6541, A94, O_AC_DCGM_PTS!B8:B6541,C94, O_AC_DCGM_PTS!C8:C6541, B94) -> 0 | L94: =SUMIFS(O_AC_DCGM_PTS!K8:K6541, O_AC_DCGM_PTS!A8:A6541, A94, O_AC_DCGM_PTS!B8:B6541,C94, O_AC_DCGM_PTS!C8:C6541, B94) -> 0 | M94: =SUMIFS(O_AC_DCGM_PTS!L8:L6541, O_AC_DCGM_PTS!A8:A6541, A94, O_AC_DCGM_PTS!B8:B6541,C94, O_AC_DCGM_PTS!C8:C6541, B94) -> 0 | N94: =SUMIFS(O_AC_DCGM_PTS!M8:M6541, O_AC_DCGM_PTS!A8:A6541, A94, O_AC_DCGM_PTS!B8:B6541,C94, O_AC_DCGM_PTS!C8:C6541, B94) -> 0 | O94: =SUMIFS(O_AC_DCGM_PTS!N8:N6541, O_AC_DCGM_PTS!A8:A6541, A94, O_AC_DCGM_PTS!B8:B6541,C94, O_AC_DCGM_PTS!C8:C6541, B94) -> 0 | P94: =SUMIFS(O_AC_DCGM_PTS!O8:O6541, O_AC_DCGM_PTS!A8:A6541, A94, O_AC_DCGM_PTS!B8:B6541,C94, O_AC_DCGM_PTS!C8:C6541, B94) -> 0 | Q94: =SUMIFS(O_AC_DCGM_PTS!P8:P6541, O_AC_DCGM_PTS!A8:A6541, A94, O_AC_DCGM_PTS!B8:B6541,C94, O_AC_DCGM_PTS!C8:C6541, B94) -> 0 | R94: =SUMIFS(O_AC_DCGM_PTS!Q8:Q6541, O_AC_DCGM_PTS!A8:A6541, A94, O_AC_DCGM_PTS!B8:B6541,C94, O_AC_DCGM_PTS!C8:C6541, B94) -> 0
A95: OSL | B95: A1 | C95: RES | D95: R | E95: OSL RES A1 | F95: Open space acquisition | G95: Residential HUEs | H95: Area 1 | I95: =SUMIFS(O_AC_DCGM_PTS!H8:H6541, O_AC_DCGM_PTS!A8:A6541, A95, O_AC_DCGM_PTS!B8:B6541,C95, O_AC_DCGM_PTS!C8:C6541, B95) -> 7255 | J95: =SUMIFS(O_AC_DCGM_PTS!I8:I6541, O_AC_DCGM_PTS!A8:A6541, A95, O_AC_DCGM_PTS!B8:B6541,C95, O_AC_DCGM_PTS!C8:C6541, B95) -> 7210 | K95: =SUMIFS(O_AC_DCGM_PTS!J8:J6541, O_AC_DCGM_PTS!A8:A6541, A95, O_AC_DCGM_PTS!B8:B6541,C95, O_AC_DCGM_PTS!C8:C6541, B95) -> 7262 | L95: =SUMIFS(O_AC_DCGM_PTS!K8:K6541, O_AC_DCGM_PTS!A8:A6541, A95, O_AC_DCGM_PTS!B8:B6541,C95, O_AC_DCGM_PTS!C8:C6541, B95) -> 7443 | M95: =SUMIFS(O_AC_DCGM_PTS!L8:L6541, O_AC_DCGM_PTS!A8:A6541, A95, O_AC_DCGM_PTS!B8:B6541,C95, O_AC_DCGM_PTS!C8:C6541, B95) -> 8115 | N95: =SUMIFS(O_AC_DCGM_PTS!M8:M6541, O_AC_DCGM_PTS!A8:A6541, A95, O_AC_DCGM_PTS!B8:B6541,C95, O_AC_DCGM_PTS!C8:C6541, B95) -> 8643 | O95: =SUMIFS(O_AC_DCGM_PTS!N8:N6541, O_AC_DCGM_PTS!A8:A6541, A95, O_AC_DCGM_PTS!B8:B6541,C95, O_AC_DCGM_PTS!C8:C6541, B95) -> 8703 | P95: =SUMIFS(O_AC_DCGM_PTS!O8:O6541, O_AC_DCGM_PTS!A8:A6541, A95, O_AC_DCGM_PTS!B8:B6541,C95, O_AC_DCGM_PTS!C8:C6541, B95) -> 8096 | Q95: =SUMIFS(O_AC_DCGM_PTS!P8:P6541, O_AC_DCGM_PTS!A8:A6541, A95, O_AC_DCGM_PTS!B8:B6541,C95, O_AC_DCGM_PTS!C8:C6541, B95) -> 7894 | R95: =SUMIFS(O_AC_DCGM_PTS!Q8:Q6541, O_AC_DCGM_PTS!A8:A6541, A95, O_AC_DCGM_PTS!B8:B6541,C95, O_AC_DCGM_PTS!C8:C6541, B95) -> 7157
A96: OSL | B96: A2 | C96: NRES | D96: N | E96: OSL NRES A2 | F96: Open space acquisition | G96: Non-residential HUEs | H96: Area 2 | I96: =SUMIFS(O_AC_DCGM_PTS!H8:H6541, O_AC_DCGM_PTS!A8:A6541, A96, O_AC_DCGM_PTS!B8:B6541,C96, O_AC_DCGM_PTS!C8:C6541, B96) -> 0 | J96: =SUMIFS(O_AC_DCGM_PTS!I8:I6541, O_AC_DCGM_PTS!A8:A6541, A96, O_AC_DCGM_PTS!B8:B6541,C96, O_AC_DCGM_PTS!C8:C6541, B96) -> 0 | K96: =SUMIFS(O_AC_DCGM_PTS!J8:J6541, O_AC_DCGM_PTS!A8:A6541, A96, O_AC_DCGM_PTS!B8:B6541,C96, O_AC_DCGM_PTS!C8:C6541, B96) -> 0 | L96: =SUMIFS(O_AC_DCGM_PTS!K8:K6541, O_AC_DCGM_PTS!A8:A6541, A96, O_AC_DCGM_PTS!B8:B6541,C96, O_AC_DCGM_PTS!C8:C6541, B96) -> 0 | M96: =SUMIFS(O_AC_DCGM_PTS!L8:L6541, O_AC_DCGM_PTS!A8:A6541, A96, O_AC_DCGM_PTS!B8:B6541,C96, O_AC_DCGM_PTS!C8:C6541, B96) -> 0 | N96: =SUMIFS(O_AC_DCGM_PTS!M8:M6541, O_AC_DCGM_PTS!A8:A6541, A96, O_AC_DCGM_PTS!B8:B6541,C96, O_AC_DCGM_PTS!C8:C6541, B96) -> 0 | O96: =SUMIFS(O_AC_DCGM_PTS!N8:N6541, O_AC_DCGM_PTS!A8:A6541, A96, O_AC_DCGM_PTS!B8:B6541,C96, O_AC_DCGM_PTS!C8:C6541, B96) -> 0 | P96: =SUMIFS(O_AC_DCGM_PTS!O8:O6541, O_AC_DCGM_PTS!A8:A6541, A96, O_AC_DCGM_PTS!B8:B6541,C96, O_AC_DCGM_PTS!C8:C6541, B96) -> 0 | Q96: =SUMIFS(O_AC_DCGM_PTS!P8:P6541, O_AC_DCGM_PTS!A8:A6541, A96, O_AC_DCGM_PTS!B8:B6541,C96, O_AC_DCGM_PTS!C8:C6541, B96) -> 0 | R96: =SUMIFS(O_AC_DCGM_PTS!Q8:Q6541, O_AC_DCGM_PTS!A8:A6541, A96, O_AC_DCGM_PTS!B8:B6541,C96, O_AC_DCGM_PTS!C8:C6541, B96) -> 0
A97: OSL | B97: A2 | C97: RES | D97: R | E97: OSL RES A2 | F97: Open space acquisition | G97: Residential HUEs | H97: Area 2 | I97: =SUMIFS(O_AC_DCGM_PTS!H8:H6541, O_AC_DCGM_PTS!A8:A6541, A97, O_AC_DCGM_PTS!B8:B6541,C97, O_AC_DCGM_PTS!C8:C6541, B97) -> 0 | J97: =SUMIFS(O_AC_DCGM_PTS!I8:I6541, O_AC_DCGM_PTS!A8:A6541, A97, O_AC_DCGM_PTS!B8:B6541,C97, O_AC_DCGM_PTS!C8:C6541, B97) -> 0 | K97: =SUMIFS(O_AC_DCGM_PTS!J8:J6541, O_AC_DCGM_PTS!A8:A6541, A97, O_AC_DCGM_PTS!B8:B6541,C97, O_AC_DCGM_PTS!C8:C6541, B97) -> 0 | L97: =SUMIFS(O_AC_DCGM_PTS!K8:K6541, O_AC_DCGM_PTS!A8:A6541, A97, O_AC_DCGM_PTS!B8:B6541,C97, O_AC_DCGM_PTS!C8:C6541, B97) -> 0 | M97: =SUMIFS(O_AC_DCGM_PTS!L8:L6541, O_AC_DCGM_PTS!A8:A6541, A97, O_AC_DCGM_PTS!B8:B6541,C97, O_AC_DCGM_PTS!C8:C6541, B97) -> 0 | N97: =SUMIFS(O_AC_DCGM_PTS!M8:M6541, O_AC_DCGM_PTS!A8:A6541, A97, O_AC_DCGM_PTS!B8:B6541,C97, O_AC_DCGM_PTS!C8:C6541, B97) -> 0 | O97: =SUMIFS(O_AC_DCGM_PTS!N8:N6541, O_AC_DCGM_PTS!A8:A6541, A97, O_AC_DCGM_PTS!B8:B6541,C97, O_AC_DCGM_PTS!C8:C6541, B97) -> 0 | P97: =SUMIFS(O_AC_DCGM_PTS!O8:O6541, O_AC_DCGM_PTS!A8:A6541, A97, O_AC_DCGM_PTS!B8:B6541,C97, O_AC_DCGM_PTS!C8:C6541, B97) -> 0 | Q97: =SUMIFS(O_AC_DCGM_PTS!P8:P6541, O_AC_DCGM_PTS!A8:A6541, A97, O_AC_DCGM_PTS!B8:B6541,C97, O_AC_DCGM_PTS!C8:C6541, B97) -> 0 | R97: =SUMIFS(O_AC_DCGM_PTS!Q8:Q6541, O_AC_DCGM_PTS!A8:A6541, A97, O_AC_DCGM_PTS!B8:B6541,C97, O_AC_DCGM_PTS!C8:C6541, B97) -> 0
A98: OSL | B98: A3 | C98: NRES | D98: N | E98: OSL NRES A3 | F98: Open space acquisition | G98: Non-residential HUEs | H98: Area 3 | I98: =SUMIFS(O_AC_DCGM_PTS!H8:H6541, O_AC_DCGM_PTS!A8:A6541, A98, O_AC_DCGM_PTS!B8:B6541,C98, O_AC_DCGM_PTS!C8:C6541, B98) -> 0 | J98: =SUMIFS(O_AC_DCGM_PTS!I8:I6541, O_AC_DCGM_PTS!A8:A6541, A98, O_AC_DCGM_PTS!B8:B6541,C98, O_AC_DCGM_PTS!C8:C6541, B98) -> 0 | K98: =SUMIFS(O_AC_DCGM_PTS!J8:J6541, O_AC_DCGM_PTS!A8:A6541, A98, O_AC_DCGM_PTS!B8:B6541,C98, O_AC_DCGM_PTS!C8:C6541, B98) -> 0 | L98: =SUMIFS(O_AC_DCGM_PTS!K8:K6541, O_AC_DCGM_PTS!A8:A6541, A98, O_AC_DCGM_PTS!B8:B6541,C98, O_AC_DCGM_PTS!C8:C6541, B98) -> 0 | M98: =SUMIFS(O_AC_DCGM_PTS!L8:L6541, O_AC_DCGM_PTS!A8:A6541, A98, O_AC_DCGM_PTS!B8:B6541,C98, O_AC_DCGM_PTS!C8:C6541, B98) -> 0 | N98: =SUMIFS(O_AC_DCGM_PTS!M8:M6541, O_AC_DCGM_PTS!A8:A6541, A98, O_AC_DCGM_PTS!B8:B6541,C98, O_AC_DCGM_PTS!C8:C6541, B98) -> 0 | O98: =SUMIFS(O_AC_DCGM_PTS!N8:N6541, O_AC_DCGM_PTS!A8:A6541, A98, O_AC_DCGM_PTS!B8:B6541,C98, O_AC_DCGM_PTS!C8:C6541, B98) -> 0 | P98: =SUMIFS(O_AC_DCGM_PTS!O8:O6541, O_AC_DCGM_PTS!A8:A6541, A98, O_AC_DCGM_PTS!B8:B6541,C98, O_AC_DCGM_PTS!C8:C6541, B98) -> 0 | Q98: =SUMIFS(O_AC_DCGM_PTS!P8:P6541, O_AC_DCGM_PTS!A8:A6541, A98, O_AC_DCGM_PTS!B8:B6541,C98, O_AC_DCGM_PTS!C8:C6541, B98) -> 0 | R98: =SUMIFS(O_AC_DCGM_PTS!Q8:Q6541, O_AC_DCGM_PTS!A8:A6541, A98, O_AC_DCGM_PTS!B8:B6541,C98, O_AC_DCGM_PTS!C8:C6541, B98) -> 0
A99: OSL | B99: A3 | C99: RES | D99: R | E99: OSL RES A3 | F99: Open space acquisition | G99: Residential HUEs | H99: Area 3 | I99: =SUMIFS(O_AC_DCGM_PTS!H8:H6541, O_AC_DCGM_PTS!A8:A6541, A99, O_AC_DCGM_PTS!B8:B6541,C99, O_AC_DCGM_PTS!C8:C6541, B99) -> 4200 | J99: =SUMIFS(O_AC_DCGM_PTS!I8:I6541, O_AC_DCGM_PTS!A8:A6541, A99, O_AC_DCGM_PTS!B8:B6541,C99, O_AC_DCGM_PTS!C8:C6541, B99) -> 4154 | K99: =SUMIFS(O_AC_DCGM_PTS!J8:J6541, O_AC_DCGM_PTS!A8:A6541, A99, O_AC_DCGM_PTS!B8:B6541,C99, O_AC_DCGM_PTS!C8:C6541, B99) -> 4171 | L99: =SUMIFS(O_AC_DCGM_PTS!K8:K6541, O_AC_DCGM_PTS!A8:A6541, A99, O_AC_DCGM_PTS!B8:B6541,C99, O_AC_DCGM_PTS!C8:C6541, B99) -> 4263 | M99: =SUMIFS(O_AC_DCGM_PTS!L8:L6541, O_AC_DCGM_PTS!A8:A6541, A99, O_AC_DCGM_PTS!B8:B6541,C99, O_AC_DCGM_PTS!C8:C6541, B99) -> 4606 | N99: =SUMIFS(O_AC_DCGM_PTS!M8:M6541, O_AC_DCGM_PTS!A8:A6541, A99, O_AC_DCGM_PTS!B8:B6541,C99, O_AC_DCGM_PTS!C8:C6541, B99) -> 4842 | O99: =SUMIFS(O_AC_DCGM_PTS!N8:N6541, O_AC_DCGM_PTS!A8:A6541, A99, O_AC_DCGM_PTS!B8:B6541,C99, O_AC_DCGM_PTS!C8:C6541, B99) -> 4849 | P99: =SUMIFS(O_AC_DCGM_PTS!O8:O6541, O_AC_DCGM_PTS!A8:A6541, A99, O_AC_DCGM_PTS!B8:B6541,C99, O_AC_DCGM_PTS!C8:C6541, B99) -> 4505 | Q99: =SUMIFS(O_AC_DCGM_PTS!P8:P6541, O_AC_DCGM_PTS!A8:A6541, A99, O_AC_DCGM_PTS!B8:B6541,C99, O_AC_DCGM_PTS!C8:C6541, B99) -> 4392 | R99: =SUMIFS(O_AC_DCGM_PTS!Q8:Q6541, O_AC_DCGM_PTS!A8:A6541, A99, O_AC_DCGM_PTS!B8:B6541,C99, O_AC_DCGM_PTS!C8:C6541, B99) -> 3894
A100: OSL | B100: A4 | C100: NRES | D100: N | E100: OSL NRES A4 | F100: Open space acquisition | G100: Non-residential HUEs | H100: Area 4 | I100: =SUMIFS(O_AC_DCGM_PTS!H8:H6541, O_AC_DCGM_PTS!A8:A6541, A100, O_AC_DCGM_PTS!B8:B6541,C100, O_AC_DCGM_PTS!C8:C6541, B100) -> 0 | J100: =SUMIFS(O_AC_DCGM_PTS!I8:I6541, O_AC_DCGM_PTS!A8:A6541, A100, O_AC_DCGM_PTS!B8:B6541,C100, O_AC_DCGM_PTS!C8:C6541, B100) -> 0 | K100: =SUMIFS(O_AC_DCGM_PTS!J8:J6541, O_AC_DCGM_PTS!A8:A6541, A100, O_AC_DCGM_PTS!B8:B6541,C100, O_AC_DCGM_PTS!C8:C6541, B100) -> 0 | L100: =SUMIFS(O_AC_DCGM_PTS!K8:K6541, O_AC_DCGM_PTS!A8:A6541, A100, O_AC_DCGM_PTS!B8:B6541,C100, O_AC_DCGM_PTS!C8:C6541, B100) -> 0 | M100: =SUMIFS(O_AC_DCGM_PTS!L8:L6541, O_AC_DCGM_PTS!A8:A6541, A100, O_AC_DCGM_PTS!B8:B6541,C100, O_AC_DCGM_PTS!C8:C6541, B100) -> 0 | N100: =SUMIFS(O_AC_DCGM_PTS!M8:M6541, O_AC_DCGM_PTS!A8:A6541, A100, O_AC_DCGM_PTS!B8:B6541,C100, O_AC_DCGM_PTS!C8:C6541, B100) -> 0 | O100: =SUMIFS(O_AC_DCGM_PTS!N8:N6541, O_AC_DCGM_PTS!A8:A6541, A100, O_AC_DCGM_PTS!B8:B6541,C100, O_AC_DCGM_PTS!C8:C6541, B100) -> 0 | P100: =SUMIFS(O_AC_DCGM_PTS!O8:O6541, O_AC_DCGM_PTS!A8:A6541, A100, O_AC_DCGM_PTS!B8:B6541,C100, O_AC_DCGM_PTS!C8:C6541, B100) -> 0 | Q100: =SUMIFS(O_AC_DCGM_PTS!P8:P6541, O_AC_DCGM_PTS!A8:A6541, A100, O_AC_DCGM_PTS!B8:B6541,C100, O_AC_DCGM_PTS!C8:C6541, B100) -> 0 | R100: =SUMIFS(O_AC_DCGM_PTS!Q8:Q6541, O_AC_DCGM_PTS!A8:A6541, A100, O_AC_DCGM_PTS!B8:B6541,C100, O_AC_DCGM_PTS!C8:C6541, B100) -> 0
A101: OSL | B101: A4 | C101: RES | D101: R | E101: OSL RES A4 | F101: Open space acquisition | G101: Residential HUEs | H101: Area 4 | I101: =SUMIFS(O_AC_DCGM_PTS!H8:H6541, O_AC_DCGM_PTS!A8:A6541, A101, O_AC_DCGM_PTS!B8:B6541,C101, O_AC_DCGM_PTS!C8:C6541, B101) -> 0 | J101: =SUMIFS(O_AC_DCGM_PTS!I8:I6541, O_AC_DCGM_PTS!A8:A6541, A101, O_AC_DCGM_PTS!B8:B6541,C101, O_AC_DCGM_PTS!C8:C6541, B101) -> 0 | K101: =SUMIFS(O_AC_DCGM_PTS!J8:J6541, O_AC_DCGM_PTS!A8:A6541, A101, O_AC_DCGM_PTS!B8:B6541,C101, O_AC_DCGM_PTS!C8:C6541, B101) -> 0 | L101: =SUMIFS(O_AC_DCGM_PTS!K8:K6541, O_AC_DCGM_PTS!A8:A6541, A101, O_AC_DCGM_PTS!B8:B6541,C101, O_AC_DCGM_PTS!C8:C6541, B101) -> 0 | M101: =SUMIFS(O_AC_DCGM_PTS!L8:L6541, O_AC_DCGM_PTS!A8:A6541, A101, O_AC_DCGM_PTS!B8:B6541,C101, O_AC_DCGM_PTS!C8:C6541, B101) -> 0 | N101: =SUMIFS(O_AC_DCGM_PTS!M8:M6541, O_AC_DCGM_PTS!A8:A6541, A101, O_AC_DCGM_PTS!B8:B6541,C101, O_AC_DCGM_PTS!C8:C6541, B101) -> 0 | O101: =SUMIFS(O_AC_DCGM_PTS!N8:N6541, O_AC_DCGM_PTS!A8:A6541, A101, O_AC_DCGM_PTS!B8:B6541,C101, O_AC_DCGM_PTS!C8:C6541, B101) -> 0 | P101: =SUMIFS(O_AC_DCGM_PTS!O8:O6541, O_AC_DCGM_PTS!A8:A6541, A101, O_AC_DCGM_PTS!B8:B6541,C101, O_AC_DCGM_PTS!C8:C6541, B101) -> 0 | Q101: =SUMIFS(O_AC_DCGM_PTS!P8:P6541, O_AC_DCGM_PTS!A8:A6541, A101, O_AC_DCGM_PTS!B8:B6541,C101, O_AC_DCGM_PTS!C8:C6541, B101) -> 0 | R101: =SUMIFS(O_AC_DCGM_PTS!Q8:Q6541, O_AC_DCGM_PTS!A8:A6541, A101, O_AC_DCGM_PTS!B8:B6541,C101, O_AC_DCGM_PTS!C8:C6541, B101) -> 0
A102: OSL | B102: A5 | C102: NRES | D102: N | E102: OSL NRES A5 | F102: Open space acquisition | G102: Non-residential HUEs | H102: Area 5 | I102: =SUMIFS(O_AC_DCGM_PTS!H8:H6541, O_AC_DCGM_PTS!A8:A6541, A102, O_AC_DCGM_PTS!B8:B6541,C102, O_AC_DCGM_PTS!C8:C6541, B102) -> 0 | J102: =SUMIFS(O_AC_DCGM_PTS!I8:I6541, O_AC_DCGM_PTS!A8:A6541, A102, O_AC_DCGM_PTS!B8:B6541,C102, O_AC_DCGM_PTS!C8:C6541, B102) -> 0 | K102: =SUMIFS(O_AC_DCGM_PTS!J8:J6541, O_AC_DCGM_PTS!A8:A6541, A102, O_AC_DCGM_PTS!B8:B6541,C102, O_AC_DCGM_PTS!C8:C6541, B102) -> 0 | L102: =SUMIFS(O_AC_DCGM_PTS!K8:K6541, O_AC_DCGM_PTS!A8:A6541, A102, O_AC_DCGM_PTS!B8:B6541,C102, O_AC_DCGM_PTS!C8:C6541, B102) -> 0 | M102: =SUMIFS(O_AC_DCGM_PTS!L8:L6541, O_AC_DCGM_PTS!A8:A6541, A102, O_AC_DCGM_PTS!B8:B6541,C102, O_AC_DCGM_PTS!C8:C6541, B102) -> 0 | N102: =SUMIFS(O_AC_DCGM_PTS!M8:M6541, O_AC_DCGM_PTS!A8:A6541, A102, O_AC_DCGM_PTS!B8:B6541,C102, O_AC_DCGM_PTS!C8:C6541, B102) -> 0 | O102: =SUMIFS(O_AC_DCGM_PTS!N8:N6541, O_AC_DCGM_PTS!A8:A6541, A102, O_AC_DCGM_PTS!B8:B6541,C102, O_AC_DCGM_PTS!C8:C6541, B102) -> 0 | P102: =SUMIFS(O_AC_DCGM_PTS!O8:O6541, O_AC_DCGM_PTS!A8:A6541, A102, O_AC_DCGM_PTS!B8:B6541,C102, O_AC_DCGM_PTS!C8:C6541, B102) -> 0 | Q102: =SUMIFS(O_AC_DCGM_PTS!P8:P6541, O_AC_DCGM_PTS!A8:A6541, A102, O_AC_DCGM_PTS!B8:B6541,C102, O_AC_DCGM_PTS!C8:C6541, B102) -> 0 | R102: =SUMIFS(O_AC_DCGM_PTS!Q8:Q6541, O_AC_DCGM_PTS!A8:A6541, A102, O_AC_DCGM_PTS!B8:B6541,C102, O_AC_DCGM_PTS!C8:C6541, B102) -> 0
A103: OSL | B103: A5 | C103: RES | D103: R | E103: OSL RES A5 | F103: Open space acquisition | G103: Residential HUEs | H103: Area 5 | I103: =SUMIFS(O_AC_DCGM_PTS!H8:H6541, O_AC_DCGM_PTS!A8:A6541, A103, O_AC_DCGM_PTS!B8:B6541,C103, O_AC_DCGM_PTS!C8:C6541, B103) -> 137 | J103: =SUMIFS(O_AC_DCGM_PTS!I8:I6541, O_AC_DCGM_PTS!A8:A6541, A103, O_AC_DCGM_PTS!B8:B6541,C103, O_AC_DCGM_PTS!C8:C6541, B103) -> 136 | K103: =SUMIFS(O_AC_DCGM_PTS!J8:J6541, O_AC_DCGM_PTS!A8:A6541, A103, O_AC_DCGM_PTS!B8:B6541,C103, O_AC_DCGM_PTS!C8:C6541, B103) -> 136 | L103: =SUMIFS(O_AC_DCGM_PTS!K8:K6541, O_AC_DCGM_PTS!A8:A6541, A103, O_AC_DCGM_PTS!B8:B6541,C103, O_AC_DCGM_PTS!C8:C6541, B103) -> 138 | M103: =SUMIFS(O_AC_DCGM_PTS!L8:L6541, O_AC_DCGM_PTS!A8:A6541, A103, O_AC_DCGM_PTS!B8:B6541,C103, O_AC_DCGM_PTS!C8:C6541, B103) -> 153 | N103: =SUMIFS(O_AC_DCGM_PTS!M8:M6541, O_AC_DCGM_PTS!A8:A6541, A103, O_AC_DCGM_PTS!B8:B6541,C103, O_AC_DCGM_PTS!C8:C6541, B103) -> 164 | O103: =SUMIFS(O_AC_DCGM_PTS!N8:N6541, O_AC_DCGM_PTS!A8:A6541, A103, O_AC_DCGM_PTS!B8:B6541,C103, O_AC_DCGM_PTS!C8:C6541, B103) -> 164 | P103: =SUMIFS(O_AC_DCGM_PTS!O8:O6541, O_AC_DCGM_PTS!A8:A6541, A103, O_AC_DCGM_PTS!B8:B6541,C103, O_AC_DCGM_PTS!C8:C6541, B103) -> 153 | Q103: =SUMIFS(O_AC_DCGM_PTS!P8:P6541, O_AC_DCGM_PTS!A8:A6541, A103, O_AC_DCGM_PTS!B8:B6541,C103, O_AC_DCGM_PTS!C8:C6541, B103) -> 147 | R103: =SUMIFS(O_AC_DCGM_PTS!Q8:Q6541, O_AC_DCGM_PTS!A8:A6541, A103, O_AC_DCGM_PTS!B8:B6541,C103, O_AC_DCGM_PTS!C8:C6541, B103) -> 155
A104: OSL | B104: A6 | C104: NRES | D104: N | E104: OSL NRES A6 | F104: Open space acquisition | G104: Non-residential HUEs | H104: Area 6 | I104: =SUMIFS(O_AC_DCGM_PTS!H8:H6541, O_AC_DCGM_PTS!A8:A6541, A104, O_AC_DCGM_PTS!B8:B6541,C104, O_AC_DCGM_PTS!C8:C6541, B104) -> 0 | J104: =SUMIFS(O_AC_DCGM_PTS!I8:I6541, O_AC_DCGM_PTS!A8:A6541, A104, O_AC_DCGM_PTS!B8:B6541,C104, O_AC_DCGM_PTS!C8:C6541, B104) -> 0 | K104: =SUMIFS(O_AC_DCGM_PTS!J8:J6541, O_AC_DCGM_PTS!A8:A6541, A104, O_AC_DCGM_PTS!B8:B6541,C104, O_AC_DCGM_PTS!C8:C6541, B104) -> 0 | L104: =SUMIFS(O_AC_DCGM_PTS!K8:K6541, O_AC_DCGM_PTS!A8:A6541, A104, O_AC_DCGM_PTS!B8:B6541,C104, O_AC_DCGM_PTS!C8:C6541, B104) -> 0 | M104: =SUMIFS(O_AC_DCGM_PTS!L8:L6541, O_AC_DCGM_PTS!A8:A6541, A104, O_AC_DCGM_PTS!B8:B6541,C104, O_AC_DCGM_PTS!C8:C6541, B104) -> 0 | N104: =SUMIFS(O_AC_DCGM_PTS!M8:M6541, O_AC_DCGM_PTS!A8:A6541, A104, O_AC_DCGM_PTS!B8:B6541,C104, O_AC_DCGM_PTS!C8:C6541, B104) -> 0 | O104: =SUMIFS(O_AC_DCGM_PTS!N8:N6541, O_AC_DCGM_PTS!A8:A6541, A104, O_AC_DCGM_PTS!B8:B6541,C104, O_AC_DCGM_PTS!C8:C6541, B104) -> 0 | P104: =SUMIFS(O_AC_DCGM_PTS!O8:O6541, O_AC_DCGM_PTS!A8:A6541, A104, O_AC_DCGM_PTS!B8:B6541,C104, O_AC_DCGM_PTS!C8:C6541, B104) -> 0 | Q104: =SUMIFS(O_AC_DCGM_PTS!P8:P6541, O_AC_DCGM_PTS!A8:A6541, A104, O_AC_DCGM_PTS!B8:B6541,C104, O_AC_DCGM_PTS!C8:C6541, B104) -> 0 | R104: =SUMIFS(O_AC_DCGM_PTS!Q8:Q6541, O_AC_DCGM_PTS!A8:A6541, A104, O_AC_DCGM_PTS!B8:B6541,C104, O_AC_DCGM_PTS!C8:C6541, B104) -> 0
A105: OSL | B105: A6 | C105: RES | D105: R | E105: OSL RES A6 | F105: Open space acquisition | G105: Residential HUEs | H105: Area 6 | I105: =SUMIFS(O_AC_DCGM_PTS!H8:H6541, O_AC_DCGM_PTS!A8:A6541, A105, O_AC_DCGM_PTS!B8:B6541,C105, O_AC_DCGM_PTS!C8:C6541, B105) -> 206 | J105: =SUMIFS(O_AC_DCGM_PTS!I8:I6541, O_AC_DCGM_PTS!A8:A6541, A105, O_AC_DCGM_PTS!B8:B6541,C105, O_AC_DCGM_PTS!C8:C6541, B105) -> 204 | K105: =SUMIFS(O_AC_DCGM_PTS!J8:J6541, O_AC_DCGM_PTS!A8:A6541, A105, O_AC_DCGM_PTS!B8:B6541,C105, O_AC_DCGM_PTS!C8:C6541, B105) -> 204 | L105: =SUMIFS(O_AC_DCGM_PTS!K8:K6541, O_AC_DCGM_PTS!A8:A6541, A105, O_AC_DCGM_PTS!B8:B6541,C105, O_AC_DCGM_PTS!C8:C6541, B105) -> 209 | M105: =SUMIFS(O_AC_DCGM_PTS!L8:L6541, O_AC_DCGM_PTS!A8:A6541, A105, O_AC_DCGM_PTS!B8:B6541,C105, O_AC_DCGM_PTS!C8:C6541, B105) -> 209 | N105: =SUMIFS(O_AC_DCGM_PTS!M8:M6541, O_AC_DCGM_PTS!A8:A6541, A105, O_AC_DCGM_PTS!B8:B6541,C105, O_AC_DCGM_PTS!C8:C6541, B105) -> 201 | O105: =SUMIFS(O_AC_DCGM_PTS!N8:N6541, O_AC_DCGM_PTS!A8:A6541, A105, O_AC_DCGM_PTS!B8:B6541,C105, O_AC_DCGM_PTS!C8:C6541, B105) -> 201 | P105: =SUMIFS(O_AC_DCGM_PTS!O8:O6541, O_AC_DCGM_PTS!A8:A6541, A105, O_AC_DCGM_PTS!B8:B6541,C105, O_AC_DCGM_PTS!C8:C6541, B105) -> 189 | Q105: =SUMIFS(O_AC_DCGM_PTS!P8:P6541, O_AC_DCGM_PTS!A8:A6541, A105, O_AC_DCGM_PTS!B8:B6541,C105, O_AC_DCGM_PTS!C8:C6541, B105) -> 184 | R105: =SUMIFS(O_AC_DCGM_PTS!Q8:Q6541, O_AC_DCGM_PTS!A8:A6541, A105, O_AC_DCGM_PTS!B8:B6541,C105, O_AC_DCGM_PTS!C8:C6541, B105) -> 256
A106: OSL | B106: A7 | C106: NRES | D106: N | E106: OSL NRES A7 | F106: Open space acquisition | G106: Non-residential HUEs | H106: Area 7 | I106: =SUMIFS(O_AC_DCGM_PTS!H8:H6541, O_AC_DCGM_PTS!A8:A6541, A106, O_AC_DCGM_PTS!B8:B6541,C106, O_AC_DCGM_PTS!C8:C6541, B106) -> 0 | J106: =SUMIFS(O_AC_DCGM_PTS!I8:I6541, O_AC_DCGM_PTS!A8:A6541, A106, O_AC_DCGM_PTS!B8:B6541,C106, O_AC_DCGM_PTS!C8:C6541, B106) -> 0 | K106: =SUMIFS(O_AC_DCGM_PTS!J8:J6541, O_AC_DCGM_PTS!A8:A6541, A106, O_AC_DCGM_PTS!B8:B6541,C106, O_AC_DCGM_PTS!C8:C6541, B106) -> 0 | L106: =SUMIFS(O_AC_DCGM_PTS!K8:K6541, O_AC_DCGM_PTS!A8:A6541, A106, O_AC_DCGM_PTS!B8:B6541,C106, O_AC_DCGM_PTS!C8:C6541, B106) -> 0 | M106: =SUMIFS(O_AC_DCGM_PTS!L8:L6541, O_AC_DCGM_PTS!A8:A6541, A106, O_AC_DCGM_PTS!B8:B6541,C106, O_AC_DCGM_PTS!C8:C6541, B106) -> 0 | N106: =SUMIFS(O_AC_DCGM_PTS!M8:M6541, O_AC_DCGM_PTS!A8:A6541, A106, O_AC_DCGM_PTS!B8:B6541,C106, O_AC_DCGM_PTS!C8:C6541, B106) -> 0 | O106: =SUMIFS(O_AC_DCGM_PTS!N8:N6541, O_AC_DCGM_PTS!A8:A6541, A106, O_AC_DCGM_PTS!B8:B6541,C106, O_AC_DCGM_PTS!C8:C6541, B106) -> 0 | P106: =SUMIFS(O_AC_DCGM_PTS!O8:O6541, O_AC_DCGM_PTS!A8:A6541, A106, O_AC_DCGM_PTS!B8:B6541,C106, O_AC_DCGM_PTS!C8:C6541, B106) -> 0 | Q106: =SUMIFS(O_AC_DCGM_PTS!P8:P6541, O_AC_DCGM_PTS!A8:A6541, A106, O_AC_DCGM_PTS!B8:B6541,C106, O_AC_DCGM_PTS!C8:C6541, B106) -> 0 | R106: =SUMIFS(O_AC_DCGM_PTS!Q8:Q6541, O_AC_DCGM_PTS!A8:A6541, A106, O_AC_DCGM_PTS!B8:B6541,C106, O_AC_DCGM_PTS!C8:C6541, B106) -> 0
A107: OSL | B107: A7 | C107: RES | D107: R | E107: OSL RES A7 | F107: Open space acquisition | G107: Residential HUEs | H107: Area 7 | I107: =SUMIFS(O_AC_DCGM_PTS!H8:H6541, O_AC_DCGM_PTS!A8:A6541, A107, O_AC_DCGM_PTS!B8:B6541,C107, O_AC_DCGM_PTS!C8:C6541, B107) -> 967 | J107: =SUMIFS(O_AC_DCGM_PTS!I8:I6541, O_AC_DCGM_PTS!A8:A6541, A107, O_AC_DCGM_PTS!B8:B6541,C107, O_AC_DCGM_PTS!C8:C6541, B107) -> 955 | K107: =SUMIFS(O_AC_DCGM_PTS!J8:J6541, O_AC_DCGM_PTS!A8:A6541, A107, O_AC_DCGM_PTS!B8:B6541,C107, O_AC_DCGM_PTS!C8:C6541, B107) -> 960 | L107: =SUMIFS(O_AC_DCGM_PTS!K8:K6541, O_AC_DCGM_PTS!A8:A6541, A107, O_AC_DCGM_PTS!B8:B6541,C107, O_AC_DCGM_PTS!C8:C6541, B107) -> 981 | M107: =SUMIFS(O_AC_DCGM_PTS!L8:L6541, O_AC_DCGM_PTS!A8:A6541, A107, O_AC_DCGM_PTS!B8:B6541,C107, O_AC_DCGM_PTS!C8:C6541, B107) -> 1063 | N107: =SUMIFS(O_AC_DCGM_PTS!M8:M6541, O_AC_DCGM_PTS!A8:A6541, A107, O_AC_DCGM_PTS!B8:B6541,C107, O_AC_DCGM_PTS!C8:C6541, B107) -> 1122 | O107: =SUMIFS(O_AC_DCGM_PTS!N8:N6541, O_AC_DCGM_PTS!A8:A6541, A107, O_AC_DCGM_PTS!B8:B6541,C107, O_AC_DCGM_PTS!C8:C6541, B107) -> 1123 | P107: =SUMIFS(O_AC_DCGM_PTS!O8:O6541, O_AC_DCGM_PTS!A8:A6541, A107, O_AC_DCGM_PTS!B8:B6541,C107, O_AC_DCGM_PTS!C8:C6541, B107) -> 1044 | Q107: =SUMIFS(O_AC_DCGM_PTS!P8:P6541, O_AC_DCGM_PTS!A8:A6541, A107, O_AC_DCGM_PTS!B8:B6541,C107, O_AC_DCGM_PTS!C8:C6541, B107) -> 1018 | R107: =SUMIFS(O_AC_DCGM_PTS!Q8:Q6541, O_AC_DCGM_PTS!A8:A6541, A107, O_AC_DCGM_PTS!B8:B6541,C107, O_AC_DCGM_PTS!C8:C6541, B107) -> 983
A108: OSL | B108: A8 | C108: NRES | D108: N | E108: OSL NRES A8 | F108: Open space acquisition | G108: Non-residential HUEs | H108: Area 8 | I108: =SUMIFS(O_AC_DCGM_PTS!H8:H6541, O_AC_DCGM_PTS!A8:A6541, A108, O_AC_DCGM_PTS!B8:B6541,C108, O_AC_DCGM_PTS!C8:C6541, B108) -> 0 | J108: =SUMIFS(O_AC_DCGM_PTS!I8:I6541, O_AC_DCGM_PTS!A8:A6541, A108, O_AC_DCGM_PTS!B8:B6541,C108, O_AC_DCGM_PTS!C8:C6541, B108) -> 0 | K108: =SUMIFS(O_AC_DCGM_PTS!J8:J6541, O_AC_DCGM_PTS!A8:A6541, A108, O_AC_DCGM_PTS!B8:B6541,C108, O_AC_DCGM_PTS!C8:C6541, B108) -> 0 | L108: =SUMIFS(O_AC_DCGM_PTS!K8:K6541, O_AC_DCGM_PTS!A8:A6541, A108, O_AC_DCGM_PTS!B8:B6541,C108, O_AC_DCGM_PTS!C8:C6541, B108) -> 0 | M108: =SUMIFS(O_AC_DCGM_PTS!L8:L6541, O_AC_DCGM_PTS!A8:A6541, A108, O_AC_DCGM_PTS!B8:B6541,C108, O_AC_DCGM_PTS!C8:C6541, B108) -> 0 | N108: =SUMIFS(O_AC_DCGM_PTS!M8:M6541, O_AC_DCGM_PTS!A8:A6541, A108, O_AC_DCGM_PTS!B8:B6541,C108, O_AC_DCGM_PTS!C8:C6541, B108) -> 0 | O108: =SUMIFS(O_AC_DCGM_PTS!N8:N6541, O_AC_DCGM_PTS!A8:A6541, A108, O_AC_DCGM_PTS!B8:B6541,C108, O_AC_DCGM_PTS!C8:C6541, B108) -> 0 | P108: =SUMIFS(O_AC_DCGM_PTS!O8:O6541, O_AC_DCGM_PTS!A8:A6541, A108, O_AC_DCGM_PTS!B8:B6541,C108, O_AC_DCGM_PTS!C8:C6541, B108) -> 0 | Q108: =SUMIFS(O_AC_DCGM_PTS!P8:P6541, O_AC_DCGM_PTS!A8:A6541, A108, O_AC_DCGM_PTS!B8:B6541,C108, O_AC_DCGM_PTS!C8:C6541, B108) -> 0 | R108: =SUMIFS(O_AC_DCGM_PTS!Q8:Q6541, O_AC_DCGM_PTS!A8:A6541, A108, O_AC_DCGM_PTS!B8:B6541,C108, O_AC_DCGM_PTS!C8:C6541, B108) -> 0
A109: OSL | B109: A8 | C109: RES | D109: R | E109: OSL RES A8 | F109: Open space acquisition | G109: Residential HUEs | H109: Area 8 | I109: =SUMIFS(O_AC_DCGM_PTS!H8:H6541, O_AC_DCGM_PTS!A8:A6541, A109, O_AC_DCGM_PTS!B8:B6541,C109, O_AC_DCGM_PTS!C8:C6541, B109) -> 537 | J109: =SUMIFS(O_AC_DCGM_PTS!I8:I6541, O_AC_DCGM_PTS!A8:A6541, A109, O_AC_DCGM_PTS!B8:B6541,C109, O_AC_DCGM_PTS!C8:C6541, B109) -> 531 | K109: =SUMIFS(O_AC_DCGM_PTS!J8:J6541, O_AC_DCGM_PTS!A8:A6541, A109, O_AC_DCGM_PTS!B8:B6541,C109, O_AC_DCGM_PTS!C8:C6541, B109) -> 531 | L109: =SUMIFS(O_AC_DCGM_PTS!K8:K6541, O_AC_DCGM_PTS!A8:A6541, A109, O_AC_DCGM_PTS!B8:B6541,C109, O_AC_DCGM_PTS!C8:C6541, B109) -> 541 | M109: =SUMIFS(O_AC_DCGM_PTS!L8:L6541, O_AC_DCGM_PTS!A8:A6541, A109, O_AC_DCGM_PTS!B8:B6541,C109, O_AC_DCGM_PTS!C8:C6541, B109) -> 571 | N109: =SUMIFS(O_AC_DCGM_PTS!M8:M6541, O_AC_DCGM_PTS!A8:A6541, A109, O_AC_DCGM_PTS!B8:B6541,C109, O_AC_DCGM_PTS!C8:C6541, B109) -> 586 | O109: =SUMIFS(O_AC_DCGM_PTS!N8:N6541, O_AC_DCGM_PTS!A8:A6541, A109, O_AC_DCGM_PTS!B8:B6541,C109, O_AC_DCGM_PTS!C8:C6541, B109) -> 587 | P109: =SUMIFS(O_AC_DCGM_PTS!O8:O6541, O_AC_DCGM_PTS!A8:A6541, A109, O_AC_DCGM_PTS!B8:B6541,C109, O_AC_DCGM_PTS!C8:C6541, B109) -> 547 | Q109: =SUMIFS(O_AC_DCGM_PTS!P8:P6541, O_AC_DCGM_PTS!A8:A6541, A109, O_AC_DCGM_PTS!B8:B6541,C109, O_AC_DCGM_PTS!C8:C6541, B109) -> 533 | R109: =SUMIFS(O_AC_DCGM_PTS!Q8:Q6541, O_AC_DCGM_PTS!A8:A6541, A109, O_AC_DCGM_PTS!B8:B6541,C109, O_AC_DCGM_PTS!C8:C6541, B109) -> 588
A110: OSL | B110: A9 | C110: NRES | D110: N | E110: OSL NRES A9 | F110: Open space acquisition | G110: Non-residential HUEs | H110: Area 9 | I110: =SUMIFS(O_AC_DCGM_PTS!H8:H6541, O_AC_DCGM_PTS!A8:A6541, A110, O_AC_DCGM_PTS!B8:B6541,C110, O_AC_DCGM_PTS!C8:C6541, B110) -> 0 | J110: =SUMIFS(O_AC_DCGM_PTS!I8:I6541, O_AC_DCGM_PTS!A8:A6541, A110, O_AC_DCGM_PTS!B8:B6541,C110, O_AC_DCGM_PTS!C8:C6541, B110) -> 0 | K110: =SUMIFS(O_AC_DCGM_PTS!J8:J6541, O_AC_DCGM_PTS!A8:A6541, A110, O_AC_DCGM_PTS!B8:B6541,C110, O_AC_DCGM_PTS!C8:C6541, B110) -> 0 | L110: =SUMIFS(O_AC_DCGM_PTS!K8:K6541, O_AC_DCGM_PTS!A8:A6541, A110, O_AC_DCGM_PTS!B8:B6541,C110, O_AC_DCGM_PTS!C8:C6541, B110) -> 0 | M110: =SUMIFS(O_AC_DCGM_PTS!L8:L6541, O_AC_DCGM_PTS!A8:A6541, A110, O_AC_DCGM_PTS!B8:B6541,C110, O_AC_DCGM_PTS!C8:C6541, B110) -> 0 | N110: =SUMIFS(O_AC_DCGM_PTS!M8:M6541, O_AC_DCGM_PTS!A8:A6541, A110, O_AC_DCGM_PTS!B8:B6541,C110, O_AC_DCGM_PTS!C8:C6541, B110) -> 0 | O110: =SUMIFS(O_AC_DCGM_PTS!N8:N6541, O_AC_DCGM_PTS!A8:A6541, A110, O_AC_DCGM_PTS!B8:B6541,C110, O_AC_DCGM_PTS!C8:C6541, B110) -> 0 | P110: =SUMIFS(O_AC_DCGM_PTS!O8:O6541, O_AC_DCGM_PTS!A8:A6541, A110, O_AC_DCGM_PTS!B8:B6541,C110, O_AC_DCGM_PTS!C8:C6541, B110) -> 0 | Q110: =SUMIFS(O_AC_DCGM_PTS!P8:P6541, O_AC_DCGM_PTS!A8:A6541, A110, O_AC_DCGM_PTS!B8:B6541,C110, O_AC_DCGM_PTS!C8:C6541, B110) -> 0 | R110: =SUMIFS(O_AC_DCGM_PTS!Q8:Q6541, O_AC_DCGM_PTS!A8:A6541, A110, O_AC_DCGM_PTS!B8:B6541,C110, O_AC_DCGM_PTS!C8:C6541, B110) -> 0
A111: OSL | B111: A9 | C111: RES | D111: R | E111: OSL RES A9 | F111: Open space acquisition | G111: Residential HUEs | H111: Area 9 | I111: =SUMIFS(O_AC_DCGM_PTS!H8:H6541, O_AC_DCGM_PTS!A8:A6541, A111, O_AC_DCGM_PTS!B8:B6541,C111, O_AC_DCGM_PTS!C8:C6541, B111) -> 1094 | J111: =SUMIFS(O_AC_DCGM_PTS!I8:I6541, O_AC_DCGM_PTS!A8:A6541, A111, O_AC_DCGM_PTS!B8:B6541,C111, O_AC_DCGM_PTS!C8:C6541, B111) -> 1082 | K111: =SUMIFS(O_AC_DCGM_PTS!J8:J6541, O_AC_DCGM_PTS!A8:A6541, A111, O_AC_DCGM_PTS!B8:B6541,C111, O_AC_DCGM_PTS!C8:C6541, B111) -> 1087 | L111: =SUMIFS(O_AC_DCGM_PTS!K8:K6541, O_AC_DCGM_PTS!A8:A6541, A111, O_AC_DCGM_PTS!B8:B6541,C111, O_AC_DCGM_PTS!C8:C6541, B111) -> 1110 | M111: =SUMIFS(O_AC_DCGM_PTS!L8:L6541, O_AC_DCGM_PTS!A8:A6541, A111, O_AC_DCGM_PTS!B8:B6541,C111, O_AC_DCGM_PTS!C8:C6541, B111) -> 1249 | N111: =SUMIFS(O_AC_DCGM_PTS!M8:M6541, O_AC_DCGM_PTS!A8:A6541, A111, O_AC_DCGM_PTS!B8:B6541,C111, O_AC_DCGM_PTS!C8:C6541, B111) -> 1365 | O111: =SUMIFS(O_AC_DCGM_PTS!N8:N6541, O_AC_DCGM_PTS!A8:A6541, A111, O_AC_DCGM_PTS!B8:B6541,C111, O_AC_DCGM_PTS!C8:C6541, B111) -> 1368 | P111: =SUMIFS(O_AC_DCGM_PTS!O8:O6541, O_AC_DCGM_PTS!A8:A6541, A111, O_AC_DCGM_PTS!B8:B6541,C111, O_AC_DCGM_PTS!C8:C6541, B111) -> 1269 | Q111: =SUMIFS(O_AC_DCGM_PTS!P8:P6541, O_AC_DCGM_PTS!A8:A6541, A111, O_AC_DCGM_PTS!B8:B6541,C111, O_AC_DCGM_PTS!C8:C6541, B111) -> 1238 | R111: =SUMIFS(O_AC_DCGM_PTS!Q8:Q6541, O_AC_DCGM_PTS!A8:A6541, A111, O_AC_DCGM_PTS!B8:B6541,C111, O_AC_DCGM_PTS!C8:C6541, B111) -> 954
A112: OSL | B112: A10 | C112: NRES | D112: N | E112: OSL NRES A10 | F112: Open space acquisition | G112: Non-residential HUEs | H112: Area 10 | I112: =SUMIFS(O_AC_DCGM_PTS!H8:H6541, O_AC_DCGM_PTS!A8:A6541, A112, O_AC_DCGM_PTS!B8:B6541,C112, O_AC_DCGM_PTS!C8:C6541, B112) -> 0 | J112: =SUMIFS(O_AC_DCGM_PTS!I8:I6541, O_AC_DCGM_PTS!A8:A6541, A112, O_AC_DCGM_PTS!B8:B6541,C112, O_AC_DCGM_PTS!C8:C6541, B112) -> 0 | K112: =SUMIFS(O_AC_DCGM_PTS!J8:J6541, O_AC_DCGM_PTS!A8:A6541, A112, O_AC_DCGM_PTS!B8:B6541,C112, O_AC_DCGM_PTS!C8:C6541, B112) -> 0 | L112: =SUMIFS(O_AC_DCGM_PTS!K8:K6541, O_AC_DCGM_PTS!A8:A6541, A112, O_AC_DCGM_PTS!B8:B6541,C112, O_AC_DCGM_PTS!C8:C6541, B112) -> 0 | M112: =SUMIFS(O_AC_DCGM_PTS!L8:L6541, O_AC_DCGM_PTS!A8:A6541, A112, O_AC_DCGM_PTS!B8:B6541,C112, O_AC_DCGM_PTS!C8:C6541, B112) -> 0 | N112: =SUMIFS(O_AC_DCGM_PTS!M8:M6541, O_AC_DCGM_PTS!A8:A6541, A112, O_AC_DCGM_PTS!B8:B6541,C112, O_AC_DCGM_PTS!C8:C6541, B112) -> 0 | O112: =SUMIFS(O_AC_DCGM_PTS!N8:N6541, O_AC_DCGM_PTS!A8:A6541, A112, O_AC_DCGM_PTS!B8:B6541,C112, O_AC_DCGM_PTS!C8:C6541, B112) -> 0 | P112: =SUMIFS(O_AC_DCGM_PTS!O8:O6541, O_AC_DCGM_PTS!A8:A6541, A112, O_AC_DCGM_PTS!B8:B6541,C112, O_AC_DCGM_PTS!C8:C6541, B112) -> 0 | Q112: =SUMIFS(O_AC_DCGM_PTS!P8:P6541, O_AC_DCGM_PTS!A8:A6541, A112, O_AC_DCGM_PTS!B8:B6541,C112, O_AC_DCGM_PTS!C8:C6541, B112) -> 0 | R112: =SUMIFS(O_AC_DCGM_PTS!Q8:Q6541, O_AC_DCGM_PTS!A8:A6541, A112, O_AC_DCGM_PTS!B8:B6541,C112, O_AC_DCGM_PTS!C8:C6541, B112) -> 0
A113: OSL | B113: A10 | C113: RES | D113: R | E113: OSL RES A10 | F113: Open space acquisition | G113: Residential HUEs | H113: Area 10 | I113: =SUMIFS(O_AC_DCGM_PTS!H8:H6541, O_AC_DCGM_PTS!A8:A6541, A113, O_AC_DCGM_PTS!B8:B6541,C113, O_AC_DCGM_PTS!C8:C6541, B113) -> 212 | J113: =SUMIFS(O_AC_DCGM_PTS!I8:I6541, O_AC_DCGM_PTS!A8:A6541, A113, O_AC_DCGM_PTS!B8:B6541,C113, O_AC_DCGM_PTS!C8:C6541, B113) -> 210 | K113: =SUMIFS(O_AC_DCGM_PTS!J8:J6541, O_AC_DCGM_PTS!A8:A6541, A113, O_AC_DCGM_PTS!B8:B6541,C113, O_AC_DCGM_PTS!C8:C6541, B113) -> 211 | L113: =SUMIFS(O_AC_DCGM_PTS!K8:K6541, O_AC_DCGM_PTS!A8:A6541, A113, O_AC_DCGM_PTS!B8:B6541,C113, O_AC_DCGM_PTS!C8:C6541, B113) -> 216 | M113: =SUMIFS(O_AC_DCGM_PTS!L8:L6541, O_AC_DCGM_PTS!A8:A6541, A113, O_AC_DCGM_PTS!B8:B6541,C113, O_AC_DCGM_PTS!C8:C6541, B113) -> 224 | N113: =SUMIFS(O_AC_DCGM_PTS!M8:M6541, O_AC_DCGM_PTS!A8:A6541, A113, O_AC_DCGM_PTS!B8:B6541,C113, O_AC_DCGM_PTS!C8:C6541, B113) -> 224 | O113: =SUMIFS(O_AC_DCGM_PTS!N8:N6541, O_AC_DCGM_PTS!A8:A6541, A113, O_AC_DCGM_PTS!B8:B6541,C113, O_AC_DCGM_PTS!C8:C6541, B113) -> 224 | P113: =SUMIFS(O_AC_DCGM_PTS!O8:O6541, O_AC_DCGM_PTS!A8:A6541, A113, O_AC_DCGM_PTS!B8:B6541,C113, O_AC_DCGM_PTS!C8:C6541, B113) -> 208 | Q113: =SUMIFS(O_AC_DCGM_PTS!P8:P6541, O_AC_DCGM_PTS!A8:A6541, A113, O_AC_DCGM_PTS!B8:B6541,C113, O_AC_DCGM_PTS!C8:C6541, B113) -> 203 | R113: =SUMIFS(O_AC_DCGM_PTS!Q8:Q6541, O_AC_DCGM_PTS!A8:A6541, A113, O_AC_DCGM_PTS!B8:B6541,C113, O_AC_DCGM_PTS!C8:C6541, B113) -> 185
A114: OSL | B114: A11 | C114: NRES | D114: N | E114: OSL NRES A11 | F114: Open space acquisition | G114: Non-residential HUEs | H114: Area 11 | I114: =SUMIFS(O_AC_DCGM_PTS!H8:H6541, O_AC_DCGM_PTS!A8:A6541, A114, O_AC_DCGM_PTS!B8:B6541,C114, O_AC_DCGM_PTS!C8:C6541, B114) -> 0 | J114: =SUMIFS(O_AC_DCGM_PTS!I8:I6541, O_AC_DCGM_PTS!A8:A6541, A114, O_AC_DCGM_PTS!B8:B6541,C114, O_AC_DCGM_PTS!C8:C6541, B114) -> 0 | K114: =SUMIFS(O_AC_DCGM_PTS!J8:J6541, O_AC_DCGM_PTS!A8:A6541, A114, O_AC_DCGM_PTS!B8:B6541,C114, O_AC_DCGM_PTS!C8:C6541, B114) -> 0 | L114: =SUMIFS(O_AC_DCGM_PTS!K8:K6541, O_AC_DCGM_PTS!A8:A6541, A114, O_AC_DCGM_PTS!B8:B6541,C114, O_AC_DCGM_PTS!C8:C6541, B114) -> 0 | M114: =SUMIFS(O_AC_DCGM_PTS!L8:L6541, O_AC_DCGM_PTS!A8:A6541, A114, O_AC_DCGM_PTS!B8:B6541,C114, O_AC_DCGM_PTS!C8:C6541, B114) -> 0 | N114: =SUMIFS(O_AC_DCGM_PTS!M8:M6541, O_AC_DCGM_PTS!A8:A6541, A114, O_AC_DCGM_PTS!B8:B6541,C114, O_AC_DCGM_PTS!C8:C6541, B114) -> 0 | O114: =SUMIFS(O_AC_DCGM_PTS!N8:N6541, O_AC_DCGM_PTS!A8:A6541, A114, O_AC_DCGM_PTS!B8:B6541,C114, O_AC_DCGM_PTS!C8:C6541, B114) -> 0 | P114: =SUMIFS(O_AC_DCGM_PTS!O8:O6541, O_AC_DCGM_PTS!A8:A6541, A114, O_AC_DCGM_PTS!B8:B6541,C114, O_AC_DCGM_PTS!C8:C6541, B114) -> 0 | Q114: =SUMIFS(O_AC_DCGM_PTS!P8:P6541, O_AC_DCGM_PTS!A8:A6541, A114, O_AC_DCGM_PTS!B8:B6541,C114, O_AC_DCGM_PTS!C8:C6541, B114) -> 0 | R114: =SUMIFS(O_AC_DCGM_PTS!Q8:Q6541, O_AC_DCGM_PTS!A8:A6541, A114, O_AC_DCGM_PTS!B8:B6541,C114, O_AC_DCGM_PTS!C8:C6541, B114) -> 0
A115: OSL | B115: A11 | C115: RES | D115: R | E115: OSL RES A11 | F115: Open space acquisition | G115: Residential HUEs | H115: Area 11 | I115: =SUMIFS(O_AC_DCGM_PTS!H8:H6541, O_AC_DCGM_PTS!A8:A6541, A115, O_AC_DCGM_PTS!B8:B6541,C115, O_AC_DCGM_PTS!C8:C6541, B115) -> 72 | J115: =SUMIFS(O_AC_DCGM_PTS!I8:I6541, O_AC_DCGM_PTS!A8:A6541, A115, O_AC_DCGM_PTS!B8:B6541,C115, O_AC_DCGM_PTS!C8:C6541, B115) -> 71 | K115: =SUMIFS(O_AC_DCGM_PTS!J8:J6541, O_AC_DCGM_PTS!A8:A6541, A115, O_AC_DCGM_PTS!B8:B6541,C115, O_AC_DCGM_PTS!C8:C6541, B115) -> 71 | L115: =SUMIFS(O_AC_DCGM_PTS!K8:K6541, O_AC_DCGM_PTS!A8:A6541, A115, O_AC_DCGM_PTS!B8:B6541,C115, O_AC_DCGM_PTS!C8:C6541, B115) -> 72 | M115: =SUMIFS(O_AC_DCGM_PTS!L8:L6541, O_AC_DCGM_PTS!A8:A6541, A115, O_AC_DCGM_PTS!B8:B6541,C115, O_AC_DCGM_PTS!C8:C6541, B115) -> 74 | N115: =SUMIFS(O_AC_DCGM_PTS!M8:M6541, O_AC_DCGM_PTS!A8:A6541, A115, O_AC_DCGM_PTS!B8:B6541,C115, O_AC_DCGM_PTS!C8:C6541, B115) -> 76 | O115: =SUMIFS(O_AC_DCGM_PTS!N8:N6541, O_AC_DCGM_PTS!A8:A6541, A115, O_AC_DCGM_PTS!B8:B6541,C115, O_AC_DCGM_PTS!C8:C6541, B115) -> 77 | P115: =SUMIFS(O_AC_DCGM_PTS!O8:O6541, O_AC_DCGM_PTS!A8:A6541, A115, O_AC_DCGM_PTS!B8:B6541,C115, O_AC_DCGM_PTS!C8:C6541, B115) -> 73 | Q115: =SUMIFS(O_AC_DCGM_PTS!P8:P6541, O_AC_DCGM_PTS!A8:A6541, A115, O_AC_DCGM_PTS!B8:B6541,C115, O_AC_DCGM_PTS!C8:C6541, B115) -> 71 | R115: =SUMIFS(O_AC_DCGM_PTS!Q8:Q6541, O_AC_DCGM_PTS!A8:A6541, A115, O_AC_DCGM_PTS!B8:B6541,C115, O_AC_DCGM_PTS!C8:C6541, B115) -> 71
A116: OSL | B116: A12 | C116: NRES | D116: N | E116: OSL NRES A12 | F116: Open space acquisition | G116: Non-residential HUEs | H116: Area 12 | I116: =SUMIFS(O_AC_DCGM_PTS!H8:H6541, O_AC_DCGM_PTS!A8:A6541, A116, O_AC_DCGM_PTS!B8:B6541,C116, O_AC_DCGM_PTS!C8:C6541, B116) -> 0 | J116: =SUMIFS(O_AC_DCGM_PTS!I8:I6541, O_AC_DCGM_PTS!A8:A6541, A116, O_AC_DCGM_PTS!B8:B6541,C116, O_AC_DCGM_PTS!C8:C6541, B116) -> 0 | K116: =SUMIFS(O_AC_DCGM_PTS!J8:J6541, O_AC_DCGM_PTS!A8:A6541, A116, O_AC_DCGM_PTS!B8:B6541,C116, O_AC_DCGM_PTS!C8:C6541, B116) -> 0 | L116: =SUMIFS(O_AC_DCGM_PTS!K8:K6541, O_AC_DCGM_PTS!A8:A6541, A116, O_AC_DCGM_PTS!B8:B6541,C116, O_AC_DCGM_PTS!C8:C6541, B116) -> 0 | M116: =SUMIFS(O_AC_DCGM_PTS!L8:L6541, O_AC_DCGM_PTS!A8:A6541, A116, O_AC_DCGM_PTS!B8:B6541,C116, O_AC_DCGM_PTS!C8:C6541, B116) -> 0 | N116: =SUMIFS(O_AC_DCGM_PTS!M8:M6541, O_AC_DCGM_PTS!A8:A6541, A116, O_AC_DCGM_PTS!B8:B6541,C116, O_AC_DCGM_PTS!C8:C6541, B116) -> 0 | O116: =SUMIFS(O_AC_DCGM_PTS!N8:N6541, O_AC_DCGM_PTS!A8:A6541, A116, O_AC_DCGM_PTS!B8:B6541,C116, O_AC_DCGM_PTS!C8:C6541, B116) -> 0 | P116: =SUMIFS(O_AC_DCGM_PTS!O8:O6541, O_AC_DCGM_PTS!A8:A6541, A116, O_AC_DCGM_PTS!B8:B6541,C116, O_AC_DCGM_PTS!C8:C6541, B116) -> 0 | Q116: =SUMIFS(O_AC_DCGM_PTS!P8:P6541, O_AC_DCGM_PTS!A8:A6541, A116, O_AC_DCGM_PTS!B8:B6541,C116, O_AC_DCGM_PTS!C8:C6541, B116) -> 0 | R116: =SUMIFS(O_AC_DCGM_PTS!Q8:Q6541, O_AC_DCGM_PTS!A8:A6541, A116, O_AC_DCGM_PTS!B8:B6541,C116, O_AC_DCGM_PTS!C8:C6541, B116) -> 0
A117: OSL | B117: A12 | C117: RES | D117: R | E117: OSL RES A12 | F117: Open space acquisition | G117: Residential HUEs | H117: Area 12 | I117: =SUMIFS(O_AC_DCGM_PTS!H8:H6541, O_AC_DCGM_PTS!A8:A6541, A117, O_AC_DCGM_PTS!B8:B6541,C117, O_AC_DCGM_PTS!C8:C6541, B117) -> 121 | J117: =SUMIFS(O_AC_DCGM_PTS!I8:I6541, O_AC_DCGM_PTS!A8:A6541, A117, O_AC_DCGM_PTS!B8:B6541,C117, O_AC_DCGM_PTS!C8:C6541, B117) -> 155 | K117: =SUMIFS(O_AC_DCGM_PTS!J8:J6541, O_AC_DCGM_PTS!A8:A6541, A117, O_AC_DCGM_PTS!B8:B6541,C117, O_AC_DCGM_PTS!C8:C6541, B117) -> 185 | L117: =SUMIFS(O_AC_DCGM_PTS!K8:K6541, O_AC_DCGM_PTS!A8:A6541, A117, O_AC_DCGM_PTS!B8:B6541,C117, O_AC_DCGM_PTS!C8:C6541, B117) -> 205 | M117: =SUMIFS(O_AC_DCGM_PTS!L8:L6541, O_AC_DCGM_PTS!A8:A6541, A117, O_AC_DCGM_PTS!B8:B6541,C117, O_AC_DCGM_PTS!C8:C6541, B117) -> 237 | N117: =SUMIFS(O_AC_DCGM_PTS!M8:M6541, O_AC_DCGM_PTS!A8:A6541, A117, O_AC_DCGM_PTS!B8:B6541,C117, O_AC_DCGM_PTS!C8:C6541, B117) -> 313 | O117: =SUMIFS(O_AC_DCGM_PTS!N8:N6541, O_AC_DCGM_PTS!A8:A6541, A117, O_AC_DCGM_PTS!B8:B6541,C117, O_AC_DCGM_PTS!C8:C6541, B117) -> 361 | P117: =SUMIFS(O_AC_DCGM_PTS!O8:O6541, O_AC_DCGM_PTS!A8:A6541, A117, O_AC_DCGM_PTS!B8:B6541,C117, O_AC_DCGM_PTS!C8:C6541, B117) -> 346 | Q117: =SUMIFS(O_AC_DCGM_PTS!P8:P6541, O_AC_DCGM_PTS!A8:A6541, A117, O_AC_DCGM_PTS!B8:B6541,C117, O_AC_DCGM_PTS!C8:C6541, B117) -> 337 | R117: =SUMIFS(O_AC_DCGM_PTS!Q8:Q6541, O_AC_DCGM_PTS!A8:A6541, A117, O_AC_DCGM_PTS!B8:B6541,C117, O_AC_DCGM_PTS!C8:C6541, B117) -> 400
A118: OSL | B118: A13 | C118: NRES | D118: N | E118: OSL NRES A13 | F118: Open space acquisition | G118: Non-residential HUEs | H118: Area 13 | I118: =SUMIFS(O_AC_DCGM_PTS!H8:H6541, O_AC_DCGM_PTS!A8:A6541, A118, O_AC_DCGM_PTS!B8:B6541,C118, O_AC_DCGM_PTS!C8:C6541, B118) -> 0 | J118: =SUMIFS(O_AC_DCGM_PTS!I8:I6541, O_AC_DCGM_PTS!A8:A6541, A118, O_AC_DCGM_PTS!B8:B6541,C118, O_AC_DCGM_PTS!C8:C6541, B118) -> 0 | K118: =SUMIFS(O_AC_DCGM_PTS!J8:J6541, O_AC_DCGM_PTS!A8:A6541, A118, O_AC_DCGM_PTS!B8:B6541,C118, O_AC_DCGM_PTS!C8:C6541, B118) -> 0 | L118: =SUMIFS(O_AC_DCGM_PTS!K8:K6541, O_AC_DCGM_PTS!A8:A6541, A118, O_AC_DCGM_PTS!B8:B6541,C118, O_AC_DCGM_PTS!C8:C6541, B118) -> 0 | M118: =SUMIFS(O_AC_DCGM_PTS!L8:L6541, O_AC_DCGM_PTS!A8:A6541, A118, O_AC_DCGM_PTS!B8:B6541,C118, O_AC_DCGM_PTS!C8:C6541, B118) -> 0 | N118: =SUMIFS(O_AC_DCGM_PTS!M8:M6541, O_AC_DCGM_PTS!A8:A6541, A118, O_AC_DCGM_PTS!B8:B6541,C118, O_AC_DCGM_PTS!C8:C6541, B118) -> 0 | O118: =SUMIFS(O_AC_DCGM_PTS!N8:N6541, O_AC_DCGM_PTS!A8:A6541, A118, O_AC_DCGM_PTS!B8:B6541,C118, O_AC_DCGM_PTS!C8:C6541, B118) -> 0 | P118: =SUMIFS(O_AC_DCGM_PTS!O8:O6541, O_AC_DCGM_PTS!A8:A6541, A118, O_AC_DCGM_PTS!B8:B6541,C118, O_AC_DCGM_PTS!C8:C6541, B118) -> 0 | Q118: =SUMIFS(O_AC_DCGM_PTS!P8:P6541, O_AC_DCGM_PTS!A8:A6541, A118, O_AC_DCGM_PTS!B8:B6541,C118, O_AC_DCGM_PTS!C8:C6541, B118) -> 0 | R118: =SUMIFS(O_AC_DCGM_PTS!Q8:Q6541, O_AC_DCGM_PTS!A8:A6541, A118, O_AC_DCGM_PTS!B8:B6541,C118, O_AC_DCGM_PTS!C8:C6541, B118) -> 0
A119: OSL | B119: A13 | C119: RES | D119: R | E119: OSL RES A13 | F119: Open space acquisition | G119: Residential HUEs | H119: Area 13 | I119: =SUMIFS(O_AC_DCGM_PTS!H8:H6541, O_AC_DCGM_PTS!A8:A6541, A119, O_AC_DCGM_PTS!B8:B6541,C119, O_AC_DCGM_PTS!C8:C6541, B119) -> 260 | J119: =SUMIFS(O_AC_DCGM_PTS!I8:I6541, O_AC_DCGM_PTS!A8:A6541, A119, O_AC_DCGM_PTS!B8:B6541,C119, O_AC_DCGM_PTS!C8:C6541, B119) -> 254 | K119: =SUMIFS(O_AC_DCGM_PTS!J8:J6541, O_AC_DCGM_PTS!A8:A6541, A119, O_AC_DCGM_PTS!B8:B6541,C119, O_AC_DCGM_PTS!C8:C6541, B119) -> 254 | L119: =SUMIFS(O_AC_DCGM_PTS!K8:K6541, O_AC_DCGM_PTS!A8:A6541, A119, O_AC_DCGM_PTS!B8:B6541,C119, O_AC_DCGM_PTS!C8:C6541, B119) -> 261 | M119: =SUMIFS(O_AC_DCGM_PTS!L8:L6541, O_AC_DCGM_PTS!A8:A6541, A119, O_AC_DCGM_PTS!B8:B6541,C119, O_AC_DCGM_PTS!C8:C6541, B119) -> 280 | N119: =SUMIFS(O_AC_DCGM_PTS!M8:M6541, O_AC_DCGM_PTS!A8:A6541, A119, O_AC_DCGM_PTS!B8:B6541,C119, O_AC_DCGM_PTS!C8:C6541, B119) -> 294 | O119: =SUMIFS(O_AC_DCGM_PTS!N8:N6541, O_AC_DCGM_PTS!A8:A6541, A119, O_AC_DCGM_PTS!B8:B6541,C119, O_AC_DCGM_PTS!C8:C6541, B119) -> 294 | P119: =SUMIFS(O_AC_DCGM_PTS!O8:O6541, O_AC_DCGM_PTS!A8:A6541, A119, O_AC_DCGM_PTS!B8:B6541,C119, O_AC_DCGM_PTS!C8:C6541, B119) -> 272 | Q119: =SUMIFS(O_AC_DCGM_PTS!P8:P6541, O_AC_DCGM_PTS!A8:A6541, A119, O_AC_DCGM_PTS!B8:B6541,C119, O_AC_DCGM_PTS!C8:C6541, B119) -> 266 | R119: =SUMIFS(O_AC_DCGM_PTS!Q8:Q6541, O_AC_DCGM_PTS!A8:A6541, A119, O_AC_DCGM_PTS!B8:B6541,C119, O_AC_DCGM_PTS!C8:C6541, B119) -> 143
A120: OSL | B120: A14 | C120: NRES | D120: N | E120: OSL NRES A14 | F120: Open space acquisition | G120: Non-residential HUEs | H120: Area 14 | I120: =SUMIFS(O_AC_DCGM_PTS!H8:H6541, O_AC_DCGM_PTS!A8:A6541, A120, O_AC_DCGM_PTS!B8:B6541,C120, O_AC_DCGM_PTS!C8:C6541, B120) -> 0 | J120: =SUMIFS(O_AC_DCGM_PTS!I8:I6541, O_AC_DCGM_PTS!A8:A6541, A120, O_AC_DCGM_PTS!B8:B6541,C120, O_AC_DCGM_PTS!C8:C6541, B120) -> 0 | K120: =SUMIFS(O_AC_DCGM_PTS!J8:J6541, O_AC_DCGM_PTS!A8:A6541, A120, O_AC_DCGM_PTS!B8:B6541,C120, O_AC_DCGM_PTS!C8:C6541, B120) -> 0 | L120: =SUMIFS(O_AC_DCGM_PTS!K8:K6541, O_AC_DCGM_PTS!A8:A6541, A120, O_AC_DCGM_PTS!B8:B6541,C120, O_AC_DCGM_PTS!C8:C6541, B120) -> 0 | M120: =SUMIFS(O_AC_DCGM_PTS!L8:L6541, O_AC_DCGM_PTS!A8:A6541, A120, O_AC_DCGM_PTS!B8:B6541,C120, O_AC_DCGM_PTS!C8:C6541, B120) -> 0 | N120: =SUMIFS(O_AC_DCGM_PTS!M8:M6541, O_AC_DCGM_PTS!A8:A6541, A120, O_AC_DCGM_PTS!B8:B6541,C120, O_AC_DCGM_PTS!C8:C6541, B120) -> 0 | O120: =SUMIFS(O_AC_DCGM_PTS!N8:N6541, O_AC_DCGM_PTS!A8:A6541, A120, O_AC_DCGM_PTS!B8:B6541,C120, O_AC_DCGM_PTS!C8:C6541, B120) -> 0 | P120: =SUMIFS(O_AC_DCGM_PTS!O8:O6541, O_AC_DCGM_PTS!A8:A6541, A120, O_AC_DCGM_PTS!B8:B6541,C120, O_AC_DCGM_PTS!C8:C6541, B120) -> 0 | Q120: =SUMIFS(O_AC_DCGM_PTS!P8:P6541, O_AC_DCGM_PTS!A8:A6541, A120, O_AC_DCGM_PTS!B8:B6541,C120, O_AC_DCGM_PTS!C8:C6541, B120) -> 0 | R120: =SUMIFS(O_AC_DCGM_PTS!Q8:Q6541, O_AC_DCGM_PTS!A8:A6541, A120, O_AC_DCGM_PTS!B8:B6541,C120, O_AC_DCGM_PTS!C8:C6541, B120) -> 0
A121: OSL | B121: A14 | C121: RES | D121: R | E121: OSL RES A14 | F121: Open space acquisition | G121: Residential HUEs | H121: Area 14 | I121: =SUMIFS(O_AC_DCGM_PTS!H8:H6541, O_AC_DCGM_PTS!A8:A6541, A121, O_AC_DCGM_PTS!B8:B6541,C121, O_AC_DCGM_PTS!C8:C6541, B121) -> 416 | J121: =SUMIFS(O_AC_DCGM_PTS!I8:I6541, O_AC_DCGM_PTS!A8:A6541, A121, O_AC_DCGM_PTS!B8:B6541,C121, O_AC_DCGM_PTS!C8:C6541, B121) -> 413 | K121: =SUMIFS(O_AC_DCGM_PTS!J8:J6541, O_AC_DCGM_PTS!A8:A6541, A121, O_AC_DCGM_PTS!B8:B6541,C121, O_AC_DCGM_PTS!C8:C6541, B121) -> 415 | L121: =SUMIFS(O_AC_DCGM_PTS!K8:K6541, O_AC_DCGM_PTS!A8:A6541, A121, O_AC_DCGM_PTS!B8:B6541,C121, O_AC_DCGM_PTS!C8:C6541, B121) -> 424 | M121: =SUMIFS(O_AC_DCGM_PTS!L8:L6541, O_AC_DCGM_PTS!A8:A6541, A121, O_AC_DCGM_PTS!B8:B6541,C121, O_AC_DCGM_PTS!C8:C6541, B121) -> 513 | N121: =SUMIFS(O_AC_DCGM_PTS!M8:M6541, O_AC_DCGM_PTS!A8:A6541, A121, O_AC_DCGM_PTS!B8:B6541,C121, O_AC_DCGM_PTS!C8:C6541, B121) -> 591 | O121: =SUMIFS(O_AC_DCGM_PTS!N8:N6541, O_AC_DCGM_PTS!A8:A6541, A121, O_AC_DCGM_PTS!B8:B6541,C121, O_AC_DCGM_PTS!C8:C6541, B121) -> 592 | P121: =SUMIFS(O_AC_DCGM_PTS!O8:O6541, O_AC_DCGM_PTS!A8:A6541, A121, O_AC_DCGM_PTS!B8:B6541,C121, O_AC_DCGM_PTS!C8:C6541, B121) -> 550 | Q121: =SUMIFS(O_AC_DCGM_PTS!P8:P6541, O_AC_DCGM_PTS!A8:A6541, A121, O_AC_DCGM_PTS!B8:B6541,C121, O_AC_DCGM_PTS!C8:C6541, B121) -> 536 | R121: =SUMIFS(O_AC_DCGM_PTS!Q8:Q6541, O_AC_DCGM_PTS!A8:A6541, A121, O_AC_DCGM_PTS!B8:B6541,C121, O_AC_DCGM_PTS!C8:C6541, B121) -> 425
A122: OSL | B122: A15 | C122: NRES | D122: N | E122: OSL NRES A15 | F122: Open space acquisition | G122: Non-residential HUEs | H122: Area 15 | I122: =SUMIFS(O_AC_DCGM_PTS!H8:H6541, O_AC_DCGM_PTS!A8:A6541, A122, O_AC_DCGM_PTS!B8:B6541,C122, O_AC_DCGM_PTS!C8:C6541, B122) -> 0 | J122: =SUMIFS(O_AC_DCGM_PTS!I8:I6541, O_AC_DCGM_PTS!A8:A6541, A122, O_AC_DCGM_PTS!B8:B6541,C122, O_AC_DCGM_PTS!C8:C6541, B122) -> 0 | K122: =SUMIFS(O_AC_DCGM_PTS!J8:J6541, O_AC_DCGM_PTS!A8:A6541, A122, O_AC_DCGM_PTS!B8:B6541,C122, O_AC_DCGM_PTS!C8:C6541, B122) -> 0 | L122: =SUMIFS(O_AC_DCGM_PTS!K8:K6541, O_AC_DCGM_PTS!A8:A6541, A122, O_AC_DCGM_PTS!B8:B6541,C122, O_AC_DCGM_PTS!C8:C6541, B122) -> 0 | M122: =SUMIFS(O_AC_DCGM_PTS!L8:L6541, O_AC_DCGM_PTS!A8:A6541, A122, O_AC_DCGM_PTS!B8:B6541,C122, O_AC_DCGM_PTS!C8:C6541, B122) -> 0 | N122: =SUMIFS(O_AC_DCGM_PTS!M8:M6541, O_AC_DCGM_PTS!A8:A6541, A122, O_AC_DCGM_PTS!B8:B6541,C122, O_AC_DCGM_PTS!C8:C6541, B122) -> 0 | O122: =SUMIFS(O_AC_DCGM_PTS!N8:N6541, O_AC_DCGM_PTS!A8:A6541, A122, O_AC_DCGM_PTS!B8:B6541,C122, O_AC_DCGM_PTS!C8:C6541, B122) -> 0 | P122: =SUMIFS(O_AC_DCGM_PTS!O8:O6541, O_AC_DCGM_PTS!A8:A6541, A122, O_AC_DCGM_PTS!B8:B6541,C122, O_AC_DCGM_PTS!C8:C6541, B122) -> 0 | Q122: =SUMIFS(O_AC_DCGM_PTS!P8:P6541, O_AC_DCGM_PTS!A8:A6541, A122, O_AC_DCGM_PTS!B8:B6541,C122, O_AC_DCGM_PTS!C8:C6541, B122) -> 0 | R122: =SUMIFS(O_AC_DCGM_PTS!Q8:Q6541, O_AC_DCGM_PTS!A8:A6541, A122, O_AC_DCGM_PTS!B8:B6541,C122, O_AC_DCGM_PTS!C8:C6541, B122) -> 0
A123: OSL | B123: A15 | C123: RES | D123: R | E123: OSL RES A15 | F123: Open space acquisition | G123: Residential HUEs | H123: Area 15 | I123: =SUMIFS(O_AC_DCGM_PTS!H8:H6541, O_AC_DCGM_PTS!A8:A6541, A123, O_AC_DCGM_PTS!B8:B6541,C123, O_AC_DCGM_PTS!C8:C6541, B123) -> 202 | J123: =SUMIFS(O_AC_DCGM_PTS!I8:I6541, O_AC_DCGM_PTS!A8:A6541, A123, O_AC_DCGM_PTS!B8:B6541,C123, O_AC_DCGM_PTS!C8:C6541, B123) -> 198 | K123: =SUMIFS(O_AC_DCGM_PTS!J8:J6541, O_AC_DCGM_PTS!A8:A6541, A123, O_AC_DCGM_PTS!B8:B6541,C123, O_AC_DCGM_PTS!C8:C6541, B123) -> 197 | L123: =SUMIFS(O_AC_DCGM_PTS!K8:K6541, O_AC_DCGM_PTS!A8:A6541, A123, O_AC_DCGM_PTS!B8:B6541,C123, O_AC_DCGM_PTS!C8:C6541, B123) -> 203 | M123: =SUMIFS(O_AC_DCGM_PTS!L8:L6541, O_AC_DCGM_PTS!A8:A6541, A123, O_AC_DCGM_PTS!B8:B6541,C123, O_AC_DCGM_PTS!C8:C6541, B123) -> 219 | N123: =SUMIFS(O_AC_DCGM_PTS!M8:M6541, O_AC_DCGM_PTS!A8:A6541, A123, O_AC_DCGM_PTS!B8:B6541,C123, O_AC_DCGM_PTS!C8:C6541, B123) -> 229 | O123: =SUMIFS(O_AC_DCGM_PTS!N8:N6541, O_AC_DCGM_PTS!A8:A6541, A123, O_AC_DCGM_PTS!B8:B6541,C123, O_AC_DCGM_PTS!C8:C6541, B123) -> 229 | P123: =SUMIFS(O_AC_DCGM_PTS!O8:O6541, O_AC_DCGM_PTS!A8:A6541, A123, O_AC_DCGM_PTS!B8:B6541,C123, O_AC_DCGM_PTS!C8:C6541, B123) -> 212 | Q123: =SUMIFS(O_AC_DCGM_PTS!P8:P6541, O_AC_DCGM_PTS!A8:A6541, A123, O_AC_DCGM_PTS!B8:B6541,C123, O_AC_DCGM_PTS!C8:C6541, B123) -> 209 | R123: =SUMIFS(O_AC_DCGM_PTS!Q8:Q6541, O_AC_DCGM_PTS!A8:A6541, A123, O_AC_DCGM_PTS!B8:B6541,C123, O_AC_DCGM_PTS!C8:C6541, B123) -> 185
A124: OSL | B124: A16 | C124: NRES | D124: N | E124: OSL NRES A16 | F124: Open space acquisition | G124: Non-residential HUEs | H124: Area 16 | I124: =SUMIFS(O_AC_DCGM_PTS!H8:H6541, O_AC_DCGM_PTS!A8:A6541, A124, O_AC_DCGM_PTS!B8:B6541,C124, O_AC_DCGM_PTS!C8:C6541, B124) -> 0 | J124: =SUMIFS(O_AC_DCGM_PTS!I8:I6541, O_AC_DCGM_PTS!A8:A6541, A124, O_AC_DCGM_PTS!B8:B6541,C124, O_AC_DCGM_PTS!C8:C6541, B124) -> 0 | K124: =SUMIFS(O_AC_DCGM_PTS!J8:J6541, O_AC_DCGM_PTS!A8:A6541, A124, O_AC_DCGM_PTS!B8:B6541,C124, O_AC_DCGM_PTS!C8:C6541, B124) -> 0 | L124: =SUMIFS(O_AC_DCGM_PTS!K8:K6541, O_AC_DCGM_PTS!A8:A6541, A124, O_AC_DCGM_PTS!B8:B6541,C124, O_AC_DCGM_PTS!C8:C6541, B124) -> 0 | M124: =SUMIFS(O_AC_DCGM_PTS!L8:L6541, O_AC_DCGM_PTS!A8:A6541, A124, O_AC_DCGM_PTS!B8:B6541,C124, O_AC_DCGM_PTS!C8:C6541, B124) -> 0 | N124: =SUMIFS(O_AC_DCGM_PTS!M8:M6541, O_AC_DCGM_PTS!A8:A6541, A124, O_AC_DCGM_PTS!B8:B6541,C124, O_AC_DCGM_PTS!C8:C6541, B124) -> 0 | O124: =SUMIFS(O_AC_DCGM_PTS!N8:N6541, O_AC_DCGM_PTS!A8:A6541, A124, O_AC_DCGM_PTS!B8:B6541,C124, O_AC_DCGM_PTS!C8:C6541, B124) -> 0 | P124: =SUMIFS(O_AC_DCGM_PTS!O8:O6541, O_AC_DCGM_PTS!A8:A6541, A124, O_AC_DCGM_PTS!B8:B6541,C124, O_AC_DCGM_PTS!C8:C6541, B124) -> 0 | Q124: =SUMIFS(O_AC_DCGM_PTS!P8:P6541, O_AC_DCGM_PTS!A8:A6541, A124, O_AC_DCGM_PTS!B8:B6541,C124, O_AC_DCGM_PTS!C8:C6541, B124) -> 0 | R124: =SUMIFS(O_AC_DCGM_PTS!Q8:Q6541, O_AC_DCGM_PTS!A8:A6541, A124, O_AC_DCGM_PTS!B8:B6541,C124, O_AC_DCGM_PTS!C8:C6541, B124) -> 0
A125: OSL | B125: A16 | C125: RES | D125: R | E125: OSL RES A16 | F125: Open space acquisition | G125: Residential HUEs | H125: Area 16 | I125: =SUMIFS(O_AC_DCGM_PTS!H8:H6541, O_AC_DCGM_PTS!A8:A6541, A125, O_AC_DCGM_PTS!B8:B6541,C125, O_AC_DCGM_PTS!C8:C6541, B125) -> 550 | J125: =SUMIFS(O_AC_DCGM_PTS!I8:I6541, O_AC_DCGM_PTS!A8:A6541, A125, O_AC_DCGM_PTS!B8:B6541,C125, O_AC_DCGM_PTS!C8:C6541, B125) -> 543 | K125: =SUMIFS(O_AC_DCGM_PTS!J8:J6541, O_AC_DCGM_PTS!A8:A6541, A125, O_AC_DCGM_PTS!B8:B6541,C125, O_AC_DCGM_PTS!C8:C6541, B125) -> 548 | L125: =SUMIFS(O_AC_DCGM_PTS!K8:K6541, O_AC_DCGM_PTS!A8:A6541, A125, O_AC_DCGM_PTS!B8:B6541,C125, O_AC_DCGM_PTS!C8:C6541, B125) -> 559 | M125: =SUMIFS(O_AC_DCGM_PTS!L8:L6541, O_AC_DCGM_PTS!A8:A6541, A125, O_AC_DCGM_PTS!B8:B6541,C125, O_AC_DCGM_PTS!C8:C6541, B125) -> 615 | N125: =SUMIFS(O_AC_DCGM_PTS!M8:M6541, O_AC_DCGM_PTS!A8:A6541, A125, O_AC_DCGM_PTS!B8:B6541,C125, O_AC_DCGM_PTS!C8:C6541, B125) -> 658 | O125: =SUMIFS(O_AC_DCGM_PTS!N8:N6541, O_AC_DCGM_PTS!A8:A6541, A125, O_AC_DCGM_PTS!B8:B6541,C125, O_AC_DCGM_PTS!C8:C6541, B125) -> 659 | P125: =SUMIFS(O_AC_DCGM_PTS!O8:O6541, O_AC_DCGM_PTS!A8:A6541, A125, O_AC_DCGM_PTS!B8:B6541,C125, O_AC_DCGM_PTS!C8:C6541, B125) -> 614 | Q125: =SUMIFS(O_AC_DCGM_PTS!P8:P6541, O_AC_DCGM_PTS!A8:A6541, A125, O_AC_DCGM_PTS!B8:B6541,C125, O_AC_DCGM_PTS!C8:C6541, B125) -> 601 | R125: =SUMIFS(O_AC_DCGM_PTS!Q8:Q6541, O_AC_DCGM_PTS!A8:A6541, A125, O_AC_DCGM_PTS!B8:B6541,C125, O_AC_DCGM_PTS!C8:C6541, B125) -> 519
A126: OSL | B126: A17 | C126: NRES | D126: N | E126: OSL NRES A17 | F126: Open space acquisition | G126: Non-residential HUEs | H126: Area 17 | I126: =SUMIFS(O_AC_DCGM_PTS!H8:H6541, O_AC_DCGM_PTS!A8:A6541, A126, O_AC_DCGM_PTS!B8:B6541,C126, O_AC_DCGM_PTS!C8:C6541, B126) -> 0 | J126: =SUMIFS(O_AC_DCGM_PTS!I8:I6541, O_AC_DCGM_PTS!A8:A6541, A126, O_AC_DCGM_PTS!B8:B6541,C126, O_AC_DCGM_PTS!C8:C6541, B126) -> 0 | K126: =SUMIFS(O_AC_DCGM_PTS!J8:J6541, O_AC_DCGM_PTS!A8:A6541, A126, O_AC_DCGM_PTS!B8:B6541,C126, O_AC_DCGM_PTS!C8:C6541, B126) -> 0 | L126: =SUMIFS(O_AC_DCGM_PTS!K8:K6541, O_AC_DCGM_PTS!A8:A6541, A126, O_AC_DCGM_PTS!B8:B6541,C126, O_AC_DCGM_PTS!C8:C6541, B126) -> 0 | M126: =SUMIFS(O_AC_DCGM_PTS!L8:L6541, O_AC_DCGM_PTS!A8:A6541, A126, O_AC_DCGM_PTS!B8:B6541,C126, O_AC_DCGM_PTS!C8:C6541, B126) -> 0 | N126: =SUMIFS(O_AC_DCGM_PTS!M8:M6541, O_AC_DCGM_PTS!A8:A6541, A126, O_AC_DCGM_PTS!B8:B6541,C126, O_AC_DCGM_PTS!C8:C6541, B126) -> 0 | O126: =SUMIFS(O_AC_DCGM_PTS!N8:N6541, O_AC_DCGM_PTS!A8:A6541, A126, O_AC_DCGM_PTS!B8:B6541,C126, O_AC_DCGM_PTS!C8:C6541, B126) -> 0 | P126: =SUMIFS(O_AC_DCGM_PTS!O8:O6541, O_AC_DCGM_PTS!A8:A6541, A126, O_AC_DCGM_PTS!B8:B6541,C126, O_AC_DCGM_PTS!C8:C6541, B126) -> 0 | Q126: =SUMIFS(O_AC_DCGM_PTS!P8:P6541, O_AC_DCGM_PTS!A8:A6541, A126, O_AC_DCGM_PTS!B8:B6541,C126, O_AC_DCGM_PTS!C8:C6541, B126) -> 0 | R126: =SUMIFS(O_AC_DCGM_PTS!Q8:Q6541, O_AC_DCGM_PTS!A8:A6541, A126, O_AC_DCGM_PTS!B8:B6541,C126, O_AC_DCGM_PTS!C8:C6541, B126) -> 0
A127: OSL | B127: A17 | C127: RES | D127: R | E127: OSL RES A17 | F127: Open space acquisition | G127: Residential HUEs | H127: Area 17 | I127: =SUMIFS(O_AC_DCGM_PTS!H8:H6541, O_AC_DCGM_PTS!A8:A6541, A127, O_AC_DCGM_PTS!B8:B6541,C127, O_AC_DCGM_PTS!C8:C6541, B127) -> 712 | J127: =SUMIFS(O_AC_DCGM_PTS!I8:I6541, O_AC_DCGM_PTS!A8:A6541, A127, O_AC_DCGM_PTS!B8:B6541,C127, O_AC_DCGM_PTS!C8:C6541, B127) -> 704 | K127: =SUMIFS(O_AC_DCGM_PTS!J8:J6541, O_AC_DCGM_PTS!A8:A6541, A127, O_AC_DCGM_PTS!B8:B6541,C127, O_AC_DCGM_PTS!C8:C6541, B127) -> 705 | L127: =SUMIFS(O_AC_DCGM_PTS!K8:K6541, O_AC_DCGM_PTS!A8:A6541, A127, O_AC_DCGM_PTS!B8:B6541,C127, O_AC_DCGM_PTS!C8:C6541, B127) -> 722 | M127: =SUMIFS(O_AC_DCGM_PTS!L8:L6541, O_AC_DCGM_PTS!A8:A6541, A127, O_AC_DCGM_PTS!B8:B6541,C127, O_AC_DCGM_PTS!C8:C6541, B127) -> 721 | N127: =SUMIFS(O_AC_DCGM_PTS!M8:M6541, O_AC_DCGM_PTS!A8:A6541, A127, O_AC_DCGM_PTS!B8:B6541,C127, O_AC_DCGM_PTS!C8:C6541, B127) -> 698 | O127: =SUMIFS(O_AC_DCGM_PTS!N8:N6541, O_AC_DCGM_PTS!A8:A6541, A127, O_AC_DCGM_PTS!B8:B6541,C127, O_AC_DCGM_PTS!C8:C6541, B127) -> 699 | P127: =SUMIFS(O_AC_DCGM_PTS!O8:O6541, O_AC_DCGM_PTS!A8:A6541, A127, O_AC_DCGM_PTS!B8:B6541,C127, O_AC_DCGM_PTS!C8:C6541, B127) -> 648 | Q127: =SUMIFS(O_AC_DCGM_PTS!P8:P6541, O_AC_DCGM_PTS!A8:A6541, A127, O_AC_DCGM_PTS!B8:B6541,C127, O_AC_DCGM_PTS!C8:C6541, B127) -> 631 | R127: =SUMIFS(O_AC_DCGM_PTS!Q8:Q6541, O_AC_DCGM_PTS!A8:A6541, A127, O_AC_DCGM_PTS!B8:B6541,C127, O_AC_DCGM_PTS!C8:C6541, B127) -> 534
A128: OSL | B128: A18 | C128: NRES | D128: N | E128: OSL NRES A18 | F128: Open space acquisition | G128: Non-residential HUEs | H128: Area 18 | I128: =SUMIFS(O_AC_DCGM_PTS!H8:H6541, O_AC_DCGM_PTS!A8:A6541, A128, O_AC_DCGM_PTS!B8:B6541,C128, O_AC_DCGM_PTS!C8:C6541, B128) -> 0 | J128: =SUMIFS(O_AC_DCGM_PTS!I8:I6541, O_AC_DCGM_PTS!A8:A6541, A128, O_AC_DCGM_PTS!B8:B6541,C128, O_AC_DCGM_PTS!C8:C6541, B128) -> 0 | K128: =SUMIFS(O_AC_DCGM_PTS!J8:J6541, O_AC_DCGM_PTS!A8:A6541, A128, O_AC_DCGM_PTS!B8:B6541,C128, O_AC_DCGM_PTS!C8:C6541, B128) -> 0 | L128: =SUMIFS(O_AC_DCGM_PTS!K8:K6541, O_AC_DCGM_PTS!A8:A6541, A128, O_AC_DCGM_PTS!B8:B6541,C128, O_AC_DCGM_PTS!C8:C6541, B128) -> 0 | M128: =SUMIFS(O_AC_DCGM_PTS!L8:L6541, O_AC_DCGM_PTS!A8:A6541, A128, O_AC_DCGM_PTS!B8:B6541,C128, O_AC_DCGM_PTS!C8:C6541, B128) -> 0 | N128: =SUMIFS(O_AC_DCGM_PTS!M8:M6541, O_AC_DCGM_PTS!A8:A6541, A128, O_AC_DCGM_PTS!B8:B6541,C128, O_AC_DCGM_PTS!C8:C6541, B128) -> 0 | O128: =SUMIFS(O_AC_DCGM_PTS!N8:N6541, O_AC_DCGM_PTS!A8:A6541, A128, O_AC_DCGM_PTS!B8:B6541,C128, O_AC_DCGM_PTS!C8:C6541, B128) -> 0 | P128: =SUMIFS(O_AC_DCGM_PTS!O8:O6541, O_AC_DCGM_PTS!A8:A6541, A128, O_AC_DCGM_PTS!B8:B6541,C128, O_AC_DCGM_PTS!C8:C6541, B128) -> 0 | Q128: =SUMIFS(O_AC_DCGM_PTS!P8:P6541, O_AC_DCGM_PTS!A8:A6541, A128, O_AC_DCGM_PTS!B8:B6541,C128, O_AC_DCGM_PTS!C8:C6541, B128) -> 0 | R128: =SUMIFS(O_AC_DCGM_PTS!Q8:Q6541, O_AC_DCGM_PTS!A8:A6541, A128, O_AC_DCGM_PTS!B8:B6541,C128, O_AC_DCGM_PTS!C8:C6541, B128) -> 0
A129: OSL | B129: A18 | C129: RES | D129: R | E129: OSL RES A18 | F129: Open space acquisition | G129: Residential HUEs | H129: Area 18 | I129: =SUMIFS(O_AC_DCGM_PTS!H8:H6541, O_AC_DCGM_PTS!A8:A6541, A129, O_AC_DCGM_PTS!B8:B6541,C129, O_AC_DCGM_PTS!C8:C6541, B129) -> 1803 | J129: =SUMIFS(O_AC_DCGM_PTS!I8:I6541, O_AC_DCGM_PTS!A8:A6541, A129, O_AC_DCGM_PTS!B8:B6541,C129, O_AC_DCGM_PTS!C8:C6541, B129) -> 1783 | K129: =SUMIFS(O_AC_DCGM_PTS!J8:J6541, O_AC_DCGM_PTS!A8:A6541, A129, O_AC_DCGM_PTS!B8:B6541,C129, O_AC_DCGM_PTS!C8:C6541, B129) -> 1788 | L129: =SUMIFS(O_AC_DCGM_PTS!K8:K6541, O_AC_DCGM_PTS!A8:A6541, A129, O_AC_DCGM_PTS!B8:B6541,C129, O_AC_DCGM_PTS!C8:C6541, B129) -> 1827 | M129: =SUMIFS(O_AC_DCGM_PTS!L8:L6541, O_AC_DCGM_PTS!A8:A6541, A129, O_AC_DCGM_PTS!B8:B6541,C129, O_AC_DCGM_PTS!C8:C6541, B129) -> 1981 | N129: =SUMIFS(O_AC_DCGM_PTS!M8:M6541, O_AC_DCGM_PTS!A8:A6541, A129, O_AC_DCGM_PTS!B8:B6541,C129, O_AC_DCGM_PTS!C8:C6541, B129) -> 2089 | O129: =SUMIFS(O_AC_DCGM_PTS!N8:N6541, O_AC_DCGM_PTS!A8:A6541, A129, O_AC_DCGM_PTS!B8:B6541,C129, O_AC_DCGM_PTS!C8:C6541, B129) -> 2092 | P129: =SUMIFS(O_AC_DCGM_PTS!O8:O6541, O_AC_DCGM_PTS!A8:A6541, A129, O_AC_DCGM_PTS!B8:B6541,C129, O_AC_DCGM_PTS!C8:C6541, B129) -> 1945 | Q129: =SUMIFS(O_AC_DCGM_PTS!P8:P6541, O_AC_DCGM_PTS!A8:A6541, A129, O_AC_DCGM_PTS!B8:B6541,C129, O_AC_DCGM_PTS!C8:C6541, B129) -> 1896 | R129: =SUMIFS(O_AC_DCGM_PTS!Q8:Q6541, O_AC_DCGM_PTS!A8:A6541, A129, O_AC_DCGM_PTS!B8:B6541,C129, O_AC_DCGM_PTS!C8:C6541, B129) -> 1738
A130: OSL | B130: A19 | C130: NRES | D130: N | E130: OSL NRES A19 | F130: Open space acquisition | G130: Non-residential HUEs | H130: Area 19 | I130: =SUMIFS(O_AC_DCGM_PTS!H8:H6541, O_AC_DCGM_PTS!A8:A6541, A130, O_AC_DCGM_PTS!B8:B6541,C130, O_AC_DCGM_PTS!C8:C6541, B130) -> 0 | J130: =SUMIFS(O_AC_DCGM_PTS!I8:I6541, O_AC_DCGM_PTS!A8:A6541, A130, O_AC_DCGM_PTS!B8:B6541,C130, O_AC_DCGM_PTS!C8:C6541, B130) -> 0 | K130: =SUMIFS(O_AC_DCGM_PTS!J8:J6541, O_AC_DCGM_PTS!A8:A6541, A130, O_AC_DCGM_PTS!B8:B6541,C130, O_AC_DCGM_PTS!C8:C6541, B130) -> 0 | L130: =SUMIFS(O_AC_DCGM_PTS!K8:K6541, O_AC_DCGM_PTS!A8:A6541, A130, O_AC_DCGM_PTS!B8:B6541,C130, O_AC_DCGM_PTS!C8:C6541, B130) -> 0 | M130: =SUMIFS(O_AC_DCGM_PTS!L8:L6541, O_AC_DCGM_PTS!A8:A6541, A130, O_AC_DCGM_PTS!B8:B6541,C130, O_AC_DCGM_PTS!C8:C6541, B130) -> 0 | N130: =SUMIFS(O_AC_DCGM_PTS!M8:M6541, O_AC_DCGM_PTS!A8:A6541, A130, O_AC_DCGM_PTS!B8:B6541,C130, O_AC_DCGM_PTS!C8:C6541, B130) -> 0 | O130: =SUMIFS(O_AC_DCGM_PTS!N8:N6541, O_AC_DCGM_PTS!A8:A6541, A130, O_AC_DCGM_PTS!B8:B6541,C130, O_AC_DCGM_PTS!C8:C6541, B130) -> 0 | P130: =SUMIFS(O_AC_DCGM_PTS!O8:O6541, O_AC_DCGM_PTS!A8:A6541, A130, O_AC_DCGM_PTS!B8:B6541,C130, O_AC_DCGM_PTS!C8:C6541, B130) -> 0 | Q130: =SUMIFS(O_AC_DCGM_PTS!P8:P6541, O_AC_DCGM_PTS!A8:A6541, A130, O_AC_DCGM_PTS!B8:B6541,C130, O_AC_DCGM_PTS!C8:C6541, B130) -> 0 | R130: =SUMIFS(O_AC_DCGM_PTS!Q8:Q6541, O_AC_DCGM_PTS!A8:A6541, A130, O_AC_DCGM_PTS!B8:B6541,C130, O_AC_DCGM_PTS!C8:C6541, B130) -> 0
A131: OSL | B131: A19 | C131: RES | D131: R | E131: OSL RES A19 | F131: Open space acquisition | G131: Residential HUEs | H131: Area 19 | I131: =SUMIFS(O_AC_DCGM_PTS!H8:H6541, O_AC_DCGM_PTS!A8:A6541, A131, O_AC_DCGM_PTS!B8:B6541,C131, O_AC_DCGM_PTS!C8:C6541, B131) -> 776 | J131: =SUMIFS(O_AC_DCGM_PTS!I8:I6541, O_AC_DCGM_PTS!A8:A6541, A131, O_AC_DCGM_PTS!B8:B6541,C131, O_AC_DCGM_PTS!C8:C6541, B131) -> 765 | K131: =SUMIFS(O_AC_DCGM_PTS!J8:J6541, O_AC_DCGM_PTS!A8:A6541, A131, O_AC_DCGM_PTS!B8:B6541,C131, O_AC_DCGM_PTS!C8:C6541, B131) -> 767 | L131: =SUMIFS(O_AC_DCGM_PTS!K8:K6541, O_AC_DCGM_PTS!A8:A6541, A131, O_AC_DCGM_PTS!B8:B6541,C131, O_AC_DCGM_PTS!C8:C6541, B131) -> 786 | M131: =SUMIFS(O_AC_DCGM_PTS!L8:L6541, O_AC_DCGM_PTS!A8:A6541, A131, O_AC_DCGM_PTS!B8:B6541,C131, O_AC_DCGM_PTS!C8:C6541, B131) -> 873 | N131: =SUMIFS(O_AC_DCGM_PTS!M8:M6541, O_AC_DCGM_PTS!A8:A6541, A131, O_AC_DCGM_PTS!B8:B6541,C131, O_AC_DCGM_PTS!C8:C6541, B131) -> 936 | O131: =SUMIFS(O_AC_DCGM_PTS!N8:N6541, O_AC_DCGM_PTS!A8:A6541, A131, O_AC_DCGM_PTS!B8:B6541,C131, O_AC_DCGM_PTS!C8:C6541, B131) -> 937 | P131: =SUMIFS(O_AC_DCGM_PTS!O8:O6541, O_AC_DCGM_PTS!A8:A6541, A131, O_AC_DCGM_PTS!B8:B6541,C131, O_AC_DCGM_PTS!C8:C6541, B131) -> 872 | Q131: =SUMIFS(O_AC_DCGM_PTS!P8:P6541, O_AC_DCGM_PTS!A8:A6541, A131, O_AC_DCGM_PTS!B8:B6541,C131, O_AC_DCGM_PTS!C8:C6541, B131) -> 849 | R131: =SUMIFS(O_AC_DCGM_PTS!Q8:Q6541, O_AC_DCGM_PTS!A8:A6541, A131, O_AC_DCGM_PTS!B8:B6541,C131, O_AC_DCGM_PTS!C8:C6541, B131) -> 725
A132: OSL | B132: A20 | C132: NRES | D132: N | E132: OSL NRES A20 | F132: Open space acquisition | G132: Non-residential HUEs | H132: Area 20 | I132: =SUMIFS(O_AC_DCGM_PTS!H8:H6541, O_AC_DCGM_PTS!A8:A6541, A132, O_AC_DCGM_PTS!B8:B6541,C132, O_AC_DCGM_PTS!C8:C6541, B132) -> 0 | J132: =SUMIFS(O_AC_DCGM_PTS!I8:I6541, O_AC_DCGM_PTS!A8:A6541, A132, O_AC_DCGM_PTS!B8:B6541,C132, O_AC_DCGM_PTS!C8:C6541, B132) -> 0 | K132: =SUMIFS(O_AC_DCGM_PTS!J8:J6541, O_AC_DCGM_PTS!A8:A6541, A132, O_AC_DCGM_PTS!B8:B6541,C132, O_AC_DCGM_PTS!C8:C6541, B132) -> 0 | L132: =SUMIFS(O_AC_DCGM_PTS!K8:K6541, O_AC_DCGM_PTS!A8:A6541, A132, O_AC_DCGM_PTS!B8:B6541,C132, O_AC_DCGM_PTS!C8:C6541, B132) -> 0 | M132: =SUMIFS(O_AC_DCGM_PTS!L8:L6541, O_AC_DCGM_PTS!A8:A6541, A132, O_AC_DCGM_PTS!B8:B6541,C132, O_AC_DCGM_PTS!C8:C6541, B132) -> 0 | N132: =SUMIFS(O_AC_DCGM_PTS!M8:M6541, O_AC_DCGM_PTS!A8:A6541, A132, O_AC_DCGM_PTS!B8:B6541,C132, O_AC_DCGM_PTS!C8:C6541, B132) -> 0 | O132: =SUMIFS(O_AC_DCGM_PTS!N8:N6541, O_AC_DCGM_PTS!A8:A6541, A132, O_AC_DCGM_PTS!B8:B6541,C132, O_AC_DCGM_PTS!C8:C6541, B132) -> 0 | P132: =SUMIFS(O_AC_DCGM_PTS!O8:O6541, O_AC_DCGM_PTS!A8:A6541, A132, O_AC_DCGM_PTS!B8:B6541,C132, O_AC_DCGM_PTS!C8:C6541, B132) -> 0 | Q132: =SUMIFS(O_AC_DCGM_PTS!P8:P6541, O_AC_DCGM_PTS!A8:A6541, A132, O_AC_DCGM_PTS!B8:B6541,C132, O_AC_DCGM_PTS!C8:C6541, B132) -> 0 | R132: =SUMIFS(O_AC_DCGM_PTS!Q8:Q6541, O_AC_DCGM_PTS!A8:A6541, A132, O_AC_DCGM_PTS!B8:B6541,C132, O_AC_DCGM_PTS!C8:C6541, B132) -> 0
A133: OSL | B133: A20 | C133: RES | D133: R | E133: OSL RES A20 | F133: Open space acquisition | G133: Residential HUEs | H133: Area 20 | I133: =SUMIFS(O_AC_DCGM_PTS!H8:H6541, O_AC_DCGM_PTS!A8:A6541, A133, O_AC_DCGM_PTS!B8:B6541,C133, O_AC_DCGM_PTS!C8:C6541, B133) -> 239 | J133: =SUMIFS(O_AC_DCGM_PTS!I8:I6541, O_AC_DCGM_PTS!A8:A6541, A133, O_AC_DCGM_PTS!B8:B6541,C133, O_AC_DCGM_PTS!C8:C6541, B133) -> 236 | K133: =SUMIFS(O_AC_DCGM_PTS!J8:J6541, O_AC_DCGM_PTS!A8:A6541, A133, O_AC_DCGM_PTS!B8:B6541,C133, O_AC_DCGM_PTS!C8:C6541, B133) -> 238 | L133: =SUMIFS(O_AC_DCGM_PTS!K8:K6541, O_AC_DCGM_PTS!A8:A6541, A133, O_AC_DCGM_PTS!B8:B6541,C133, O_AC_DCGM_PTS!C8:C6541, B133) -> 243 | M133: =SUMIFS(O_AC_DCGM_PTS!L8:L6541, O_AC_DCGM_PTS!A8:A6541, A133, O_AC_DCGM_PTS!B8:B6541,C133, O_AC_DCGM_PTS!C8:C6541, B133) -> 286 | N133: =SUMIFS(O_AC_DCGM_PTS!M8:M6541, O_AC_DCGM_PTS!A8:A6541, A133, O_AC_DCGM_PTS!B8:B6541,C133, O_AC_DCGM_PTS!C8:C6541, B133) -> 323 | O133: =SUMIFS(O_AC_DCGM_PTS!N8:N6541, O_AC_DCGM_PTS!A8:A6541, A133, O_AC_DCGM_PTS!B8:B6541,C133, O_AC_DCGM_PTS!C8:C6541, B133) -> 323 | P133: =SUMIFS(O_AC_DCGM_PTS!O8:O6541, O_AC_DCGM_PTS!A8:A6541, A133, O_AC_DCGM_PTS!B8:B6541,C133, O_AC_DCGM_PTS!C8:C6541, B133) -> 300 | Q133: =SUMIFS(O_AC_DCGM_PTS!P8:P6541, O_AC_DCGM_PTS!A8:A6541, A133, O_AC_DCGM_PTS!B8:B6541,C133, O_AC_DCGM_PTS!C8:C6541, B133) -> 292 | R133: =SUMIFS(O_AC_DCGM_PTS!Q8:Q6541, O_AC_DCGM_PTS!A8:A6541, A133, O_AC_DCGM_PTS!B8:B6541,C133, O_AC_DCGM_PTS!C8:C6541, B133) -> 245
A134: OSL | B134: A21 | C134: NRES | D134: N | E134: OSL NRES A21 | F134: Open space acquisition | G134: Non-residential HUEs | H134: Area 21 | I134: =SUMIFS(O_AC_DCGM_PTS!H8:H6541, O_AC_DCGM_PTS!A8:A6541, A134, O_AC_DCGM_PTS!B8:B6541,C134, O_AC_DCGM_PTS!C8:C6541, B134) -> 0 | J134: =SUMIFS(O_AC_DCGM_PTS!I8:I6541, O_AC_DCGM_PTS!A8:A6541, A134, O_AC_DCGM_PTS!B8:B6541,C134, O_AC_DCGM_PTS!C8:C6541, B134) -> 0 | K134: =SUMIFS(O_AC_DCGM_PTS!J8:J6541, O_AC_DCGM_PTS!A8:A6541, A134, O_AC_DCGM_PTS!B8:B6541,C134, O_AC_DCGM_PTS!C8:C6541, B134) -> 0 | L134: =SUMIFS(O_AC_DCGM_PTS!K8:K6541, O_AC_DCGM_PTS!A8:A6541, A134, O_AC_DCGM_PTS!B8:B6541,C134, O_AC_DCGM_PTS!C8:C6541, B134) -> 0 | M134: =SUMIFS(O_AC_DCGM_PTS!L8:L6541, O_AC_DCGM_PTS!A8:A6541, A134, O_AC_DCGM_PTS!B8:B6541,C134, O_AC_DCGM_PTS!C8:C6541, B134) -> 0 | N134: =SUMIFS(O_AC_DCGM_PTS!M8:M6541, O_AC_DCGM_PTS!A8:A6541, A134, O_AC_DCGM_PTS!B8:B6541,C134, O_AC_DCGM_PTS!C8:C6541, B134) -> 0 | O134: =SUMIFS(O_AC_DCGM_PTS!N8:N6541, O_AC_DCGM_PTS!A8:A6541, A134, O_AC_DCGM_PTS!B8:B6541,C134, O_AC_DCGM_PTS!C8:C6541, B134) -> 0 | P134: =SUMIFS(O_AC_DCGM_PTS!O8:O6541, O_AC_DCGM_PTS!A8:A6541, A134, O_AC_DCGM_PTS!B8:B6541,C134, O_AC_DCGM_PTS!C8:C6541, B134) -> 0 | Q134: =SUMIFS(O_AC_DCGM_PTS!P8:P6541, O_AC_DCGM_PTS!A8:A6541, A134, O_AC_DCGM_PTS!B8:B6541,C134, O_AC_DCGM_PTS!C8:C6541, B134) -> 0 | R134: =SUMIFS(O_AC_DCGM_PTS!Q8:Q6541, O_AC_DCGM_PTS!A8:A6541, A134, O_AC_DCGM_PTS!B8:B6541,C134, O_AC_DCGM_PTS!C8:C6541, B134) -> 0
A135: OSL | B135: A21 | C135: RES | D135: R | E135: OSL RES A21 | F135: Open space acquisition | G135: Residential HUEs | H135: Area 21 | I135: =SUMIFS(O_AC_DCGM_PTS!H8:H6541, O_AC_DCGM_PTS!A8:A6541, A135, O_AC_DCGM_PTS!B8:B6541,C135, O_AC_DCGM_PTS!C8:C6541, B135) -> 51 | J135: =SUMIFS(O_AC_DCGM_PTS!I8:I6541, O_AC_DCGM_PTS!A8:A6541, A135, O_AC_DCGM_PTS!B8:B6541,C135, O_AC_DCGM_PTS!C8:C6541, B135) -> 51 | K135: =SUMIFS(O_AC_DCGM_PTS!J8:J6541, O_AC_DCGM_PTS!A8:A6541, A135, O_AC_DCGM_PTS!B8:B6541,C135, O_AC_DCGM_PTS!C8:C6541, B135) -> 51 | L135: =SUMIFS(O_AC_DCGM_PTS!K8:K6541, O_AC_DCGM_PTS!A8:A6541, A135, O_AC_DCGM_PTS!B8:B6541,C135, O_AC_DCGM_PTS!C8:C6541, B135) -> 52 | M135: =SUMIFS(O_AC_DCGM_PTS!L8:L6541, O_AC_DCGM_PTS!A8:A6541, A135, O_AC_DCGM_PTS!B8:B6541,C135, O_AC_DCGM_PTS!C8:C6541, B135) -> 67 | N135: =SUMIFS(O_AC_DCGM_PTS!M8:M6541, O_AC_DCGM_PTS!A8:A6541, A135, O_AC_DCGM_PTS!B8:B6541,C135, O_AC_DCGM_PTS!C8:C6541, B135) -> 81 | O135: =SUMIFS(O_AC_DCGM_PTS!N8:N6541, O_AC_DCGM_PTS!A8:A6541, A135, O_AC_DCGM_PTS!B8:B6541,C135, O_AC_DCGM_PTS!C8:C6541, B135) -> 81 | P135: =SUMIFS(O_AC_DCGM_PTS!O8:O6541, O_AC_DCGM_PTS!A8:A6541, A135, O_AC_DCGM_PTS!B8:B6541,C135, O_AC_DCGM_PTS!C8:C6541, B135) -> 76 | Q135: =SUMIFS(O_AC_DCGM_PTS!P8:P6541, O_AC_DCGM_PTS!A8:A6541, A135, O_AC_DCGM_PTS!B8:B6541,C135, O_AC_DCGM_PTS!C8:C6541, B135) -> 75 | R135: =SUMIFS(O_AC_DCGM_PTS!Q8:Q6541, O_AC_DCGM_PTS!A8:A6541, A135, O_AC_DCGM_PTS!B8:B6541,C135, O_AC_DCGM_PTS!C8:C6541, B135) -> 66
A136: OSL | B136: A22 | C136: NRES | D136: N | E136: OSL NRES A22 | F136: Open space acquisition | G136: Non-residential HUEs | H136: Area 22 | I136: =SUMIFS(O_AC_DCGM_PTS!H8:H6541, O_AC_DCGM_PTS!A8:A6541, A136, O_AC_DCGM_PTS!B8:B6541,C136, O_AC_DCGM_PTS!C8:C6541, B136) -> 0 | J136: =SUMIFS(O_AC_DCGM_PTS!I8:I6541, O_AC_DCGM_PTS!A8:A6541, A136, O_AC_DCGM_PTS!B8:B6541,C136, O_AC_DCGM_PTS!C8:C6541, B136) -> 0 | K136: =SUMIFS(O_AC_DCGM_PTS!J8:J6541, O_AC_DCGM_PTS!A8:A6541, A136, O_AC_DCGM_PTS!B8:B6541,C136, O_AC_DCGM_PTS!C8:C6541, B136) -> 0 | L136: =SUMIFS(O_AC_DCGM_PTS!K8:K6541, O_AC_DCGM_PTS!A8:A6541, A136, O_AC_DCGM_PTS!B8:B6541,C136, O_AC_DCGM_PTS!C8:C6541, B136) -> 0 | M136: =SUMIFS(O_AC_DCGM_PTS!L8:L6541, O_AC_DCGM_PTS!A8:A6541, A136, O_AC_DCGM_PTS!B8:B6541,C136, O_AC_DCGM_PTS!C8:C6541, B136) -> 0 | N136: =SUMIFS(O_AC_DCGM_PTS!M8:M6541, O_AC_DCGM_PTS!A8:A6541, A136, O_AC_DCGM_PTS!B8:B6541,C136, O_AC_DCGM_PTS!C8:C6541, B136) -> 0 | O136: =SUMIFS(O_AC_DCGM_PTS!N8:N6541, O_AC_DCGM_PTS!A8:A6541, A136, O_AC_DCGM_PTS!B8:B6541,C136, O_AC_DCGM_PTS!C8:C6541, B136) -> 0 | P136: =SUMIFS(O_AC_DCGM_PTS!O8:O6541, O_AC_DCGM_PTS!A8:A6541, A136, O_AC_DCGM_PTS!B8:B6541,C136, O_AC_DCGM_PTS!C8:C6541, B136) -> 0 | Q136: =SUMIFS(O_AC_DCGM_PTS!P8:P6541, O_AC_DCGM_PTS!A8:A6541, A136, O_AC_DCGM_PTS!B8:B6541,C136, O_AC_DCGM_PTS!C8:C6541, B136) -> 0 | R136: =SUMIFS(O_AC_DCGM_PTS!Q8:Q6541, O_AC_DCGM_PTS!A8:A6541, A136, O_AC_DCGM_PTS!B8:B6541,C136, O_AC_DCGM_PTS!C8:C6541, B136) -> 0
A137: OSL | B137: A22 | C137: RES | D137: R | E137: OSL RES A22 | F137: Open space acquisition | G137: Residential HUEs | H137: Area 22 | I137: =SUMIFS(O_AC_DCGM_PTS!H8:H6541, O_AC_DCGM_PTS!A8:A6541, A137, O_AC_DCGM_PTS!B8:B6541,C137, O_AC_DCGM_PTS!C8:C6541, B137) -> 12 | J137: =SUMIFS(O_AC_DCGM_PTS!I8:I6541, O_AC_DCGM_PTS!A8:A6541, A137, O_AC_DCGM_PTS!B8:B6541,C137, O_AC_DCGM_PTS!C8:C6541, B137) -> 12 | K137: =SUMIFS(O_AC_DCGM_PTS!J8:J6541, O_AC_DCGM_PTS!A8:A6541, A137, O_AC_DCGM_PTS!B8:B6541,C137, O_AC_DCGM_PTS!C8:C6541, B137) -> 12 | L137: =SUMIFS(O_AC_DCGM_PTS!K8:K6541, O_AC_DCGM_PTS!A8:A6541, A137, O_AC_DCGM_PTS!B8:B6541,C137, O_AC_DCGM_PTS!C8:C6541, B137) -> 12 | M137: =SUMIFS(O_AC_DCGM_PTS!L8:L6541, O_AC_DCGM_PTS!A8:A6541, A137, O_AC_DCGM_PTS!B8:B6541,C137, O_AC_DCGM_PTS!C8:C6541, B137) -> 13 | N137: =SUMIFS(O_AC_DCGM_PTS!M8:M6541, O_AC_DCGM_PTS!A8:A6541, A137, O_AC_DCGM_PTS!B8:B6541,C137, O_AC_DCGM_PTS!C8:C6541, B137) -> 14 | O137: =SUMIFS(O_AC_DCGM_PTS!N8:N6541, O_AC_DCGM_PTS!A8:A6541, A137, O_AC_DCGM_PTS!B8:B6541,C137, O_AC_DCGM_PTS!C8:C6541, B137) -> 14 | P137: =SUMIFS(O_AC_DCGM_PTS!O8:O6541, O_AC_DCGM_PTS!A8:A6541, A137, O_AC_DCGM_PTS!B8:B6541,C137, O_AC_DCGM_PTS!C8:C6541, B137) -> 14 | Q137: =SUMIFS(O_AC_DCGM_PTS!P8:P6541, O_AC_DCGM_PTS!A8:A6541, A137, O_AC_DCGM_PTS!B8:B6541,C137, O_AC_DCGM_PTS!C8:C6541, B137) -> 14 | R137: =SUMIFS(O_AC_DCGM_PTS!Q8:Q6541, O_AC_DCGM_PTS!A8:A6541, A137, O_AC_DCGM_PTS!B8:B6541,C137, O_AC_DCGM_PTS!C8:C6541, B137) -> 31
A138: OSL | B138: A23 | C138: NRES | D138: N | E138: OSL NRES A23 | F138: Open space acquisition | G138: Non-residential HUEs | H138: Area 23 | I138: =SUMIFS(O_AC_DCGM_PTS!H8:H6541, O_AC_DCGM_PTS!A8:A6541, A138, O_AC_DCGM_PTS!B8:B6541,C138, O_AC_DCGM_PTS!C8:C6541, B138) -> 0 | J138: =SUMIFS(O_AC_DCGM_PTS!I8:I6541, O_AC_DCGM_PTS!A8:A6541, A138, O_AC_DCGM_PTS!B8:B6541,C138, O_AC_DCGM_PTS!C8:C6541, B138) -> 0 | K138: =SUMIFS(O_AC_DCGM_PTS!J8:J6541, O_AC_DCGM_PTS!A8:A6541, A138, O_AC_DCGM_PTS!B8:B6541,C138, O_AC_DCGM_PTS!C8:C6541, B138) -> 0 | L138: =SUMIFS(O_AC_DCGM_PTS!K8:K6541, O_AC_DCGM_PTS!A8:A6541, A138, O_AC_DCGM_PTS!B8:B6541,C138, O_AC_DCGM_PTS!C8:C6541, B138) -> 0 | M138: =SUMIFS(O_AC_DCGM_PTS!L8:L6541, O_AC_DCGM_PTS!A8:A6541, A138, O_AC_DCGM_PTS!B8:B6541,C138, O_AC_DCGM_PTS!C8:C6541, B138) -> 0 | N138: =SUMIFS(O_AC_DCGM_PTS!M8:M6541, O_AC_DCGM_PTS!A8:A6541, A138, O_AC_DCGM_PTS!B8:B6541,C138, O_AC_DCGM_PTS!C8:C6541, B138) -> 0 | O138: =SUMIFS(O_AC_DCGM_PTS!N8:N6541, O_AC_DCGM_PTS!A8:A6541, A138, O_AC_DCGM_PTS!B8:B6541,C138, O_AC_DCGM_PTS!C8:C6541, B138) -> 0 | P138: =SUMIFS(O_AC_DCGM_PTS!O8:O6541, O_AC_DCGM_PTS!A8:A6541, A138, O_AC_DCGM_PTS!B8:B6541,C138, O_AC_DCGM_PTS!C8:C6541, B138) -> 0 | Q138: =SUMIFS(O_AC_DCGM_PTS!P8:P6541, O_AC_DCGM_PTS!A8:A6541, A138, O_AC_DCGM_PTS!B8:B6541,C138, O_AC_DCGM_PTS!C8:C6541, B138) -> 0 | R138: =SUMIFS(O_AC_DCGM_PTS!Q8:Q6541, O_AC_DCGM_PTS!A8:A6541, A138, O_AC_DCGM_PTS!B8:B6541,C138, O_AC_DCGM_PTS!C8:C6541, B138) -> 0
A139: OSL | B139: A23 | C139: RES | D139: R | E139: OSL RES A23 | F139: Open space acquisition | G139: Residential HUEs | H139: Area 23 | I139: =SUMIFS(O_AC_DCGM_PTS!H8:H6541, O_AC_DCGM_PTS!A8:A6541, A139, O_AC_DCGM_PTS!B8:B6541,C139, O_AC_DCGM_PTS!C8:C6541, B139) -> 80 | J139: =SUMIFS(O_AC_DCGM_PTS!I8:I6541, O_AC_DCGM_PTS!A8:A6541, A139, O_AC_DCGM_PTS!B8:B6541,C139, O_AC_DCGM_PTS!C8:C6541, B139) -> 80 | K139: =SUMIFS(O_AC_DCGM_PTS!J8:J6541, O_AC_DCGM_PTS!A8:A6541, A139, O_AC_DCGM_PTS!B8:B6541,C139, O_AC_DCGM_PTS!C8:C6541, B139) -> 81 | L139: =SUMIFS(O_AC_DCGM_PTS!K8:K6541, O_AC_DCGM_PTS!A8:A6541, A139, O_AC_DCGM_PTS!B8:B6541,C139, O_AC_DCGM_PTS!C8:C6541, B139) -> 82 | M139: =SUMIFS(O_AC_DCGM_PTS!L8:L6541, O_AC_DCGM_PTS!A8:A6541, A139, O_AC_DCGM_PTS!B8:B6541,C139, O_AC_DCGM_PTS!C8:C6541, B139) -> 95 | N139: =SUMIFS(O_AC_DCGM_PTS!M8:M6541, O_AC_DCGM_PTS!A8:A6541, A139, O_AC_DCGM_PTS!B8:B6541,C139, O_AC_DCGM_PTS!C8:C6541, B139) -> 109 | O139: =SUMIFS(O_AC_DCGM_PTS!N8:N6541, O_AC_DCGM_PTS!A8:A6541, A139, O_AC_DCGM_PTS!B8:B6541,C139, O_AC_DCGM_PTS!C8:C6541, B139) -> 109 | P139: =SUMIFS(O_AC_DCGM_PTS!O8:O6541, O_AC_DCGM_PTS!A8:A6541, A139, O_AC_DCGM_PTS!B8:B6541,C139, O_AC_DCGM_PTS!C8:C6541, B139) -> 102 | Q139: =SUMIFS(O_AC_DCGM_PTS!P8:P6541, O_AC_DCGM_PTS!A8:A6541, A139, O_AC_DCGM_PTS!B8:B6541,C139, O_AC_DCGM_PTS!C8:C6541, B139) -> 101 | R139: =SUMIFS(O_AC_DCGM_PTS!Q8:Q6541, O_AC_DCGM_PTS!A8:A6541, A139, O_AC_DCGM_PTS!B8:B6541,C139, O_AC_DCGM_PTS!C8:C6541, B139) -> 84
A140: OSL | B140: A24 | C140: NRES | D140: N | E140: OSL NRES A24 | F140: Open space acquisition | G140: Non-residential HUEs | H140: Area 24 | I140: =SUMIFS(O_AC_DCGM_PTS!H8:H6541, O_AC_DCGM_PTS!A8:A6541, A140, O_AC_DCGM_PTS!B8:B6541,C140, O_AC_DCGM_PTS!C8:C6541, B140) -> 0 | J140: =SUMIFS(O_AC_DCGM_PTS!I8:I6541, O_AC_DCGM_PTS!A8:A6541, A140, O_AC_DCGM_PTS!B8:B6541,C140, O_AC_DCGM_PTS!C8:C6541, B140) -> 0 | K140: =SUMIFS(O_AC_DCGM_PTS!J8:J6541, O_AC_DCGM_PTS!A8:A6541, A140, O_AC_DCGM_PTS!B8:B6541,C140, O_AC_DCGM_PTS!C8:C6541, B140) -> 0 | L140: =SUMIFS(O_AC_DCGM_PTS!K8:K6541, O_AC_DCGM_PTS!A8:A6541, A140, O_AC_DCGM_PTS!B8:B6541,C140, O_AC_DCGM_PTS!C8:C6541, B140) -> 0 | M140: =SUMIFS(O_AC_DCGM_PTS!L8:L6541, O_AC_DCGM_PTS!A8:A6541, A140, O_AC_DCGM_PTS!B8:B6541,C140, O_AC_DCGM_PTS!C8:C6541, B140) -> 0 | N140: =SUMIFS(O_AC_DCGM_PTS!M8:M6541, O_AC_DCGM_PTS!A8:A6541, A140, O_AC_DCGM_PTS!B8:B6541,C140, O_AC_DCGM_PTS!C8:C6541, B140) -> 0 | O140: =SUMIFS(O_AC_DCGM_PTS!N8:N6541, O_AC_DCGM_PTS!A8:A6541, A140, O_AC_DCGM_PTS!B8:B6541,C140, O_AC_DCGM_PTS!C8:C6541, B140) -> 0 | P140: =SUMIFS(O_AC_DCGM_PTS!O8:O6541, O_AC_DCGM_PTS!A8:A6541, A140, O_AC_DCGM_PTS!B8:B6541,C140, O_AC_DCGM_PTS!C8:C6541, B140) -> 0 | Q140: =SUMIFS(O_AC_DCGM_PTS!P8:P6541, O_AC_DCGM_PTS!A8:A6541, A140, O_AC_DCGM_PTS!B8:B6541,C140, O_AC_DCGM_PTS!C8:C6541, B140) -> 0 | R140: =SUMIFS(O_AC_DCGM_PTS!Q8:Q6541, O_AC_DCGM_PTS!A8:A6541, A140, O_AC_DCGM_PTS!B8:B6541,C140, O_AC_DCGM_PTS!C8:C6541, B140) -> 0
A141: OSL | B141: A24 | C141: RES | D141: R | E141: OSL RES A24 | F141: Open space acquisition | G141: Residential HUEs | H141: Area 24 | I141: =SUMIFS(O_AC_DCGM_PTS!H8:H6541, O_AC_DCGM_PTS!A8:A6541, A141, O_AC_DCGM_PTS!B8:B6541,C141, O_AC_DCGM_PTS!C8:C6541, B141) -> 123 | J141: =SUMIFS(O_AC_DCGM_PTS!I8:I6541, O_AC_DCGM_PTS!A8:A6541, A141, O_AC_DCGM_PTS!B8:B6541,C141, O_AC_DCGM_PTS!C8:C6541, B141) -> 122 | K141: =SUMIFS(O_AC_DCGM_PTS!J8:J6541, O_AC_DCGM_PTS!A8:A6541, A141, O_AC_DCGM_PTS!B8:B6541,C141, O_AC_DCGM_PTS!C8:C6541, B141) -> 123 | L141: =SUMIFS(O_AC_DCGM_PTS!K8:K6541, O_AC_DCGM_PTS!A8:A6541, A141, O_AC_DCGM_PTS!B8:B6541,C141, O_AC_DCGM_PTS!C8:C6541, B141) -> 126 | M141: =SUMIFS(O_AC_DCGM_PTS!L8:L6541, O_AC_DCGM_PTS!A8:A6541, A141, O_AC_DCGM_PTS!B8:B6541,C141, O_AC_DCGM_PTS!C8:C6541, B141) -> 158 | N141: =SUMIFS(O_AC_DCGM_PTS!M8:M6541, O_AC_DCGM_PTS!A8:A6541, A141, O_AC_DCGM_PTS!B8:B6541,C141, O_AC_DCGM_PTS!C8:C6541, B141) -> 188 | O141: =SUMIFS(O_AC_DCGM_PTS!N8:N6541, O_AC_DCGM_PTS!A8:A6541, A141, O_AC_DCGM_PTS!B8:B6541,C141, O_AC_DCGM_PTS!C8:C6541, B141) -> 188 | P141: =SUMIFS(O_AC_DCGM_PTS!O8:O6541, O_AC_DCGM_PTS!A8:A6541, A141, O_AC_DCGM_PTS!B8:B6541,C141, O_AC_DCGM_PTS!C8:C6541, B141) -> 174 | Q141: =SUMIFS(O_AC_DCGM_PTS!P8:P6541, O_AC_DCGM_PTS!A8:A6541, A141, O_AC_DCGM_PTS!B8:B6541,C141, O_AC_DCGM_PTS!C8:C6541, B141) -> 169 | R141: =SUMIFS(O_AC_DCGM_PTS!Q8:Q6541, O_AC_DCGM_PTS!A8:A6541, A141, O_AC_DCGM_PTS!B8:B6541,C141, O_AC_DCGM_PTS!C8:C6541, B141) -> 157
A142: OSL | B142: A25 | C142: NRES | D142: N | E142: OSL NRES A25 | F142: Open space acquisition | G142: Non-residential HUEs | H142: Area 25 | I142: =SUMIFS(O_AC_DCGM_PTS!H8:H6541, O_AC_DCGM_PTS!A8:A6541, A142, O_AC_DCGM_PTS!B8:B6541,C142, O_AC_DCGM_PTS!C8:C6541, B142) -> 0 | J142: =SUMIFS(O_AC_DCGM_PTS!I8:I6541, O_AC_DCGM_PTS!A8:A6541, A142, O_AC_DCGM_PTS!B8:B6541,C142, O_AC_DCGM_PTS!C8:C6541, B142) -> 0 | K142: =SUMIFS(O_AC_DCGM_PTS!J8:J6541, O_AC_DCGM_PTS!A8:A6541, A142, O_AC_DCGM_PTS!B8:B6541,C142, O_AC_DCGM_PTS!C8:C6541, B142) -> 0 | L142: =SUMIFS(O_AC_DCGM_PTS!K8:K6541, O_AC_DCGM_PTS!A8:A6541, A142, O_AC_DCGM_PTS!B8:B6541,C142, O_AC_DCGM_PTS!C8:C6541, B142) -> 0 | M142: =SUMIFS(O_AC_DCGM_PTS!L8:L6541, O_AC_DCGM_PTS!A8:A6541, A142, O_AC_DCGM_PTS!B8:B6541,C142, O_AC_DCGM_PTS!C8:C6541, B142) -> 0 | N142: =SUMIFS(O_AC_DCGM_PTS!M8:M6541, O_AC_DCGM_PTS!A8:A6541, A142, O_AC_DCGM_PTS!B8:B6541,C142, O_AC_DCGM_PTS!C8:C6541, B142) -> 0 | O142: =SUMIFS(O_AC_DCGM_PTS!N8:N6541, O_AC_DCGM_PTS!A8:A6541, A142, O_AC_DCGM_PTS!B8:B6541,C142, O_AC_DCGM_PTS!C8:C6541, B142) -> 0 | P142: =SUMIFS(O_AC_DCGM_PTS!O8:O6541, O_AC_DCGM_PTS!A8:A6541, A142, O_AC_DCGM_PTS!B8:B6541,C142, O_AC_DCGM_PTS!C8:C6541, B142) -> 0 | Q142: =SUMIFS(O_AC_DCGM_PTS!P8:P6541, O_AC_DCGM_PTS!A8:A6541, A142, O_AC_DCGM_PTS!B8:B6541,C142, O_AC_DCGM_PTS!C8:C6541, B142) -> 0 | R142: =SUMIFS(O_AC_DCGM_PTS!Q8:Q6541, O_AC_DCGM_PTS!A8:A6541, A142, O_AC_DCGM_PTS!B8:B6541,C142, O_AC_DCGM_PTS!C8:C6541, B142) -> 0
A143: OSL | B143: A25 | C143: RES | D143: R | E143: OSL RES A25 | F143: Open space acquisition | G143: Residential HUEs | H143: Area 25 | I143: =SUMIFS(O_AC_DCGM_PTS!H8:H6541, O_AC_DCGM_PTS!A8:A6541, A143, O_AC_DCGM_PTS!B8:B6541,C143, O_AC_DCGM_PTS!C8:C6541, B143) -> 149 | J143: =SUMIFS(O_AC_DCGM_PTS!I8:I6541, O_AC_DCGM_PTS!A8:A6541, A143, O_AC_DCGM_PTS!B8:B6541,C143, O_AC_DCGM_PTS!C8:C6541, B143) -> 147 | K143: =SUMIFS(O_AC_DCGM_PTS!J8:J6541, O_AC_DCGM_PTS!A8:A6541, A143, O_AC_DCGM_PTS!B8:B6541,C143, O_AC_DCGM_PTS!C8:C6541, B143) -> 147 | L143: =SUMIFS(O_AC_DCGM_PTS!K8:K6541, O_AC_DCGM_PTS!A8:A6541, A143, O_AC_DCGM_PTS!B8:B6541,C143, O_AC_DCGM_PTS!C8:C6541, B143) -> 153 | M143: =SUMIFS(O_AC_DCGM_PTS!L8:L6541, O_AC_DCGM_PTS!A8:A6541, A143, O_AC_DCGM_PTS!B8:B6541,C143, O_AC_DCGM_PTS!C8:C6541, B143) -> 135 | N143: =SUMIFS(O_AC_DCGM_PTS!M8:M6541, O_AC_DCGM_PTS!A8:A6541, A143, O_AC_DCGM_PTS!B8:B6541,C143, O_AC_DCGM_PTS!C8:C6541, B143) -> 110 | O143: =SUMIFS(O_AC_DCGM_PTS!N8:N6541, O_AC_DCGM_PTS!A8:A6541, A143, O_AC_DCGM_PTS!B8:B6541,C143, O_AC_DCGM_PTS!C8:C6541, B143) -> 110 | P143: =SUMIFS(O_AC_DCGM_PTS!O8:O6541, O_AC_DCGM_PTS!A8:A6541, A143, O_AC_DCGM_PTS!B8:B6541,C143, O_AC_DCGM_PTS!C8:C6541, B143) -> 103 | Q143: =SUMIFS(O_AC_DCGM_PTS!P8:P6541, O_AC_DCGM_PTS!A8:A6541, A143, O_AC_DCGM_PTS!B8:B6541,C143, O_AC_DCGM_PTS!C8:C6541, B143) -> 101 | R143: =SUMIFS(O_AC_DCGM_PTS!Q8:Q6541, O_AC_DCGM_PTS!A8:A6541, A143, O_AC_DCGM_PTS!B8:B6541,C143, O_AC_DCGM_PTS!C8:C6541, B143) -> 86
A144: OSL | B144: A26 | C144: NRES | D144: N | E144: OSL NRES A26 | F144: Open space acquisition | G144: Non-residential HUEs | H144: Area 26 | I144: =SUMIFS(O_AC_DCGM_PTS!H8:H6541, O_AC_DCGM_PTS!A8:A6541, A144, O_AC_DCGM_PTS!B8:B6541,C144, O_AC_DCGM_PTS!C8:C6541, B144) -> 0 | J144: =SUMIFS(O_AC_DCGM_PTS!I8:I6541, O_AC_DCGM_PTS!A8:A6541, A144, O_AC_DCGM_PTS!B8:B6541,C144, O_AC_DCGM_PTS!C8:C6541, B144) -> 0 | K144: =SUMIFS(O_AC_DCGM_PTS!J8:J6541, O_AC_DCGM_PTS!A8:A6541, A144, O_AC_DCGM_PTS!B8:B6541,C144, O_AC_DCGM_PTS!C8:C6541, B144) -> 0 | L144: =SUMIFS(O_AC_DCGM_PTS!K8:K6541, O_AC_DCGM_PTS!A8:A6541, A144, O_AC_DCGM_PTS!B8:B6541,C144, O_AC_DCGM_PTS!C8:C6541, B144) -> 0 | M144: =SUMIFS(O_AC_DCGM_PTS!L8:L6541, O_AC_DCGM_PTS!A8:A6541, A144, O_AC_DCGM_PTS!B8:B6541,C144, O_AC_DCGM_PTS!C8:C6541, B144) -> 0 | N144: =SUMIFS(O_AC_DCGM_PTS!M8:M6541, O_AC_DCGM_PTS!A8:A6541, A144, O_AC_DCGM_PTS!B8:B6541,C144, O_AC_DCGM_PTS!C8:C6541, B144) -> 0 | O144: =SUMIFS(O_AC_DCGM_PTS!N8:N6541, O_AC_DCGM_PTS!A8:A6541, A144, O_AC_DCGM_PTS!B8:B6541,C144, O_AC_DCGM_PTS!C8:C6541, B144) -> 0 | P144: =SUMIFS(O_AC_DCGM_PTS!O8:O6541, O_AC_DCGM_PTS!A8:A6541, A144, O_AC_DCGM_PTS!B8:B6541,C144, O_AC_DCGM_PTS!C8:C6541, B144) -> 0 | Q144: =SUMIFS(O_AC_DCGM_PTS!P8:P6541, O_AC_DCGM_PTS!A8:A6541, A144, O_AC_DCGM_PTS!B8:B6541,C144, O_AC_DCGM_PTS!C8:C6541, B144) -> 0 | R144: =SUMIFS(O_AC_DCGM_PTS!Q8:Q6541, O_AC_DCGM_PTS!A8:A6541, A144, O_AC_DCGM_PTS!B8:B6541,C144, O_AC_DCGM_PTS!C8:C6541, B144) -> 0
A145: OSL | B145: A26 | C145: RES | D145: R | E145: OSL RES A26 | F145: Open space acquisition | G145: Residential HUEs | H145: Area 26 | I145: =SUMIFS(O_AC_DCGM_PTS!H8:H6541, O_AC_DCGM_PTS!A8:A6541, A145, O_AC_DCGM_PTS!B8:B6541,C145, O_AC_DCGM_PTS!C8:C6541, B145) -> 22 | J145: =SUMIFS(O_AC_DCGM_PTS!I8:I6541, O_AC_DCGM_PTS!A8:A6541, A145, O_AC_DCGM_PTS!B8:B6541,C145, O_AC_DCGM_PTS!C8:C6541, B145) -> 22 | K145: =SUMIFS(O_AC_DCGM_PTS!J8:J6541, O_AC_DCGM_PTS!A8:A6541, A145, O_AC_DCGM_PTS!B8:B6541,C145, O_AC_DCGM_PTS!C8:C6541, B145) -> 22 | L145: =SUMIFS(O_AC_DCGM_PTS!K8:K6541, O_AC_DCGM_PTS!A8:A6541, A145, O_AC_DCGM_PTS!B8:B6541,C145, O_AC_DCGM_PTS!C8:C6541, B145) -> 22 | M145: =SUMIFS(O_AC_DCGM_PTS!L8:L6541, O_AC_DCGM_PTS!A8:A6541, A145, O_AC_DCGM_PTS!B8:B6541,C145, O_AC_DCGM_PTS!C8:C6541, B145) -> 30 | N145: =SUMIFS(O_AC_DCGM_PTS!M8:M6541, O_AC_DCGM_PTS!A8:A6541, A145, O_AC_DCGM_PTS!B8:B6541,C145, O_AC_DCGM_PTS!C8:C6541, B145) -> 39 | O145: =SUMIFS(O_AC_DCGM_PTS!N8:N6541, O_AC_DCGM_PTS!A8:A6541, A145, O_AC_DCGM_PTS!B8:B6541,C145, O_AC_DCGM_PTS!C8:C6541, B145) -> 39 | P145: =SUMIFS(O_AC_DCGM_PTS!O8:O6541, O_AC_DCGM_PTS!A8:A6541, A145, O_AC_DCGM_PTS!B8:B6541,C145, O_AC_DCGM_PTS!C8:C6541, B145) -> 36 | Q145: =SUMIFS(O_AC_DCGM_PTS!P8:P6541, O_AC_DCGM_PTS!A8:A6541, A145, O_AC_DCGM_PTS!B8:B6541,C145, O_AC_DCGM_PTS!C8:C6541, B145) -> 35 | R145: =SUMIFS(O_AC_DCGM_PTS!Q8:Q6541, O_AC_DCGM_PTS!A8:A6541, A145, O_AC_DCGM_PTS!B8:B6541,C145, O_AC_DCGM_PTS!C8:C6541, B145) -> 24
A146: OSL | B146: A27 | C146: NRES | D146: N | E146: OSL NRES A27 | F146: Open space acquisition | G146: Non-residential HUEs | H146: Area 27 | I146: =SUMIFS(O_AC_DCGM_PTS!H8:H6541, O_AC_DCGM_PTS!A8:A6541, A146, O_AC_DCGM_PTS!B8:B6541,C146, O_AC_DCGM_PTS!C8:C6541, B146) -> 0 | J146: =SUMIFS(O_AC_DCGM_PTS!I8:I6541, O_AC_DCGM_PTS!A8:A6541, A146, O_AC_DCGM_PTS!B8:B6541,C146, O_AC_DCGM_PTS!C8:C6541, B146) -> 0 | K146: =SUMIFS(O_AC_DCGM_PTS!J8:J6541, O_AC_DCGM_PTS!A8:A6541, A146, O_AC_DCGM_PTS!B8:B6541,C146, O_AC_DCGM_PTS!C8:C6541, B146) -> 0 | L146: =SUMIFS(O_AC_DCGM_PTS!K8:K6541, O_AC_DCGM_PTS!A8:A6541, A146, O_AC_DCGM_PTS!B8:B6541,C146, O_AC_DCGM_PTS!C8:C6541, B146) -> 0 | M146: =SUMIFS(O_AC_DCGM_PTS!L8:L6541, O_AC_DCGM_PTS!A8:A6541, A146, O_AC_DCGM_PTS!B8:B6541,C146, O_AC_DCGM_PTS!C8:C6541, B146) -> 0 | N146: =SUMIFS(O_AC_DCGM_PTS!M8:M6541, O_AC_DCGM_PTS!A8:A6541, A146, O_AC_DCGM_PTS!B8:B6541,C146, O_AC_DCGM_PTS!C8:C6541, B146) -> 0 | O146: =SUMIFS(O_AC_DCGM_PTS!N8:N6541, O_AC_DCGM_PTS!A8:A6541, A146, O_AC_DCGM_PTS!B8:B6541,C146, O_AC_DCGM_PTS!C8:C6541, B146) -> 0 | P146: =SUMIFS(O_AC_DCGM_PTS!O8:O6541, O_AC_DCGM_PTS!A8:A6541, A146, O_AC_DCGM_PTS!B8:B6541,C146, O_AC_DCGM_PTS!C8:C6541, B146) -> 0 | Q146: =SUMIFS(O_AC_DCGM_PTS!P8:P6541, O_AC_DCGM_PTS!A8:A6541, A146, O_AC_DCGM_PTS!B8:B6541,C146, O_AC_DCGM_PTS!C8:C6541, B146) -> 0 | R146: =SUMIFS(O_AC_DCGM_PTS!Q8:Q6541, O_AC_DCGM_PTS!A8:A6541, A146, O_AC_DCGM_PTS!B8:B6541,C146, O_AC_DCGM_PTS!C8:C6541, B146) -> 0
A147: OSL | B147: A27 | C147: RES | D147: R | E147: OSL RES A27 | F147: Open space acquisition | G147: Residential HUEs | H147: Area 27 | I147: =SUMIFS(O_AC_DCGM_PTS!H8:H6541, O_AC_DCGM_PTS!A8:A6541, A147, O_AC_DCGM_PTS!B8:B6541,C147, O_AC_DCGM_PTS!C8:C6541, B147) -> 234 | J147: =SUMIFS(O_AC_DCGM_PTS!I8:I6541, O_AC_DCGM_PTS!A8:A6541, A147, O_AC_DCGM_PTS!B8:B6541,C147, O_AC_DCGM_PTS!C8:C6541, B147) -> 230 | K147: =SUMIFS(O_AC_DCGM_PTS!J8:J6541, O_AC_DCGM_PTS!A8:A6541, A147, O_AC_DCGM_PTS!B8:B6541,C147, O_AC_DCGM_PTS!C8:C6541, B147) -> 231 | L147: =SUMIFS(O_AC_DCGM_PTS!K8:K6541, O_AC_DCGM_PTS!A8:A6541, A147, O_AC_DCGM_PTS!B8:B6541,C147, O_AC_DCGM_PTS!C8:C6541, B147) -> 238 | M147: =SUMIFS(O_AC_DCGM_PTS!L8:L6541, O_AC_DCGM_PTS!A8:A6541, A147, O_AC_DCGM_PTS!B8:B6541,C147, O_AC_DCGM_PTS!C8:C6541, B147) -> 256 | N147: =SUMIFS(O_AC_DCGM_PTS!M8:M6541, O_AC_DCGM_PTS!A8:A6541, A147, O_AC_DCGM_PTS!B8:B6541,C147, O_AC_DCGM_PTS!C8:C6541, B147) -> 269 | O147: =SUMIFS(O_AC_DCGM_PTS!N8:N6541, O_AC_DCGM_PTS!A8:A6541, A147, O_AC_DCGM_PTS!B8:B6541,C147, O_AC_DCGM_PTS!C8:C6541, B147) -> 269 | P147: =SUMIFS(O_AC_DCGM_PTS!O8:O6541, O_AC_DCGM_PTS!A8:A6541, A147, O_AC_DCGM_PTS!B8:B6541,C147, O_AC_DCGM_PTS!C8:C6541, B147) -> 248 | Q147: =SUMIFS(O_AC_DCGM_PTS!P8:P6541, O_AC_DCGM_PTS!A8:A6541, A147, O_AC_DCGM_PTS!B8:B6541,C147, O_AC_DCGM_PTS!C8:C6541, B147) -> 243 | R147: =SUMIFS(O_AC_DCGM_PTS!Q8:Q6541, O_AC_DCGM_PTS!A8:A6541, A147, O_AC_DCGM_PTS!B8:B6541,C147, O_AC_DCGM_PTS!C8:C6541, B147) -> 235
A148: OSL | B148: A28 | C148: NRES | D148: N | E148: OSL NRES A28 | F148: Open space acquisition | G148: Non-residential HUEs | H148: Area 28 | I148: =SUMIFS(O_AC_DCGM_PTS!H8:H6541, O_AC_DCGM_PTS!A8:A6541, A148, O_AC_DCGM_PTS!B8:B6541,C148, O_AC_DCGM_PTS!C8:C6541, B148) -> 0 | J148: =SUMIFS(O_AC_DCGM_PTS!I8:I6541, O_AC_DCGM_PTS!A8:A6541, A148, O_AC_DCGM_PTS!B8:B6541,C148, O_AC_DCGM_PTS!C8:C6541, B148) -> 0 | K148: =SUMIFS(O_AC_DCGM_PTS!J8:J6541, O_AC_DCGM_PTS!A8:A6541, A148, O_AC_DCGM_PTS!B8:B6541,C148, O_AC_DCGM_PTS!C8:C6541, B148) -> 0 | L148: =SUMIFS(O_AC_DCGM_PTS!K8:K6541, O_AC_DCGM_PTS!A8:A6541, A148, O_AC_DCGM_PTS!B8:B6541,C148, O_AC_DCGM_PTS!C8:C6541, B148) -> 0 | M148: =SUMIFS(O_AC_DCGM_PTS!L8:L6541, O_AC_DCGM_PTS!A8:A6541, A148, O_AC_DCGM_PTS!B8:B6541,C148, O_AC_DCGM_PTS!C8:C6541, B148) -> 0 | N148: =SUMIFS(O_AC_DCGM_PTS!M8:M6541, O_AC_DCGM_PTS!A8:A6541, A148, O_AC_DCGM_PTS!B8:B6541,C148, O_AC_DCGM_PTS!C8:C6541, B148) -> 0 | O148: =SUMIFS(O_AC_DCGM_PTS!N8:N6541, O_AC_DCGM_PTS!A8:A6541, A148, O_AC_DCGM_PTS!B8:B6541,C148, O_AC_DCGM_PTS!C8:C6541, B148) -> 0 | P148: =SUMIFS(O_AC_DCGM_PTS!O8:O6541, O_AC_DCGM_PTS!A8:A6541, A148, O_AC_DCGM_PTS!B8:B6541,C148, O_AC_DCGM_PTS!C8:C6541, B148) -> 0 | Q148: =SUMIFS(O_AC_DCGM_PTS!P8:P6541, O_AC_DCGM_PTS!A8:A6541, A148, O_AC_DCGM_PTS!B8:B6541,C148, O_AC_DCGM_PTS!C8:C6541, B148) -> 0 | R148: =SUMIFS(O_AC_DCGM_PTS!Q8:Q6541, O_AC_DCGM_PTS!A8:A6541, A148, O_AC_DCGM_PTS!B8:B6541,C148, O_AC_DCGM_PTS!C8:C6541, B148) -> 0
A149: OSL | B149: A28 | C149: RES | D149: R | E149: OSL RES A28 | F149: Open space acquisition | G149: Residential HUEs | H149: Area 28 | I149: =SUMIFS(O_AC_DCGM_PTS!H8:H6541, O_AC_DCGM_PTS!A8:A6541, A149, O_AC_DCGM_PTS!B8:B6541,C149, O_AC_DCGM_PTS!C8:C6541, B149) -> 136 | J149: =SUMIFS(O_AC_DCGM_PTS!I8:I6541, O_AC_DCGM_PTS!A8:A6541, A149, O_AC_DCGM_PTS!B8:B6541,C149, O_AC_DCGM_PTS!C8:C6541, B149) -> 170 | K149: =SUMIFS(O_AC_DCGM_PTS!J8:J6541, O_AC_DCGM_PTS!A8:A6541, A149, O_AC_DCGM_PTS!B8:B6541,C149, O_AC_DCGM_PTS!C8:C6541, B149) -> 199 | L149: =SUMIFS(O_AC_DCGM_PTS!K8:K6541, O_AC_DCGM_PTS!A8:A6541, A149, O_AC_DCGM_PTS!B8:B6541,C149, O_AC_DCGM_PTS!C8:C6541, B149) -> 219 | M149: =SUMIFS(O_AC_DCGM_PTS!L8:L6541, O_AC_DCGM_PTS!A8:A6541, A149, O_AC_DCGM_PTS!B8:B6541,C149, O_AC_DCGM_PTS!C8:C6541, B149) -> 246 | N149: =SUMIFS(O_AC_DCGM_PTS!M8:M6541, O_AC_DCGM_PTS!A8:A6541, A149, O_AC_DCGM_PTS!B8:B6541,C149, O_AC_DCGM_PTS!C8:C6541, B149) -> 314 | O149: =SUMIFS(O_AC_DCGM_PTS!N8:N6541, O_AC_DCGM_PTS!A8:A6541, A149, O_AC_DCGM_PTS!B8:B6541,C149, O_AC_DCGM_PTS!C8:C6541, B149) -> 361 | P149: =SUMIFS(O_AC_DCGM_PTS!O8:O6541, O_AC_DCGM_PTS!A8:A6541, A149, O_AC_DCGM_PTS!B8:B6541,C149, O_AC_DCGM_PTS!C8:C6541, B149) -> 345 | Q149: =SUMIFS(O_AC_DCGM_PTS!P8:P6541, O_AC_DCGM_PTS!A8:A6541, A149, O_AC_DCGM_PTS!B8:B6541,C149, O_AC_DCGM_PTS!C8:C6541, B149) -> 335 | R149: =SUMIFS(O_AC_DCGM_PTS!Q8:Q6541, O_AC_DCGM_PTS!A8:A6541, A149, O_AC_DCGM_PTS!B8:B6541,C149, O_AC_DCGM_PTS!C8:C6541, B149) -> 398 | S149: =SUM(I148:R149) -> 2723
A150: OSL | B150: A29 | C150: NRES | D150: N | E150: OSL NRES A29 | F150: Open space acquisition | G150: Non-residential HUEs | H150: Area 29 | I150: =SUMIFS(O_AC_DCGM_PTS!H8:H6541, O_AC_DCGM_PTS!A8:A6541, A150, O_AC_DCGM_PTS!B8:B6541,C150, O_AC_DCGM_PTS!C8:C6541, B150) -> 0 | J150: =SUMIFS(O_AC_DCGM_PTS!I8:I6541, O_AC_DCGM_PTS!A8:A6541, A150, O_AC_DCGM_PTS!B8:B6541,C150, O_AC_DCGM_PTS!C8:C6541, B150) -> 0 | K150: =SUMIFS(O_AC_DCGM_PTS!J8:J6541, O_AC_DCGM_PTS!A8:A6541, A150, O_AC_DCGM_PTS!B8:B6541,C150, O_AC_DCGM_PTS!C8:C6541, B150) -> 0 | L150: =SUMIFS(O_AC_DCGM_PTS!K8:K6541, O_AC_DCGM_PTS!A8:A6541, A150, O_AC_DCGM_PTS!B8:B6541,C150, O_AC_DCGM_PTS!C8:C6541, B150) -> 0 | M150: =SUMIFS(O_AC_DCGM_PTS!L8:L6541, O_AC_DCGM_PTS!A8:A6541, A150, O_AC_DCGM_PTS!B8:B6541,C150, O_AC_DCGM_PTS!C8:C6541, B150) -> 0 | N150: =SUMIFS(O_AC_DCGM_PTS!M8:M6541, O_AC_DCGM_PTS!A8:A6541, A150, O_AC_DCGM_PTS!B8:B6541,C150, O_AC_DCGM_PTS!C8:C6541, B150) -> 0 | O150: =SUMIFS(O_AC_DCGM_PTS!N8:N6541, O_AC_DCGM_PTS!A8:A6541, A150, O_AC_DCGM_PTS!B8:B6541,C150, O_AC_DCGM_PTS!C8:C6541, B150) -> 0 | P150: =SUMIFS(O_AC_DCGM_PTS!O8:O6541, O_AC_DCGM_PTS!A8:A6541, A150, O_AC_DCGM_PTS!B8:B6541,C150, O_AC_DCGM_PTS!C8:C6541, B150) -> 0 | Q150: =SUMIFS(O_AC_DCGM_PTS!P8:P6541, O_AC_DCGM_PTS!A8:A6541, A150, O_AC_DCGM_PTS!B8:B6541,C150, O_AC_DCGM_PTS!C8:C6541, B150) -> 0 | R150: =SUMIFS(O_AC_DCGM_PTS!Q8:Q6541, O_AC_DCGM_PTS!A8:A6541, A150, O_AC_DCGM_PTS!B8:B6541,C150, O_AC_DCGM_PTS!C8:C6541, B150) -> 0
A151: OSL | B151: A29 | C151: RES | D151: R | E151: OSL RES A29 | F151: Open space acquisition | G151: Residential HUEs | H151: Area 29 | I151: =SUMIFS(O_AC_DCGM_PTS!H8:H6541, O_AC_DCGM_PTS!A8:A6541, A151, O_AC_DCGM_PTS!B8:B6541,C151, O_AC_DCGM_PTS!C8:C6541, B151) -> 68 | J151: =SUMIFS(O_AC_DCGM_PTS!I8:I6541, O_AC_DCGM_PTS!A8:A6541, A151, O_AC_DCGM_PTS!B8:B6541,C151, O_AC_DCGM_PTS!C8:C6541, B151) -> 96 | K151: =SUMIFS(O_AC_DCGM_PTS!J8:J6541, O_AC_DCGM_PTS!A8:A6541, A151, O_AC_DCGM_PTS!B8:B6541,C151, O_AC_DCGM_PTS!C8:C6541, B151) -> 119 | L151: =SUMIFS(O_AC_DCGM_PTS!K8:K6541, O_AC_DCGM_PTS!A8:A6541, A151, O_AC_DCGM_PTS!B8:B6541,C151, O_AC_DCGM_PTS!C8:C6541, B151) -> 128 | M151: =SUMIFS(O_AC_DCGM_PTS!L8:L6541, O_AC_DCGM_PTS!A8:A6541, A151, O_AC_DCGM_PTS!B8:B6541,C151, O_AC_DCGM_PTS!C8:C6541, B151) -> 134 | N151: =SUMIFS(O_AC_DCGM_PTS!M8:M6541, O_AC_DCGM_PTS!A8:A6541, A151, O_AC_DCGM_PTS!B8:B6541,C151, O_AC_DCGM_PTS!C8:C6541, B151) -> 134 | O151: =SUMIFS(O_AC_DCGM_PTS!N8:N6541, O_AC_DCGM_PTS!A8:A6541, A151, O_AC_DCGM_PTS!B8:B6541,C151, O_AC_DCGM_PTS!C8:C6541, B151) -> 120 | P151: =SUMIFS(O_AC_DCGM_PTS!O8:O6541, O_AC_DCGM_PTS!A8:A6541, A151, O_AC_DCGM_PTS!B8:B6541,C151, O_AC_DCGM_PTS!C8:C6541, B151) -> 101 | Q151: =SUMIFS(O_AC_DCGM_PTS!P8:P6541, O_AC_DCGM_PTS!A8:A6541, A151, O_AC_DCGM_PTS!B8:B6541,C151, O_AC_DCGM_PTS!C8:C6541, B151) -> 86 | R151: =SUMIFS(O_AC_DCGM_PTS!Q8:Q6541, O_AC_DCGM_PTS!A8:A6541, A151, O_AC_DCGM_PTS!B8:B6541,C151, O_AC_DCGM_PTS!C8:C6541, B151) -> 92 | S151: =SUM(I150:R151) -> 1078
A152: OSL | B152: A30 | C152: NRES | D152: N | E152: OSL NRES A30 | F152: Open space acquisition | G152: Non-residential HUEs | H152: Area 30 | I152: =SUMIFS(O_AC_DCGM_PTS!H8:H6541, O_AC_DCGM_PTS!A8:A6541, A152, O_AC_DCGM_PTS!B8:B6541,C152, O_AC_DCGM_PTS!C8:C6541, B152) -> 0 | J152: =SUMIFS(O_AC_DCGM_PTS!I8:I6541, O_AC_DCGM_PTS!A8:A6541, A152, O_AC_DCGM_PTS!B8:B6541,C152, O_AC_DCGM_PTS!C8:C6541, B152) -> 0 | K152: =SUMIFS(O_AC_DCGM_PTS!J8:J6541, O_AC_DCGM_PTS!A8:A6541, A152, O_AC_DCGM_PTS!B8:B6541,C152, O_AC_DCGM_PTS!C8:C6541, B152) -> 0 | L152: =SUMIFS(O_AC_DCGM_PTS!K8:K6541, O_AC_DCGM_PTS!A8:A6541, A152, O_AC_DCGM_PTS!B8:B6541,C152, O_AC_DCGM_PTS!C8:C6541, B152) -> 0 | M152: =SUMIFS(O_AC_DCGM_PTS!L8:L6541, O_AC_DCGM_PTS!A8:A6541, A152, O_AC_DCGM_PTS!B8:B6541,C152, O_AC_DCGM_PTS!C8:C6541, B152) -> 0 | N152: =SUMIFS(O_AC_DCGM_PTS!M8:M6541, O_AC_DCGM_PTS!A8:A6541, A152, O_AC_DCGM_PTS!B8:B6541,C152, O_AC_DCGM_PTS!C8:C6541, B152) -> 0 | O152: =SUMIFS(O_AC_DCGM_PTS!N8:N6541, O_AC_DCGM_PTS!A8:A6541, A152, O_AC_DCGM_PTS!B8:B6541,C152, O_AC_DCGM_PTS!C8:C6541, B152) -> 0 | P152: =SUMIFS(O_AC_DCGM_PTS!O8:O6541, O_AC_DCGM_PTS!A8:A6541, A152, O_AC_DCGM_PTS!B8:B6541,C152, O_AC_DCGM_PTS!C8:C6541, B152) -> 0 | Q152: =SUMIFS(O_AC_DCGM_PTS!P8:P6541, O_AC_DCGM_PTS!A8:A6541, A152, O_AC_DCGM_PTS!B8:B6541,C152, O_AC_DCGM_PTS!C8:C6541, B152) -> 0 | R152: =SUMIFS(O_AC_DCGM_PTS!Q8:Q6541, O_AC_DCGM_PTS!A8:A6541, A152, O_AC_DCGM_PTS!B8:B6541,C152, O_AC_DCGM_PTS!C8:C6541, B152) -> 0
A153: OSL | B153: A30 | C153: RES | D153: R | E153: OSL RES A30 | F153: Open space acquisition | G153: Residential HUEs | H153: Area 30 | I153: =SUMIFS(O_AC_DCGM_PTS!H8:H6541, O_AC_DCGM_PTS!A8:A6541, A153, O_AC_DCGM_PTS!B8:B6541,C153, O_AC_DCGM_PTS!C8:C6541, B153) -> 20 | J153: =SUMIFS(O_AC_DCGM_PTS!I8:I6541, O_AC_DCGM_PTS!A8:A6541, A153, O_AC_DCGM_PTS!B8:B6541,C153, O_AC_DCGM_PTS!C8:C6541, B153) -> 27 | K153: =SUMIFS(O_AC_DCGM_PTS!J8:J6541, O_AC_DCGM_PTS!A8:A6541, A153, O_AC_DCGM_PTS!B8:B6541,C153, O_AC_DCGM_PTS!C8:C6541, B153) -> 34 | L153: =SUMIFS(O_AC_DCGM_PTS!K8:K6541, O_AC_DCGM_PTS!A8:A6541, A153, O_AC_DCGM_PTS!B8:B6541,C153, O_AC_DCGM_PTS!C8:C6541, B153) -> 37 | M153: =SUMIFS(O_AC_DCGM_PTS!L8:L6541, O_AC_DCGM_PTS!A8:A6541, A153, O_AC_DCGM_PTS!B8:B6541,C153, O_AC_DCGM_PTS!C8:C6541, B153) -> 39 | N153: =SUMIFS(O_AC_DCGM_PTS!M8:M6541, O_AC_DCGM_PTS!A8:A6541, A153, O_AC_DCGM_PTS!B8:B6541,C153, O_AC_DCGM_PTS!C8:C6541, B153) -> 97 | O153: =SUMIFS(O_AC_DCGM_PTS!N8:N6541, O_AC_DCGM_PTS!A8:A6541, A153, O_AC_DCGM_PTS!B8:B6541,C153, O_AC_DCGM_PTS!C8:C6541, B153) -> 154 | P153: =SUMIFS(O_AC_DCGM_PTS!O8:O6541, O_AC_DCGM_PTS!A8:A6541, A153, O_AC_DCGM_PTS!B8:B6541,C153, O_AC_DCGM_PTS!C8:C6541, B153) -> 149 | Q153: =SUMIFS(O_AC_DCGM_PTS!P8:P6541, O_AC_DCGM_PTS!A8:A6541, A153, O_AC_DCGM_PTS!B8:B6541,C153, O_AC_DCGM_PTS!C8:C6541, B153) -> 137 | R153: =SUMIFS(O_AC_DCGM_PTS!Q8:Q6541, O_AC_DCGM_PTS!A8:A6541, A153, O_AC_DCGM_PTS!B8:B6541,C153, O_AC_DCGM_PTS!C8:C6541, B153) -> 137 | S153: =SUM(I152:R153) -> 831
A154: OSL | B154: A31 | C154: NRES | D154: N | E154: OSL NRES A31 | F154: Open space acquisition | G154: Non-residential HUEs | H154: Area 31 | I154: =SUMIFS(O_AC_DCGM_PTS!H8:H6541, O_AC_DCGM_PTS!A8:A6541, A154, O_AC_DCGM_PTS!B8:B6541,C154, O_AC_DCGM_PTS!C8:C6541, B154) -> 0 | J154: =SUMIFS(O_AC_DCGM_PTS!I8:I6541, O_AC_DCGM_PTS!A8:A6541, A154, O_AC_DCGM_PTS!B8:B6541,C154, O_AC_DCGM_PTS!C8:C6541, B154) -> 0 | K154: =SUMIFS(O_AC_DCGM_PTS!J8:J6541, O_AC_DCGM_PTS!A8:A6541, A154, O_AC_DCGM_PTS!B8:B6541,C154, O_AC_DCGM_PTS!C8:C6541, B154) -> 0 | L154: =SUMIFS(O_AC_DCGM_PTS!K8:K6541, O_AC_DCGM_PTS!A8:A6541, A154, O_AC_DCGM_PTS!B8:B6541,C154, O_AC_DCGM_PTS!C8:C6541, B154) -> 0 | M154: =SUMIFS(O_AC_DCGM_PTS!L8:L6541, O_AC_DCGM_PTS!A8:A6541, A154, O_AC_DCGM_PTS!B8:B6541,C154, O_AC_DCGM_PTS!C8:C6541, B154) -> 0 | N154: =SUMIFS(O_AC_DCGM_PTS!M8:M6541, O_AC_DCGM_PTS!A8:A6541, A154, O_AC_DCGM_PTS!B8:B6541,C154, O_AC_DCGM_PTS!C8:C6541, B154) -> 0 | O154: =SUMIFS(O_AC_DCGM_PTS!N8:N6541, O_AC_DCGM_PTS!A8:A6541, A154, O_AC_DCGM_PTS!B8:B6541,C154, O_AC_DCGM_PTS!C8:C6541, B154) -> 0 | P154: =SUMIFS(O_AC_DCGM_PTS!O8:O6541, O_AC_DCGM_PTS!A8:A6541, A154, O_AC_DCGM_PTS!B8:B6541,C154, O_AC_DCGM_PTS!C8:C6541, B154) -> 0 | Q154: =SUMIFS(O_AC_DCGM_PTS!P8:P6541, O_AC_DCGM_PTS!A8:A6541, A154, O_AC_DCGM_PTS!B8:B6541,C154, O_AC_DCGM_PTS!C8:C6541, B154) -> 0 | R154: =SUMIFS(O_AC_DCGM_PTS!Q8:Q6541, O_AC_DCGM_PTS!A8:A6541, A154, O_AC_DCGM_PTS!B8:B6541,C154, O_AC_DCGM_PTS!C8:C6541, B154) -> 0
A155: OSL | B155: A31 | C155: RES | D155: R | E155: OSL RES A31 | F155: Open space acquisition | G155: Residential HUEs | H155: Area 31 | I155: =SUMIFS(O_AC_DCGM_PTS!H8:H6541, O_AC_DCGM_PTS!A8:A6541, A155, O_AC_DCGM_PTS!B8:B6541,C155, O_AC_DCGM_PTS!C8:C6541, B155) -> 0 | J155: =SUMIFS(O_AC_DCGM_PTS!I8:I6541, O_AC_DCGM_PTS!A8:A6541, A155, O_AC_DCGM_PTS!B8:B6541,C155, O_AC_DCGM_PTS!C8:C6541, B155) -> 0 | K155: =SUMIFS(O_AC_DCGM_PTS!J8:J6541, O_AC_DCGM_PTS!A8:A6541, A155, O_AC_DCGM_PTS!B8:B6541,C155, O_AC_DCGM_PTS!C8:C6541, B155) -> 0 | L155: =SUMIFS(O_AC_DCGM_PTS!K8:K6541, O_AC_DCGM_PTS!A8:A6541, A155, O_AC_DCGM_PTS!B8:B6541,C155, O_AC_DCGM_PTS!C8:C6541, B155) -> 0 | M155: =SUMIFS(O_AC_DCGM_PTS!L8:L6541, O_AC_DCGM_PTS!A8:A6541, A155, O_AC_DCGM_PTS!B8:B6541,C155, O_AC_DCGM_PTS!C8:C6541, B155) -> 0 | N155: =SUMIFS(O_AC_DCGM_PTS!M8:M6541, O_AC_DCGM_PTS!A8:A6541, A155, O_AC_DCGM_PTS!B8:B6541,C155, O_AC_DCGM_PTS!C8:C6541, B155) -> 0 | O155: =SUMIFS(O_AC_DCGM_PTS!N8:N6541, O_AC_DCGM_PTS!A8:A6541, A155, O_AC_DCGM_PTS!B8:B6541,C155, O_AC_DCGM_PTS!C8:C6541, B155) -> 0 | P155: =SUMIFS(O_AC_DCGM_PTS!O8:O6541, O_AC_DCGM_PTS!A8:A6541, A155, O_AC_DCGM_PTS!B8:B6541,C155, O_AC_DCGM_PTS!C8:C6541, B155) -> 0 | Q155: =SUMIFS(O_AC_DCGM_PTS!P8:P6541, O_AC_DCGM_PTS!A8:A6541, A155, O_AC_DCGM_PTS!B8:B6541,C155, O_AC_DCGM_PTS!C8:C6541, B155) -> 0 | R155: =SUMIFS(O_AC_DCGM_PTS!Q8:Q6541, O_AC_DCGM_PTS!A8:A6541, A155, O_AC_DCGM_PTS!B8:B6541,C155, O_AC_DCGM_PTS!C8:C6541, B155) -> 15 | S155: =SUM(I154:R155) -> 15
A156: OSL | B156: A32 | C156: NRES | D156: N | E156: OSL NRES A32 | F156: Open space acquisition | G156: Non-residential HUEs | H156: Area 32 | I156: =SUMIFS(O_AC_DCGM_PTS!H8:H6541, O_AC_DCGM_PTS!A8:A6541, A156, O_AC_DCGM_PTS!B8:B6541,C156, O_AC_DCGM_PTS!C8:C6541, B156) -> 0 | J156: =SUMIFS(O_AC_DCGM_PTS!I8:I6541, O_AC_DCGM_PTS!A8:A6541, A156, O_AC_DCGM_PTS!B8:B6541,C156, O_AC_DCGM_PTS!C8:C6541, B156) -> 0 | K156: =SUMIFS(O_AC_DCGM_PTS!J8:J6541, O_AC_DCGM_PTS!A8:A6541, A156, O_AC_DCGM_PTS!B8:B6541,C156, O_AC_DCGM_PTS!C8:C6541, B156) -> 0 | L156: =SUMIFS(O_AC_DCGM_PTS!K8:K6541, O_AC_DCGM_PTS!A8:A6541, A156, O_AC_DCGM_PTS!B8:B6541,C156, O_AC_DCGM_PTS!C8:C6541, B156) -> 0 | M156: =SUMIFS(O_AC_DCGM_PTS!L8:L6541, O_AC_DCGM_PTS!A8:A6541, A156, O_AC_DCGM_PTS!B8:B6541,C156, O_AC_DCGM_PTS!C8:C6541, B156) -> 0 | N156: =SUMIFS(O_AC_DCGM_PTS!M8:M6541, O_AC_DCGM_PTS!A8:A6541, A156, O_AC_DCGM_PTS!B8:B6541,C156, O_AC_DCGM_PTS!C8:C6541, B156) -> 0 | O156: =SUMIFS(O_AC_DCGM_PTS!N8:N6541, O_AC_DCGM_PTS!A8:A6541, A156, O_AC_DCGM_PTS!B8:B6541,C156, O_AC_DCGM_PTS!C8:C6541, B156) -> 0 | P156: =SUMIFS(O_AC_DCGM_PTS!O8:O6541, O_AC_DCGM_PTS!A8:A6541, A156, O_AC_DCGM_PTS!B8:B6541,C156, O_AC_DCGM_PTS!C8:C6541, B156) -> 0 | Q156: =SUMIFS(O_AC_DCGM_PTS!P8:P6541, O_AC_DCGM_PTS!A8:A6541, A156, O_AC_DCGM_PTS!B8:B6541,C156, O_AC_DCGM_PTS!C8:C6541, B156) -> 0 | R156: =SUMIFS(O_AC_DCGM_PTS!Q8:Q6541, O_AC_DCGM_PTS!A8:A6541, A156, O_AC_DCGM_PTS!B8:B6541,C156, O_AC_DCGM_PTS!C8:C6541, B156) -> 0
A157: OSL | B157: A32 | C157: RES | D157: R | E157: OSL RES A32 | F157: Open space acquisition | G157: Residential HUEs | H157: Area 32 | I157: =SUMIFS(O_AC_DCGM_PTS!H8:H6541, O_AC_DCGM_PTS!A8:A6541, A157, O_AC_DCGM_PTS!B8:B6541,C157, O_AC_DCGM_PTS!C8:C6541, B157) -> 34 | J157: =SUMIFS(O_AC_DCGM_PTS!I8:I6541, O_AC_DCGM_PTS!A8:A6541, A157, O_AC_DCGM_PTS!B8:B6541,C157, O_AC_DCGM_PTS!C8:C6541, B157) -> 33 | K157: =SUMIFS(O_AC_DCGM_PTS!J8:J6541, O_AC_DCGM_PTS!A8:A6541, A157, O_AC_DCGM_PTS!B8:B6541,C157, O_AC_DCGM_PTS!C8:C6541, B157) -> 34 | L157: =SUMIFS(O_AC_DCGM_PTS!K8:K6541, O_AC_DCGM_PTS!A8:A6541, A157, O_AC_DCGM_PTS!B8:B6541,C157, O_AC_DCGM_PTS!C8:C6541, B157) -> 30 | M157: =SUMIFS(O_AC_DCGM_PTS!L8:L6541, O_AC_DCGM_PTS!A8:A6541, A157, O_AC_DCGM_PTS!B8:B6541,C157, O_AC_DCGM_PTS!C8:C6541, B157) -> 33 | N157: =SUMIFS(O_AC_DCGM_PTS!M8:M6541, O_AC_DCGM_PTS!A8:A6541, A157, O_AC_DCGM_PTS!B8:B6541,C157, O_AC_DCGM_PTS!C8:C6541, B157) -> 39 | O157: =SUMIFS(O_AC_DCGM_PTS!N8:N6541, O_AC_DCGM_PTS!A8:A6541, A157, O_AC_DCGM_PTS!B8:B6541,C157, O_AC_DCGM_PTS!C8:C6541, B157) -> 40 | P157: =SUMIFS(O_AC_DCGM_PTS!O8:O6541, O_AC_DCGM_PTS!A8:A6541, A157, O_AC_DCGM_PTS!B8:B6541,C157, O_AC_DCGM_PTS!C8:C6541, B157) -> 40 | Q157: =SUMIFS(O_AC_DCGM_PTS!P8:P6541, O_AC_DCGM_PTS!A8:A6541, A157, O_AC_DCGM_PTS!B8:B6541,C157, O_AC_DCGM_PTS!C8:C6541, B157) -> 49 | R157: =SUMIFS(O_AC_DCGM_PTS!Q8:Q6541, O_AC_DCGM_PTS!A8:A6541, A157, O_AC_DCGM_PTS!B8:B6541,C157, O_AC_DCGM_PTS!C8:C6541, B157) -> 57 | S157: =SUM(I156:R157) -> 389
A158: OSL | B158: A33 | C158: NRES | D158: N | E158: OSL NRES A33 | F158: Open space acquisition | G158: Non-residential HUEs | H158: Area 33 | I158: =SUMIFS(O_AC_DCGM_PTS!H8:H6541, O_AC_DCGM_PTS!A8:A6541, A158, O_AC_DCGM_PTS!B8:B6541,C158, O_AC_DCGM_PTS!C8:C6541, B158) -> 0 | J158: =SUMIFS(O_AC_DCGM_PTS!I8:I6541, O_AC_DCGM_PTS!A8:A6541, A158, O_AC_DCGM_PTS!B8:B6541,C158, O_AC_DCGM_PTS!C8:C6541, B158) -> 0 | K158: =SUMIFS(O_AC_DCGM_PTS!J8:J6541, O_AC_DCGM_PTS!A8:A6541, A158, O_AC_DCGM_PTS!B8:B6541,C158, O_AC_DCGM_PTS!C8:C6541, B158) -> 0 | L158: =SUMIFS(O_AC_DCGM_PTS!K8:K6541, O_AC_DCGM_PTS!A8:A6541, A158, O_AC_DCGM_PTS!B8:B6541,C158, O_AC_DCGM_PTS!C8:C6541, B158) -> 0 | M158: =SUMIFS(O_AC_DCGM_PTS!L8:L6541, O_AC_DCGM_PTS!A8:A6541, A158, O_AC_DCGM_PTS!B8:B6541,C158, O_AC_DCGM_PTS!C8:C6541, B158) -> 0 | N158: =SUMIFS(O_AC_DCGM_PTS!M8:M6541, O_AC_DCGM_PTS!A8:A6541, A158, O_AC_DCGM_PTS!B8:B6541,C158, O_AC_DCGM_PTS!C8:C6541, B158) -> 0 | O158: =SUMIFS(O_AC_DCGM_PTS!N8:N6541, O_AC_DCGM_PTS!A8:A6541, A158, O_AC_DCGM_PTS!B8:B6541,C158, O_AC_DCGM_PTS!C8:C6541, B158) -> 0 | P158: =SUMIFS(O_AC_DCGM_PTS!O8:O6541, O_AC_DCGM_PTS!A8:A6541, A158, O_AC_DCGM_PTS!B8:B6541,C158, O_AC_DCGM_PTS!C8:C6541, B158) -> 0 | Q158: =SUMIFS(O_AC_DCGM_PTS!P8:P6541, O_AC_DCGM_PTS!A8:A6541, A158, O_AC_DCGM_PTS!B8:B6541,C158, O_AC_DCGM_PTS!C8:C6541, B158) -> 0 | R158: =SUMIFS(O_AC_DCGM_PTS!Q8:Q6541, O_AC_DCGM_PTS!A8:A6541, A158, O_AC_DCGM_PTS!B8:B6541,C158, O_AC_DCGM_PTS!C8:C6541, B158) -> 0
A159: OSL | B159: A33 | C159: RES | D159: R | E159: OSL RES A33 | F159: Open space acquisition | G159: Residential HUEs | H159: Area 33 | I159: =SUMIFS(O_AC_DCGM_PTS!H8:H6541, O_AC_DCGM_PTS!A8:A6541, A159, O_AC_DCGM_PTS!B8:B6541,C159, O_AC_DCGM_PTS!C8:C6541, B159) -> 24 | J159: =SUMIFS(O_AC_DCGM_PTS!I8:I6541, O_AC_DCGM_PTS!A8:A6541, A159, O_AC_DCGM_PTS!B8:B6541,C159, O_AC_DCGM_PTS!C8:C6541, B159) -> 24 | K159: =SUMIFS(O_AC_DCGM_PTS!J8:J6541, O_AC_DCGM_PTS!A8:A6541, A159, O_AC_DCGM_PTS!B8:B6541,C159, O_AC_DCGM_PTS!C8:C6541, B159) -> 24 | L159: =SUMIFS(O_AC_DCGM_PTS!K8:K6541, O_AC_DCGM_PTS!A8:A6541, A159, O_AC_DCGM_PTS!B8:B6541,C159, O_AC_DCGM_PTS!C8:C6541, B159) -> 36 | M159: =SUMIFS(O_AC_DCGM_PTS!L8:L6541, O_AC_DCGM_PTS!A8:A6541, A159, O_AC_DCGM_PTS!B8:B6541,C159, O_AC_DCGM_PTS!C8:C6541, B159) -> 54 | N159: =SUMIFS(O_AC_DCGM_PTS!M8:M6541, O_AC_DCGM_PTS!A8:A6541, A159, O_AC_DCGM_PTS!B8:B6541,C159, O_AC_DCGM_PTS!C8:C6541, B159) -> 60 | O159: =SUMIFS(O_AC_DCGM_PTS!N8:N6541, O_AC_DCGM_PTS!A8:A6541, A159, O_AC_DCGM_PTS!B8:B6541,C159, O_AC_DCGM_PTS!C8:C6541, B159) -> 60 | P159: =SUMIFS(O_AC_DCGM_PTS!O8:O6541, O_AC_DCGM_PTS!A8:A6541, A159, O_AC_DCGM_PTS!B8:B6541,C159, O_AC_DCGM_PTS!C8:C6541, B159) -> 63 | Q159: =SUMIFS(O_AC_DCGM_PTS!P8:P6541, O_AC_DCGM_PTS!A8:A6541, A159, O_AC_DCGM_PTS!B8:B6541,C159, O_AC_DCGM_PTS!C8:C6541, B159) -> 72 | R159: =SUMIFS(O_AC_DCGM_PTS!Q8:Q6541, O_AC_DCGM_PTS!A8:A6541, A159, O_AC_DCGM_PTS!B8:B6541,C159, O_AC_DCGM_PTS!C8:C6541, B159) -> 111 | S159: =SUM(I158:R159) -> 528
A160: OSL | B160: A34 | C160: NRES | D160: N | E160: OSL NRES A34 | F160: Open space acquisition | G160: Non-residential HUEs | H160: Area 34 | I160: =SUMIFS(O_AC_DCGM_PTS!H8:H6541, O_AC_DCGM_PTS!A8:A6541, A160, O_AC_DCGM_PTS!B8:B6541,C160, O_AC_DCGM_PTS!C8:C6541, B160) -> 0 | J160: =SUMIFS(O_AC_DCGM_PTS!I8:I6541, O_AC_DCGM_PTS!A8:A6541, A160, O_AC_DCGM_PTS!B8:B6541,C160, O_AC_DCGM_PTS!C8:C6541, B160) -> 0 | K160: =SUMIFS(O_AC_DCGM_PTS!J8:J6541, O_AC_DCGM_PTS!A8:A6541, A160, O_AC_DCGM_PTS!B8:B6541,C160, O_AC_DCGM_PTS!C8:C6541, B160) -> 0 | L160: =SUMIFS(O_AC_DCGM_PTS!K8:K6541, O_AC_DCGM_PTS!A8:A6541, A160, O_AC_DCGM_PTS!B8:B6541,C160, O_AC_DCGM_PTS!C8:C6541, B160) -> 0 | M160: =SUMIFS(O_AC_DCGM_PTS!L8:L6541, O_AC_DCGM_PTS!A8:A6541, A160, O_AC_DCGM_PTS!B8:B6541,C160, O_AC_DCGM_PTS!C8:C6541, B160) -> 0 | N160: =SUMIFS(O_AC_DCGM_PTS!M8:M6541, O_AC_DCGM_PTS!A8:A6541, A160, O_AC_DCGM_PTS!B8:B6541,C160, O_AC_DCGM_PTS!C8:C6541, B160) -> 0 | O160: =SUMIFS(O_AC_DCGM_PTS!N8:N6541, O_AC_DCGM_PTS!A8:A6541, A160, O_AC_DCGM_PTS!B8:B6541,C160, O_AC_DCGM_PTS!C8:C6541, B160) -> 0 | P160: =SUMIFS(O_AC_DCGM_PTS!O8:O6541, O_AC_DCGM_PTS!A8:A6541, A160, O_AC_DCGM_PTS!B8:B6541,C160, O_AC_DCGM_PTS!C8:C6541, B160) -> 0 | Q160: =SUMIFS(O_AC_DCGM_PTS!P8:P6541, O_AC_DCGM_PTS!A8:A6541, A160, O_AC_DCGM_PTS!B8:B6541,C160, O_AC_DCGM_PTS!C8:C6541, B160) -> 0 | R160: =SUMIFS(O_AC_DCGM_PTS!Q8:Q6541, O_AC_DCGM_PTS!A8:A6541, A160, O_AC_DCGM_PTS!B8:B6541,C160, O_AC_DCGM_PTS!C8:C6541, B160) -> 0
A161: OSL | B161: A34 | C161: RES | D161: R | E161: OSL RES A34 | F161: Open space acquisition | G161: Residential HUEs | H161: Area 34 | I161: =SUMIFS(O_AC_DCGM_PTS!H8:H6541, O_AC_DCGM_PTS!A8:A6541, A161, O_AC_DCGM_PTS!B8:B6541,C161, O_AC_DCGM_PTS!C8:C6541, B161) -> 127 | J161: =SUMIFS(O_AC_DCGM_PTS!I8:I6541, O_AC_DCGM_PTS!A8:A6541, A161, O_AC_DCGM_PTS!B8:B6541,C161, O_AC_DCGM_PTS!C8:C6541, B161) -> 160 | K161: =SUMIFS(O_AC_DCGM_PTS!J8:J6541, O_AC_DCGM_PTS!A8:A6541, A161, O_AC_DCGM_PTS!B8:B6541,C161, O_AC_DCGM_PTS!C8:C6541, B161) -> 189 | L161: =SUMIFS(O_AC_DCGM_PTS!K8:K6541, O_AC_DCGM_PTS!A8:A6541, A161, O_AC_DCGM_PTS!B8:B6541,C161, O_AC_DCGM_PTS!C8:C6541, B161) -> 211 | M161: =SUMIFS(O_AC_DCGM_PTS!L8:L6541, O_AC_DCGM_PTS!A8:A6541, A161, O_AC_DCGM_PTS!B8:B6541,C161, O_AC_DCGM_PTS!C8:C6541, B161) -> 234 | N161: =SUMIFS(O_AC_DCGM_PTS!M8:M6541, O_AC_DCGM_PTS!A8:A6541, A161, O_AC_DCGM_PTS!B8:B6541,C161, O_AC_DCGM_PTS!C8:C6541, B161) -> 301 | O161: =SUMIFS(O_AC_DCGM_PTS!N8:N6541, O_AC_DCGM_PTS!A8:A6541, A161, O_AC_DCGM_PTS!B8:B6541,C161, O_AC_DCGM_PTS!C8:C6541, B161) -> 350 | P161: =SUMIFS(O_AC_DCGM_PTS!O8:O6541, O_AC_DCGM_PTS!A8:A6541, A161, O_AC_DCGM_PTS!B8:B6541,C161, O_AC_DCGM_PTS!C8:C6541, B161) -> 334 | Q161: =SUMIFS(O_AC_DCGM_PTS!P8:P6541, O_AC_DCGM_PTS!A8:A6541, A161, O_AC_DCGM_PTS!B8:B6541,C161, O_AC_DCGM_PTS!C8:C6541, B161) -> 320 | R161: =SUMIFS(O_AC_DCGM_PTS!Q8:Q6541, O_AC_DCGM_PTS!A8:A6541, A161, O_AC_DCGM_PTS!B8:B6541,C161, O_AC_DCGM_PTS!C8:C6541, B161) -> 378 | S161: =SUM(I160:R161) -> 2604
A162: OSL | B162: A35 | C162: NRES | D162: N | E162: OSL NRES A35 | F162: Open space acquisition | G162: Non-residential HUEs | H162: Area 35 | I162: =SUMIFS(O_AC_DCGM_PTS!H8:H6541, O_AC_DCGM_PTS!A8:A6541, A162, O_AC_DCGM_PTS!B8:B6541,C162, O_AC_DCGM_PTS!C8:C6541, B162) -> 0 | J162: =SUMIFS(O_AC_DCGM_PTS!I8:I6541, O_AC_DCGM_PTS!A8:A6541, A162, O_AC_DCGM_PTS!B8:B6541,C162, O_AC_DCGM_PTS!C8:C6541, B162) -> 0 | K162: =SUMIFS(O_AC_DCGM_PTS!J8:J6541, O_AC_DCGM_PTS!A8:A6541, A162, O_AC_DCGM_PTS!B8:B6541,C162, O_AC_DCGM_PTS!C8:C6541, B162) -> 0 | L162: =SUMIFS(O_AC_DCGM_PTS!K8:K6541, O_AC_DCGM_PTS!A8:A6541, A162, O_AC_DCGM_PTS!B8:B6541,C162, O_AC_DCGM_PTS!C8:C6541, B162) -> 0 | M162: =SUMIFS(O_AC_DCGM_PTS!L8:L6541, O_AC_DCGM_PTS!A8:A6541, A162, O_AC_DCGM_PTS!B8:B6541,C162, O_AC_DCGM_PTS!C8:C6541, B162) -> 0 | N162: =SUMIFS(O_AC_DCGM_PTS!M8:M6541, O_AC_DCGM_PTS!A8:A6541, A162, O_AC_DCGM_PTS!B8:B6541,C162, O_AC_DCGM_PTS!C8:C6541, B162) -> 0 | O162: =SUMIFS(O_AC_DCGM_PTS!N8:N6541, O_AC_DCGM_PTS!A8:A6541, A162, O_AC_DCGM_PTS!B8:B6541,C162, O_AC_DCGM_PTS!C8:C6541, B162) -> 0 | P162: =SUMIFS(O_AC_DCGM_PTS!O8:O6541, O_AC_DCGM_PTS!A8:A6541, A162, O_AC_DCGM_PTS!B8:B6541,C162, O_AC_DCGM_PTS!C8:C6541, B162) -> 0 | Q162: =SUMIFS(O_AC_DCGM_PTS!P8:P6541, O_AC_DCGM_PTS!A8:A6541, A162, O_AC_DCGM_PTS!B8:B6541,C162, O_AC_DCGM_PTS!C8:C6541, B162) -> 0 | R162: =SUMIFS(O_AC_DCGM_PTS!Q8:Q6541, O_AC_DCGM_PTS!A8:A6541, A162, O_AC_DCGM_PTS!B8:B6541,C162, O_AC_DCGM_PTS!C8:C6541, B162) -> 0
A163: OSL | B163: A35 | C163: RES | D163: R | E163: OSL RES A35 | F163: Open space acquisition | G163: Residential HUEs | H163: Area 35 | I163: =SUMIFS(O_AC_DCGM_PTS!H8:H6541, O_AC_DCGM_PTS!A8:A6541, A163, O_AC_DCGM_PTS!B8:B6541,C163, O_AC_DCGM_PTS!C8:C6541, B163) -> 0 | J163: =SUMIFS(O_AC_DCGM_PTS!I8:I6541, O_AC_DCGM_PTS!A8:A6541, A163, O_AC_DCGM_PTS!B8:B6541,C163, O_AC_DCGM_PTS!C8:C6541, B163) -> 0 | K163: =SUMIFS(O_AC_DCGM_PTS!J8:J6541, O_AC_DCGM_PTS!A8:A6541, A163, O_AC_DCGM_PTS!B8:B6541,C163, O_AC_DCGM_PTS!C8:C6541, B163) -> 0 | L163: =SUMIFS(O_AC_DCGM_PTS!K8:K6541, O_AC_DCGM_PTS!A8:A6541, A163, O_AC_DCGM_PTS!B8:B6541,C163, O_AC_DCGM_PTS!C8:C6541, B163) -> 0 | M163: =SUMIFS(O_AC_DCGM_PTS!L8:L6541, O_AC_DCGM_PTS!A8:A6541, A163, O_AC_DCGM_PTS!B8:B6541,C163, O_AC_DCGM_PTS!C8:C6541, B163) -> 0 | N163: =SUMIFS(O_AC_DCGM_PTS!M8:M6541, O_AC_DCGM_PTS!A8:A6541, A163, O_AC_DCGM_PTS!B8:B6541,C163, O_AC_DCGM_PTS!C8:C6541, B163) -> 0 | O163: =SUMIFS(O_AC_DCGM_PTS!N8:N6541, O_AC_DCGM_PTS!A8:A6541, A163, O_AC_DCGM_PTS!B8:B6541,C163, O_AC_DCGM_PTS!C8:C6541, B163) -> 0 | P163: =SUMIFS(O_AC_DCGM_PTS!O8:O6541, O_AC_DCGM_PTS!A8:A6541, A163, O_AC_DCGM_PTS!B8:B6541,C163, O_AC_DCGM_PTS!C8:C6541, B163) -> 0 | Q163: =SUMIFS(O_AC_DCGM_PTS!P8:P6541, O_AC_DCGM_PTS!A8:A6541, A163, O_AC_DCGM_PTS!B8:B6541,C163, O_AC_DCGM_PTS!C8:C6541, B163) -> 0 | R163: =SUMIFS(O_AC_DCGM_PTS!Q8:Q6541, O_AC_DCGM_PTS!A8:A6541, A163, O_AC_DCGM_PTS!B8:B6541,C163, O_AC_DCGM_PTS!C8:C6541, B163) -> 0
A164: OSL | B164: A36 | C164: NRES | D164: N | E164: OSL NRES A36 | F164: Open space acquisition | G164: Non-residential HUEs | H164: Area 36 | I164: =SUMIFS(O_AC_DCGM_PTS!H8:H6541, O_AC_DCGM_PTS!A8:A6541, A164, O_AC_DCGM_PTS!B8:B6541,C164, O_AC_DCGM_PTS!C8:C6541, B164) -> 0 | J164: =SUMIFS(O_AC_DCGM_PTS!I8:I6541, O_AC_DCGM_PTS!A8:A6541, A164, O_AC_DCGM_PTS!B8:B6541,C164, O_AC_DCGM_PTS!C8:C6541, B164) -> 0 | K164: =SUMIFS(O_AC_DCGM_PTS!J8:J6541, O_AC_DCGM_PTS!A8:A6541, A164, O_AC_DCGM_PTS!B8:B6541,C164, O_AC_DCGM_PTS!C8:C6541, B164) -> 0 | L164: =SUMIFS(O_AC_DCGM_PTS!K8:K6541, O_AC_DCGM_PTS!A8:A6541, A164, O_AC_DCGM_PTS!B8:B6541,C164, O_AC_DCGM_PTS!C8:C6541, B164) -> 0 | M164: =SUMIFS(O_AC_DCGM_PTS!L8:L6541, O_AC_DCGM_PTS!A8:A6541, A164, O_AC_DCGM_PTS!B8:B6541,C164, O_AC_DCGM_PTS!C8:C6541, B164) -> 0 | N164: =SUMIFS(O_AC_DCGM_PTS!M8:M6541, O_AC_DCGM_PTS!A8:A6541, A164, O_AC_DCGM_PTS!B8:B6541,C164, O_AC_DCGM_PTS!C8:C6541, B164) -> 0 | O164: =SUMIFS(O_AC_DCGM_PTS!N8:N6541, O_AC_DCGM_PTS!A8:A6541, A164, O_AC_DCGM_PTS!B8:B6541,C164, O_AC_DCGM_PTS!C8:C6541, B164) -> 0 | P164: =SUMIFS(O_AC_DCGM_PTS!O8:O6541, O_AC_DCGM_PTS!A8:A6541, A164, O_AC_DCGM_PTS!B8:B6541,C164, O_AC_DCGM_PTS!C8:C6541, B164) -> 0 | Q164: =SUMIFS(O_AC_DCGM_PTS!P8:P6541, O_AC_DCGM_PTS!A8:A6541, A164, O_AC_DCGM_PTS!B8:B6541,C164, O_AC_DCGM_PTS!C8:C6541, B164) -> 0 | R164: =SUMIFS(O_AC_DCGM_PTS!Q8:Q6541, O_AC_DCGM_PTS!A8:A6541, A164, O_AC_DCGM_PTS!B8:B6541,C164, O_AC_DCGM_PTS!C8:C6541, B164) -> 0
A165: OSL | B165: A36 | C165: RES | D165: R | E165: OSL RES A36 | F165: Open space acquisition | G165: Residential HUEs | H165: Area 36 | I165: =SUMIFS(O_AC_DCGM_PTS!H8:H6541, O_AC_DCGM_PTS!A8:A6541, A165, O_AC_DCGM_PTS!B8:B6541,C165, O_AC_DCGM_PTS!C8:C6541, B165) -> 0 | J165: =SUMIFS(O_AC_DCGM_PTS!I8:I6541, O_AC_DCGM_PTS!A8:A6541, A165, O_AC_DCGM_PTS!B8:B6541,C165, O_AC_DCGM_PTS!C8:C6541, B165) -> 0 | K165: =SUMIFS(O_AC_DCGM_PTS!J8:J6541, O_AC_DCGM_PTS!A8:A6541, A165, O_AC_DCGM_PTS!B8:B6541,C165, O_AC_DCGM_PTS!C8:C6541, B165) -> 0 | L165: =SUMIFS(O_AC_DCGM_PTS!K8:K6541, O_AC_DCGM_PTS!A8:A6541, A165, O_AC_DCGM_PTS!B8:B6541,C165, O_AC_DCGM_PTS!C8:C6541, B165) -> 0 | M165: =SUMIFS(O_AC_DCGM_PTS!L8:L6541, O_AC_DCGM_PTS!A8:A6541, A165, O_AC_DCGM_PTS!B8:B6541,C165, O_AC_DCGM_PTS!C8:C6541, B165) -> 0 | N165: =SUMIFS(O_AC_DCGM_PTS!M8:M6541, O_AC_DCGM_PTS!A8:A6541, A165, O_AC_DCGM_PTS!B8:B6541,C165, O_AC_DCGM_PTS!C8:C6541, B165) -> 0 | O165: =SUMIFS(O_AC_DCGM_PTS!N8:N6541, O_AC_DCGM_PTS!A8:A6541, A165, O_AC_DCGM_PTS!B8:B6541,C165, O_AC_DCGM_PTS!C8:C6541, B165) -> 0 | P165: =SUMIFS(O_AC_DCGM_PTS!O8:O6541, O_AC_DCGM_PTS!A8:A6541, A165, O_AC_DCGM_PTS!B8:B6541,C165, O_AC_DCGM_PTS!C8:C6541, B165) -> 0 | Q165: =SUMIFS(O_AC_DCGM_PTS!P8:P6541, O_AC_DCGM_PTS!A8:A6541, A165, O_AC_DCGM_PTS!B8:B6541,C165, O_AC_DCGM_PTS!C8:C6541, B165) -> 0 | R165: =SUMIFS(O_AC_DCGM_PTS!Q8:Q6541, O_AC_DCGM_PTS!A8:A6541, A165, O_AC_DCGM_PTS!B8:B6541,C165, O_AC_DCGM_PTS!C8:C6541, B165) -> 0
A166: OSL | B166: A37 | C166: NRES | D166: N | E166: OSL NRES A37 | F166: Open space acquisition | G166: Non-residential HUEs | H166: Area 37 | I166: =SUMIFS(O_AC_DCGM_PTS!H8:H6541, O_AC_DCGM_PTS!A8:A6541, A166, O_AC_DCGM_PTS!B8:B6541,C166, O_AC_DCGM_PTS!C8:C6541, B166) -> 0 | J166: =SUMIFS(O_AC_DCGM_PTS!I8:I6541, O_AC_DCGM_PTS!A8:A6541, A166, O_AC_DCGM_PTS!B8:B6541,C166, O_AC_DCGM_PTS!C8:C6541, B166) -> 0 | K166: =SUMIFS(O_AC_DCGM_PTS!J8:J6541, O_AC_DCGM_PTS!A8:A6541, A166, O_AC_DCGM_PTS!B8:B6541,C166, O_AC_DCGM_PTS!C8:C6541, B166) -> 0 | L166: =SUMIFS(O_AC_DCGM_PTS!K8:K6541, O_AC_DCGM_PTS!A8:A6541, A166, O_AC_DCGM_PTS!B8:B6541,C166, O_AC_DCGM_PTS!C8:C6541, B166) -> 0 | M166: =SUMIFS(O_AC_DCGM_PTS!L8:L6541, O_AC_DCGM_PTS!A8:A6541, A166, O_AC_DCGM_PTS!B8:B6541,C166, O_AC_DCGM_PTS!C8:C6541, B166) -> 0 | N166: =SUMIFS(O_AC_DCGM_PTS!M8:M6541, O_AC_DCGM_PTS!A8:A6541, A166, O_AC_DCGM_PTS!B8:B6541,C166, O_AC_DCGM_PTS!C8:C6541, B166) -> 0 | O166: =SUMIFS(O_AC_DCGM_PTS!N8:N6541, O_AC_DCGM_PTS!A8:A6541, A166, O_AC_DCGM_PTS!B8:B6541,C166, O_AC_DCGM_PTS!C8:C6541, B166) -> 0 | P166: =SUMIFS(O_AC_DCGM_PTS!O8:O6541, O_AC_DCGM_PTS!A8:A6541, A166, O_AC_DCGM_PTS!B8:B6541,C166, O_AC_DCGM_PTS!C8:C6541, B166) -> 0 | Q166: =SUMIFS(O_AC_DCGM_PTS!P8:P6541, O_AC_DCGM_PTS!A8:A6541, A166, O_AC_DCGM_PTS!B8:B6541,C166, O_AC_DCGM_PTS!C8:C6541, B166) -> 0 | R166: =SUMIFS(O_AC_DCGM_PTS!Q8:Q6541, O_AC_DCGM_PTS!A8:A6541, A166, O_AC_DCGM_PTS!B8:B6541,C166, O_AC_DCGM_PTS!C8:C6541, B166) -> 0
A167: OSL | B167: A37 | C167: RES | D167: R | E167: OSL RES A37 | F167: Open space acquisition | G167: Residential HUEs | H167: Area 37 | I167: =SUMIFS(O_AC_DCGM_PTS!H8:H6541, O_AC_DCGM_PTS!A8:A6541, A167, O_AC_DCGM_PTS!B8:B6541,C167, O_AC_DCGM_PTS!C8:C6541, B167) -> 0 | J167: =SUMIFS(O_AC_DCGM_PTS!I8:I6541, O_AC_DCGM_PTS!A8:A6541, A167, O_AC_DCGM_PTS!B8:B6541,C167, O_AC_DCGM_PTS!C8:C6541, B167) -> 0 | K167: =SUMIFS(O_AC_DCGM_PTS!J8:J6541, O_AC_DCGM_PTS!A8:A6541, A167, O_AC_DCGM_PTS!B8:B6541,C167, O_AC_DCGM_PTS!C8:C6541, B167) -> 0 | L167: =SUMIFS(O_AC_DCGM_PTS!K8:K6541, O_AC_DCGM_PTS!A8:A6541, A167, O_AC_DCGM_PTS!B8:B6541,C167, O_AC_DCGM_PTS!C8:C6541, B167) -> 0 | M167: =SUMIFS(O_AC_DCGM_PTS!L8:L6541, O_AC_DCGM_PTS!A8:A6541, A167, O_AC_DCGM_PTS!B8:B6541,C167, O_AC_DCGM_PTS!C8:C6541, B167) -> 0 | N167: =SUMIFS(O_AC_DCGM_PTS!M8:M6541, O_AC_DCGM_PTS!A8:A6541, A167, O_AC_DCGM_PTS!B8:B6541,C167, O_AC_DCGM_PTS!C8:C6541, B167) -> 0 | O167: =SUMIFS(O_AC_DCGM_PTS!N8:N6541, O_AC_DCGM_PTS!A8:A6541, A167, O_AC_DCGM_PTS!B8:B6541,C167, O_AC_DCGM_PTS!C8:C6541, B167) -> 0 | P167: =SUMIFS(O_AC_DCGM_PTS!O8:O6541, O_AC_DCGM_PTS!A8:A6541, A167, O_AC_DCGM_PTS!B8:B6541,C167, O_AC_DCGM_PTS!C8:C6541, B167) -> 0 | Q167: =SUMIFS(O_AC_DCGM_PTS!P8:P6541, O_AC_DCGM_PTS!A8:A6541, A167, O_AC_DCGM_PTS!B8:B6541,C167, O_AC_DCGM_PTS!C8:C6541, B167) -> 0 | R167: =SUMIFS(O_AC_DCGM_PTS!Q8:Q6541, O_AC_DCGM_PTS!A8:A6541, A167, O_AC_DCGM_PTS!B8:B6541,C167, O_AC_DCGM_PTS!C8:C6541, B167) -> 0
A168: OSL | B168: A38 | C168: NRES | D168: N | E168: OSL NRES A38 | F168: Open space acquisition | G168: Non-residential HUEs | H168: Area 38 | I168: =SUMIFS(O_AC_DCGM_PTS!H8:H6541, O_AC_DCGM_PTS!A8:A6541, A168, O_AC_DCGM_PTS!B8:B6541,C168, O_AC_DCGM_PTS!C8:C6541, B168) -> 0 | J168: =SUMIFS(O_AC_DCGM_PTS!I8:I6541, O_AC_DCGM_PTS!A8:A6541, A168, O_AC_DCGM_PTS!B8:B6541,C168, O_AC_DCGM_PTS!C8:C6541, B168) -> 0 | K168: =SUMIFS(O_AC_DCGM_PTS!J8:J6541, O_AC_DCGM_PTS!A8:A6541, A168, O_AC_DCGM_PTS!B8:B6541,C168, O_AC_DCGM_PTS!C8:C6541, B168) -> 0 | L168: =SUMIFS(O_AC_DCGM_PTS!K8:K6541, O_AC_DCGM_PTS!A8:A6541, A168, O_AC_DCGM_PTS!B8:B6541,C168, O_AC_DCGM_PTS!C8:C6541, B168) -> 0 | M168: =SUMIFS(O_AC_DCGM_PTS!L8:L6541, O_AC_DCGM_PTS!A8:A6541, A168, O_AC_DCGM_PTS!B8:B6541,C168, O_AC_DCGM_PTS!C8:C6541, B168) -> 0 | N168: =SUMIFS(O_AC_DCGM_PTS!M8:M6541, O_AC_DCGM_PTS!A8:A6541, A168, O_AC_DCGM_PTS!B8:B6541,C168, O_AC_DCGM_PTS!C8:C6541, B168) -> 0 | O168: =SUMIFS(O_AC_DCGM_PTS!N8:N6541, O_AC_DCGM_PTS!A8:A6541, A168, O_AC_DCGM_PTS!B8:B6541,C168, O_AC_DCGM_PTS!C8:C6541, B168) -> 0 | P168: =SUMIFS(O_AC_DCGM_PTS!O8:O6541, O_AC_DCGM_PTS!A8:A6541, A168, O_AC_DCGM_PTS!B8:B6541,C168, O_AC_DCGM_PTS!C8:C6541, B168) -> 0 | Q168: =SUMIFS(O_AC_DCGM_PTS!P8:P6541, O_AC_DCGM_PTS!A8:A6541, A168, O_AC_DCGM_PTS!B8:B6541,C168, O_AC_DCGM_PTS!C8:C6541, B168) -> 0 | R168: =SUMIFS(O_AC_DCGM_PTS!Q8:Q6541, O_AC_DCGM_PTS!A8:A6541, A168, O_AC_DCGM_PTS!B8:B6541,C168, O_AC_DCGM_PTS!C8:C6541, B168) -> 0
A169: OSL | B169: A38 | C169: RES | D169: R | E169: OSL RES A38 | F169: Open space acquisition | G169: Residential HUEs | H169: Area 38 | I169: =SUMIFS(O_AC_DCGM_PTS!H8:H6541, O_AC_DCGM_PTS!A8:A6541, A169, O_AC_DCGM_PTS!B8:B6541,C169, O_AC_DCGM_PTS!C8:C6541, B169) -> 0 | J169: =SUMIFS(O_AC_DCGM_PTS!I8:I6541, O_AC_DCGM_PTS!A8:A6541, A169, O_AC_DCGM_PTS!B8:B6541,C169, O_AC_DCGM_PTS!C8:C6541, B169) -> 0 | K169: =SUMIFS(O_AC_DCGM_PTS!J8:J6541, O_AC_DCGM_PTS!A8:A6541, A169, O_AC_DCGM_PTS!B8:B6541,C169, O_AC_DCGM_PTS!C8:C6541, B169) -> 0 | L169: =SUMIFS(O_AC_DCGM_PTS!K8:K6541, O_AC_DCGM_PTS!A8:A6541, A169, O_AC_DCGM_PTS!B8:B6541,C169, O_AC_DCGM_PTS!C8:C6541, B169) -> 0 | M169: =SUMIFS(O_AC_DCGM_PTS!L8:L6541, O_AC_DCGM_PTS!A8:A6541, A169, O_AC_DCGM_PTS!B8:B6541,C169, O_AC_DCGM_PTS!C8:C6541, B169) -> 0 | N169: =SUMIFS(O_AC_DCGM_PTS!M8:M6541, O_AC_DCGM_PTS!A8:A6541, A169, O_AC_DCGM_PTS!B8:B6541,C169, O_AC_DCGM_PTS!C8:C6541, B169) -> 0 | O169: =SUMIFS(O_AC_DCGM_PTS!N8:N6541, O_AC_DCGM_PTS!A8:A6541, A169, O_AC_DCGM_PTS!B8:B6541,C169, O_AC_DCGM_PTS!C8:C6541, B169) -> 0 | P169: =SUMIFS(O_AC_DCGM_PTS!O8:O6541, O_AC_DCGM_PTS!A8:A6541, A169, O_AC_DCGM_PTS!B8:B6541,C169, O_AC_DCGM_PTS!C8:C6541, B169) -> 0 | Q169: =SUMIFS(O_AC_DCGM_PTS!P8:P6541, O_AC_DCGM_PTS!A8:A6541, A169, O_AC_DCGM_PTS!B8:B6541,C169, O_AC_DCGM_PTS!C8:C6541, B169) -> 0 | R169: =SUMIFS(O_AC_DCGM_PTS!Q8:Q6541, O_AC_DCGM_PTS!A8:A6541, A169, O_AC_DCGM_PTS!B8:B6541,C169, O_AC_DCGM_PTS!C8:C6541, B169) -> 0
A170: OSL | B170: A39 | C170: NRES | D170: N | E170: OSL NRES A39 | F170: Open space acquisition | G170: Non-residential HUEs | H170: Area 39 | I170: =SUMIFS(O_AC_DCGM_PTS!H8:H6541, O_AC_DCGM_PTS!A8:A6541, A170, O_AC_DCGM_PTS!B8:B6541,C170, O_AC_DCGM_PTS!C8:C6541, B170) -> 0 | J170: =SUMIFS(O_AC_DCGM_PTS!I8:I6541, O_AC_DCGM_PTS!A8:A6541, A170, O_AC_DCGM_PTS!B8:B6541,C170, O_AC_DCGM_PTS!C8:C6541, B170) -> 0 | K170: =SUMIFS(O_AC_DCGM_PTS!J8:J6541, O_AC_DCGM_PTS!A8:A6541, A170, O_AC_DCGM_PTS!B8:B6541,C170, O_AC_DCGM_PTS!C8:C6541, B170) -> 0 | L170: =SUMIFS(O_AC_DCGM_PTS!K8:K6541, O_AC_DCGM_PTS!A8:A6541, A170, O_AC_DCGM_PTS!B8:B6541,C170, O_AC_DCGM_PTS!C8:C6541, B170) -> 0 | M170: =SUMIFS(O_AC_DCGM_PTS!L8:L6541, O_AC_DCGM_PTS!A8:A6541, A170, O_AC_DCGM_PTS!B8:B6541,C170, O_AC_DCGM_PTS!C8:C6541, B170) -> 0 | N170: =SUMIFS(O_AC_DCGM_PTS!M8:M6541, O_AC_DCGM_PTS!A8:A6541, A170, O_AC_DCGM_PTS!B8:B6541,C170, O_AC_DCGM_PTS!C8:C6541, B170) -> 0 | O170: =SUMIFS(O_AC_DCGM_PTS!N8:N6541, O_AC_DCGM_PTS!A8:A6541, A170, O_AC_DCGM_PTS!B8:B6541,C170, O_AC_DCGM_PTS!C8:C6541, B170) -> 0 | P170: =SUMIFS(O_AC_DCGM_PTS!O8:O6541, O_AC_DCGM_PTS!A8:A6541, A170, O_AC_DCGM_PTS!B8:B6541,C170, O_AC_DCGM_PTS!C8:C6541, B170) -> 0 | Q170: =SUMIFS(O_AC_DCGM_PTS!P8:P6541, O_AC_DCGM_PTS!A8:A6541, A170, O_AC_DCGM_PTS!B8:B6541,C170, O_AC_DCGM_PTS!C8:C6541, B170) -> 0 | R170: =SUMIFS(O_AC_DCGM_PTS!Q8:Q6541, O_AC_DCGM_PTS!A8:A6541, A170, O_AC_DCGM_PTS!B8:B6541,C170, O_AC_DCGM_PTS!C8:C6541, B170) -> 0
A171: OSL | B171: A39 | C171: RES | D171: R | E171: OSL RES A39 | F171: Open space acquisition | G171: Residential HUEs | H171: Area 39 | I171: =SUMIFS(O_AC_DCGM_PTS!H8:H6541, O_AC_DCGM_PTS!A8:A6541, A171, O_AC_DCGM_PTS!B8:B6541,C171, O_AC_DCGM_PTS!C8:C6541, B171) -> 0 | J171: =SUMIFS(O_AC_DCGM_PTS!I8:I6541, O_AC_DCGM_PTS!A8:A6541, A171, O_AC_DCGM_PTS!B8:B6541,C171, O_AC_DCGM_PTS!C8:C6541, B171) -> 0 | K171: =SUMIFS(O_AC_DCGM_PTS!J8:J6541, O_AC_DCGM_PTS!A8:A6541, A171, O_AC_DCGM_PTS!B8:B6541,C171, O_AC_DCGM_PTS!C8:C6541, B171) -> 0 | L171: =SUMIFS(O_AC_DCGM_PTS!K8:K6541, O_AC_DCGM_PTS!A8:A6541, A171, O_AC_DCGM_PTS!B8:B6541,C171, O_AC_DCGM_PTS!C8:C6541, B171) -> 0 | M171: =SUMIFS(O_AC_DCGM_PTS!L8:L6541, O_AC_DCGM_PTS!A8:A6541, A171, O_AC_DCGM_PTS!B8:B6541,C171, O_AC_DCGM_PTS!C8:C6541, B171) -> 0 | N171: =SUMIFS(O_AC_DCGM_PTS!M8:M6541, O_AC_DCGM_PTS!A8:A6541, A171, O_AC_DCGM_PTS!B8:B6541,C171, O_AC_DCGM_PTS!C8:C6541, B171) -> 0 | O171: =SUMIFS(O_AC_DCGM_PTS!N8:N6541, O_AC_DCGM_PTS!A8:A6541, A171, O_AC_DCGM_PTS!B8:B6541,C171, O_AC_DCGM_PTS!C8:C6541, B171) -> 0 | P171: =SUMIFS(O_AC_DCGM_PTS!O8:O6541, O_AC_DCGM_PTS!A8:A6541, A171, O_AC_DCGM_PTS!B8:B6541,C171, O_AC_DCGM_PTS!C8:C6541, B171) -> 0 | Q171: =SUMIFS(O_AC_DCGM_PTS!P8:P6541, O_AC_DCGM_PTS!A8:A6541, A171, O_AC_DCGM_PTS!B8:B6541,C171, O_AC_DCGM_PTS!C8:C6541, B171) -> 0 | R171: =SUMIFS(O_AC_DCGM_PTS!Q8:Q6541, O_AC_DCGM_PTS!A8:A6541, A171, O_AC_DCGM_PTS!B8:B6541,C171, O_AC_DCGM_PTS!C8:C6541, B171) -> 0
A172: OSL | B172: A40 | C172: NRES | D172: N | E172: OSL NRES A40 | F172: Open space acquisition | G172: Non-residential HUEs | H172: Area 40 | I172: =SUMIFS(O_AC_DCGM_PTS!H8:H6541, O_AC_DCGM_PTS!A8:A6541, A172, O_AC_DCGM_PTS!B8:B6541,C172, O_AC_DCGM_PTS!C8:C6541, B172) -> 0 | J172: =SUMIFS(O_AC_DCGM_PTS!I8:I6541, O_AC_DCGM_PTS!A8:A6541, A172, O_AC_DCGM_PTS!B8:B6541,C172, O_AC_DCGM_PTS!C8:C6541, B172) -> 0 | K172: =SUMIFS(O_AC_DCGM_PTS!J8:J6541, O_AC_DCGM_PTS!A8:A6541, A172, O_AC_DCGM_PTS!B8:B6541,C172, O_AC_DCGM_PTS!C8:C6541, B172) -> 0 | L172: =SUMIFS(O_AC_DCGM_PTS!K8:K6541, O_AC_DCGM_PTS!A8:A6541, A172, O_AC_DCGM_PTS!B8:B6541,C172, O_AC_DCGM_PTS!C8:C6541, B172) -> 0 | M172: =SUMIFS(O_AC_DCGM_PTS!L8:L6541, O_AC_DCGM_PTS!A8:A6541, A172, O_AC_DCGM_PTS!B8:B6541,C172, O_AC_DCGM_PTS!C8:C6541, B172) -> 0 | N172: =SUMIFS(O_AC_DCGM_PTS!M8:M6541, O_AC_DCGM_PTS!A8:A6541, A172, O_AC_DCGM_PTS!B8:B6541,C172, O_AC_DCGM_PTS!C8:C6541, B172) -> 0 | O172: =SUMIFS(O_AC_DCGM_PTS!N8:N6541, O_AC_DCGM_PTS!A8:A6541, A172, O_AC_DCGM_PTS!B8:B6541,C172, O_AC_DCGM_PTS!C8:C6541, B172) -> 0 | P172: =SUMIFS(O_AC_DCGM_PTS!O8:O6541, O_AC_DCGM_PTS!A8:A6541, A172, O_AC_DCGM_PTS!B8:B6541,C172, O_AC_DCGM_PTS!C8:C6541, B172) -> 0 | Q172: =SUMIFS(O_AC_DCGM_PTS!P8:P6541, O_AC_DCGM_PTS!A8:A6541, A172, O_AC_DCGM_PTS!B8:B6541,C172, O_AC_DCGM_PTS!C8:C6541, B172) -> 0 | R172: =SUMIFS(O_AC_DCGM_PTS!Q8:Q6541, O_AC_DCGM_PTS!A8:A6541, A172, O_AC_DCGM_PTS!B8:B6541,C172, O_AC_DCGM_PTS!C8:C6541, B172) -> 0
A173: OSL | B173: A40 | C173: RES | D173: R | E173: OSL RES A40 | F173: Open space acquisition | G173: Residential HUEs | H173: Area 40 | I173: =SUMIFS(O_AC_DCGM_PTS!H8:H6541, O_AC_DCGM_PTS!A8:A6541, A173, O_AC_DCGM_PTS!B8:B6541,C173, O_AC_DCGM_PTS!C8:C6541, B173) -> 0 | J173: =SUMIFS(O_AC_DCGM_PTS!I8:I6541, O_AC_DCGM_PTS!A8:A6541, A173, O_AC_DCGM_PTS!B8:B6541,C173, O_AC_DCGM_PTS!C8:C6541, B173) -> 0 | K173: =SUMIFS(O_AC_DCGM_PTS!J8:J6541, O_AC_DCGM_PTS!A8:A6541, A173, O_AC_DCGM_PTS!B8:B6541,C173, O_AC_DCGM_PTS!C8:C6541, B173) -> 0 | L173: =SUMIFS(O_AC_DCGM_PTS!K8:K6541, O_AC_DCGM_PTS!A8:A6541, A173, O_AC_DCGM_PTS!B8:B6541,C173, O_AC_DCGM_PTS!C8:C6541, B173) -> 0 | M173: =SUMIFS(O_AC_DCGM_PTS!L8:L6541, O_AC_DCGM_PTS!A8:A6541, A173, O_AC_DCGM_PTS!B8:B6541,C173, O_AC_DCGM_PTS!C8:C6541, B173) -> 0 | N173: =SUMIFS(O_AC_DCGM_PTS!M8:M6541, O_AC_DCGM_PTS!A8:A6541, A173, O_AC_DCGM_PTS!B8:B6541,C173, O_AC_DCGM_PTS!C8:C6541, B173) -> 0 | O173: =SUMIFS(O_AC_DCGM_PTS!N8:N6541, O_AC_DCGM_PTS!A8:A6541, A173, O_AC_DCGM_PTS!B8:B6541,C173, O_AC_DCGM_PTS!C8:C6541, B173) -> 0 | P173: =SUMIFS(O_AC_DCGM_PTS!O8:O6541, O_AC_DCGM_PTS!A8:A6541, A173, O_AC_DCGM_PTS!B8:B6541,C173, O_AC_DCGM_PTS!C8:C6541, B173) -> 0 | Q173: =SUMIFS(O_AC_DCGM_PTS!P8:P6541, O_AC_DCGM_PTS!A8:A6541, A173, O_AC_DCGM_PTS!B8:B6541,C173, O_AC_DCGM_PTS!C8:C6541, B173) -> 0 | R173: =SUMIFS(O_AC_DCGM_PTS!Q8:Q6541, O_AC_DCGM_PTS!A8:A6541, A173, O_AC_DCGM_PTS!B8:B6541,C173, O_AC_DCGM_PTS!C8:C6541, B173) -> 0
A174: OSL | B174: A41 | C174: NRES | D174: N | E174: OSL NRES A41 | F174: Open space acquisition | G174: Non-residential HUEs | H174: Area 41 | I174: =SUMIFS(O_AC_DCGM_PTS!H8:H6541, O_AC_DCGM_PTS!A8:A6541, A174, O_AC_DCGM_PTS!B8:B6541,C174, O_AC_DCGM_PTS!C8:C6541, B174) -> 0 | J174: =SUMIFS(O_AC_DCGM_PTS!I8:I6541, O_AC_DCGM_PTS!A8:A6541, A174, O_AC_DCGM_PTS!B8:B6541,C174, O_AC_DCGM_PTS!C8:C6541, B174) -> 0 | K174: =SUMIFS(O_AC_DCGM_PTS!J8:J6541, O_AC_DCGM_PTS!A8:A6541, A174, O_AC_DCGM_PTS!B8:B6541,C174, O_AC_DCGM_PTS!C8:C6541, B174) -> 0 | L174: =SUMIFS(O_AC_DCGM_PTS!K8:K6541, O_AC_DCGM_PTS!A8:A6541, A174, O_AC_DCGM_PTS!B8:B6541,C174, O_AC_DCGM_PTS!C8:C6541, B174) -> 0 | M174: =SUMIFS(O_AC_DCGM_PTS!L8:L6541, O_AC_DCGM_PTS!A8:A6541, A174, O_AC_DCGM_PTS!B8:B6541,C174, O_AC_DCGM_PTS!C8:C6541, B174) -> 0 | N174: =SUMIFS(O_AC_DCGM_PTS!M8:M6541, O_AC_DCGM_PTS!A8:A6541, A174, O_AC_DCGM_PTS!B8:B6541,C174, O_AC_DCGM_PTS!C8:C6541, B174) -> 0 | O174: =SUMIFS(O_AC_DCGM_PTS!N8:N6541, O_AC_DCGM_PTS!A8:A6541, A174, O_AC_DCGM_PTS!B8:B6541,C174, O_AC_DCGM_PTS!C8:C6541, B174) -> 0 | P174: =SUMIFS(O_AC_DCGM_PTS!O8:O6541, O_AC_DCGM_PTS!A8:A6541, A174, O_AC_DCGM_PTS!B8:B6541,C174, O_AC_DCGM_PTS!C8:C6541, B174) -> 0 | Q174: =SUMIFS(O_AC_DCGM_PTS!P8:P6541, O_AC_DCGM_PTS!A8:A6541, A174, O_AC_DCGM_PTS!B8:B6541,C174, O_AC_DCGM_PTS!C8:C6541, B174) -> 0 | R174: =SUMIFS(O_AC_DCGM_PTS!Q8:Q6541, O_AC_DCGM_PTS!A8:A6541, A174, O_AC_DCGM_PTS!B8:B6541,C174, O_AC_DCGM_PTS!C8:C6541, B174) -> 0
